Workbook

Sheet Cover
A1: 30
C2: Pre-Decisional, FOIA-Exempt, Deliberative Process
C13: Rate Analysis Model V1.01
B14: =VLOOKUP(C14,Scenario!B:C,2,FALSE) -> 1 | C14: =VLOOKUP(1,Scenario!A:B,2,FALSE) -> FY 2029-30 Base Case Phase 2
C15: Home / Contents
C16: Start Here
C17: Scenario Builder
C18: Purpose of this Workbook:
C22: Legend:
C24: Tab Colors | H24: Font Colors | L24: Hyperlink Types
C26: Blue Tab | E26: Cover Sheet | H26: Blue Font | I26: Constant Values | L26: Cover Hyperlink | N26: Cover Page
C27: Green Tab | E27: Table of Contents | H27: Black Font | I27: Calculated Values | L27: TOC Hyperlink | N27: TOC
C28: Dark Blue Tabs | E28: Input Sheets | H28: Plum Font | I28: Hyperlinks | L28: Sheet Top Hyperlink | N28: é
C29: Rose Tabs | E29: Assumption Sheets | H29: Red Font | I29: Errors/Checks
C30: Tan Tabs | E30: Calculation/Output Sheets | H30: Black/Yellow | I30: Work in Progress
C31: Teal Tabs | E31: Lookup Sheets | H31: Black/Gold | I31: Modifiable Assumptions
C32: Reb Tabs | E32: Log/Error Sheet | H32: White/Grey | I32: Locked Data
C33: Black Tabs | E33: Locked Data Sheet
C34: Yellow Tabs | E34: REP Settlement Sheets
C35: Purple Tabs | E35: 7b2 Related Sheets

Sheet TOC
A1: 30 | B1: Table of Contents
B2: =Cover!C13 -> Rate Analysis Model V1.01
B3: =Cover!$C$14 -> FY 2029-30 Base Case Phase 2
B4: Cover Sheet | F4: PRS | G4: 7(b)(2)
E5: Input | F5: Documentation | G5: Documentation
A6: é | B6: Section & Sheet Titles | D6: Worksheet Name | E6: Datasheet? | F6: Table Number | G6: Table Number
B8: Documentation
B9: 1 | C9: Macro Design Schematic | D9: Macro
B10: Assumption Sheets
B11: =+B9+1 -> 2 | C11: Initialize Assumptions | D11: Init | E11: INPUT
B12: Validation/Error Check/Result Summary
B13: =B11+1 -> 3 | C13: Revenue Check | D13: Rev Check
B14: =+B13+1 -> 4 | C14: Rate Design Summary | D14: RateSummary
B15: 5 | C15: Scenario Results | D15: ScenarioResults
B16: 6 | C16: Expanded Scenario Results | D16: ResultsDetail
B17: Loads and Resources Data
B18: =+B16+1 -> 7 | C18: Load Input Data | D18: Loads | E18: INPUT | F18: Table 2.1.1 | G18: Table 1.1.1
B19: =+B18+1 -> 8 | C19: Load Forecast with Monthly Losses Applied | D19: Loads_MthLoss
B20: =+B19+1 -> 9 | C20: PF Public with Firm Slice Loads | D20: PF Public | E20: INPUT
B21: =+B20+1 -> 10 | C21: PF Exchange Loads | D21: PF Exchange | E21: INPUT
B22: 11 | C22: IP Loads | D22: RAM IP | E22: INPUT
B23: 12 | C23: NR Loads | D23: RAM NR | E23: INPUT
B24: =+B23+1 -> 13 | C24: Resource Input Data | D24: Resources | E24: INPUT | F24: Table 2.1.2 | G24: Table 1.1.2
B25: 14 | C25: Residential Exchange Input Data | D25: ExchangeInputs | E25: INPUT
B26: =+B25+1 -> 15 | C26: Transmission Inputs | D26: TransInputs | E26: INPUT
B27: =+B26+1 -> 16 | C27: Losses Inputs | D27: LossesInputs | E27: INPUT
B28: 17 | C28: REP Settlement Inputs | D28: REPSettlementSchedule
B29: =+B28+1 -> 18 | C29: Calculation of Exchange Transmission Adder | D29: Exchange Trans
B30: 19 | C30: Calculation of Exchange Resource Size and Costs | D30: Exchange Summary | F30: Table 2.1.3 | G30: Table 1.1.3
B31: =+B30+1 -> 20 | C31: Load Resource Study | D31: LR_Balance | F31: Table 2.2.1 | G31: Table 1.2.1
B32: 21 | C32: Load Resource Balance | D32: LR_Adjust | F32: Table 2.2.2 | G32: Table 1.2.2
B33: 22 | C33: Program Case Energy Allocation Factors | D33: ProgAlloc | F33: Table 2.2.3 | G33: Table 1.2.3
B34: Determination of Active Residential Exchange Costs
B35: =+B33+1 -> 23 | C35: Active Exchanging Utilities | D35: Active Exchange
B36: 24 | C36: Exchanging Utilities' ASCs | D36: Exchange ASC
B37: 25 | C37: Exchanging Utilities' Exchange Loads | D37: Exchange Load
B38: 26 | C38: Exchange Resource Costs | D38: Exchange Resource Cost
B39: Ratemaking Revenue Requirement Data
B40: =+B38+1 -> 27 | C40: Disaggregated Costs with TRM and COSA Flags | D40: Cost | E40: INPUT
B41: =+B40+1 -> 28 | C41: Disaggregated Costs with TRM and COSA Flags, Includes Internally Developed Costs | D41: CostPrint | F41: Table 2.3.1 | G41: Table 1.3.1
B42: =+B41+1 -> 29 | C42: Aggregated COSA Costs | D42: ProgCOSA | F42: Table 2.3.2 | G42: Table 1.3.2
B43: =+B42+1 -> 30 | C43: LDD and IRD Costs | D43: LDD_IRD | F43: Table 2.3.3 | G43: Table 1.3.3
B44: Allocation of COSA Costs to Rate Pools
B45: =+B43+1 -> 31 | C45: Allocation of FBS and LDD/IRD Costs | D45: FBS_LDD_IRD_Allocation | F45: Table 2.3.4.1 | G45: Table 1.3.4.1
B46: =+B45+1 -> 32 | C46: Allocation of New Resource and Exchange Costs | D46: NR_EX_Allocation | F46: Table 2.3.4.2 | G46: Table 1.3.4.2
B47: =+B46+1 -> 33 | C47: Allocation of Conservation, BPA Program and Transmission Costs | D47: Cons_Program_Allocation | F47: Table 2.3.4.3 | G47: Table 1.3.4.3
B48: =+B47+1 -> 34 | C48: Initial Cost Allocation | D48: Initial_Cost_Allocation | F48: Table 2.3.5 | G48: Table 1.3.5
B49: =+B48+1 -> 35 | C49: Cost Allocation Summary | D49: Cost_Allocation Summary
B50: Revenue Credits Allocation to Rate Pools
B51: =+B49+1 -> 36 | C51: Revenue Credits | D51: RDS_Credits | F51: Table 2.3.6 | G51: Table 1.3.6
B52: =+B51+1 -> 37 | C52: Revenue Credits Allocated to Loads Recovering FBS Costs | D52: Credits FBS | F52: Tables 2.3.7.1 & 2.3.7.2 | G52: Tables 1.3.7.1 & 1.3.7.2
B53: 38 | C53: Revenue Credits Allocated to Loads Recovering New Resource and Conservation Costs | D53: Credits NR-Cons | F53: Tables 2.3.7.3 & 2.3.7.4 | G53: Tables 1.3.7.3 & 1.3.7.4
B54: 39 | C54: Revenue Credits Allocated to All Loads | D54: Credits Gen-RSS | F54: Tables 2.3.7.5 & 2.3.7.6 | G54: Tables 1.3.7.5 & 1.3.7.6
B55: 40 | C55: Secondary Revenue and Balancing Purchases Input Data | D55: RevSimInputs | E55: INPUT
B56: 41 | C56: Calculation and Allocation of Secondary Revenue Credit | D56: Secondary | F56: Table 2.3.8 | G56: Table 1.3.8
B57: 42 | C57: Calculation and Allocation of FPS Revenue Deficiency | D57: FPS Revenue Deficiency | F57: Table 2.3.9 | G57: Table 1.3.9
B58: Rate Directive Ratemaking
B59: =+B57+1 -> 43 | C59: Calculation of Rates After Initial Allocation of Cost and Credits | D59: Initial Rates | F59: Table 2.3.10 | G59: Table 1.3.10
B60: =+B59+1 -> 44 | C60: Value of Reserves and Industrial Margin Computation | D60: Margin_VOR
B61: 45 | C61: Value of Reserves and Industrial Margin Computation | D61: Margin_VOR_Calc | F61: Table 2.4.1 | G61: Table 1.4.1
B62: 46 | C62: Calculate Annual Scalars Used to Calculate Monthly Rates for First IP-PF Link | D62: Calc Scalar 1 | F62: Table 2.4.2 | G62: Table 1.4.2
B63: 47 | C63: Calculate Monthly Rates Used in First IP - PF Link Calculation | D63: Calc Monthly 1 | F63: Table 2.4.3 | G63: Table 1.4.3
B64: 48 | C64: Calculation of the 7c2 IP-PF Link Amount | D64: IP_PF_Link | F64: Table 2.4.4 | G64: Table 1.4.4
B65: 49 | C65: Allocation of the 7c2 IP-PF Link Amount and Subsequant Rate Calculations | D65: Rates After Link | F65: Table 2.4.5 | G65: Table 1.4.5
B66: 50 | C66: Calculation of the DSI Floor Rate | D66: IP Floor Calc | F66: Table 2.4.6 | G66: Table 1.4.6
B67: 51 | C67: DSI Floor Rate Test 1 | D67: Floor Test 1 | F67: Table 2.4.7 | G67: Table 1.4.7
B68: =B67+1 -> 52 | C68: Calculation of IOU and COU Base Exchange Rates | D68: Base PF Exchange | F68: Table 2.4.8 | G68: Table 1.4.8
B69: REP Settlement Case Rate Directive Ratemaking
B70: =+B68+1 -> 53 | C70: Calculation of REP Adjustment Amount under Settlement | D70: Post-7b2Rates | F70: Table 2.4.9
B71: =B70+1 -> 54 | C71: Rate Analysis Model - Exchange Resource Cost | D71: Base Exchange Cost | F71: Table 2.4.10
B72: =B71+1 -> 55 | C72: Calculation of Settlement Utility Specific PF Exchange Rates | D72: Utility Specific PFx Settle | F72: Table 2.4.11
B73: =+B72+1 -> 56 | C73: 2012 REP Settlement Agreement Section 6 Reallocations | D73: IOU Reallocation Balances | F73: Table 2.4.12
B74: =+B73+1 -> 57 | C74: Allocation of Increase in the PFx Revenue Requirement under Settlement | D74: Rates After Settlement | F74: Table 2.4.13
B75: 58 | C75: Reallocation of REP Net Benefits under Settlement | D75: WP-10 Adjustment | F75: Table 2.4.14
B76: 59 | C76: Rate Computation after Reallocation of REP Benefits under Settlement | D76: Rates After WP-10 Adjustment | F76: Table 2.4.15
B77: 60 | C77: Calculate Annual Scalars Used to Calculate Monthly Rates | D77: Calc Scalar Settlement | F77: Table 2.4.16
B78: 61 | C78: Calculate Monthly Rates Used in First IP - PF Link Calculation | D78: Calc Monthly Settlement | F78: Table 2.4.17
B79: 62 | C79: Initial 7c2 IP-PF Link Calculation | D79: IP_PF_Link Settlement | F79: Table 2.4.18
B80: 63 | C80: Calculation of Rates after IP-PF Link under Settlement | D80: Rates After Link Settlement | F80: Table 2.4.19
B81: 64 | C81: Settlement Revenue Check | D81: Settlement Rev Check
B82: =+B81+1 -> 65 | C82: Net REP Ratemaking Proof Table under Settlement | D82: Net REP Settlement | F82: Table 3.1.7.1
B83: Program Case Rate Directive Ratemaking
B84: =+B82+1 -> 66 | C84: Calculation of the 7b2 Rate Test Trigger | D84: TriggerCalc | G84: Table 1.4.9
B85: =+B84+1 -> 67 | C85: Calculation and Allocation of the 7b2 Rate Protection Amount | D85: 7b2 Allocation | G85: Table 1.4.10
B86: 68 | C86: Calculation of Rates After the Allocation of the 7b2 Rate Protection Amount | D86: Rates After 7b2 | G86: Table 1.4.11
B87: 69 | C87: Calculate Annual Scalars Used to Calculate Monthly Rates for 7b2 Industrial Adjustment 7c2 Delta | D87: Calc Scalar 2 | G87: Table 1.4.12
B88: 70 | C88: Calculate Monthly Rates Used in 7b2 Industrial Adjustment 7c2 Delta | D88: Calc Monthly 2 | G88: Table 1.4.13
B89: 71 | C89: Calculation of the 7b2 Industrial Adjustment 7c2 Delta | D89: IP_PF_Link 2 | G89: Table 1.4.14
B90: 72 | C90: Allocation of the 7b2 Industrial Adjustment 7c2 Delta and Subsequant Rate Calculations | D90: Rates After Link (2) | G90: Table 1.4.15
B91: 73 | C91: DSI Floor Rate Test 2 | D91: Floor Test 2 | G91: Table 1.4.16
B92: 74 | C92: Calculation of Utility Specific PF Exchange Rates | D92: Utility Specifc PFx
B93: 75 | C93: Program Case Revenue Check | D93: Program Rev Check
B94: Rate Pool Unit Cost Tables and Net REP Ratemaking Proof
B95: =+B93+1 -> 76 | C95: PF Rate Pool Unit Cost Table | D95: PF Allocation | F95: Table 2.5.1 | G95: Table 1.5.4
B96: =+B95+1 -> 77 | C96: IP Rate Pool Unit Cost Table | D96: IP Allocation | F96: Table 2.5.2 | G96: Table 1.5.5
B97: =+B96+1 -> 78 | C97: NR Rate Pool Unit Cost Table | D97: NR Allocation | F97: Table 2.5.3 | G97: Table 1.5.6
B98: =+B97+1 -> 79 | C98: Generating Resource Component Contribution Table | D98: Cost Contribution | F98: Table 2.5.4 | G98: Table 1.5.7
B99: =+B98+1 -> 80 | C99: Net REP Ratemaking Proof Table | D99: Net REP
B100: =+B99+1 -> 81 | C100: Reconciliation of REP Benefits for Tiered Rates | D100: REP Benefits | F100: Table 2.4.20
B101: Tiered Rates Methodology (TRM)
B102: =+B100+1 -> 82 | C102: Aggregated TRM Costs | D102: Costs_TRM | F102: Table 3.1.1
B103: =+B102+1 -> 83 | C103: TRM Billing Determinants | D103: TRM_Billing | E103: INPUT
B104: 84 | C104: Unused RHWM Calculation | D104: UnusedRHWM | F104: Table 3.1.2
B105: 85 | C105: NonSlice Cost for Transmission Losses (Composite Credit) | D105: NonSliceLossAdjust | F105: Table 3.1.3
B106: 86 | C106: Balancing Augmentation Adjustment for Change in T1SFCO | D106: T1SFCO | F106: Table 3.1.4
B107: 87 | C107: TRM Market Prices and Demand Rates | D107: MarketInputs | E107: INPUT
B108: 88 | C108: TRM Demand and Load Shaping Charges | D108: LoadShapingandDemand | F108: Table 3.1.5
B109: 89 | C109: PF Load Forecast Deviation Liquidated Damages | D109: LiquidatedDamages | E109: INPUT | F109: Table 3.12
B110: 90 | C110: Tier 2 Rates Inputs | D110: Tier 2 Rates | E110: INPUT
B111: 91 | C111: Sales Calculation for Tier 2 Overhead Cost Adder | D111: Tier2OverheadSales
B112: 92 | C112: TRM Cost Allocation | D112: Cost_Allocation_TRM | F112: Table 3.1.6
B113: 93 | C113: Cost Proof | D113: Cost_Proof | F113: Table 3.1.7.2
B114: 94 | C114: Transfer Service and Unauthorized Increase Charge Inputs | D114: TransferUAIinputs | E114: INPUT
B115: 95 | C115: Transfer Service Charges and Rates | D115: TransferService | E115: INPUT | F115: Table 6.1
B116: 7b2 Case Loads
B117: =+B115+1 -> 96 | C117: 7b2 Conservation Loads | D117: 7b2 Con Load
B118: =+B117+1 -> 97 | C118: 7b2 PF Loads | D118: 7b2 PF Load | G118: Table 2.1
B119: 7b2 Case Loads/Resource Balance and Resource Stack Utilization
B120: =+B118+1 -> 98 | C120: 7b2 Resource Stack | D120: 7b2 Resource Sort | E120: INPUT | G120: Table 2.2.2
B121: =+B120+1 -> 99 | C121: List of Available Resources | D121: 7b2 Resources1 | G121: Table 2.2.3
B122: 100 | C122: Determination of Resources Selected from Resource Stack | D122: 7b2 Resources2 | G122: Table 2.2.9
B123: 101 | C123: Resources Sorted by Least Cost | D123: ConservRes1
B124: 102 | C124: Conservation Resources Selected | D124: ConservRes2 | G124: Table 2.2.4
B125: 103 | C125: Real 2010 Dollar Cost of Resources Selected | D125: ConservRes3 | G125: Table 2.2.5
B126: 104 | C126: Nominal Amortized Cost of Expensed Portion of Conservation Resources Selected | D126: ConservRes4 | G126: Table 2.2.6
B127: 105 | C127: Nominal Annual Cost of Capital Portion of Conservation Resources Selected | D127: ConservRes5 | G127: Table 2.2.7
B128: 106 | C128: Nominal Cost of Non-Conservation Resources Selected | D128: ConservRes6
B129: 107 | C129: Nominal Total Cost of Resources Selected | D129: ConservRes7 | G129: Table 2.2.8
B130: 7b2 Case Rate Directive Ratemaking
B131: =B129+1 -> 108 | C131: 7b2 Case COSA Table | D131: 7b2COSA | G131: Table 2.3.1
B132: =B131+1 -> 109 | C132: 7b2 Case Energy Allocaction Factors | D132: 7b2Alloc | G132: Table 2.2.1
B133: 110 | C133: 7b2 Case FBS and Resource Stack Cost Allocation | D133: 7b2 FBS_Stack_Allo | G133: Table 2.3.2.1
B134: 111 | C134: 7b2 Case LDD/IRD and Reserve Cost Allocation | D134: 7b2 LDD_IRD_Reserve_Allo | G134: Table 2.3.2.2
B135: 112 | C135: 7b2 Case Programs and Transmission Cost Allocation | D135: 7b2 Program_Trans_Allo | G135: Table 2.3.2.3
B136: 113 | C136: 7b2 Case Initial Net Cost Alloction | D136: 7b2 Initial_Cost_Allo | G136: Table 2.3.3
B137: 114 | C137: 7b2 Case Revenue Credit Summary | D137: 7b2 RDS_Credits | G137: Table 2.3.4
B138: 115 | C138: 7b2 Case Revenue Credits Allocated to Loads Served by FBS Resources | D138: 7b2 Credits FBS | G138: Tables 2.3.5.1 & 2.3.5.2
B139: 116 | C139: 7b2 Case Revenue Credits Allocated to All Loads | D139: 7b2 Credits Gen-RSS | G139: Tables 2.3.5.3
B140: 117 | C140: 7b2 Case Calculation and Allocation of Secondary Revenue | D140: 7b2 Secondary | G140: Table 2.3.6
B141: 118 | C141: 7b2 Case FPS Revenue Deficiency Calculation and Allocation | D141: 7b2 FPS Revenue Deficiency
B142: 119 | C142: Calculation of 7b2 Case Rates | D142: 7b2 Rates
B143: =B142+1 -> 120 | C143: 7b2 Case Revenue Check | D143: 7b2 Rev Check
B144: Rate Case Two Year Rate Period Rates Calculations
B145: =+B143+1 -> 121 | C145: Ave. Tier 1 PF Public Rate | D145: PFAveT1_RateOutput
B146: =+B145+1 -> 122 | C146: PF Melded Equivalent Rate | D146: PFMeldedEqv_RateOutput
B147: 123 | C147: IP Rate | D147: IP_RateOutput | F147: Table 3.1.8.1 | G147: Table 1.5.1
B148: 124 | C148: NR Rate | D148: NR_RateOutput | F148: Table 3.1.8.2
B149: 125 | C149: Load Shaping True-up & Tier 1 Equivalent Rates | D149: LSTUR&PFT1Eqv_RateOutput | F149: Table 3.1.8.3 | G149: Table 1.5.2
B150: 126 | C150: Unbifurcated PF Rate | D150: Unbif PF_RateOutput | F150: Table 3.1.8.4 | G150: Table 1.5.3
B151: 127 | C151: PF Exchange Rate | D151: PF Exchange_RateOutput | F151: Table 3.1.8.5
B152: 128 | C152: Flat Melded Equivalent PF Public Rate | D152: FlatPFMeldedEqv_RateOutput
B153: Outputs and Checks
B154: =+B152+1 -> 129 | C154: RiskMod Output | D154: RiskMod_Out
B155: =+B154+1 -> 130 | C155: Revenue Requirement Output | D155: RROutput
B156: =+B155+1 -> 131 | C156: Rates Output New | D156: RatesOutputNew
B157: 132 | C157: Revenue Requirement Mapping | D157: RevReqMapping
B158: 133 | C158: Summary | D158: Summary
B159: 134 | C159: Net Revenue | D159: NetRevenue
B160: 135 | C160: Slice True Up Calculation | D160: SliceTrueUp
B161: 136 | C161: Tables | D161: Tables

Sheet Scenario
A1: Run (1=yes, 0=no) | B1: Scenario | C1: Scenarios | D1: Functionality | E1: Notes | F1: Input Parameter | H1: Do not change black boxes
A2: =IF(SUM(A3:A66)=0,1,0) -> 1 | B2: FY 2029-30 Base Case Phase 2 | C2: 1 | H2: =IF(A$4+A$5+A$38+A$39>=1,1,0) -> 0 | I2: no conservation adjustment to 7(b)(2) Case loads or conservation in resource stack | J2: conservation resources removed from load adjustment and from resource stack
A3: 0 | B3: No TS in ASCs | D3: yes | H3: =IF($A$5+$A$38>=1,1,0) -> 0 | I3: include conservation costs in 7(b)(2) Case COSA | J3: conservation revenue requirement set equal to Program Case values; net interest, PNRR, and MRNR are set to Program Case values
A4: 0 | B4: Conservation = Gen Requirement w/out costs | C4: 2 | D4: yes | H4: 1 | I4: Conservation - Overhead added to Res. Stack
A5: 0 | B5: Conservation = Gen Requirement with costs | C5: 3 | D5: yes | H5: =IF($A$34=1,0,1) -> 1 | I5: Regular Block Augmentation Price
A6: 0 | B6: Conservation Resource Expensed | C6: 4 | D6: yes | H6: 0 | I6: NR Scenario - No REP
A7: 0 | B7: Placeholder - Conservation Adj. | D7: partial energy adj no change in costs | H7: =IF($A$35+$A$34+$A$37+$A$36>0,1,0) -> 0 | I7: NR Scenario - NR Loads (+1000aMW) | J7: =F36 -> 1000
A8: 0 | B8: Mid-C in Stack (IOU Load) | C8: 6 | D8: yes
A9: 0 | B9: Discount Rate - Not Applied | C9: 7 | D9: yes
A10: 0 | B10: Discount Rate = Inflation | C10: 8 | D10: yes | I10: Return to cover
A11: 0 | B11: Discount Rate = Investment Rate | C11: 9 | D11: yes
A12: 0 | B12: Identical Secondary Credit | C12: 10 | D12: yes | I12: Grayed Scenarios have not been updated, do not use
A13: 0 | B13: No 7(b)(3) to Surplus | C13: 11 | D13: yes
A14: 0 | B14: Single Repayment Study | D14: yes
A15: 0 | B15: ASCs - High | C15: 15 | D15: yes
A16: 0 | B16: ASCs - Low | C16: 16 | D16: yes
A17: 0 | B17: ASCs - Placeholder | D17: yes
A18: 0 | B18: ASCs - Double | D18: yes
A19: 0 | B19: ASCs - Outyears Equal to Rate Period ASCs | D19: yes
A20: 0 | B20: ASCs - Outyears decline 10% from Rate Period ASCs | D20: yes | F20: 0.1
A21: 0 | B21: IOU Loads - High (pairable with row 15 or 16)
A22: 0 | B22: IOU Loads - Low (pairable with row 15 or 16)
A23: 0 | B23: High Conservation +(50%) | D23: yes
A24: 0 | B24: Low Conservation -(50%) | D24: yes
A25: 0 | B25: Placeholder | D25: no | E25: placeholder
A26: 0 | B26: Loads - DSI Loads (+500aMW) | D26: yes | F26: 500
A27: 0 | B27: Loads - PF Decrease (-1000aMW) | C27: 17 | D27: yes | F27: -1000
A28: 0 | B28: Loads - PF Rise (+1000aMW) | C28: 18 | D28: yes | F28: 1000
A29: 0 | B29: Resources - Decrease (-1000aMW), Pair with Load Decrease | D29: yes | F29: -1000
A30: 0 | B30: Resources - Rise (+1000aMW), Pair with Load Increase | D30: yes | F30: 1000
A31: 0 | B31: Market Prices - High | C31: 19 | D31: yes
A32: 0 | B32: Market Prices - Low | C32: 20 | D32: yes
A33: 0 | B33: Cost Increase $100m | C33: 21 | D33: yes | F33: 300000
A34: 0 | B34: NR Scenario - Green Block Augmentation Price
A35: 0 | B35: NR Scenario - Regular Block Augmentation Price
A36: 0 | B36: NR Scenario - Regular Non-FBS Resource (1,000aMW) | C36: 22 | F36: 1000
A37: 0 | B37: NR Scenario - Green Non-FBS Resource (1,000aMW) | F37: 1000
A38: 0 | B38: IOU Best Case | C38: 13
A39: 0 | B39: COU Best Case | C39: 14
A40: 0 | B40: Uncontrollable Events Removed from Program Case | C40: 12
A41: 0 | B41: Conservation Resource Expensed over 12 years in 7(b)(2) Case vs 5 years. | C41: 5
A42: 0 | B42: Levelization of Trigger Calc.

Sheet REPOutput
B1: Pre-Decisional, FOIA-Exempt, Deliberative Process. | C1: REP-Total | D1: REP-IOU | E1: REP-COU | F1: Tier 1 | G1: Unbif PF | H1: PFp | I1: PFx | J1: 2yr Wtd ASCs | K1: 6yr Wtd ASCs | L1: Base PFx | M1: Un- Constrained Benefits | N1: Program Case | O1: 7b2 Case | P1: Trigger | Q1: Rate Protection | R1: Secondary Loads | S1: IP Loads | T1: PF Exchange Loads
A3: =VLOOKUP(B3,Scenario!B:C,2,FALSE) -> 1 | B3: =Cover!C14 -> FY 2029-30 Base Case Phase 2 | C3: =D3+E3 -> 33801.0302 | D3: =AVERAGE('Utility Specifc PFx'!K35,'Utility Specifc PFx'!K54) -> 33801.0302 | E3: =AVERAGE('Utility Specifc PFx'!K36,'Utility Specifc PFx'!K55) -> 0 | F3: =ScenarioResults!D48 -> 31.64 | G3: =ScenarioResults!C7 -> 55.84265793 | H3: =ScenarioResults!C8 -> 34.5 | I3: =ScenarioResults!C9 -> 84.41701865 | J3: ='Exchange Summary'!M9 -> 85.17156635 | K3: ='Exchange Summary'!$N$9 -> 88.76315162 | L3: ='Utility Specifc PFx'!E8 -> 62.074628 | M3: ='Utility Specifc PFx'!G17 -> 1034660.844 | N3: =TriggerCalc!J33 -> 48.91 | O3: =TriggerCalc!J34 -> 27.57 | P3: =N3-O3 -> 21.34 | Q3: ='7b2 Allocation'!F16 -> 1379217.453 | R3: =AVERAGE('7b2 Allocation'!F30:G30) -> 378248.4669 | S3: =AVERAGE('7b2 Allocation'!F28:G28) -> 2148.665689 | T3: =AVERAGE('7b2 Allocation'!F27:G27) -> 998820.1003
A6: 1 | B6: FY 2029-30 Base Case Phase 2 | C6: 33801.06574 | D6: 33801.06574 | E6: 0 | F6: 31.64 | G6: 55.84265867 | H6: 34.5 | I6: 84.4170176 | J6: 85.17156635 | K6: 88.76315162 | L6: 62.074629 | M6: 1034660.799 | N6: 48.91 | O6: 27.57 | P6: 21.34 | Q6: 1379217.453 | R6: 378248.4669 | S6: 2148.665689 | T6: 998820.1003 | U6: x
A7: =A6+1 -> 2 | B7: Conservation = Gen Requirement w/out costs | C7: 21198.0996 | D7: 21198.0996 | E7: 0 | F7: 31.44 | G7: 55.88318894 | H7: 34.31 | I7: 84.69835707 | J7: 85.17156635 | K7: 88.76315162 | L7: 62.11516 | M7: 1032845.154 | N7: 48.94 | O7: 27.37 | P7: 21.57 | Q7: 1394082.495 | R7: 382325.1842 | S7: 2171.823754 | T7: 1009585.265
A8: =A7+1 -> 3 | B8: Conservation = Gen Requirement with costs | C8: 166730.5658 | D8: 166730.5658 | E8: 0 | F8: 33.92 | G8: 55.48226311 | H8: 36.63 | I8: 81.44960474 | J8: 85.17156635 | K8: 88.76315162 | L8: 61.714218 | M8: 1050805.933 | N8: 48.6 | O8: 29.75 | P8: 18.85 | Q8: 1218287.206 | R8: 334113.5708 | S8: 1897.954462 | T8: 882275.4869
A9: 4 | B9: Conservation Resource Expensed | C9: 33507.55927 | D9: 33507.55927 | E9: 0 | F9: 31.65 | G9: 55.84921022 | H9: 34.51 | I9: 84.42357028 | J9: 85.17156635 | K9: 88.76315162 | L9: 62.08118 | M9: 1034367.338 | N9: 48.91 | O9: 27.57 | P9: 21.34 | Q9: 1379217.453 | R9: 378248.4669 | S9: 2148.665689 | T9: 998820.1003
A10: 5 | B10: Conservation Resource Expensed over 12 years in 7(b)(2) Case vs 5 years. | C10: 33507.55927 | D10: 33507.55927 | E10: 0 | F10: 31.65 | G10: 55.84921022 | H10: 34.51 | I10: 84.42357028 | J10: 85.17156635 | K10: 88.76315162 | L10: 62.08118 | M10: 1034367.338 | N10: 48.91 | O10: 27.57 | P10: 21.34 | Q10: 1379217.453 | R10: 378248.4669 | S10: 2148.665689 | T10: 998820.1003
A11: 6 | B11: Mid-C in Stack (IOU Load) | C11: 34037.34383 | D11: 34037.34383 | E11: 0 | F11: 31.66 | G11: 55.84785391 | H11: 34.51 | I11: 84.41174342 | J11: 85.17156635 | K11: 88.76315162 | L11: 62.079824 | M11: 1034428.082 | N11: 48.91 | O11: 27.58 | P11: 21.33 | Q11: 1378571.146 | R11: 378071.2183 | S11: 2147.658816 | T11: 998352.0496
A12: 7 | B12: Discount Rate - Not Applied | C12: -171951.9172 | D12: -171951.9172 | E12: 0 | F12: 28.14 | G12: 56.41526327 | H12: 31.23 | I12: 89.0100861 | J12: 85.17156635 | K12: 88.76315162 | L12: 62.647256 | M12: 1009009.143 | N12: 56.73 | O12: 31.55 | P12: 25.18 | Q12: 1627399.037 | R12: 446311.9211 | S12: 2535.304688 | T12: 1178551.552
A13: 8 | B13: Discount Rate = Inflation | C13: -106672.7238 | D13: -106672.7238 | E13: 0 | F13: 29.26 | G13: 56.23535406 | H13: 32.27 | I13: 87.55284419 | J13: 85.17156635 | K13: 88.76315162 | L13: 62.46734 | M13: 1017068.741 | N13: 54.27 | O13: 30.31 | P13: 23.96 | Q13: 1548549.68 | R13: 424687.5945 | S13: 2412.466256 | T13: 1121449.372
A14: 9 | B14: Discount Rate = Investment Rate | C14: 146934.0982 | D14: 146934.0982 | E14: 0 | F14: 33.59 | G14: 55.53679578 | H14: 36.31 | I14: 81.89152538 | J14: 85.17156635 | K14: 88.76315162 | L14: 61.768753 | M14: 1048362.958 | N14: 44.5 | O14: 25.28 | P14: 19.22 | Q14: 1242200.536 | R14: 340671.7682 | S14: 1935.208741 | T14: 899593.3611
A15: 10 | B15: Identical Secondary Credit | C15: 274275.0522 | D15: 274275.0522 | E15: 0 | F15: 35.76 | G15: 55.18598653 | H15: 38.34 | I15: 79.04886572 | J15: 85.17156635 | K15: 88.76315162 | L15: 61.41793 | M15: 1064078.583 | N15: 48.34 | O15: 31.5 | P15: 16.84 | Q15: 1088379.658 | R15: 298486.6065 | S15: 1695.573111 | T15: 788197.305
A16: 11 | B16: No 7(b)(3) to Surplus | C16: -772.2589045 | D16: -768.3643481 | E16: -3.8945564 | F16: 31.06 | G16: 52.41092797 | H16: 33.96 | I16: 83.15020274 | J16: 83.1343233 | K16: 86.61972552 | L16: 58.71798 | M16: 1191065.592 | N16: 46.01 | O16: 27.56 | P16: 18.45 | Q16: 1192434.958 | R16: 0 | S16: 2358.103343 | T16: 1190076.613
A17: 12 | B17: Uncontrollable Events Removed from Program Case | C17: 74705.42061 | D17: 74705.42061 | E17: 0 | F17: 32.35 | G17: 55.73572901 | H17: 35.16 | I17: 83.50390083 | J17: 85.17156635 | K17: 88.76315162 | L17: 61.967695 | M17: 1039451.063 | N17: 48.16 | O17: 27.59 | P17: 20.57 | Q17: 1329451.874 | R17: 364600.3263 | S17: 2071.136514 | T17: 962780.1997
A18: 13 | B18: IOU Best Case | C18: 304238.5453 | D18: 304238.5453 | E18: 0 | F18: 36.27 | G18: 55.10342276 | H18: 38.82 | I18: 78.37998418 | J18: 85.17156635 | K18: 88.76315162 | L18: 61.335363 | M18: 1067777.292 | N18: 43.56 | O18: 27.28 | P18: 16.28 | Q18: 1052186.51 | R18: 288560.6861 | S18: 1639.188257 | T18: 761986.4682
A19: 14 | B19: COU Best Case | C19: -185762.9092 | D19: -184797.9772 | E19: -964.9320362 | F19: 27.91 | G19: 52.3626735 | H19: 31.01 | I19: 86.95412626 | J19: 83.1343233 | K19: 86.61972552 | L19: 58.669888 | M19: 1193412.282 | N19: 52.8 | O19: 31.45 | P19: 21.35 | Q19: 1379863.759 | R19: 0 | S19: 2728.753732 | T19: 1377134.726
A20: 15 | B20: ASCs - High | C20: -4480.472977 | D20: -4480.472977 | E20: 0 | F20: 31 | G20: 55.95385866 | H20: 33.9 | I20: 85.27158492 | J20: 85.17156635 | K20: 90.54825318 | L20: 62.185833 | M20: 1029679.255 | N20: 49.61 | O20: 27.56 | P20: 22.05 | Q20: 1425105.194 | R20: 390833.116 | S20: 2220.153629 | T20: 1032051.697
A21: 16 | B21: ASCs - Low | C21: 68285.70987 | D21: 68285.70987 | E21: 0 | F21: 32.24 | G21: 55.75339527 | H21: 35.06 | I21: 83.64720938 | J21: 85.17156635 | K21: 87.17358602 | L21: 61.985362 | M21: 1038659.644 | N21: 48.28 | O21: 27.59 | P21: 20.69 | Q21: 1337207.549 | R21: 366727.3093 | S21: 2083.218983 | T21: 968396.8076
A22: 17 | B22: Loads - PF Decrease (-1000aMW) | C22: 122495.0278 | D22: 122495.0278 | E22: 0 | F22: 26.35 | G22: 55.79383134 | H22: 30.06 | I22: 82.43708322 | J22: 85.17156635 | K22: 88.76315162 | L22: 62.025525 | M22: 1036860.484 | N22: 48.64 | O22: 22.91 | P22: 25.73 | Q22: 1437551.079 | R22: 523686.5187 | S22: 1961.667558 | T22: 911902.692
A23: 18 | B23: Loads - PF Rise (+1000aMW) | C23: 2563.856363 | D23: 2563.856363 | E23: 0 | F23: 36.74 | G23: 57.09945696 | H23: 38.96 | I23: 85.11433312 | J23: 85.17156635 | K23: 88.76315162 | L23: 63.331522 | M23: 978356.4549 | N23: 50.27 | O23: 32.13 | P23: 18.14 | Q23: 1331305.865 | R23: 355148.9907 | S23: 2095.362274 | T23: 974061.298
A24: 19 | B24: Market Prices - High | C24: 80168.60665 | D24: 80168.60665 | E24: 0 | F24: 25.83 | G24: 54.75502486 | H24: 33.36 | I24: 83.38194502 | J24: 85.17156635 | K24: 88.76315162 | L24: 60.987206 | M24: 1083373.489 | N24: 47.97 | O24: 26.58 | P24: 21.39 | Q24: 1382448.984 | R24: 379134.7098 | S24: 2153.700051 | T24: 1001160.354
A25: 20 | B25: Market Prices - Low | C25: 1456.136894 | D25: 1456.136894 | E25: 0 | F25: 34.24 | G25: 56.34480613 | H25: 34.79 | I25: 85.13906104 | J25: 85.17156635 | K25: 88.76315162 | L25: 62.576803 | M25: 1012165.187 | N25: 49.12 | O25: 27.57 | P25: 21.55 | Q25: 1392789.883 | R25: 381970.687 | S25: 2169.810009 | T25: 1008649.164
A26: 21 | B26: Cost Increase $100m | C26: -8158.528792 | D26: -8158.528792 | E26: 0 | F26: 37.16 | G26: 58.93609412 | H26: 39.65 | I26: 85.35369078 | J26: 85.17156635 | K26: 88.76315162 | L26: 65.1681 | M26: 896084.2803 | N26: 51.4 | O26: 32.12 | P26: 19.28 | Q26: 1246078.373 | R26: 341735.2597 | S26: 1941.249975 | T26: 902401.6651
A27: 22 | B27: New Resource Load (1,000aMW+Non-FBS Resource) | C27: 183994.6353 | D27: 183994.6353 | E27: 0 | F27: 31.89 | G27: 55.56943391 | H27: 34.74 | I27: 81.0642143 | J27: 85.17156635 | K27: 88.76315162 | L27: 61.801263 | M27: 1046906.626 | N27: 48.77 | O27: 27.94 | P27: 20.83 | Q27: 1346255.836 | R27: 314188.5774 | S27: 1853.641562 | T27: 861700.7367
B36: back to scenarios

Sheet Macro
B1: Rate Analysis Model - PF Scenario Load Delta Designations | R1: Not printed in documentation.
A2: TOC | B2: =Cover!$C$14 -> FY 2029-30 Base Case Phase 2
A3: é
I4: RAM2010 Macro Diagram

Sheet Init
B1: Initiation Sheet
A2: TOC | B2: =+Cover!C14 -> FY 2029-30 Base Case Phase 2
A3: é | B3: Input Parameters | F3: Diurnal Hours | N3: Annual Hours
F4: date | G4: days | H4: hours | I4: #Sun | J4: #Hol | K4: HLH | L4: LLH | N4: year | O4: days | P4: hours
F5: 2014-10-01 | G5: 31 | H5: 744 | I5: 5 | J5: 1 | K5: 432 | L5: 312 | N5: 2011 | O5: 365 | P5: 8760
F6: 2014-11-01 | G6: 28 | H6: 721 | I6: 4 | J6: 0 | K6: 384 | L6: 337 | N6: 2012 | O6: 365 | P6: 8784
F7: 2014-12-01 | G7: 31 | H7: 744 | I7: 4 | J7: 0 | K7: 416 | L7: 328 | N7: 2013 | O7: 365 | P7: 8760
F8: 2015-01-01 | G8: 30 | H8: 744 | I8: 4 | J8: 0 | K8: 416 | L8: 328 | N8: 2014 | O8: 366 | P8: 8760
B9: Base Year | C9: 2029 | F9: 2015-02-01 | G9: 31 | H9: 672 | I9: 5 | J9: 1 | K9: 384 | L9: 288 | N9: 2015 | O9: 365 | P9: 8760
F10: 2015-03-01 | G10: 30 | H10: 743 | I10: 4 | J10: 0 | K10: 416 | L10: 327 | N10: 2016 | O10: 365 | P10: 8784
F11: 2015-04-01 | G11: 31 | H11: 720 | I11: 5 | J11: 1 | K11: 416 | L11: 304 | N11: 2017 | O11: 365 | P11: 8760
C12: Yes or No? | F12: 2015-05-01 | G12: 31 | H12: 744 | I12: 4 | J12: 0 | K12: 400 | L12: 344 | N12: 2016 | O12: 366 | P12: 8784
B13: Run an REP Settlement Scenario ? | C13: No | F13: 2015-06-01 | G13: 30 | H13: 720 | I13: 4 | J13: 1 | K13: 416 | L13: 304 | N13: 2017 | O13: 365 | P13: 8760
B14: Slice RTP Changed for Tier 1 System Change | C14: No | F14: 2015-07-01 | G14: 31 | H14: 744 | I14: 5 | J14: 0 | K14: 416 | L14: 328 | N14: 2018 | O14: 365 | P14: 8760
F15: 2015-08-01 | G15: 30 | H15: 744 | I15: 4 | J15: 1 | K15: 416 | L15: 328 | N15: 2019 | O15: 365 | P15: 8760
B16: Years to Finance Expensed Portion of 7b2 Cons | C16: 5 | F16: 2015-09-01 | G16: 31 | H16: 720 | I16: 4 | J16: 1 | K16: 400 | L16: 320 | N16: 2020 | O16: 366 | P16: 8784
F17: 2015-10-01 | G17: 31 | H17: 744 | I17: 5 | J17: 1 | K17: 432 | L17: 312 | N17: 2021 | O17: 365 | P17: 8760
F18: 2015-11-01 | G18: 29 | H18: 721 | I18: 4 | J18: 0 | K18: 384 | L18: 337 | N18: 2022 | O18: 365 | P18: 8760
F19: 2015-12-01 | G19: 31 | H19: 744 | I19: 4 | J19: 0 | K19: 416 | L19: 328 | N19: 2023 | O19: 365 | P19: 8760
F20: 2016-01-01 | G20: 30 | H20: 744 | I20: 5 | J20: 0 | K20: 400 | L20: 344 | N20: 2024 | O20: 366 | P20: 8784
F21: 2016-02-01 | G21: 31 | H21: 696 | I21: 4 | J21: 1 | K21: 400 | L21: 296 | N21: 2025 | O21: 365 | P21: 8760
F22: 2016-03-01 | G22: 30 | H22: 743 | I22: 4 | J22: 0 | K22: 432 | L22: 311 | N22: 2026 | O22: 365 | P22: 8760
F23: 2016-04-01 | G23: 31 | H23: 720 | I23: 5 | J23: 1 | K23: 416 | L23: 304 | N23: 2027 | O23: 365 | P23: 8760
F24: 2016-05-01 | G24: 31 | H24: 744 | I24: 4 | J24: 0 | K24: 400 | L24: 344 | N24: 2028 | O24: 366 | P24: 8784
F25: 2016-06-01 | G25: 30 | H25: 720 | I25: 5 | J25: 1 | K25: 416 | L25: 304 | N25: 2029 | O25: 365 | P25: 8760
F26: 2016-07-01 | G26: 31 | H26: 744 | I26: 4 | J26: 0 | K26: 400 | L26: 344 | N26: 2030 | O26: 365 | P26: 8760
F27: 2016-08-01 | G27: 30 | H27: 744 | I27: 4 | J27: 1 | K27: 432 | L27: 312 | N27: 2031 | O27: 365 | P27: 8760
F28: 2016-09-01 | G28: 31 | H28: 720 | I28: 5 | J28: 1 | K28: 400 | L28: 320 | N28: 2032 | O28: 366 | P28: 8784
F29: 2016-10-01 | G29: 31 | H29: 744 | I29: 4 | J29: 1 | K29: 416 | L29: 328 | N29: 2033 | O29: 365 | P29: 8760
F30: 2016-11-01 | G30: 28 | H30: 721 | I30: 4 | J30: 0 | K30: 400 | L30: 321 | N30: 2034 | O30: 365 | P30: 8760
F31: 2016-12-01 | G31: 31 | H31: 744 | I31: 5 | J31: 0 | K31: 416 | L31: 328 | N31: 2035 | O31: 365 | P31: 8760
F32: 2017-01-01 | G32: 30 | H32: 744 | I32: 4 | J32: 0 | K32: 400 | L32: 344 | N32: 2036 | O32: 366 | P32: 8784
F33: 2017-02-01 | G33: 31 | H33: 672 | I33: 4 | J33: 1 | K33: 384 | L33: 288 | N33: 2037 | O33: 365 | P33: 8760
F34: 2017-03-01 | G34: 30 | H34: 743 | I34: 5 | J34: 0 | K34: 432 | L34: 311 | N34: 2038 | O34: 365 | P34: 8760
F35: 2017-04-01 | G35: 31 | H35: 720 | I35: 4 | J35: 1 | K35: 400 | L35: 320 | N35: 2039 | O35: 365 | P35: 8760
F36: 2017-05-01 | G36: 31 | H36: 744 | I36: 4 | J36: 0 | K36: 416 | L36: 328 | N36: 2040 | O36: 366 | P36: 8784
F37: 2017-06-01 | G37: 30 | H37: 720 | I37: 5 | J37: 1 | K37: 416 | L37: 304 | N37: 2041 | O37: 365 | P37: 8760
F38: 2017-07-01 | G38: 31 | H38: 744 | I38: 4 | J38: 0 | K38: 400 | L38: 344 | N38: 2042 | O38: 365 | P38: 8760
F39: 2017-08-01 | G39: 30 | H39: 744 | I39: 4 | J39: 1 | K39: 432 | L39: 312 | N39: 2043 | O39: 365 | P39: 8760
F40: 2017-09-01 | G40: 31 | H40: 720 | I40: 5 | J40: 1 | K40: 400 | L40: 320 | N40: 2044 | O40: 366 | P40: 8784
F41: 2017-10-01 | G41: 31 | H41: 744 | I41: 4 | J41: 1 | K41: 416 | L41: 328
F42: 2017-11-01 | G42: 28 | H42: 721 | I42: 4 | J42: 0 | K42: 400 | L42: 321
F43: 2017-12-01 | G43: 31 | H43: 744 | I43: 5 | J43: 0 | K43: 400 | L43: 344
F44: 2018-01-01 | G44: 30 | H44: 744 | I44: 4 | J44: 0 | K44: 416 | L44: 328
F45: 2018-02-01 | G45: 31 | H45: 672 | I45: 4 | J45: 1 | K45: 384 | L45: 288
F46: 2018-03-01 | G46: 30 | H46: 743 | I46: 5 | J46: 0 | K46: 432 | L46: 311
F47: 2018-04-01 | G47: 31 | H47: 720 | I47: 4 | J47: 1 | K47: 400 | L47: 320
F48: 2018-05-01 | G48: 31 | H48: 744 | I48: 5 | J48: 0 | K48: 416 | L48: 328
F49: 2018-06-01 | G49: 30 | H49: 720 | I49: 4 | J49: 1 | K49: 416 | L49: 304
F50: 2018-07-01 | G50: 31 | H50: 744 | I50: 4 | J50: 0 | K50: 400 | L50: 344
F51: 2018-08-01 | G51: 30 | H51: 744 | I51: 5 | J51: 1 | K51: 432 | L51: 312
F52: 2018-09-01 | G52: 31 | H52: 720 | I52: 4 | J52: 1 | K52: 384 | L52: 336
F53: 2018-10-01 | G53: 31 | H53: 744 | I53: 4 | J53: 1 | K53: 432 | L53: 312
F54: 2018-11-01 | G54: 28 | H54: 721 | I54: 4 | J54: 0 | K54: 400 | L54: 321
F55: 2018-12-01 | G55: 31 | H55: 744 | I55: 5 | J55: 0 | K55: 400 | L55: 344
F56: 2019-01-01 | G56: 30 | H56: 744 | I56: 4 | J56: 0 | K56: 416 | L56: 328
F57: 2019-02-01 | G57: 31 | H57: 672 | I57: 5 | J57: 1 | K57: 384 | L57: 288
F58: 2019-03-01 | G58: 30 | H58: 743 | I58: 4 | J58: 0 | K58: 416 | L58: 327
F59: 2019-04-01 | G59: 31 | H59: 720 | I59: 4 | J59: 1 | K59: 416 | L59: 304
F60: 2019-05-01 | G60: 31 | H60: 744 | I60: 5 | J60: 0 | K60: 416 | L60: 328
F61: 2019-06-01 | G61: 30 | H61: 720 | I61: 4 | J61: 1 | K61: 400 | L61: 320
F62: 2019-07-01 | G62: 31 | H62: 744 | I62: 4 | J62: 0 | K62: 416 | L62: 328
F63: 2019-08-01 | G63: 30 | H63: 744 | I63: 5 | J63: 1 | K63: 432 | L63: 312
F64: 2019-09-01 | G64: 31 | H64: 720 | I64: 4 | J64: 1 | K64: 384 | L64: 336
F65: 2019-10-01 | G65: 31 | H65: 744 | I65: 5 | J65: 1 | K65: 432 | L65: 312
F66: 2019-11-01 | G66: 29 | H66: 721 | I66: 4 | J66: 0 | K66: 400 | L66: 321
F67: 2019-12-01 | G67: 31 | H67: 744 | I67: 4 | J67: 0 | K67: 400 | L67: 344
F68: 2020-01-01 | G68: 30 | H68: 744 | I68: 4 | J68: 0 | K68: 416 | L68: 328
F69: 2020-02-01 | G69: 31 | H69: 696 | I69: 5 | J69: 1 | K69: 400 | L69: 296
F70: 2020-03-01 | G70: 30 | H70: 743 | I70: 4 | J70: 0 | K70: 416 | L70: 327
F71: 2020-04-01 | G71: 31 | H71: 720 | I71: 5 | J71: 1 | K71: 416 | L71: 304
F72: 2020-05-01 | G72: 31 | H72: 744 | I72: 4 | J72: 0 | K72: 400 | L72: 344
F73: 2020-06-01 | G73: 30 | H73: 720 | I73: 4 | J73: 1 | K73: 416 | L73: 304
F74: 2020-07-01 | G74: 31 | H74: 744 | I74: 5 | J74: 0 | K74: 416 | L74: 328
F75: 2020-08-01 | G75: 30 | H75: 744 | I75: 4 | J75: 1 | K75: 416 | L75: 328
F76: 2020-09-01 | G76: 31 | H76: 720 | I76: 4 | J76: 1 | K76: 400 | L76: 320
F77: 2020-10-01 | G77: 31 | H77: 744 | I77: 5 | J77: 1 | K77: 432 | L77: 312
F78: 2020-11-01 | G78: 28 | H78: 721 | I78: 4 | J78: 0 | K78: 384 | L78: 337
F79: 2020-12-01 | G79: 31 | H79: 744 | I79: 4 | J79: 0 | K79: 416 | L79: 328
F80: 2021-01-01 | G80: 30 | H80: 744 | I80: 5 | J80: 0 | K80: 400 | L80: 344
F81: 2021-02-01 | G81: 31 | H81: 672 | I81: 4 | J81: 1 | K81: 384 | L81: 288
F82: 2021-03-01 | G82: 30 | H82: 743 | I82: 4 | J82: 0 | K82: 432 | L82: 311
F83: 2021-04-01 | G83: 31 | H83: 720 | I83: 5 | J83: 1 | K83: 416 | L83: 304
F84: 2021-05-01 | G84: 31 | H84: 744 | I84: 4 | J84: 0 | K84: 400 | L84: 344
F85: 2021-06-01 | G85: 30 | H85: 720 | I85: 4 | J85: 1 | K85: 416 | L85: 304
F86: 2021-07-01 | G86: 31 | H86: 744 | I86: 5 | J86: 0 | K86: 416 | L86: 328
F87: 2021-08-01 | G87: 30 | H87: 744 | I87: 4 | J87: 1 | K87: 416 | L87: 328
F88: 2021-09-01 | G88: 31 | H88: 720 | I88: 5 | J88: 1 | K88: 400 | L88: 320
F89: 2021-10-01 | G89: 31 | H89: 744 | I89: 4 | J89: 1 | K89: 416 | L89: 328
F90: 2021-11-01 | G90: 28 | H90: 721 | I90: 4 | J90: 0 | K90: 400 | L90: 321
F91: 2021-12-01 | G91: 31 | H91: 744 | I91: 4 | J91: 0 | K91: 416 | L91: 328
F92: 2022-01-01 | G92: 30 | H92: 744 | I92: 5 | J92: 0 | K92: 400 | L92: 344
F93: 2022-02-01 | G93: 31 | H93: 672 | I93: 4 | J93: 1 | K93: 384 | L93: 288
F94: 2022-03-01 | G94: 30 | H94: 743 | I94: 4 | J94: 0 | K94: 432 | L94: 311
F95: 2022-04-01 | G95: 31 | H95: 720 | I95: 5 | J95: 1 | K95: 416 | L95: 304
F96: 2022-05-01 | G96: 31 | H96: 744 | I96: 4 | J96: 0 | K96: 400 | L96: 344
F97: 2022-06-01 | G97: 30 | H97: 720 | I97: 5 | J97: 1 | K97: 416 | L97: 304
F98: 2022-07-01 | G98: 31 | H98: 744 | I98: 4 | J98: 0 | K98: 400 | L98: 344
F99: 2022-08-01 | G99: 30 | H99: 744 | I99: 4 | J99: 1 | K99: 432 | L99: 312
F100: 2022-09-01 | G100: 31 | H100: 720 | I100: 5 | J100: 1 | K100: 400 | L100: 320
F101: 2022-10-01 | G101: 31 | H101: 744 | I101: 4 | J101: 1 | K101: 416 | L101: 328
F102: 2022-11-01 | G102: 28 | H102: 721 | I102: 4 | J102: 0 | K102: 400 | L102: 321
F103: 2022-12-01 | G103: 31 | H103: 744 | I103: 5 | J103: 0 | K103: 416 | L103: 328
F104: 2023-01-01 | G104: 30 | H104: 744 | I104: 4 | J104: 0 | K104: 400 | L104: 344
F105: 2023-02-01 | G105: 31 | H105: 672 | I105: 4 | J105: 1 | K105: 384 | L105: 288
F106: 2023-03-01 | G106: 30 | H106: 743 | I106: 5 | J106: 0 | K106: 432 | L106: 311
F107: 2023-04-01 | G107: 31 | H107: 720 | I107: 4 | J107: 1 | K107: 400 | L107: 320
F108: 2023-05-01 | G108: 31 | H108: 744 | I108: 4 | J108: 0 | K108: 416 | L108: 328
F109: 2023-06-01 | G109: 30 | H109: 720 | I109: 5 | J109: 1 | K109: 416 | L109: 304
F110: 2023-07-01 | G110: 31 | H110: 744 | I110: 4 | J110: 0 | K110: 400 | L110: 344
F111: 2023-08-01 | G111: 30 | H111: 744 | I111: 4 | J111: 1 | K111: 432 | L111: 312
F112: 2023-09-01 | G112: 31 | H112: 720 | I112: 5 | J112: 1 | K112: 400 | L112: 320
F113: 2023-10-01 | H113: 744 | K113: 416 | L113: 328
F114: 2023-11-01 | H114: 721 | K114: 400 | L114: 321
F115: 2023-12-01 | H115: 744 | K115: 400 | L115: 344
F116: 2024-01-01 | H116: 744 | K116: 416 | L116: 328
F117: 2024-02-01 | H117: 696 | K117: 400 | L117: 296
F118: 2024-03-01 | H118: 743 | K118: 416 | L118: 327
F119: 2024-04-01 | H119: 720 | K119: 416 | L119: 304
F120: 2024-05-01 | H120: 744 | K120: 416 | L120: 328
F121: 2024-06-01 | H121: 720 | K121: 400 | L121: 320
F122: 2024-07-01 | H122: 744 | K122: 416 | L122: 328
F123: 2024-08-01 | H123: 744 | K123: 432 | L123: 312
F124: 2024-09-01 | H124: 720 | K124: 384 | L124: 336
F125: 2024-10-01 | H125: 744 | K125: 432 | L125: 312
F126: 2024-11-01 | H126: 721 | K126: 400 | L126: 321
F127: 2024-12-01 | H127: 744 | K127: 400 | L127: 344
F128: 2025-01-01 | H128: 744 | K128: 416 | L128: 328
F129: 2025-02-01 | H129: 672 | K129: 384 | L129: 288
F130: 2025-03-01 | H130: 743 | K130: 416 | L130: 327
F131: 2025-04-01 | H131: 720 | K131: 416 | L131: 304
F132: 2025-05-01 | H132: 744 | K132: 416 | L132: 328
F133: 2025-06-01 | H133: 720 | K133: 400 | L133: 320
F134: 2025-07-01 | H134: 744 | K134: 416 | L134: 328
F135: 2025-08-01 | H135: 744 | K135: 416 | L135: 328
F136: 2025-09-01 | H136: 720 | K136: 400 | L136: 320
F137: 2025-10-01 | H137: 744 | K137: 432 | L137: 312
F138: 2025-11-01 | H138: 721 | K138: 384 | L138: 337
F139: 2025-12-01 | H139: 744 | K139: 416 | L139: 328
F140: 2026-01-01 | H140: 744 | K140: 416 | L140: 328
F141: 2026-02-01 | H141: 672 | K141: 384 | L141: 288
F142: 2026-03-01 | H142: 743 | K142: 416 | L142: 327
F143: 2026-04-01 | H143: 720 | K143: 416 | L143: 304
F144: 2026-05-01 | H144: 744 | K144: 400 | L144: 344
F145: 2026-06-01 | H145: 720 | K145: 416 | L145: 304
F146: 2026-07-01 | H146: 744 | K146: 416 | L146: 328
F147: 2026-08-01 | H147: 744 | K147: 416 | L147: 328
F148: 2026-09-01 | H148: 720 | K148: 400 | L148: 320
F149: 2026-10-01 | H149: 744 | K149: 432 | L149: 312
F150: 2026-11-01 | H150: 721 | K150: 384 | L150: 337
F151: 2026-12-01 | H151: 744 | K151: 416 | L151: 328
F152: 2027-01-01 | H152: 744 | K152: 400 | L152: 344
F153: 2027-02-01 | H153: 672 | K153: 384 | L153: 288
F154: 2027-03-01 | H154: 743 | K154: 432 | L154: 311
F155: 2027-04-01 | H155: 720 | K155: 416 | L155: 304
F156: 2027-05-01 | H156: 744 | K156: 400 | L156: 344
F157: 2027-06-01 | H157: 720 | K157: 416 | L157: 304
F158: 2027-07-01 | H158: 744 | K158: 416 | L158: 328
F159: 2027-08-01 | H159: 744 | K159: 416 | L159: 328
F160: 2027-09-01 | H160: 720 | K160: 400 | L160: 320
F161: 2027-10-01 | H161: 744 | K161: 416 | L161: 328
F162: 2027-11-01 | H162: 721 | K162: 400 | L162: 321
F163: 2027-12-01 | H163: 744 | K163: 416 | L163: 328
F164: 2028-01-01 | H164: 744 | K164: 400 | L164: 344
F165: 2028-02-01 | H165: 696 | K165: 400 | L165: 296
F166: 2028-03-01 | H166: 743 | K166: 432 | L166: 311
F167: 2028-04-01 | H167: 720 | K167: 400 | L167: 320
F168: 2028-05-01 | H168: 744 | K168: 416 | L168: 328
F169: 2028-06-01 | H169: 720 | K169: 416 | L169: 304
F170: 2028-07-01 | H170: 744 | K170: 400 | L170: 344
F171: 2028-08-01 | H171: 744 | K171: 432 | L171: 312
F172: 2028-09-01 | H172: 720 | K172: 400 | L172: 320
F173: 2028-10-01 | H173: 744 | K173: 416 | L173: 328
F174: 2028-11-01 | H174: 721 | K174: 400 | L174: 321
F175: 2028-12-01 | H175: 744 | K175: 400 | L175: 344
F176: 2029-01-01 | H176: 744 | K176: 416 | L176: 328
F177: 2029-02-01 | H177: 672 | K177: 384 | L177: 288
F178: 2029-03-01 | H178: 743 | K178: 432 | L178: 311
F179: 2029-04-01 | H179: 720 | K179: 400 | L179: 320
F180: 2029-05-01 | H180: 744 | K180: 416 | L180: 328
F181: 2029-06-01 | H181: 720 | K181: 416 | L181: 304
F182: 2029-07-01 | H182: 744 | K182: 400 | L182: 344
F183: 2029-08-01 | H183: 744 | K183: 432 | L183: 312
F184: 2029-09-01 | H184: 720 | K184: 384 | L184: 336
F185: 2029-10-01 | H185: 744 | K185: 432 | L185: 312
F186: 2029-11-01 | H186: 721 | K186: 400 | L186: 321
F187: 2029-12-01 | H187: 744 | K187: 400 | L187: 344
F188: 2030-01-01 | H188: 744 | K188: 416 | L188: 328
F189: 2030-02-01 | H189: 672 | K189: 384 | L189: 288
F190: 2030-03-01 | H190: 743 | K190: 416 | L190: 327
F191: 2030-04-01 | H191: 720 | K191: 416 | L191: 304
F192: 2030-05-01 | H192: 744 | K192: 416 | L192: 328
F193: 2030-06-01 | H193: 720 | K193: 400 | L193: 320
F194: 2030-07-01 | H194: 744 | K194: 416 | L194: 328
F195: 2030-08-01 | H195: 744 | K195: 432 | L195: 312
F196: 2030-09-01 | H196: 720 | K196: 384 | L196: 336
F197: 2030-10-01 | K197: 400 | L197: 344
F198: 2030-11-01 | K198: 384 | L198: 288
F199: 2030-12-01 | K199: 432 | L199: 311
F200: 2031-01-01 | K200: 416 | L200: 304
... 92 more rows

Sheet Rev Check
B1: Rate Analysis Model - Modeling Steps Revenue Check | K1: Not printed in documentation.
A2: TOC | B2: =Cover!$C$14 -> FY 2029-30 Base Case Phase 2 | K2: =IF(Init!$C$13="Yes","Results Under Settlement","Results while Running 7b2 Rate Test") -> Results while Running 7b2 Rate Test
A3: é
C4: Costs
C5: Before 7b2 Revenue Requirements | D5: =+Init!C9 -> 2029 | E5: =+D5+1 -> 2030 | F5: =+E5+1 -> 2031 | G5: =+F5+1 -> 2032 | H5: =+G5+1 -> 2033 | I5: =+H5+1 -> 2034
C6: FBS | D6: =FBS_LDD_IRD_Allocation!C5 -> 2503926.333 | E6: =FBS_LDD_IRD_Allocation!D5 -> 2709883.285 | F6: =FBS_LDD_IRD_Allocation!E5 -> 2617503.862 | G6: =FBS_LDD_IRD_Allocation!F5 -> 2658786.877 | H6: =FBS_LDD_IRD_Allocation!G5 -> 2778417.422 | I6: =FBS_LDD_IRD_Allocation!H5 -> 2804003.385
C7: NR | D7: =FBS_LDD_IRD_Allocation!C6 -> 21057.23024 | E7: =FBS_LDD_IRD_Allocation!D6 -> 21039.53186 | F7: =FBS_LDD_IRD_Allocation!E6 -> 21001.18841 | G7: =FBS_LDD_IRD_Allocation!F6 -> 20837.0369 | H7: =FBS_LDD_IRD_Allocation!G6 -> 15229.99745 | I7: =FBS_LDD_IRD_Allocation!H6 -> 15575.71839
C8: Exchange | D8: =FBS_LDD_IRD_Allocation!C7-D13 -> 3505695.649 | E8: =FBS_LDD_IRD_Allocation!D7-E13 -> 3568240.202 | F8: =FBS_LDD_IRD_Allocation!E7-F13 -> 3766866.006 | G8: =FBS_LDD_IRD_Allocation!F7-G13 -> 3876473.568 | H8: =FBS_LDD_IRD_Allocation!G7-H13 -> 3929231.035 | I8: =FBS_LDD_IRD_Allocation!H7-I13 -> 4063574.677
C9: Conservation | D9: =FBS_LDD_IRD_Allocation!C8 -> 155721.3835 | E9: =FBS_LDD_IRD_Allocation!D8 -> 159121.6203 | F9: =FBS_LDD_IRD_Allocation!E8 -> 162480.1328 | G9: =FBS_LDD_IRD_Allocation!F8 -> 165772.5174 | H9: =FBS_LDD_IRD_Allocation!G8 -> 169074.347 | I9: =FBS_LDD_IRD_Allocation!H8 -> 172912.3347
C10: BPA Programs | D10: =FBS_LDD_IRD_Allocation!C9+FBS_LDD_IRD_Allocation!C10 -> 391461.0437 | E10: =FBS_LDD_IRD_Allocation!D9+FBS_LDD_IRD_Allocation!D10 -> 399890.5051 | F10: =FBS_LDD_IRD_Allocation!E9+FBS_LDD_IRD_Allocation!E10 -> 405815.4533 | G10: =FBS_LDD_IRD_Allocation!F9+FBS_LDD_IRD_Allocation!F10 -> 413976.5786 | H10: =FBS_LDD_IRD_Allocation!G9+FBS_LDD_IRD_Allocation!G10 -> 418262.5146 | I10: =FBS_LDD_IRD_Allocation!H9+FBS_LDD_IRD_Allocation!H10 -> 430712.6101
C13: Transmission to Deliver Exchange Sale | D13: =ExchangeInputs!$D$5*'PF Exchange'!D61 -> 277540.1454 | E13: =ExchangeInputs!$D$5*'PF Exchange'!E61 -> 280623.6216 | F13: =ExchangeInputs!$D$5*'PF Exchange'!F61 -> 283739.8427 | G13: =ExchangeInputs!$D$5*'PF Exchange'!G61 -> 287669.3329 | H13: =ExchangeInputs!$D$5*'PF Exchange'!H61 -> 290070.5195 | I13: =ExchangeInputs!$D$5*'PF Exchange'!I61 -> 293290.4327
C15: Sub total | D15: =SUM(D6:D13) -> 6855401.785 | E15: 7138798.766 | F15: 7257406.485 | G15: 7423515.91 | H15: 7600285.835 | I15: 7780069.159
C17: Low Density Discount and IRD Expense | D17: =FBS_LDD_IRD_Allocation!C11 -> 60584.61414 | E17: =FBS_LDD_IRD_Allocation!D11 -> 61705.19327 | F17: =FBS_LDD_IRD_Allocation!E11 -> 61144.90371 | G17: =FBS_LDD_IRD_Allocation!F11 -> 61144.90371 | H17: =FBS_LDD_IRD_Allocation!G11 -> 61144.90371 | I17: =FBS_LDD_IRD_Allocation!H11 -> 61144.90371
C19: Annual Revenue Requirement Grand Total | D19: =SUM(D15:D17) -> 6915986.399 | E19: 7200503.959 | F19: 7318551.389 | G19: 7484660.814 | H19: 7661430.739 | I19: 7841214.062
C22: Revenue Credits
C23: Forecast of Secondary Revenues | D23: =Secondary!D29 -> 709230.968 | E23: =Secondary!E29 -> 696518.1544 | F23: =Secondary!F29 -> 749661.8581 | G23: =Secondary!G29 -> 793211.5896 | H23: =Secondary!H29 -> 805169.5585 | I23: =Secondary!I29 -> 844106.0939
C24: Expected Revenue from FPS Contract Sales | D24: =-('FPS Revenue Deficiency'!C12) -> 28257.0008 | E24: =-('FPS Revenue Deficiency'!D12) -> 63607.62714 | F24: =-('FPS Revenue Deficiency'!E12) -> 19602.93065 | G24: =-('FPS Revenue Deficiency'!F12) -> 76466.6882 | H24: =-('FPS Revenue Deficiency'!G12) -> 14371.96298 | I24: =-('FPS Revenue Deficiency'!H12) -> 83152.63577
C25: Expected Revenue from System Obligations | D25: =-RDS_Credits!C15 -> 509.944 | E25: =-RDS_Credits!D15 -> 509.944 | F25: =-RDS_Credits!E15 -> 509.944 | G25: =-RDS_Credits!F15 -> 509.944 | H25: =-RDS_Credits!G15 -> 509.944 | I25: =-RDS_Credits!H15 -> 509.944
C26: Other Revenue Credits | D26: =-(RDS_Credits!C7+RDS_Credits!C19+RDS_Credits!C21+RDS_Credits!C24+SUM(RDS_Credits!C30:'RDS_Credits'!C36)+'Credits Gen-RSS'!C23) -> 292008.1954 | E26: =-(RDS_Credits!D7+RDS_Credits!D19+RDS_Credits!D21+RDS_Credits!D24+SUM(RDS_Credits!D30:'RDS_Credits'!D36)+'Credits Gen-RSS'!D23) -> 292495.9836 | F26: =-(RDS_Credits!E7+RDS_Credits!E19+RDS_Credits!E21+RDS_Credits!E24+SUM(RDS_Credits!E30:'RDS_Credits'!E36)+'Credits Gen-RSS'!E23) -> 277327.3428 | G26: =-(RDS_Credits!F7+RDS_Credits!F19+RDS_Credits!F21+RDS_Credits!F24+SUM(RDS_Credits!F30:'RDS_Credits'!F36)+'Credits Gen-RSS'!F23) -> 283564.7819 | H26: =-(RDS_Credits!G7+RDS_Credits!G19+RDS_Credits!G21+RDS_Credits!G24+SUM(RDS_Credits!G30:'RDS_Credits'!G36)+'Credits Gen-RSS'!G23) -> 283491.6405 | I26: =-(RDS_Credits!H7+RDS_Credits!H19+RDS_Credits!H21+RDS_Credits!H24+SUM(RDS_Credits!H30:'RDS_Credits'!H36)+'Credits Gen-RSS'!H23) -> 296422.587
C28: Total Revenue Credits | D28: =SUM(D23:D27) -> 1030006.108 | E28: 1053131.709 | F28: 1047102.076 | G28: 1153753.004 | H28: 1103543.106 | I28: 1224191.261
C31: Revenues needed from Power Rates | D31: =D19-D28 -> 5885980.29 | E31: 6147372.25 | F31: 6271449.314 | G31: 6330907.81 | H31: 6557887.633 | I31: 6617022.802
C34: Power Revenues After Rate Design Step
D35: =+D5 -> 2029 | E35: =+E5 -> 2030
C36: PF Public | D36: =RateSummary!C32 -> 33.4435 | E36: =RateSummary!D32 -> 35.5541
D37: ='PF Public'!D77 -> 64477.85353 | E37: ='PF Public'!E77 -> 64783.38851
D38: =D36*D37 -> 2156365.095 | E38: =E36*E37 -> 2303315.073
C40: PF Exchange | D40: =RateSummary!C34 -> 83.603 | E40: =RateSummary!D34 -> 85.222
D41: ='PF Exchange'!D61 -> 44548.98 | E41: ='PF Exchange'!E61 -> 45043.92
D42: =D40*D41 -> 3724428.375 | E42: =E40*E41 -> 3838732.95
C44: IP | D44: =RateSummary!C35 -> 53.716 | E44: =RateSummary!D35 -> 55.303
D45: ='RAM IP'!M87 -> 96.36 | E45: ='RAM IP'!N87 -> 96.36
D46: =D44*D45 -> 5176.07376 | E46: =E44*E45 -> 5328.99708
C48: NR | D48: =RateSummary!C36 -> 106.117 | E48: =RateSummary!D36 -> 105.74
D49: ='RAM NR'!D68 -> 0.009856 | E49: ='RAM NR'!E68 -> 0.009856
D50: =D48*D49 -> 1.045889152 | E50: =E48*E49 -> 1.04217344
C52: Revenues from Power Rates Grand Total | D52: =D38+D42+D46+D50 -> 5885970.589 | E52: =E38+E42+E46+E50 -> 6147378.063
C55: Revenue Check after Standard Ratemaking | D55: =D52-D$31 -> -9.701183098 | E55: =E52-E$31 -> 5.812857816

Sheet RateSummary
B1: Rate Analysis Model - Rate Design Step Summary | J1: =IF(Init!$C$13="Yes","Results Under Settlement","Results while Running 7b2 Rate Test") -> Results while Running 7b2 Rate Test
A2: TOC | B2: =Cover!$C$14 -> FY 2029-30 Base Case Phase 2 | J2: Not printed in documentation.
A3: é
B6: Revenue Under Recovery After Rate Design Step | C6: ='Rev Check'!D55 -> -9.701183098 | D6: ='Rev Check'!E55 -> 5.812857816
B10: Rate Design Step | C10: =+Init!C9 -> 2029 | D10: =+C10+1 -> 2030 | E10: =+D10+1 -> 2031 | F10: =+E10+1 -> 2032 | G10: =+F10+1 -> 2033 | H10: =+G10+1 -> 2034
B11: Rates After Initial Allocation
B12: UNBIFURCATED PF | C12: ='Initial Rates'!C22 -> 54.76 | D12: ='Initial Rates'!D22 -> 56.87 | E12: ='Initial Rates'!E22 -> 57.46 | F12: ='Initial Rates'!F22 -> 57.69 | G12: ='Initial Rates'!G22 -> 59.17 | H12: ='Initial Rates'!H22 -> 59.67
B13: IP | C13: ='Initial Rates'!C23 -> 83.5 | D13: ='Initial Rates'!D23 -> 83.62 | E13: ='Initial Rates'!E23 -> 85.38 | F13: ='Initial Rates'!F23 -> 89.74 | G13: ='Initial Rates'!G23 -> 126.19 | H13: ='Initial Rates'!H23 -> 101.85
B14: NR | C14: ='Initial Rates'!C24 -> 83.5 | D14: ='Initial Rates'!D24 -> 83.62 | E14: ='Initial Rates'!E24 -> 85.38 | F14: ='Initial Rates'!F24 -> 89.74 | G14: ='Initial Rates'!G24 -> 126.19 | H14: ='Initial Rates'!H24 -> 101.85
B16: Rate Design Step | C16: =+C10 -> 2029 | D16: 2030 | E16: 2031 | F16: 2032 | G16: 2033 | H16: 2034
B17: Rates After IP-PF Link Allocation
B18: UNBIFURCATED PF (average) | C18: ='Rates After Link'!C42 -> 54.783 | D18: ='Rates After Link'!D42 -> 56.894 | E18: ='Rates After Link'!E42 -> 57.49 | F18: ='Rates After Link'!F42 -> 57.721 | G18: ='Rates After Link'!G42 -> 59.233 | H18: ='Rates After Link'!H42 -> 59.708 | J18: IP Rate Check
B19: UNBIFURCATED PF (flat) | C19: =IP_PF_Link!C15 -> 52.42524239 | D19: =IP_PF_Link!D15 -> 54.50354239 | E19: =IP_PF_Link!E15 -> 55.02414239 | F19: =IP_PF_Link!F15 -> 55.22784717 | G19: =IP_PF_Link!G15 -> 56.68134239 | H19: =IP_PF_Link!H15 -> 57.13194239 | J19: =C20-C19 -> -0.08524238984 | K19: =D20-D19 -> -0.08654238984
B20: IP | C20: ='Rates After Link'!C43 -> 52.34 | D20: ='Rates After Link'!D43 -> 54.417 | E20: ='Rates After Link'!E43 -> 54.937 | F20: ='Rates After Link'!F43 -> 55.141 | G20: ='Rates After Link'!G43 -> 56.595 | H20: ='Rates After Link'!H43 -> 57.045
B21: NR | C21: ='Rates After Link'!C44 -> 83.527 | D21: ='Rates After Link'!D44 -> 83.642 | E21: ='Rates After Link'!E44 -> 85.409 | F21: ='Rates After Link'!F44 -> 89.767 | G21: ='Rates After Link'!G44 -> 126.249 | H21: ='Rates After Link'!H44 -> 101.892
B23: Rate Design Step | C23: =+C10 -> 2029 | D23: =+D10 -> 2030
B24: Rates After REP/7(b)(3) Allocation
B25: PF Public | C25: =IF(Init!$C$13="Yes",'Rates After WP-10 Adjustment'!C40,'Rates After 7b2'!C51) -> 33.44 | D25: =IF(Init!$C$13="Yes",'Rates After WP-10 Adjustment'!D40,'Rates After 7b2'!D51) -> 35.55
B26: PF Exchange | C26: =IF(Init!$C$13="Yes",'Rates After WP-10 Adjustment'!C41,'Rates After 7b2'!C52) -> 83.56 | D26: =IF(Init!$C$13="Yes",'Rates After WP-10 Adjustment'!D41,'Rates After 7b2'!D52) -> 85.18
B27: IP | C27: =IF(Init!$C$13="Yes",'Rates After WP-10 Adjustment'!C42,'Rates After 7b2'!C53) -> 74.88 | D27: =IF(Init!$C$13="Yes",'Rates After WP-10 Adjustment'!D42,'Rates After 7b2'!D53) -> 76.47
B28: NR | C28: =IF(Init!$C$13="Yes",'Rates After WP-10 Adjustment'!C43,'Rates After 7b2'!C54) -> 106.07 | D28: =IF(Init!$C$13="Yes",'Rates After WP-10 Adjustment'!D43,'Rates After 7b2'!D54) -> 105.69
B30: Rate Design Step | C30: =+C10 -> 2029 | D30: =+D10 -> 2030
B31: Rates After IP-PF Link #2 Allocation
B32: PF Public (average) | C32: =IF(Init!$C$13="Yes",'Rates After Link Settlement'!C47,'Rates After Link (2)'!C49) -> 33.4435 | D32: =IF(Init!$C$13="Yes",'Rates After Link Settlement'!D47,'Rates After Link (2)'!D49) -> 35.5541 | J32: IP Rate Check
B33: PF Public (flat) | C33: ='IP_PF_Link Settlement'!C13 -> 41.0657652 | D33: ='IP_PF_Link Settlement'!D13 -> 42.7082378 | J33: =C35-C33 -> 12.6502348 | K33: =D35-D33 -> 12.5947622
B34: PF Exchange | C34: =IF(Init!$C$13="Yes",'Rates After Link Settlement'!C48,'Rates After Link (2)'!C50) -> 83.603 | D34: =IF(Init!$C$13="Yes",'Rates After Link Settlement'!D48,'Rates After Link (2)'!D50) -> 85.222 | J34: ='IP_PF_Link Settlement'!C16 -> 7.898323216 | K34: ='IP_PF_Link Settlement'!D16 -> 7.98619763
B35: IP | C35: =IF(Init!$C$13="Yes",'Rates After Link Settlement'!C49,'Rates After Link (2)'!C51) -> 53.716 | D35: =IF(Init!$C$13="Yes",'Rates After Link Settlement'!D49,'Rates After Link (2)'!D51) -> 55.303 | J35: =J33-J34 -> 4.751911584 | K35: =K33-K34 -> 4.608564568 | L35: =AVERAGE(J35:K35) -> 4.680238076
B36: NR | C36: =IF(Init!$C$13="Yes",'Rates After Link Settlement'!C50,'Rates After Link (2)'!C52) -> 106.117 | D36: =IF(Init!$C$13="Yes",'Rates After Link Settlement'!D50,'Rates After Link (2)'!D52) -> 105.74

Sheet ScenarioResults
B1: Rate Analysis Model - Scenario Summary Box | G1: =IF(Init!$C$13="Yes","Results Under Settlement","Results while Running 7b2 Rate Test") -> Results while Running 7b2 Rate Test
A2: TOC | B2: =Cover!$C$14 -> FY 2029-30 Base Case Phase 2 | G2: Not printed in documentation.
A3: é | B3: To REP Output tab | L3: List for Expense Conservation in 7b2
L4: 1
B5: Attachment 1a | G5: From Rate Tables | L5: 2
D6: % above BP-18 | G6: =B7 -> Unbifurcated PF | H6: ='Unbif PF_RateOutput'!E52 -> 55.84 | J6: =C7-H6 -> 0.002657929327 | L6: 3
B7: Unbifurcated PF | C7: ='Rates After Link'!C47 -> 55.84265793 | D7: =C7/H23-1 -> 0.1878544242 | G7: T1 Equivalent PF | H7: =PFAveT1_RateOutput!E52 -> 31.65 | L7: 4
B8: PF Public | C8: =IF(Init!$C$13="Yes",'Rates After Link Settlement'!E47,ROUND((RateSummary!C32+RateSummary!D32)/2,2)) -> 34.5 | D8: =C8/H24-1 -> -0.03483027046 | G8: T1 & T2 Equivalent PF | H8: =PFMeldedEqv_RateOutput!E52 -> 34.5 | J8: =H8-C8 -> 0 | L8: 5
B9: PF Exchange | C9: =IF(Init!$C$13="Yes",'Rates After Link Settlement'!E48,'Rates After Link (2)'!C64) -> 84.41701865 | D9: =C9/H25-1 -> 0.2698107499 | G9: =B9 -> PF Exchange | H9: ='PF Exchange_RateOutput'!E53 -> 84.41 | J9: =H9-C9 -> -0.00701865279 | L9: 6
B10: IP | C10: =IF(Init!$C$13="Yes",'Rates After Link Settlement'!E49,'Rates After Link (2)'!C66)+I44 -> 54.50925349 | D10: =C10/H26-1 -> 0.3293316047 | G10: =B10 -> IP | H10: =IP_RateOutput!E52 -> 54.51 | J10: =H10-C10 -> 0.0007465087016 | L10: 7
B11: NR | C11: =IF(Init!$C$13="Yes",'Rates After Link Settlement'!E50,'Rates After Link (2)'!C67)+I45 -> 105.928435 | D11: =C11/H27-1 -> 0.3291727701 | G11: =B11 -> NR | H11: =NR_RateOutput!E52 -> 105.93 | J11: =H11-C11 -> 0.001565042977 | L11: 8
L12: 9
B13: Residential Exchange Benefits | C13: =+Init!C9 -> 2029 | D13: =C13+1 -> 2030 | L13: 10
B14: ='Active Exchange'!D10 -> Avista Corporation | C14: =IF(Init!$C$13="Yes",MAX('Utility Specific PFx Settle'!O27,0),MAX('Utility Specifc PFx'!K24,0)) -> 574.353684 | D14: =IF(Init!$C$13="Yes",MAX('Utility Specific PFx Settle'!P27,0),MAX('Utility Specifc PFx'!K43,0)) -> 1179.756619 | L14: 11
B15: ='Active Exchange'!D11 -> Idaho Power Company | C15: =IF(Init!$C$13="Yes",MAX('Utility Specific PFx Settle'!O28,0),MAX('Utility Specifc PFx'!K25,0)) -> 4366.246944 | D15: =IF(Init!$C$13="Yes",MAX('Utility Specific PFx Settle'!P28,0),MAX('Utility Specifc PFx'!K44,0)) -> 4443.369231 | L15: 12
B16: ='Active Exchange'!D12 -> NorthWestern Energy, LLC | C16: =IF(Init!$C$13="Yes",MAX('Utility Specific PFx Settle'!O29,0),MAX('Utility Specifc PFx'!K26,0)) -> 1125.029318 | D16: =IF(Init!$C$13="Yes",MAX('Utility Specific PFx Settle'!P29,0),MAX('Utility Specifc PFx'!K45,0)) -> 1079.301504 | L16: Settlement Menu
B17: ='Active Exchange'!D13 -> PacifiCorp | C17: =IF(Init!$C$13="Yes",MAX('Utility Specific PFx Settle'!O30,0),MAX('Utility Specifc PFx'!K27,0)) -> 6348.706036 | D17: =IF(Init!$C$13="Yes",MAX('Utility Specific PFx Settle'!P30,0),MAX('Utility Specifc PFx'!K46,0)) -> 5876.357755 | G17: ="Section 7(b)(3) Load for " & RateSummary!$C$10 -> Section 7(b)(3) Load for 2029 | H17: ='Exchange Load'!D29+'RAM IP'!M83+'RAM NR'!D66 -> 5096.501125 | J17: Trigger | L17: Yes
B18: ='Active Exchange'!D14 -> Portland General Electric Company | C18: =IF(Init!$C$13="Yes",MAX('Utility Specific PFx Settle'!O31,0),MAX('Utility Specifc PFx'!K28,0)) -> 9742.923546 | D18: =IF(Init!$C$13="Yes",MAX('Utility Specific PFx Settle'!P31,0),MAX('Utility Specifc PFx'!K47,0)) -> 10223.12078 | G18: Section 7(b)(2) Rate Test Trigger | H18: 21.34 | J18: =ROUND(TriggerCalc!J35,2) -> 21.34 | L18: No
B19: ='Active Exchange'!D15 -> Puget Sound Energy, Inc. | C19: =IF(Init!$C$13="Yes",MAX('Utility Specific PFx Settle'!O32,0),MAX('Utility Specifc PFx'!K29,0)) -> 11456.80638 | D19: =IF(Init!$C$13="Yes",MAX('Utility Specific PFx Settle'!P32,0),MAX('Utility Specifc PFx'!K48,0)) -> 11186.08861
B20: Net IOU Exchange | C20: =SUM(C14:C19) -> 33614.06591 | D20: =SUM(D14:D19) -> 33987.99449 | E20: =(C20+D20)/2 -> 33801.0302
B21: Refund Amt | C21: =IF(Init!$C$13="Yes",'Utility Specific PFx Settle'!$O$41,0) -> 0 | D21: =IF(Init!$C$13="Yes",'Utility Specific PFx Settle'!$P$41,0) -> 0 | E21: =(C21+D21)/2 -> 0
G22: Previous Rates | H22: Surcharge Adj. | I22: 2 year average
B23: =ExchangeInputs!C15 -> Clark Public Utilities | C23: =IF(Init!$C$13="Yes",MAX('Utility Specific PFx Settle'!O35,0),MAX('Utility Specifc PFx'!K30,0)) -> 0 | D23: =IF(Init!$C$13="Yes",MAX('Utility Specific PFx Settle'!P35,0),MAX('Utility Specifc PFx'!K49,0)) -> 0 | G23: Unbifurcated PF | H23: 47.01136502
B24: =ExchangeInputs!C16 -> Franklin | C24: =IF(Init!$C$13="Yes",MAX('Utility Specific PFx Settle'!O36,0),MAX('Utility Specifc PFx'!K31,0)) -> 0 | D24: =IF(Init!$C$13="Yes",MAX('Utility Specific PFx Settle'!P36,0),MAX('Utility Specifc PFx'!K50,0)) -> 0 | G24: PF Public | H24: =+I24+H43 -> 35.74500831 | I24: 35.56
B25: =ExchangeInputs!C17 -> Snohomish PUD | C25: =IF(Init!$C$13="Yes",MAX('Utility Specific PFx Settle'!O37,0),MAX('Utility Specifc PFx'!K32,0)) -> 0 | D25: =IF(Init!$C$13="Yes",MAX('Utility Specific PFx Settle'!P37,0),MAX('Utility Specifc PFx'!K51,0)) -> 0 | G25: PF Exchange | H25: 66.48
B26: Net COU Exchange | C26: =SUM(C23:C25) -> 0 | D26: =SUM(D23:D25) -> 0 | E26: =(C26+D26)/2 -> 0 | G26: IP | H26: =I26+H44 -> 41.00500831 | I26: 40.82
D27: Total | E27: =E20+E21+E26 -> 33801.0302 | G27: NR | H27: =I27+H45 -> 79.69500831 | I27: 79.51
B29: Annual Average $ (1000s) | C29: Ph. 1 FY29-30 | D29: Ph. 2 FY29-31 | E29: Change
B30: Composite Revenues | C30: 2305673.788 | D30: =Cost_Allocation_TRM!$E$59/2 -> 2428284.626 | E30: =(D30-C30)/C30 -> 0.05317787753
B31: Non-Slice Revenues | C31: -358557.4903 | D31: =Cost_Allocation_TRM!$E$60/2 -> -546421.1235 | E31: =-(D31-C31)/C31 -> -0.5239428499 | H31: BP-20 | I31: BP-22 | J31: BP-22 Projected | K31: BP-22 max FRP
B32: Slice Revenues | C32: 0 | D32: =Cost_Allocation_TRM!$E$61/2 -> 0 | G32: Surcharges | H32: =J49 -> 11250 | I32: 0 | J32: 0 | K32: 0
B33: Load Shaping Revenues | C33: 60059.16692 | D33: =-Cost_Allocation_TRM!$E$44/2 -> 84172.06904 | E33: =(D33-C33)/C33 -> 0.4014857909 | G33: Preference Load | H33: 6919.695837 | I33: =AVERAGE(ProgAlloc!C7:D7) -> 7615.664879 | J33: =AVERAGE(ProgAlloc!C7:D7) -> 7615.664879 | K33: =AVERAGE(ProgAlloc!C7:D7) -> 7615.664879
B34: Demand Revenues | C34: 76416.35664 | D34: =-Cost_Allocation_TRM!$E$46/2 -> 84775.29246 | E34: =(D34-C34)/C34 -> 0.1093867359 | G34: DSI Load | H34: 12.36871702 | I34: =ProgAlloc!C9 -> 11.3545583 | J34: =I34 -> 11.3545583 | K34: =ProgAlloc!C9 -> 11.3545583
B35: Tier 1 Revenue Requirement | C35: 2083591.821 | D35: =SUM($D$30:$D$34) -> 2050810.864 | E35: =((D35+D38+D41)-(C35+C38+C41))/C35 -> -0.02674328084 | G35: NR Load | H35: 0.001156384698 | I35: =ProgAlloc!C10 -> 0.001161380194 | J35: =I35 -> 0.001161380194 | K35: =ProgAlloc!C10 -> 0.001161380194
B36: Tier 2 Revenue Requirement | C36: 101155.6442 | D36: =(Cost_Allocation_TRM!$H$13+Cost_Allocation_TRM!$I$13)/2 -> 320213.4208 | G36: Preference Allocator | H36: =H33/SUM(H$33:H$35) -> 0.9982155574 | I36: =I33/SUM(I$33:I$35) -> 0.9985111198 | J36: =J33/SUM(J$33:J$35) -> 0.9985111198 | K36: 0.9985111198
G37: DSI Allocator | H37: =H34/SUM(H$33:H$35) -> 0.001784275789 | I37: 0.001488727892 | J37: =J34/SUM(J$33:J$35) -> 0.001488727892 | K37: 0.001488727892
B38: New Resource Revenues | C38: -0.9026866336 | D38: =-'NR Allocation'!$D$56/2 -> -1.044030655 | G38: NR Allocator | H38: =H35/SUM(H$33:H$35) -> 1.668167537e-07 | I38: 1.522718051e-07 | J38: =J35/SUM(J$33:J$35) -> 1.522718051e-07 | K38: 1.522718051e-07
B39: Spill Surcharge | C39: 0 | D39: 0 | G39: Preference Surcharge | H39: =H$32*H36 -> 11229.92502 | I39: =I$32*I36 -> 0 | J39: =J$32*J36 -> 0 | K39: =K$32*K36 -> 0
B40: FRP Surcharge | C40: 0 | D40: =I39 -> 0 | G40: DSI Surcharge | H40: =H$32*H37 -> 20.07310263 | I40: 0 | J40: =J$32*J37 -> 0 | K40: 0
B41: Value of Slice Secondary | C41: -118305.4245 | D41: =(Cost_Allocation_TRM!$H$18+Cost_Allocation_TRM!$I$18)/2 -> -141246.4074 | E41: =-(D41-C41)/C41 -> -0.1939131951 | G41: NR Surcharge | H41: =H$32*H38 -> 0.001876688479 | I41: 0 | J41: =J$32*J38 -> 0 | K41: 0
B42: Net Power Cost to All PF | C42: 2066441.138 | D42: =SUM(D35:D41) -> 2229776.834 | E42: =+D42/C42-1 -> 0.07904202657 | G42: Hours | H42: 8772 | I42: =AVERAGE(8760,8760) -> 8760 | J42: =AVERAGE(8760,8760) -> 8760 | K42: =AVERAGE(8760,8760) -> 8760
B43: Total PF Load w/Slice (GWh)/yr | C43: 59352.52 | D43: =('PF Public'!$D$77+'PF Public'!$E$77)/2 -> 64630.62102 | E43: =-(((C42-C36)*(D43-C43))/(C43*C43))/C48 -> -0.08471206189 | G43: PF Melded Adder | H43: =H39*1000/(H$42*H33) -> 0.1850083069 | I43: =I39*1000/(I$42*I33) -> 0 | J43: =J39*1000/(J$42*J33) -> 0 | K43: 0
B44: Average Net Cost $/MWh | C44: 34.81640102 | D44: =+D42/D43 -> 34.50031577 | E44: =(D44-C$44)/C$44 -> -0.009078630912 | G44: DSI Adder | H44: =H40*1000/(H$42*H34) -> 0.1850083069 | I44: 0 | J44: =J40*1000/(J$42*J34) -> 0 | K44: 0
G45: NR Adder | H45: =H41*1000/(H$42*H35) -> 0.1850083069 | I45: 0 | J45: =J41*1000/(J$42*J35) -> 0 | K45: 0
B46: Tier 1 Load | C46: 56538.2167 | D46: =+(PFAveT1_RateOutput!$E$54/2) -> 60345.22464 | E46: =((C46-D46)*C48)/D46/(C48) -> -0.063087145
G47: Forecast/Billed | H47: FY20 | I47: FY21 | J47: BP20 Avg
B48: Tier 1 Average Net Cost without FRP ($/MWh) | C48: 34.76 | D48: =ROUND((D35+D37+D38+D39+D41)/D46,2) -> 31.64 | E48: =(D48-C$48)/C$48 -> -0.08975834292 | G48: BP20 Max per year | H48: =30000 -> 30000 | I48: 0
B49: Tier 1 Average Net Cost with max FRP ($/MWh) | C49: 34.76 | D49: =ROUND((D35+D38+K39+D41)/D46,2) -> 31.64 | E49: =(D49-C$49)/C$49 -> -0.08975834292 | G49: suspension in July of surcharge | H49: =H48*(9/12) -> 22500 | I49: 0 | J49: =AVERAGE(H49:I49) -> 11250
B50: Tier 2 Short-term ($/MWh) | C50: 34.82306232 | D50: =ResultsDetail!D32 -> 74.95873118 | E50: =(D50-C$50)/C$50 -> 1.152560004
B51: Tier 2 Load Growth ($/MWh) | C51: 34.76746547 | D51: =Cost_Allocation_TRM!E82 -> 74.95 | E51: =(D51-C$51)/C$51 -> 1.155751044 | G51: Actual Surcharge Collected | H51: 21019 | I51: 0 | J51: =AVERAGE(H51:I51) -> 10509.5
D54: % above BP-18
B55: Unbifurcated PF | C55: 55.84265793 | D55: 0.1878544242
B56: PF Public | C56: 55.84 | D56: 0.5621761651
B57: PF Exchange | C57: 62.07462794 | D57: -0.06626612603
B58: IP | C58: 53.3783161 | D58: 0.301751135
B59: NR | C59: 83.58457168 | D59: 0.04880560844
B61: Residential Exchange Benefits | C61: 2029 | D61: 2030 | F61: <- not updated
B62: Avista Corporation | C62: 17581.14516 | D62: 36112.71754
B63: Idaho Power Company | C63: 133652.1789 | D63: 136012.9161
B64: NorthWestern Energy, LLC | C64: 34437.49782 | D64: 33037.75519
B65: PacifiCorp | C65: 194335.8691 | D65: 179877.1411
B66: Portland General Electric Company | C66: 298233.9243 | D66: 312932.9111
B67: Puget Sound Energy, Inc. | C67: 350696.4118 | D67: 342409.6564
B68: Net IOU Exchange | C68: 1028937.027 | D68: 1040383.097 | E68: 1034660.062
B69: Refund Amt | C69: 0 | D69: 0 | E69: 0
B71: Clark Public Utilities | C71: 0 | D71: 0
B72: Franklin | C72: 0 | D72: 0
B73: Snohomish PUD | C73: 0 | D73: 0
B74: Net COU Exchange | C74: 0 | D74: 0 | E74: 0
D75: Total | E75: 1034660.062
B77: Annual Average $ (1000s) | C77: Ph. 1 FY29-30 | D77: Ph. 2 FY29-31 | E77: Change
B78: Composite Revenues | C78: 2305673.788 | D78: 3406675.05 | E78: 0.4775182281
B79: Non-Slice Revenues | C79: -358557.4903 | D79: -523843.5374 | E79: -0.4609750224
B80: Slice Revenues | C80: 0 | D80: 0
B81: Load Shaping Revenues | C81: 60059.16692 | D81: 84172.06904 | E81: 0.4014857909
B82: Demand Revenues | C82: 76416.35664 | D82: 84775.29246 | E82: 0.1093867359
B83: Tier 1 Revenue Requirement | C83: 2083591.821 | D83: 3051778.874 | E83: 0.4536618636
B84: Tier 2 Revenue Requirement | C84: 101155.6442 | D84: 320213.4208
B86: New Resource Revenues | C86: -0.9026866336 | D86: -0.8238095384
B87: Spill Surcharge | C87: 0 | D87: 0
B88: FRP Surcharge | C88: 0 | D88: 0
B89: Value of Slice Secondary | C89: -118305.4245 | D89: -141246.4074 | E89: -0.1939131951
B90: Net Power Cost to All PF | C90: 2066441.138 | D90: 3230745.064 | E90: 0.5634343527
B91: Total PF Load w/Slice (GWh)/yr | C91: 59352.52 | D91: 64630.62102 | E91: -0.08471206189
B92: Average Net Cost $/MWh | C92: 34.81640102 | D92: 49.98783877 | E92: 0.435755486

Sheet ResultsDetail
B1: Rate Analysis Model - Scenario Summary | G1: =IF(Init!$C$13="Yes","Results Under Settlement","Results while Running 7b2 Rate Test") -> Results while Running 7b2 Rate Test
A2: TOC | B2: =Cover!$C$14 -> FY 2029-30 Base Case Phase 2 | G2: Not printed in documentation.
A3: é
D6: % above
B7: Unbifurcated PF | C7: =ScenarioResults!C7 -> 55.84265793 | D7: =C7/ScenarioResults!H23-1 -> 0.1878544242
B8: PF Public (Tier 1 + Tier 2) | C8: =ScenarioResults!C8 -> 34.5 | D8: =C8/ScenarioResults!H24-1 -> -0.03483027046
B9: PF Exchange (IOU) | C9: =ScenarioResults!C9 -> 84.41701865 | D9: =C9/ScenarioResults!H25-1 -> 0.2698107499
B10: IP with 7(b)(3) | C10: =ScenarioResults!C10 -> 54.50925349 | D10: =C10/ScenarioResults!H26-1 -> 0.3293316047
B11: NR | C11: =ScenarioResults!C11 -> 105.928435 | D11: =C11/ScenarioResults!H27-1 -> 0.3291727701
B14: Annual Average $ (1000s) | C14: Ph.1 FY29-30 | D14: Ph.2 FY29-31 | E14: Change
A15: 1 | B15: Composite Rate Revenues | C15: 2305673.788 | D15: =Cost_Allocation_TRM!$E$59/2 -> 2428284.626 | E15: =D15/C15-1 -> 0.05317787753
A16: =+A15+1 -> 2 | B16: Non-Slice Rate Revenues | C16: -358557.4903 | D16: =Cost_Allocation_TRM!$E$60/2 -> -546421.1235 | E16: =-(D16/C16-1) -> -0.5239428499
A17: =+A16+1 -> 3 | B17: Slice Rate Revenues | C17: 0 | D17: =Cost_Allocation_TRM!$E$61/2 -> 0
A18: 4 | B18: Load Shaping Rate Revenues | C18: 60059.16692 | D18: =-Cost_Allocation_TRM!$E$44/2 -> 84172.06904 | E18: =D18/C18-1 -> 0.4014857909
A19: 5 | B19: Demand Rate Revenues | C19: 76416.35664 | D19: =-Cost_Allocation_TRM!$E$46/2 -> 84775.29246 | E19: =D19/C19-1 -> 0.1093867359
A20: 6 | B20: Tier 1 Revenue Requirement | C20: 2083591.821 | D20: =SUM(D15:D19) -> 2050810.864 | E20: =D20/C20-1 -> -0.01573290732
A21: 7 | B21: Tier 2 Revenue Requirement | C21: 101155.6442 | D21: =(Cost_Allocation_TRM!$H$13+Cost_Allocation_TRM!$I$13)/2 -> 320213.4208
A22: 8 | B22: Value of Slice Surplus | C22: -118305.4245 | D22: =-(Secondary!D27+Secondary!E27)/2 -> -141246.4074 | E22: =-(D22/C22-1) -> -0.1939131951
A23: 9 | B23: Value of CHWM RECs (credit)
A24: 10 | B24: New Resource Revenues | C24: -0.9026866336 | D24: =-'NR Allocation'!$D$56/2 -> -1.044030655
A25: 11 | B25: Net Power Cost to All PF | C25: 2066441.138 | D25: =SUM(D20:D24) -> 2229776.834 | E25: =D25/C25-1 -> 0.07904202657
A26: 12 | B26: Surcharges | C26: 0 | D26: =ScenarioResults!I39 -> 0
A27: 13 | B27: Annual PF Load (w/firm Slice) (GWh) | C27: 59352.52 | D27: =('PF Public'!$D$77+'PF Public'!$E$77)/2 -> 64630.62102 | E27: =D27/C27-1 -> 0.08892800199
A28: 14 | B28: PF Average Net Cost ($/MWh) | C28: 34.81640102 | D28: =+(D25+D26)/D27 -> 34.50031577 | E28: =D28/C28-1 -> -0.009078630912
A30: =A28+1 -> 15 | B30: Tier 1 Average Net Cost without FRP ($/MWh) | C30: 34.76 | D30: =ScenarioResults!D48 -> 31.64 | E30: =D30/C30-1 -> -0.08975834292
A31: =+A30+1 -> 16 | B31: Tier 1 Average Net Cost max FRP ($/MWh) | C31: 34.76 | D31: =ScenarioResults!D49 -> 31.64 | E31: -0.08975834292
A32: 17 | B32: Tier 2 ($/MWh) | C32: 34.82306232 | D32: =+'Cost Contribution'!F31 -> 74.95873118 | E32: =D32/C32-1 -> 1.152560004
I34: Power Rates ($/MWh) | J34: BP-18 | K34: BP-20 | L34: Change
B35: Slice Sales | C35: Ph.1 FY29-30 | D35: Ph.2 FY29-31 | E35: Change | I35: Tier 1 Average Net Cost of Power | J35: =C30 -> 34.76 | K35: =D30 -> 31.64 | L35: =E30 -> -0.08975834292
A36: =+A32+1 -> 18 | B36: Composite+Slice | C36: 543488.5191 | D36: =(Cost_Allocation_TRM!C68*Cost_Allocation_TRM!E71+Cost_Allocation_TRM!D68*Cost_Allocation_TRM!E71+Cost_Allocation_TRM!C68*Cost_Allocation_TRM!E73+Cost_Allocation_TRM!D68*Cost_Allocation_TRM!E73)/2 -> 491092.5068 | I36: Average Non-Slice Rate | J36: =C50 -> 35.62256306 | K36: =D50 -> 32.3802149 | L36: =E50 -> -0.09101950794
A37: 19 | B37: Surcharges | I37: Average Slice Rate | J37: =C38 -> 40.84075932 | K37: =D38 -> 40.32305493 | L37: =E38 -> -0.01267616969
A38: 20 | B38: Tier 1 Average Cost ($/MWh) | C38: 40.84075932 | D38: =D36/((Loads!E8+Loads!F8)/1000/2) -> 40.32305493 | E38: =D38/C38-1 -> -0.01267616969 | I38: Average Tier 2 Rate | J38: =C32 -> 34.82306232 | K38: =D32 -> 74.95873118 | L38: =E32 -> 1.152560004
A39: 21 | B39: Value of Slice Surplus+Credits | C39: -118305.6373 | D39: =D22+((D23+D24)*(Cost_Allocation_TRM!E68/Cost_Allocation_TRM!E66)) -> -141246.6185
A40: 22 | B40: Net Cost of Slice Power | C40: 425182.8818 | D40: =D36+D39 -> 349845.8883 | I40: IP Rate | J40: 43.51 | K40: 41.75 | L40: =K40/J40-1 -> -0.04045047116
A41: 23 | B41: Tier 1 Average Net Cost ($/MWh) | C41: 31.95061374 | D41: =D40/((Cost_Allocation_TRM!H36+Cost_Allocation_TRM!I36)/2/1000) -> 28.7254535 | E41: =D41/C41-1 -> -0.1009420433
B44: Non-Slice Sales | C44: Ph.1 FY29-30 | D44: Ph.2 FY29-31 | E44: Change
A45: =+A41+1 -> 24 | B45: Composite+NonSlice+Shape+Demand | C45: 1539989.522 | D45: ='LSTUR&PFT1Eqv_RateOutput'!D52/2 -> 1559635.127
A46: 25 | B46: Tier 1 Average Cost ($/MWh) | C46: 35.62257902 | D46: =D45/(('LSTUR&PFT1Eqv_RateOutput'!E54)/2) -> 32.38023219 | E46: =D46/C46-1 -> -0.09101942974
A47: 26 | B47: Credits | C47: -0.6899072611 | D47: =(D23+D24)*(Cost_Allocation_TRM!E67/Cost_Allocation_TRM!E66) -> -0.8328875188
A48: 27 | B48: Net Cost of Non-Slice Power | C48: 1539988.832 | D48: =D45+D47 -> 1559634.294
A49: 28 | B49: Surcharges | C49: 0 | D49: =+ScenarioResults!K39 -> 0
A50: 29 | B50: Tier 1 Average Net Cost without FRP ($/MWh) | C50: 35.62256306 | D50: =(D48)/(('LSTUR&PFT1Eqv_RateOutput'!E54)/2) -> 32.3802149 | E50: =D50/C50-1 -> -0.09101950794
A51: 30 | B51: Tier 1 Average Net Cost max FRP ($/MWh) | C51: 35.62256306 | D51: =(D48+D49)/(('LSTUR&PFT1Eqv_RateOutput'!E54)/2) -> 32.3802149 | E51: =D51/C51-1 -> -0.09101950794
B54: Tiered PF Rate Components | C54: Ph.1 FY29-30 | D54: Ph.2 FY29-31 | E54: Change
A55: =+A51+1 -> 31 | B55: Composite Rate ($/ pct/month) | C55: 2026736.479 | D55: =+Cost_Allocation_TRM!E76 -> 2073095.424 | E55: =D55/C55-1 -> 0.02287369179
A56: 32 | B56: Non-Slice Rate ($/ pct/month) | C56: -412386.5736 | D56: =+Cost_Allocation_TRM!E77 -> -584755.1822 | E56: =D56/C56-1 -> 0.4179782263
A58: =+A56+1 -> 33 | B58: NonSlice Load | C58: 43230.7139 | D58: =AVERAGE(NonSliceLossAdjust!C5:D5)/1000 -> 48166.27372
A59: 34 | B59: Slice Load | C59: 13307.5028 | D59: =AVERAGE(Cost_Allocation_TRM!H36:I36)/1000 -> 12178.95092
A60: 35 | B60: PF load w/slice | C60: 59352.52 | D60: =D27 -> 64630.62102

Sheet LoadScenarioInput
A1: TOC | B1: Load Scenario Input (MWh)
A2: é | B2: =Cover!$C$14 -> FY 2029-30 Base Case Phase 2 | L2: =L11 -> 2028-10-01 | M2: 2028-11-01 | N2: 2028-12-01 | O2: 2029-01-01 | P2: 2029-02-01 | Q2: 2029-03-01 | R2: 2029-04-01 | S2: 2029-05-01 | T2: 2029-06-01 | U2: 2029-07-01 | V2: 2029-08-01 | W2: 2029-09-01 | X2: 2029-10-01 | Y2: 2029-11-01 | Z2: 2029-12-01 | AA2: 2030-01-01 | AB2: 2030-02-01 | AC2: 2030-03-01 | AD2: 2030-04-01 | AE2: 2030-05-01 | AF2: 2030-06-01 | AG2: 2030-07-01 | AH2: 2030-08-01 | AI2: 2030-09-01 | AJ2: 2030-10-01 | AK2: 2030-11-01 | AL2: 2030-12-01 | AM2: 2031-01-01 | AN2: 2031-02-01 | AO2: 2031-03-01 | AP2: 2031-04-01 | AQ2: 2031-05-01 | AR2: =AR11 -> 2031-06-01 | AS2: 2031-07-01 | AT2: 2031-08-01 | AU2: 2031-09-01 | AV2: 2031-10-01 | AW2: 2031-11-01 | AX2: 2031-12-01 | AY2: 2032-01-01 | AZ2: 2032-02-01 | BA2: 2032-03-01 | BB2: 2032-04-01 | BC2: 2032-05-01 | BD2: 2032-06-01 | BE2: 2032-07-01 | BF2: 2032-08-01 | BG2: 2032-09-01 | BH2: 2032-10-01 | BI2: 2032-11-01 | BJ2: 2032-12-01 | BK2: 2033-01-01 | BL2: 2033-02-01 | BM2: 2033-03-01 | BN2: 2033-04-01 | BO2: 2033-05-01 | BP2: 2033-06-01 | BQ2: 2033-07-01 | BR2: 2033-08-01 | BS2: 2033-09-01 | BT2: 2033-10-01 | BU2: 2033-11-01 | BV2: 2033-12-01 | BW2: 2034-01-01 | BX2: =BX11 -> 2034-02-01 | BY2: 2034-03-01 | BZ2: 2034-04-01 | CA2: 2034-05-01 | CB2: 2034-06-01 | CC2: 2034-07-01 | CD2: 2034-08-01 | CE2: 2034-09-01 | CG2: 2028-10-01 | CH2: 2028-11-01 | CI2: 2028-12-01 | CJ2: 2029-01-01 | CK2: 2029-02-01 | CL2: 2029-03-01 | CM2: 2029-04-01 | CN2: 2029-05-01 | CO2: 2029-06-01 | CP2: 2029-07-01 | CQ2: 2029-08-01 | CR2: 2029-09-01 | CS2: 2029-10-01 | CT2: 2029-11-01 | CU2: 2029-12-01 | CV2: 2030-01-01 | CW2: 2030-02-01 | CX2: 2030-03-01 | CY2: 2030-04-01 | CZ2: 2030-05-01 | DA2: 2030-06-01 | DB2: 2030-07-01 | DC2: 2030-08-01 | DD2: =DD11 -> 2030-09-01 | DE2: 2030-10-01 | DF2: 2030-11-01 | DG2: 2030-12-01 | DH2: 2031-01-01 | DI2: 2031-02-01 | DJ2: 2031-03-01 | DK2: 2031-04-01 | DL2: 2031-05-01 | DM2: 2031-06-01 | DN2: 2031-07-01 | DO2: 2031-08-01 | DP2: 2031-09-01 | DQ2: 2031-10-01 | DR2: 2031-11-01 | DS2: 2031-12-01 | DT2: 2032-01-01 | DU2: 2032-02-01 | DV2: 2032-03-01 | DW2: 2032-04-01 | DX2: 2032-05-01 | DY2: 2032-06-01 | DZ2: 2032-07-01 | EA2: 2032-08-01 | EB2: 2032-09-01 | EC2: 2032-10-01 | ED2: 2032-11-01 | EE2: 2032-12-01 | EF2: 2033-01-01 | EG2: 2033-02-01 | EH2: 2033-03-01 | EI2: 2033-04-01 | EJ2: =EJ11 -> 2033-05-01 | EK2: 2033-06-01 | EL2: 2033-07-01 | EM2: 2033-08-01 | EN2: 2033-09-01 | EO2: 2033-10-01 | EP2: 2033-11-01 | EQ2: 2033-12-01 | ER2: 2034-01-01 | ES2: 2034-02-01 | ET2: 2034-03-01 | EU2: 2034-04-01 | EV2: 2034-05-01 | EW2: 2034-06-01 | EX2: 2034-07-01 | EY2: 2034-08-01 | EZ2: 2034-09-01
H3: Scenario Input | K3: Block Base Case | L3: 242484.1996 | M3: 388037.6836 | N3: 399200.89 | O3: 439869.8029 | P3: 374366.032 | Q3: 392547.2817 | R3: 185838.5466 | S3: 68153.7636 | T3: 9143.947296 | U3: 155655.0178 | V3: 176295.2423 | W3: 280860.0855 | X3: 242651.8871 | Y3: 388042.8649 | Z3: 399206.2195 | AA3: 439875.8371 | AB3: 374371.1934 | AC3: 391781.8752 | AD3: 185890.9156 | AE3: 68154.6834 | AF3: 9144.147024 | AG3: 155841.0883 | AH3: 176297.5589 | AI3: 280863.735 | AJ3: 242651.8871 | AK3: 388042.8649 | AL3: 399206.2195 | AM3: 439875.8371 | AN3: 374371.1934 | AO3: 391781.8752 | AP3: 185890.9156 | AQ3: 68154.6834 | AR3: 9144.147024 | AS3: 155841.0883 | AT3: 176108.7605 | AU3: 281253.9182 | AV3: 242855.8891 | AW3: 387624.073 | AX3: 400195.8015 | AY3: 440245.4442 | AZ3: 373939.9543 | BA3: 392882.4957 | BB3: 186047.2057 | BC3: 68211.94118 | BD3: 9151.775539 | BE3: 155972.0266 | BF3: 176256.7862 | BG3: 281490.3488 | BH3: 242028.0689 | BI3: 387307.8878 | BJ3: 399102.3704 | BK3: 438124.5548 | BL3: 373662.0171 | BM3: 391809.0463 | BN3: 185538.88 | BO3: 68025.56976 | BP3: 9126.770688 | BQ3: 155362.2669 | BR3: 175963.6486 | BS3: 280721.2495 | BT3: 241631.2106 | BU3: 386672.8505 | BV3: 398447.978 | BW3: 437406.1882 | BX3: 373049.3514 | BY3: 391166.625 | BZ3: 185184.793 | CA3: 67914.01116 | CB3: 9111.791088 | CC3: 155107.508 | CD3: 175675.1196 | CE3: 280260.964 | CG3: 162177.3253 | CH3: 261219.2648 | CI3: 269292.5453 | CJ3: 296159.0802 | CK3: 251378.1303 | CL3: 262806.1011 | CM3: 124059.1029 | CN3: 45435.8424 | CO3: 6095.964864 | CP3: 104659.1045 | CQ3: 117813.3481 | CR3: 189190.8973 | CS3: 162014.8149 | CT3: 261222.8173 | CU3: 269296.2212 | CV3: 296163.2163 | CW3: 251381.6413 | CX3: 263580.4603 | CY3: 124010.6496 | CZ3: 45436.4556 | DA3: 6096.098016 | DB3: 104476.5905 | DC3: 117814.9034 | DD3: 189193.4062 | DE3: 162014.8149 | DF3: 261222.8173 | DG3: 269296.2212 | DH3: 296163.2163 | DI3: 251381.6413 | DJ3: 263580.4603 | DK3: 124010.6496 | DL3: 45436.4556 | DM3: 6096.098016 | DN3: 104476.5905 | DO3: 118003.7018 | DP3: 188803.223 | DQ3: 162151.0206 | DR3: 262187.2686 | DS3: 268868.4342 | DT3: 296412.0317 | DU3: 252338.6296 | DV3: 263030.5373 | DW3: 124114.912 | DX3: 45474.62746 | DY3: 6101.183693 | DZ3: 104564.3648 | EA3: 118102.8804 | EB3: 188961.9198 | EC3: 161872.2646 | ED3: 260728.0129 | EE3: 268133.821 | EF3: 296520.1957 | EG3: 250905.4232 | EH3: 262311.8746 | EI3: 123775.8002 | EJ3: 45350.37984 | EK3: 6084.513792 | EL3: 104462.2764 | EM3: 117591.7566 | EN3: 188445.6304 | EO3: 161606.8405 | EP3: 260300.5236 | EQ3: 267694.177 | ER3: 296034.0185 | ES3: 250494.0361 | ET3: 261881.7828 | EU3: 123622.6832 | EV3: 45276.00744 | EW3: 6074.527392 | EX3: 104290.984 | EY3: 117398.9411 | EZ3: 188136.6477
F4: Base Case | G4: =IF(SUM($G$5:$G$7)=1,0,1) -> 1 | K4: =F5 -> Increase Loads (1,000aMW) | L4: =($G$5*$H$5*(VLOOKUP($E$11,Init!$N:$P,3,FALSE)))/24 -> 0 | M4: =($G$5*$H$5*(VLOOKUP($E$11,Init!$N:$P,3,FALSE)))/24 -> 0 | N4: =($G$5*$H$5*(VLOOKUP($E$11,Init!$N:$P,3,FALSE)))/24 -> 0 | O4: =($G$5*$H$5*(VLOOKUP($E$11,Init!$N:$P,3,FALSE)))/24 -> 0 | P4: =($G$5*$H$5*(VLOOKUP($E$11,Init!$N:$P,3,FALSE)))/24 -> 0 | Q4: =($G$5*$H$5*(VLOOKUP($E$11,Init!$N:$P,3,FALSE)))/24 -> 0 | R4: =($G$5*$H$5*(VLOOKUP($E$11,Init!$N:$P,3,FALSE)))/24 -> 0 | S4: =($G$5*$H$5*(VLOOKUP($E$11,Init!$N:$P,3,FALSE)))/24 -> 0 | T4: =($G$5*$H$5*(VLOOKUP($E$11,Init!$N:$P,3,FALSE)))/24 -> 0 | U4: =($G$5*$H$5*(VLOOKUP($E$11,Init!$N:$P,3,FALSE)))/24 -> 0 | V4: =($G$5*$H$5*(VLOOKUP($E$11,Init!$N:$P,3,FALSE)))/24 -> 0 | W4: =($G$5*$H$5*(VLOOKUP($E$11,Init!$N:$P,3,FALSE)))/24 -> 0 | X4: =($G$5*$H$5*(VLOOKUP($F$11,Init!$N:$P,3,FALSE)))/24 -> 0 | Y4: =($G$5*$H$5*(VLOOKUP($F$11,Init!$N:$P,3,FALSE)))/24 -> 0 | Z4: =($G$5*$H$5*(VLOOKUP($F$11,Init!$N:$P,3,FALSE)))/24 -> 0 | AA4: =($G$5*$H$5*(VLOOKUP($F$11,Init!$N:$P,3,FALSE)))/24 -> 0 | AB4: =($G$5*$H$5*(VLOOKUP($F$11,Init!$N:$P,3,FALSE)))/24 -> 0 | AC4: =($G$5*$H$5*(VLOOKUP($F$11,Init!$N:$P,3,FALSE)))/24 -> 0 | AD4: =($G$5*$H$5*(VLOOKUP($F$11,Init!$N:$P,3,FALSE)))/24 -> 0 | AE4: =($G$5*$H$5*(VLOOKUP($F$11,Init!$N:$P,3,FALSE)))/24 -> 0 | AF4: =($G$5*$H$5*(VLOOKUP($F$11,Init!$N:$P,3,FALSE)))/24 -> 0 | AG4: =($G$5*$H$5*(VLOOKUP($F$11,Init!$N:$P,3,FALSE)))/24 -> 0 | AH4: =($G$5*$H$5*(VLOOKUP($F$11,Init!$N:$P,3,FALSE)))/24 -> 0 | AI4: =($G$5*$H$5*(VLOOKUP($F$11,Init!$N:$P,3,FALSE)))/24 -> 0 | AJ4: =($G$5*$H$5*(VLOOKUP($G$11,Init!$N:$P,3,FALSE)))/24 -> 0 | AK4: =($G$5*$H$5*(VLOOKUP($G$11,Init!$N:$P,3,FALSE)))/24 -> 0 | AL4: =($G$5*$H$5*(VLOOKUP($G$11,Init!$N:$P,3,FALSE)))/24 -> 0 | AM4: =($G$5*$H$5*(VLOOKUP($G$11,Init!$N:$P,3,FALSE)))/24 -> 0 | AN4: =($G$5*$H$5*(VLOOKUP($G$11,Init!$N:$P,3,FALSE)))/24 -> 0 | AO4: =($G$5*$H$5*(VLOOKUP($G$11,Init!$N:$P,3,FALSE)))/24 -> 0 | AP4: =($G$5*$H$5*(VLOOKUP($G$11,Init!$N:$P,3,FALSE)))/24 -> 0 | AQ4: =($G$5*$H$5*(VLOOKUP($G$11,Init!$N:$P,3,FALSE)))/24 -> 0 | AR4: =($G$5*$H$5*(VLOOKUP($G$11,Init!$N:$P,3,FALSE)))/24 -> 0 | AS4: =($G$5*$H$5*(VLOOKUP($G$11,Init!$N:$P,3,FALSE)))/24 -> 0 | AT4: =($G$5*$H$5*(VLOOKUP($G$11,Init!$N:$P,3,FALSE)))/24 -> 0 | AU4: =($G$5*$H$5*(VLOOKUP($G$11,Init!$N:$P,3,FALSE)))/24 -> 0 | AV4: =($G$5*$H$5*(VLOOKUP($H$11,Init!$N:$P,3,FALSE)))/24 -> 0 | AW4: =($G$5*$H$5*(VLOOKUP($H$11,Init!$N:$P,3,FALSE)))/24 -> 0 | AX4: =($G$5*$H$5*(VLOOKUP($H$11,Init!$N:$P,3,FALSE)))/24 -> 0 | AY4: =($G$5*$H$5*(VLOOKUP($H$11,Init!$N:$P,3,FALSE)))/24 -> 0 | AZ4: =($G$5*$H$5*(VLOOKUP($H$11,Init!$N:$P,3,FALSE)))/24 -> 0 | BA4: =($G$5*$H$5*(VLOOKUP($H$11,Init!$N:$P,3,FALSE)))/24 -> 0 | BB4: =($G$5*$H$5*(VLOOKUP($H$11,Init!$N:$P,3,FALSE)))/24 -> 0 | BC4: =($G$5*$H$5*(VLOOKUP($H$11,Init!$N:$P,3,FALSE)))/24 -> 0 | BD4: =($G$5*$H$5*(VLOOKUP($H$11,Init!$N:$P,3,FALSE)))/24 -> 0 | BE4: =($G$5*$H$5*(VLOOKUP($H$11,Init!$N:$P,3,FALSE)))/24 -> 0 | BF4: =($G$5*$H$5*(VLOOKUP($H$11,Init!$N:$P,3,FALSE)))/24 -> 0 | BG4: =($G$5*$H$5*(VLOOKUP($H$11,Init!$N:$P,3,FALSE)))/24 -> 0 | BH4: =($G$5*$H$5*(VLOOKUP($I$11,Init!$N:$P,3,FALSE)))/24 -> 0 | BI4: =($G$5*$H$5*(VLOOKUP($I$11,Init!$N:$P,3,FALSE)))/24 -> 0 | BJ4: =($G$5*$H$5*(VLOOKUP($I$11,Init!$N:$P,3,FALSE)))/24 -> 0 | BK4: =($G$5*$H$5*(VLOOKUP($I$11,Init!$N:$P,3,FALSE)))/24 -> 0 | BL4: =($G$5*$H$5*(VLOOKUP($I$11,Init!$N:$P,3,FALSE)))/24 -> 0 | BM4: =($G$5*$H$5*(VLOOKUP($I$11,Init!$N:$P,3,FALSE)))/24 -> 0 | BN4: =($G$5*$H$5*(VLOOKUP($I$11,Init!$N:$P,3,FALSE)))/24 -> 0 | BO4: =($G$5*$H$5*(VLOOKUP($I$11,Init!$N:$P,3,FALSE)))/24 -> 0 | BP4: =($G$5*$H$5*(VLOOKUP($I$11,Init!$N:$P,3,FALSE)))/24 -> 0 | BQ4: =($G$5*$H$5*(VLOOKUP($I$11,Init!$N:$P,3,FALSE)))/24 -> 0 | BR4: =($G$5*$H$5*(VLOOKUP($I$11,Init!$N:$P,3,FALSE)))/24 -> 0 | BS4: =($G$5*$H$5*(VLOOKUP($I$11,Init!$N:$P,3,FALSE)))/24 -> 0 | BT4: =($G$5*$H$5*(VLOOKUP($J$11,Init!$N:$P,3,FALSE)))/24 -> 0 | BU4: =($G$5*$H$5*(VLOOKUP($J$11,Init!$N:$P,3,FALSE)))/24 -> 0 | BV4: =($G$5*$H$5*(VLOOKUP($J$11,Init!$N:$P,3,FALSE)))/24 -> 0 | BW4: =($G$5*$H$5*(VLOOKUP($J$11,Init!$N:$P,3,FALSE)))/24 -> 0 | BX4: =($G$5*$H$5*(VLOOKUP($J$11,Init!$N:$P,3,FALSE)))/24 -> 0 | BY4: =($G$5*$H$5*(VLOOKUP($J$11,Init!$N:$P,3,FALSE)))/24 -> 0 | BZ4: =($G$5*$H$5*(VLOOKUP($J$11,Init!$N:$P,3,FALSE)))/24 -> 0 | CA4: =($G$5*$H$5*(VLOOKUP($J$11,Init!$N:$P,3,FALSE)))/24 -> 0 | CB4: =($G$5*$H$5*(VLOOKUP($J$11,Init!$N:$P,3,FALSE)))/24 -> 0 | CC4: =($G$5*$H$5*(VLOOKUP($J$11,Init!$N:$P,3,FALSE)))/24 -> 0 | CD4: =($G$5*$H$5*(VLOOKUP($J$11,Init!$N:$P,3,FALSE)))/24 -> 0 | CE4: =($G$5*$H$5*(VLOOKUP($J$11,Init!$N:$P,3,FALSE)))/24 -> 0 | CG4: =($G$5*$H$5*(VLOOKUP($E$11,Init!$N:$P,3,FALSE)))/24 -> 0 | CH4: =($G$5*$H$5*(VLOOKUP($E$11,Init!$N:$P,3,FALSE)))/24 -> 0 | CI4: =($G$5*$H$5*(VLOOKUP($E$11,Init!$N:$P,3,FALSE)))/24 -> 0 | CJ4: =($G$5*$H$5*(VLOOKUP($E$11,Init!$N:$P,3,FALSE)))/24 -> 0 | CK4: =($G$5*$H$5*(VLOOKUP($E$11,Init!$N:$P,3,FALSE)))/24 -> 0 | CL4: =($G$5*$H$5*(VLOOKUP($E$11,Init!$N:$P,3,FALSE)))/24 -> 0 | CM4: =($G$5*$H$5*(VLOOKUP($E$11,Init!$N:$P,3,FALSE)))/24 -> 0 | CN4: =($G$5*$H$5*(VLOOKUP($E$11,Init!$N:$P,3,FALSE)))/24 -> 0 | CO4: =($G$5*$H$5*(VLOOKUP($E$11,Init!$N:$P,3,FALSE)))/24 -> 0 | CP4: =($G$5*$H$5*(VLOOKUP($E$11,Init!$N:$P,3,FALSE)))/24 -> 0 | CQ4: =($G$5*$H$5*(VLOOKUP($E$11,Init!$N:$P,3,FALSE)))/24 -> 0 | CR4: =($G$5*$H$5*(VLOOKUP($E$11,Init!$N:$P,3,FALSE)))/24 -> 0 | CS4: =($G$5*$H$5*(VLOOKUP($F$11,Init!$N:$P,3,FALSE)))/24 -> 0 | CT4: =($G$5*$H$5*(VLOOKUP($F$11,Init!$N:$P,3,FALSE)))/24 -> 0 | CU4: =($G$5*$H$5*(VLOOKUP($F$11,Init!$N:$P,3,FALSE)))/24 -> 0 | CV4: =($G$5*$H$5*(VLOOKUP($F$11,Init!$N:$P,3,FALSE)))/24 -> 0 | CW4: =($G$5*$H$5*(VLOOKUP($F$11,Init!$N:$P,3,FALSE)))/24 -> 0 | CX4: =($G$5*$H$5*(VLOOKUP($F$11,Init!$N:$P,3,FALSE)))/24 -> 0 | CY4: =($G$5*$H$5*(VLOOKUP($F$11,Init!$N:$P,3,FALSE)))/24 -> 0 | CZ4: =($G$5*$H$5*(VLOOKUP($F$11,Init!$N:$P,3,FALSE)))/24 -> 0 | DA4: =($G$5*$H$5*(VLOOKUP($F$11,Init!$N:$P,3,FALSE)))/24 -> 0 | DB4: =($G$5*$H$5*(VLOOKUP($F$11,Init!$N:$P,3,FALSE)))/24 -> 0 | DC4: =($G$5*$H$5*(VLOOKUP($F$11,Init!$N:$P,3,FALSE)))/24 -> 0 | DD4: =($G$5*$H$5*(VLOOKUP($F$11,Init!$N:$P,3,FALSE)))/24 -> 0 | DE4: =($G$5*$H$5*(VLOOKUP($G$11,Init!$N:$P,3,FALSE)))/24 -> 0 | DF4: =($G$5*$H$5*(VLOOKUP($G$11,Init!$N:$P,3,FALSE)))/24 -> 0 | DG4: =($G$5*$H$5*(VLOOKUP($G$11,Init!$N:$P,3,FALSE)))/24 -> 0 | DH4: =($G$5*$H$5*(VLOOKUP($G$11,Init!$N:$P,3,FALSE)))/24 -> 0 | DI4: =($G$5*$H$5*(VLOOKUP($G$11,Init!$N:$P,3,FALSE)))/24 -> 0 | DJ4: =($G$5*$H$5*(VLOOKUP($G$11,Init!$N:$P,3,FALSE)))/24 -> 0 | DK4: =($G$5*$H$5*(VLOOKUP($G$11,Init!$N:$P,3,FALSE)))/24 -> 0 | DL4: =($G$5*$H$5*(VLOOKUP($G$11,Init!$N:$P,3,FALSE)))/24 -> 0 | DM4: =($G$5*$H$5*(VLOOKUP($G$11,Init!$N:$P,3,FALSE)))/24 -> 0 | DN4: =($G$5*$H$5*(VLOOKUP($G$11,Init!$N:$P,3,FALSE)))/24 -> 0 | DO4: =($G$5*$H$5*(VLOOKUP($G$11,Init!$N:$P,3,FALSE)))/24 -> 0 | DP4: =($G$5*$H$5*(VLOOKUP($G$11,Init!$N:$P,3,FALSE)))/24 -> 0 | DQ4: =($G$5*$H$5*(VLOOKUP($H$11,Init!$N:$P,3,FALSE)))/24 -> 0 | DR4: =($G$5*$H$5*(VLOOKUP($H$11,Init!$N:$P,3,FALSE)))/24 -> 0 | DS4: =($G$5*$H$5*(VLOOKUP($H$11,Init!$N:$P,3,FALSE)))/24 -> 0 | DT4: =($G$5*$H$5*(VLOOKUP($H$11,Init!$N:$P,3,FALSE)))/24 -> 0 | DU4: =($G$5*$H$5*(VLOOKUP($H$11,Init!$N:$P,3,FALSE)))/24 -> 0 | DV4: =($G$5*$H$5*(VLOOKUP($H$11,Init!$N:$P,3,FALSE)))/24 -> 0 | DW4: =($G$5*$H$5*(VLOOKUP($H$11,Init!$N:$P,3,FALSE)))/24 -> 0 | DX4: =($G$5*$H$5*(VLOOKUP($H$11,Init!$N:$P,3,FALSE)))/24 -> 0 | DY4: =($G$5*$H$5*(VLOOKUP($H$11,Init!$N:$P,3,FALSE)))/24 -> 0 | DZ4: =($G$5*$H$5*(VLOOKUP($H$11,Init!$N:$P,3,FALSE)))/24 -> 0 | EA4: =($G$5*$H$5*(VLOOKUP($H$11,Init!$N:$P,3,FALSE)))/24 -> 0 | EB4: =($G$5*$H$5*(VLOOKUP($H$11,Init!$N:$P,3,FALSE)))/24 -> 0 | EC4: =($G$5*$H$5*(VLOOKUP($I$11,Init!$N:$P,3,FALSE)))/24 -> 0 | ED4: =($G$5*$H$5*(VLOOKUP($I$11,Init!$N:$P,3,FALSE)))/24 -> 0 | EE4: =($G$5*$H$5*(VLOOKUP($I$11,Init!$N:$P,3,FALSE)))/24 -> 0 | EF4: =($G$5*$H$5*(VLOOKUP($I$11,Init!$N:$P,3,FALSE)))/24 -> 0 | EG4: =($G$5*$H$5*(VLOOKUP($I$11,Init!$N:$P,3,FALSE)))/24 -> 0 | EH4: =($G$5*$H$5*(VLOOKUP($I$11,Init!$N:$P,3,FALSE)))/24 -> 0 | EI4: =($G$5*$H$5*(VLOOKUP($I$11,Init!$N:$P,3,FALSE)))/24 -> 0 | EJ4: =($G$5*$H$5*(VLOOKUP($I$11,Init!$N:$P,3,FALSE)))/24 -> 0 | EK4: =($G$5*$H$5*(VLOOKUP($I$11,Init!$N:$P,3,FALSE)))/24 -> 0 | EL4: =($G$5*$H$5*(VLOOKUP($I$11,Init!$N:$P,3,FALSE)))/24 -> 0 | EM4: =($G$5*$H$5*(VLOOKUP($I$11,Init!$N:$P,3,FALSE)))/24 -> 0 | EN4: =($G$5*$H$5*(VLOOKUP($I$11,Init!$N:$P,3,FALSE)))/24 -> 0 | EO4: =($G$5*$H$5*(VLOOKUP($J$11,Init!$N:$P,3,FALSE)))/24 -> 0 | EP4: =($G$5*$H$5*(VLOOKUP($J$11,Init!$N:$P,3,FALSE)))/24 -> 0 | EQ4: =($G$5*$H$5*(VLOOKUP($J$11,Init!$N:$P,3,FALSE)))/24 -> 0 | ER4: =($G$5*$H$5*(VLOOKUP($J$11,Init!$N:$P,3,FALSE)))/24 -> 0 | ES4: =($G$5*$H$5*(VLOOKUP($J$11,Init!$N:$P,3,FALSE)))/24 -> 0 | ET4: =($G$5*$H$5*(VLOOKUP($J$11,Init!$N:$P,3,FALSE)))/24 -> 0 | EU4: =($G$5*$H$5*(VLOOKUP($J$11,Init!$N:$P,3,FALSE)))/24 -> 0 | EV4: =($G$5*$H$5*(VLOOKUP($J$11,Init!$N:$P,3,FALSE)))/24 -> 0 | EW4: =($G$5*$H$5*(VLOOKUP($J$11,Init!$N:$P,3,FALSE)))/24 -> 0 | EX4: =($G$5*$H$5*(VLOOKUP($J$11,Init!$N:$P,3,FALSE)))/24 -> 0 | EY4: =($G$5*$H$5*(VLOOKUP($J$11,Init!$N:$P,3,FALSE)))/24 -> 0 | EZ4: =($G$5*$H$5*(VLOOKUP($J$11,Init!$N:$P,3,FALSE)))/24 -> 0
F5: Increase Loads (1,000aMW) | G5: =IF(Scenario!$A$28=1,1,0) -> 0 | H5: =Scenario!$F$28 -> 1000 | I5: =H5*8760 -> 8760000 | K5: =F6 -> Decrease Loads (1,000aMW) | L5: =($G$6*($H$6*(VLOOKUP($E$11,Init!$N:$P,3,FALSE))))/24 -> 0 | M5: =($G$6*$H$6*(VLOOKUP($E$11,Init!$N:$P,3,FALSE)))/24 -> 0 | N5: =($G$6*$H$6*(VLOOKUP($E$11,Init!$N:$P,3,FALSE)))/24 -> 0 | O5: =($G$6*$H$6*(VLOOKUP($E$11,Init!$N:$P,3,FALSE)))/24 -> 0 | P5: =($G$6*$H$6*(VLOOKUP($E$11,Init!$N:$P,3,FALSE)))/24 -> 0 | Q5: =($G$6*$H$6*(VLOOKUP($E$11,Init!$N:$P,3,FALSE)))/24 -> 0 | R5: =($G$6*$H$6*(VLOOKUP($E$11,Init!$N:$P,3,FALSE)))/24 -> 0 | S5: =($G$6*$H$6*(VLOOKUP($E$11,Init!$N:$P,3,FALSE)))/24 -> 0 | T5: =($G$6*$H$6*(VLOOKUP($E$11,Init!$N:$P,3,FALSE)))/24 -> 0 | U5: =($G$6*$H$6*(VLOOKUP($E$11,Init!$N:$P,3,FALSE)))/24 -> 0 | V5: =($G$6*$H$6*(VLOOKUP($E$11,Init!$N:$P,3,FALSE)))/24 -> 0 | W5: =($G$6*$H$6*(VLOOKUP($E$11,Init!$N:$P,3,FALSE)))/24 -> 0 | X5: =($G$6*$H$6*(VLOOKUP($F$11,Init!$N:$P,3,FALSE)))/24 -> 0 | Y5: =($G$6*$H$6*(VLOOKUP($F$11,Init!$N:$P,3,FALSE)))/24 -> 0 | Z5: =($G$6*$H$6*(VLOOKUP($F$11,Init!$N:$P,3,FALSE)))/24 -> 0 | AA5: =($G$6*$H$6*(VLOOKUP($F$11,Init!$N:$P,3,FALSE)))/24 -> 0 | AB5: =($G$6*$H$6*(VLOOKUP($F$11,Init!$N:$P,3,FALSE)))/24 -> 0 | AC5: =($G$6*$H$6*(VLOOKUP($F$11,Init!$N:$P,3,FALSE)))/24 -> 0 | AD5: =($G$6*$H$6*(VLOOKUP($F$11,Init!$N:$P,3,FALSE)))/24 -> 0 | AE5: =($G$6*$H$6*(VLOOKUP($F$11,Init!$N:$P,3,FALSE)))/24 -> 0 | AF5: =($G$6*$H$6*(VLOOKUP($F$11,Init!$N:$P,3,FALSE)))/24 -> 0 | AG5: =($G$6*$H$6*(VLOOKUP($F$11,Init!$N:$P,3,FALSE)))/24 -> 0 | AH5: =($G$6*$H$6*(VLOOKUP($F$11,Init!$N:$P,3,FALSE)))/24 -> 0 | AI5: =($G$6*$H$6*(VLOOKUP($F$11,Init!$N:$P,3,FALSE)))/24 -> 0 | AJ5: =($G$6*$H$6*(VLOOKUP($G$11,Init!$N:$P,3,FALSE)))/24 -> 0 | AK5: =($G$6*$H$6*(VLOOKUP($G$11,Init!$N:$P,3,FALSE)))/24 -> 0 | AL5: =($G$6*$H$6*(VLOOKUP($G$11,Init!$N:$P,3,FALSE)))/24 -> 0 | AM5: =($G$6*$H$6*(VLOOKUP($G$11,Init!$N:$P,3,FALSE)))/24 -> 0 | AN5: =($G$6*$H$6*(VLOOKUP($G$11,Init!$N:$P,3,FALSE)))/24 -> 0 | AO5: =($G$6*$H$6*(VLOOKUP($G$11,Init!$N:$P,3,FALSE)))/24 -> 0 | AP5: =($G$6*$H$6*(VLOOKUP($G$11,Init!$N:$P,3,FALSE)))/24 -> 0 | AQ5: =($G$6*$H$6*(VLOOKUP($G$11,Init!$N:$P,3,FALSE)))/24 -> 0 | AR5: =($G$6*$H$6*(VLOOKUP($G$11,Init!$N:$P,3,FALSE)))/24 -> 0 | AS5: =($G$6*$H$6*(VLOOKUP($G$11,Init!$N:$P,3,FALSE)))/24 -> 0 | AT5: =($G$6*$H$6*(VLOOKUP($G$11,Init!$N:$P,3,FALSE)))/24 -> 0 | AU5: =($G$6*$H$6*(VLOOKUP($G$11,Init!$N:$P,3,FALSE)))/24 -> 0 | AV5: =($G$6*$H$6*(VLOOKUP($H$11,Init!$N:$P,3,FALSE)))/24 -> 0 | AW5: =($G$6*$H$6*(VLOOKUP($H$11,Init!$N:$P,3,FALSE)))/24 -> 0 | AX5: =($G$6*$H$6*(VLOOKUP($H$11,Init!$N:$P,3,FALSE)))/24 -> 0 | AY5: =($G$6*$H$6*(VLOOKUP($H$11,Init!$N:$P,3,FALSE)))/24 -> 0 | AZ5: =($G$6*$H$6*(VLOOKUP($H$11,Init!$N:$P,3,FALSE)))/24 -> 0 | BA5: =($G$6*$H$6*(VLOOKUP($H$11,Init!$N:$P,3,FALSE)))/24 -> 0 | BB5: =($G$6*$H$6*(VLOOKUP($H$11,Init!$N:$P,3,FALSE)))/24 -> 0 | BC5: =($G$6*$H$6*(VLOOKUP($H$11,Init!$N:$P,3,FALSE)))/24 -> 0 | BD5: =($G$6*$H$6*(VLOOKUP($H$11,Init!$N:$P,3,FALSE)))/24 -> 0 | BE5: =($G$6*$H$6*(VLOOKUP($H$11,Init!$N:$P,3,FALSE)))/24 -> 0 | BF5: =($G$6*$H$6*(VLOOKUP($H$11,Init!$N:$P,3,FALSE)))/24 -> 0 | BG5: =($G$6*$H$6*(VLOOKUP($H$11,Init!$N:$P,3,FALSE)))/24 -> 0 | BH5: =($G$6*$H$6*(VLOOKUP($I$11,Init!$N:$P,3,FALSE)))/24 -> 0 | BI5: =($G$6*$H$6*(VLOOKUP($I$11,Init!$N:$P,3,FALSE)))/24 -> 0 | BJ5: =($G$6*$H$6*(VLOOKUP($I$11,Init!$N:$P,3,FALSE)))/24 -> 0 | BK5: =($G$6*$H$6*(VLOOKUP($I$11,Init!$N:$P,3,FALSE)))/24 -> 0 | BL5: =($G$6*$H$6*(VLOOKUP($I$11,Init!$N:$P,3,FALSE)))/24 -> 0 | BM5: =($G$6*$H$6*(VLOOKUP($I$11,Init!$N:$P,3,FALSE)))/24 -> 0 | BN5: =($G$6*$H$6*(VLOOKUP($I$11,Init!$N:$P,3,FALSE)))/24 -> 0 | BO5: =($G$6*$H$6*(VLOOKUP($I$11,Init!$N:$P,3,FALSE)))/24 -> 0 | BP5: =($G$6*$H$6*(VLOOKUP($I$11,Init!$N:$P,3,FALSE)))/24 -> 0 | BQ5: =($G$6*$H$6*(VLOOKUP($I$11,Init!$N:$P,3,FALSE)))/24 -> 0 | BR5: =($G$6*$H$6*(VLOOKUP($I$11,Init!$N:$P,3,FALSE)))/24 -> 0 | BS5: =($G$6*$H$6*(VLOOKUP($I$11,Init!$N:$P,3,FALSE)))/24 -> 0 | BT5: =($G$6*$H$6*(VLOOKUP($J$11,Init!$N:$P,3,FALSE)))/24 -> 0 | BU5: =($G$6*$H$6*(VLOOKUP($J$11,Init!$N:$P,3,FALSE)))/24 -> 0 | BV5: =($G$6*$H$6*(VLOOKUP($J$11,Init!$N:$P,3,FALSE)))/24 -> 0 | BW5: =($G$6*$H$6*(VLOOKUP($J$11,Init!$N:$P,3,FALSE)))/24 -> 0 | BX5: =($G$6*$H$6*(VLOOKUP($J$11,Init!$N:$P,3,FALSE)))/24 -> 0 | BY5: =($G$6*$H$6*(VLOOKUP($J$11,Init!$N:$P,3,FALSE)))/24 -> 0 | BZ5: =($G$6*$H$6*(VLOOKUP($J$11,Init!$N:$P,3,FALSE)))/24 -> 0 | CA5: =($G$6*$H$6*(VLOOKUP($J$11,Init!$N:$P,3,FALSE)))/24 -> 0 | CB5: =($G$6*$H$6*(VLOOKUP($J$11,Init!$N:$P,3,FALSE)))/24 -> 0 | CC5: =($G$6*$H$6*(VLOOKUP($J$11,Init!$N:$P,3,FALSE)))/24 -> 0 | CD5: =($G$6*$H$6*(VLOOKUP($J$11,Init!$N:$P,3,FALSE)))/24 -> 0 | CE5: =($G$6*$H$6*(VLOOKUP($J$11,Init!$N:$P,3,FALSE)))/24 -> 0 | CG5: =($G$6*$H$6*(VLOOKUP($E$11,Init!$N:$P,3,FALSE)))/24 -> 0 | CH5: =($G$6*$H$6*(VLOOKUP($E$11,Init!$N:$P,3,FALSE)))/24 -> 0 | CI5: =($G$6*$H$6*(VLOOKUP($E$11,Init!$N:$P,3,FALSE)))/24 -> 0 | CJ5: =($G$6*$H$6*(VLOOKUP($E$11,Init!$N:$P,3,FALSE)))/24 -> 0 | CK5: =($G$6*$H$6*(VLOOKUP($E$11,Init!$N:$P,3,FALSE)))/24 -> 0 | CL5: =($G$6*$H$6*(VLOOKUP($E$11,Init!$N:$P,3,FALSE)))/24 -> 0 | CM5: =($G$6*$H$6*(VLOOKUP($E$11,Init!$N:$P,3,FALSE)))/24 -> 0 | CN5: =($G$6*$H$6*(VLOOKUP($E$11,Init!$N:$P,3,FALSE)))/24 -> 0 | CO5: =($G$6*$H$6*(VLOOKUP($E$11,Init!$N:$P,3,FALSE)))/24 -> 0 | CP5: =($G$6*$H$6*(VLOOKUP($E$11,Init!$N:$P,3,FALSE)))/24 -> 0 | CQ5: =($G$6*$H$6*(VLOOKUP($E$11,Init!$N:$P,3,FALSE)))/24 -> 0 | CR5: =($G$6*$H$6*(VLOOKUP($E$11,Init!$N:$P,3,FALSE)))/24 -> 0 | CS5: =($G$6*$H$6*(VLOOKUP($F$11,Init!$N:$P,3,FALSE)))/24 -> 0 | CT5: =($G$6*$H$6*(VLOOKUP($F$11,Init!$N:$P,3,FALSE)))/24 -> 0 | CU5: =($G$6*$H$6*(VLOOKUP($F$11,Init!$N:$P,3,FALSE)))/24 -> 0 | CV5: =($G$6*$H$6*(VLOOKUP($F$11,Init!$N:$P,3,FALSE)))/24 -> 0 | CW5: =($G$6*$H$6*(VLOOKUP($F$11,Init!$N:$P,3,FALSE)))/24 -> 0 | CX5: =($G$6*$H$6*(VLOOKUP($F$11,Init!$N:$P,3,FALSE)))/24 -> 0 | CY5: =($G$6*$H$6*(VLOOKUP($F$11,Init!$N:$P,3,FALSE)))/24 -> 0 | CZ5: =($G$6*$H$6*(VLOOKUP($F$11,Init!$N:$P,3,FALSE)))/24 -> 0 | DA5: =($G$6*$H$6*(VLOOKUP($F$11,Init!$N:$P,3,FALSE)))/24 -> 0 | DB5: =($G$6*$H$6*(VLOOKUP($F$11,Init!$N:$P,3,FALSE)))/24 -> 0 | DC5: =($G$6*$H$6*(VLOOKUP($F$11,Init!$N:$P,3,FALSE)))/24 -> 0 | DD5: =($G$6*$H$6*(VLOOKUP($F$11,Init!$N:$P,3,FALSE)))/24 -> 0 | DE5: =($G$6*$H$6*(VLOOKUP($G$11,Init!$N:$P,3,FALSE)))/24 -> 0 | DF5: =($G$6*$H$6*(VLOOKUP($G$11,Init!$N:$P,3,FALSE)))/24 -> 0 | DG5: =($G$6*$H$6*(VLOOKUP($G$11,Init!$N:$P,3,FALSE)))/24 -> 0 | DH5: =($G$6*$H$6*(VLOOKUP($G$11,Init!$N:$P,3,FALSE)))/24 -> 0 | DI5: =($G$6*$H$6*(VLOOKUP($G$11,Init!$N:$P,3,FALSE)))/24 -> 0 | DJ5: =($G$6*$H$6*(VLOOKUP($G$11,Init!$N:$P,3,FALSE)))/24 -> 0 | DK5: =($G$6*$H$6*(VLOOKUP($G$11,Init!$N:$P,3,FALSE)))/24 -> 0 | DL5: =($G$6*$H$6*(VLOOKUP($G$11,Init!$N:$P,3,FALSE)))/24 -> 0 | DM5: =($G$6*$H$6*(VLOOKUP($G$11,Init!$N:$P,3,FALSE)))/24 -> 0 | DN5: =($G$6*$H$6*(VLOOKUP($G$11,Init!$N:$P,3,FALSE)))/24 -> 0 | DO5: =($G$6*$H$6*(VLOOKUP($G$11,Init!$N:$P,3,FALSE)))/24 -> 0 | DP5: =($G$6*$H$6*(VLOOKUP($G$11,Init!$N:$P,3,FALSE)))/24 -> 0 | DQ5: =($G$6*$H$6*(VLOOKUP($H$11,Init!$N:$P,3,FALSE)))/24 -> 0 | DR5: =($G$6*$H$6*(VLOOKUP($H$11,Init!$N:$P,3,FALSE)))/24 -> 0 | DS5: =($G$6*$H$6*(VLOOKUP($H$11,Init!$N:$P,3,FALSE)))/24 -> 0 | DT5: =($G$6*$H$6*(VLOOKUP($H$11,Init!$N:$P,3,FALSE)))/24 -> 0 | DU5: =($G$6*$H$6*(VLOOKUP($H$11,Init!$N:$P,3,FALSE)))/24 -> 0 | DV5: =($G$6*$H$6*(VLOOKUP($H$11,Init!$N:$P,3,FALSE)))/24 -> 0 | DW5: =($G$6*$H$6*(VLOOKUP($H$11,Init!$N:$P,3,FALSE)))/24 -> 0 | DX5: =($G$6*$H$6*(VLOOKUP($H$11,Init!$N:$P,3,FALSE)))/24 -> 0 | DY5: =($G$6*$H$6*(VLOOKUP($H$11,Init!$N:$P,3,FALSE)))/24 -> 0 | DZ5: =($G$6*$H$6*(VLOOKUP($H$11,Init!$N:$P,3,FALSE)))/24 -> 0 | EA5: =($G$6*$H$6*(VLOOKUP($H$11,Init!$N:$P,3,FALSE)))/24 -> 0 | EB5: =($G$6*$H$6*(VLOOKUP($H$11,Init!$N:$P,3,FALSE)))/24 -> 0 | EC5: =($G$6*$H$6*(VLOOKUP($I$11,Init!$N:$P,3,FALSE)))/24 -> 0 | ED5: =($G$6*$H$6*(VLOOKUP($I$11,Init!$N:$P,3,FALSE)))/24 -> 0 | EE5: =($G$6*$H$6*(VLOOKUP($I$11,Init!$N:$P,3,FALSE)))/24 -> 0 | EF5: =($G$6*$H$6*(VLOOKUP($I$11,Init!$N:$P,3,FALSE)))/24 -> 0 | EG5: =($G$6*$H$6*(VLOOKUP($I$11,Init!$N:$P,3,FALSE)))/24 -> 0 | EH5: =($G$6*$H$6*(VLOOKUP($I$11,Init!$N:$P,3,FALSE)))/24 -> 0 | EI5: =($G$6*$H$6*(VLOOKUP($I$11,Init!$N:$P,3,FALSE)))/24 -> 0 | EJ5: =($G$6*$H$6*(VLOOKUP($I$11,Init!$N:$P,3,FALSE)))/24 -> 0 | EK5: =($G$6*$H$6*(VLOOKUP($I$11,Init!$N:$P,3,FALSE)))/24 -> 0 | EL5: =($G$6*$H$6*(VLOOKUP($I$11,Init!$N:$P,3,FALSE)))/24 -> 0 | EM5: =($G$6*$H$6*(VLOOKUP($I$11,Init!$N:$P,3,FALSE)))/24 -> 0 | EN5: =($G$6*$H$6*(VLOOKUP($I$11,Init!$N:$P,3,FALSE)))/24 -> 0 | EO5: =($G$6*$H$6*(VLOOKUP($J$11,Init!$N:$P,3,FALSE)))/24 -> 0 | EP5: =($G$6*$H$6*(VLOOKUP($J$11,Init!$N:$P,3,FALSE)))/24 -> 0 | EQ5: =($G$6*$H$6*(VLOOKUP($J$11,Init!$N:$P,3,FALSE)))/24 -> 0 | ER5: =($G$6*$H$6*(VLOOKUP($J$11,Init!$N:$P,3,FALSE)))/24 -> 0 | ES5: =($G$6*$H$6*(VLOOKUP($J$11,Init!$N:$P,3,FALSE)))/24 -> 0 | ET5: =($G$6*$H$6*(VLOOKUP($J$11,Init!$N:$P,3,FALSE)))/24 -> 0 | EU5: =($G$6*$H$6*(VLOOKUP($J$11,Init!$N:$P,3,FALSE)))/24 -> 0 | EV5: =($G$6*$H$6*(VLOOKUP($J$11,Init!$N:$P,3,FALSE)))/24 -> 0 | EW5: =($G$6*$H$6*(VLOOKUP($J$11,Init!$N:$P,3,FALSE)))/24 -> 0 | EX5: =($G$6*$H$6*(VLOOKUP($J$11,Init!$N:$P,3,FALSE)))/24 -> 0 | EY5: =($G$6*$H$6*(VLOOKUP($J$11,Init!$N:$P,3,FALSE)))/24 -> 0 | EZ5: =($G$6*$H$6*(VLOOKUP($J$11,Init!$N:$P,3,FALSE)))/24 -> 0
F6: Decrease Loads (1,000aMW) | G6: =IF(Scenario!$A$27=1,1,0) -> 0 | H6: =Scenario!$F$27 -> -1000 | I6: =H6*8760 -> -8760000 | K6: DSI Base Case | L6: 4660.406 | M6: 4350.871 | N6: 4408.261 | O6: 4424.143 | P6: 4154.952 | Q6: 4657.349 | R6: 4477.511 | S6: 4478.292 | T6: 4524.994 | U6: 4421.576 | V6: 4702.721 | W6: 4189.254 | X6: 4660.406 | Y6: 4350.871 | Z6: 4408.261 | AA6: 4424.143 | AB6: 4154.952 | AC6: 4657.349 | AD6: 4477.511 | AE6: 4478.292 | AF6: 4524.994 | AG6: 4421.576 | AH6: 4702.721 | AI6: 4189.254 | AJ6: 4660.406 | AK6: 4350.871 | AL6: 4408.261 | AM6: 4424.143 | AN6: 4154.952 | AO6: 4657.349 | AP6: 4477.511 | AQ6: 4478.292 | AR6: 4524.994 | AS6: 4421.576 | AT6: 4702.721 | AU6: 4189.254 | AV6: 4660.406 | AW6: 4350.871 | AX6: 4408.261 | AY6: 4424.143 | AZ6: 4303.342 | BA6: 4657.349 | BB6: 4477.511 | BC6: 4478.292 | BD6: 4524.994 | BE6: 4421.576 | BF6: 4702.721 | BG6: 4189.254 | BH6: 4660.406 | BI6: 4350.871 | BJ6: 4408.261 | BK6: 4424.143 | BL6: 4154.952 | BM6: 4657.349 | BN6: 4477.511 | BO6: 4478.292 | BP6: 4524.994 | BQ6: 4421.576 | BR6: 4702.721 | BS6: 4189.254 | BT6: 4660.406 | BU6: 4350.871 | BV6: 4408.261 | BW6: 4424.143 | BX6: 4154.952 | BY6: 4657.349 | BZ6: 4477.511 | CA6: 4478.292 | CB6: 4524.994 | CC6: 4421.576 | CD6: 4702.721 | CE6: 4189.254 | CG6: 3523.594 | CH6: 3580.129 | CI6: 3775.739 | CJ6: 3759.857 | CK6: 3237.048 | CL6: 3515.651 | CM6: 3442.489 | CN6: 3705.708 | CO6: 3395.006 | CP6: 3762.424 | CQ6: 3481.279 | CR6: 3730.746 | CS6: 3523.594 | CT6: 3580.129 | CU6: 3775.739 | CV6: 3759.857 | CW6: 3237.048 | CX6: 3515.651 | CY6: 3442.489 | CZ6: 3705.708 | DA6: 3395.006 | DB6: 3762.424 | DC6: 3481.279 | DD6: 3730.746 | DE6: 3523.594 | DF6: 3580.129 | DG6: 3775.739 | DH6: 3759.857 | DI6: 3237.048 | DJ6: 3515.651 | DK6: 3442.489 | DL6: 3705.708 | DM6: 3395.006 | DN6: 3762.424 | DO6: 3481.279 | DP6: 3730.746 | DQ6: 3523.594 | DR6: 3580.129 | DS6: 3775.739 | DT6: 3759.857 | DU6: 3352.658 | DV6: 3515.651 | DW6: 3442.489 | DX6: 3705.708 | DY6: 3395.006 | DZ6: 3762.424 | EA6: 3481.279 | EB6: 3730.746 | EC6: 3523.594 | ED6: 3580.129 | EE6: 3775.739 | EF6: 3759.857 | EG6: 3237.048 | EH6: 3515.651 | EI6: 3442.489 | EJ6: 3705.708 | EK6: 3395.006 | EL6: 3762.424 | EM6: 3481.279 | EN6: 3730.746 | EO6: 3523.594 | EP6: 3580.129 | EQ6: 3775.739 | ER6: 3759.857 | ES6: 3237.048 | ET6: 3515.651 | EU6: 3442.489 | EV6: 3705.708 | EW6: 3395.006 | EX6: 3762.424 | EY6: 3481.279 | EZ6: 3730.746
F7: Increase DSI Loads (500aMW) | G7: =IF(Scenario!$A$26=1,1,0) -> 0 | H7: =Scenario!$F$26 -> 500 | I7: =H7*8760 -> 4380000 | K7: Increase DSI Loads (500aMW) | L7: =($G$7*$H$7*(VLOOKUP($E$11,Init!$N:$P,3,FALSE)))/24 -> 0 | M7: =($G$7*$H$7*(VLOOKUP($E$11,Init!$N:$P,3,FALSE)))/24 -> 0 | N7: =($G$7*$H$7*(VLOOKUP($E$11,Init!$N:$P,3,FALSE)))/24 -> 0 | O7: =($G$7*$H$7*(VLOOKUP($E$11,Init!$N:$P,3,FALSE)))/24 -> 0 | P7: =($G$7*$H$7*(VLOOKUP($E$11,Init!$N:$P,3,FALSE)))/24 -> 0 | Q7: =($G$7*$H$7*(VLOOKUP($E$11,Init!$N:$P,3,FALSE)))/24 -> 0 | R7: =($G$7*$H$7*(VLOOKUP($E$11,Init!$N:$P,3,FALSE)))/24 -> 0 | S7: =($G$7*$H$7*(VLOOKUP($E$11,Init!$N:$P,3,FALSE)))/24 -> 0 | T7: =($G$7*$H$7*(VLOOKUP($E$11,Init!$N:$P,3,FALSE)))/24 -> 0 | U7: =($G$7*$H$7*(VLOOKUP($E$11,Init!$N:$P,3,FALSE)))/24 -> 0 | V7: =($G$7*$H$7*(VLOOKUP($E$11,Init!$N:$P,3,FALSE)))/24 -> 0 | W7: =($G$7*$H$7*(VLOOKUP($E$11,Init!$N:$P,3,FALSE)))/24 -> 0 | X7: =($G$7*$H$7*(VLOOKUP($F$11,Init!$N:$P,3,FALSE)))/24 -> 0 | Y7: =($G$7*$H$7*(VLOOKUP($F$11,Init!$N:$P,3,FALSE)))/24 -> 0 | Z7: =($G$7*$H$7*(VLOOKUP($F$11,Init!$N:$P,3,FALSE)))/24 -> 0 | AA7: =($G$7*$H$7*(VLOOKUP($F$11,Init!$N:$P,3,FALSE)))/24 -> 0 | AB7: =($G$7*$H$7*(VLOOKUP($F$11,Init!$N:$P,3,FALSE)))/24 -> 0 | AC7: =($G$7*$H$7*(VLOOKUP($F$11,Init!$N:$P,3,FALSE)))/24 -> 0 | AD7: =($G$7*$H$7*(VLOOKUP($F$11,Init!$N:$P,3,FALSE)))/24 -> 0 | AE7: =($G$7*$H$7*(VLOOKUP($F$11,Init!$N:$P,3,FALSE)))/24 -> 0 | AF7: =($G$7*$H$7*(VLOOKUP($F$11,Init!$N:$P,3,FALSE)))/24 -> 0 | AG7: =($G$7*$H$7*(VLOOKUP($F$11,Init!$N:$P,3,FALSE)))/24 -> 0 | AH7: =($G$7*$H$7*(VLOOKUP($F$11,Init!$N:$P,3,FALSE)))/24 -> 0 | AI7: =($G$7*$H$7*(VLOOKUP($F$11,Init!$N:$P,3,FALSE)))/24 -> 0 | AJ7: =($G$7*$H$7*(VLOOKUP($G$11,Init!$N:$P,3,FALSE)))/24 -> 0 | AK7: =($G$7*$H$7*(VLOOKUP($G$11,Init!$N:$P,3,FALSE)))/24 -> 0 | AL7: =($G$7*$H$7*(VLOOKUP($G$11,Init!$N:$P,3,FALSE)))/24 -> 0 | AM7: =($G$7*$H$7*(VLOOKUP($G$11,Init!$N:$P,3,FALSE)))/24 -> 0 | AN7: =($G$7*$H$7*(VLOOKUP($G$11,Init!$N:$P,3,FALSE)))/24 -> 0 | AO7: =($G$7*$H$7*(VLOOKUP($G$11,Init!$N:$P,3,FALSE)))/24 -> 0 | AP7: =($G$7*$H$7*(VLOOKUP($G$11,Init!$N:$P,3,FALSE)))/24 -> 0 | AQ7: =($G$7*$H$7*(VLOOKUP($G$11,Init!$N:$P,3,FALSE)))/24 -> 0 | AR7: =($G$7*$H$7*(VLOOKUP($G$11,Init!$N:$P,3,FALSE)))/24 -> 0 | AS7: =($G$7*$H$7*(VLOOKUP($G$11,Init!$N:$P,3,FALSE)))/24 -> 0 | AT7: =($G$7*$H$7*(VLOOKUP($G$11,Init!$N:$P,3,FALSE)))/24 -> 0 | AU7: =($G$7*$H$7*(VLOOKUP($G$11,Init!$N:$P,3,FALSE)))/24 -> 0 | AV7: =($G$7*$H$7*(VLOOKUP($H$11,Init!$N:$P,3,FALSE)))/24 -> 0 | AW7: =($G$7*$H$7*(VLOOKUP($H$11,Init!$N:$P,3,FALSE)))/24 -> 0 | AX7: =($G$7*$H$7*(VLOOKUP($H$11,Init!$N:$P,3,FALSE)))/24 -> 0 | AY7: =($G$7*$H$7*(VLOOKUP($H$11,Init!$N:$P,3,FALSE)))/24 -> 0 | AZ7: =($G$7*$H$7*(VLOOKUP($H$11,Init!$N:$P,3,FALSE)))/24 -> 0 | BA7: =($G$7*$H$7*(VLOOKUP($H$11,Init!$N:$P,3,FALSE)))/24 -> 0 | BB7: =($G$7*$H$7*(VLOOKUP($H$11,Init!$N:$P,3,FALSE)))/24 -> 0 | BC7: =($G$7*$H$7*(VLOOKUP($H$11,Init!$N:$P,3,FALSE)))/24 -> 0 | BD7: =($G$7*$H$7*(VLOOKUP($H$11,Init!$N:$P,3,FALSE)))/24 -> 0 | BE7: =($G$7*$H$7*(VLOOKUP($H$11,Init!$N:$P,3,FALSE)))/24 -> 0 | BF7: =($G$7*$H$7*(VLOOKUP($H$11,Init!$N:$P,3,FALSE)))/24 -> 0 | BG7: =($G$7*$H$7*(VLOOKUP($H$11,Init!$N:$P,3,FALSE)))/24 -> 0 | BH7: =($G$7*$H$7*(VLOOKUP($I$11,Init!$N:$P,3,FALSE)))/24 -> 0 | BI7: =($G$7*$H$7*(VLOOKUP($I$11,Init!$N:$P,3,FALSE)))/24 -> 0 | BJ7: =($G$7*$H$7*(VLOOKUP($I$11,Init!$N:$P,3,FALSE)))/24 -> 0 | BK7: =($G$7*$H$7*(VLOOKUP($I$11,Init!$N:$P,3,FALSE)))/24 -> 0 | BL7: =($G$7*$H$7*(VLOOKUP($I$11,Init!$N:$P,3,FALSE)))/24 -> 0 | BM7: =($G$7*$H$7*(VLOOKUP($I$11,Init!$N:$P,3,FALSE)))/24 -> 0 | BN7: =($G$7*$H$7*(VLOOKUP($I$11,Init!$N:$P,3,FALSE)))/24 -> 0 | BO7: =($G$7*$H$7*(VLOOKUP($I$11,Init!$N:$P,3,FALSE)))/24 -> 0 | BP7: =($G$7*$H$7*(VLOOKUP($I$11,Init!$N:$P,3,FALSE)))/24 -> 0 | BQ7: =($G$7*$H$7*(VLOOKUP($I$11,Init!$N:$P,3,FALSE)))/24 -> 0 | BR7: =($G$7*$H$7*(VLOOKUP($I$11,Init!$N:$P,3,FALSE)))/24 -> 0 | BS7: =($G$7*$H$7*(VLOOKUP($I$11,Init!$N:$P,3,FALSE)))/24 -> 0 | BT7: =($G$7*$H$7*(VLOOKUP($J$11,Init!$N:$P,3,FALSE)))/24 -> 0 | BU7: =($G$7*$H$7*(VLOOKUP($J$11,Init!$N:$P,3,FALSE)))/24 -> 0 | BV7: =($G$7*$H$7*(VLOOKUP($J$11,Init!$N:$P,3,FALSE)))/24 -> 0 | BW7: =($G$7*$H$7*(VLOOKUP($J$11,Init!$N:$P,3,FALSE)))/24 -> 0 | BX7: =($G$7*$H$7*(VLOOKUP($J$11,Init!$N:$P,3,FALSE)))/24 -> 0 | BY7: =($G$7*$H$7*(VLOOKUP($J$11,Init!$N:$P,3,FALSE)))/24 -> 0 | BZ7: =($G$7*$H$7*(VLOOKUP($J$11,Init!$N:$P,3,FALSE)))/24 -> 0 | CA7: =($G$7*$H$7*(VLOOKUP($J$11,Init!$N:$P,3,FALSE)))/24 -> 0 | CB7: =($G$7*$H$7*(VLOOKUP($J$11,Init!$N:$P,3,FALSE)))/24 -> 0 | CC7: =($G$7*$H$7*(VLOOKUP($J$11,Init!$N:$P,3,FALSE)))/24 -> 0 | CD7: =($G$7*$H$7*(VLOOKUP($J$11,Init!$N:$P,3,FALSE)))/24 -> 0 | CE7: =($G$7*$H$7*(VLOOKUP($J$11,Init!$N:$P,3,FALSE)))/24 -> 0 | CG7: =($G$7*$H$7*(VLOOKUP($E$11,Init!$N:$P,3,FALSE)))/24 -> 0 | CH7: =($G$7*$H$7*(VLOOKUP($E$11,Init!$N:$P,3,FALSE)))/24 -> 0 | CI7: =($G$7*$H$7*(VLOOKUP($E$11,Init!$N:$P,3,FALSE)))/24 -> 0 | CJ7: =($G$7*$H$7*(VLOOKUP($E$11,Init!$N:$P,3,FALSE)))/24 -> 0 | CK7: =($G$7*$H$7*(VLOOKUP($E$11,Init!$N:$P,3,FALSE)))/24 -> 0 | CL7: =($G$7*$H$7*(VLOOKUP($E$11,Init!$N:$P,3,FALSE)))/24 -> 0 | CM7: =($G$7*$H$7*(VLOOKUP($E$11,Init!$N:$P,3,FALSE)))/24 -> 0 | CN7: =($G$7*$H$7*(VLOOKUP($E$11,Init!$N:$P,3,FALSE)))/24 -> 0 | CO7: =($G$7*$H$7*(VLOOKUP($E$11,Init!$N:$P,3,FALSE)))/24 -> 0 | CP7: =($G$7*$H$7*(VLOOKUP($E$11,Init!$N:$P,3,FALSE)))/24 -> 0 | CQ7: =($G$7*$H$7*(VLOOKUP($E$11,Init!$N:$P,3,FALSE)))/24 -> 0 | CR7: =($G$7*$H$7*(VLOOKUP($E$11,Init!$N:$P,3,FALSE)))/24 -> 0 | CS7: =($G$7*$H$7*(VLOOKUP($F$11,Init!$N:$P,3,FALSE)))/24 -> 0 | CT7: =($G$7*$H$7*(VLOOKUP($F$11,Init!$N:$P,3,FALSE)))/24 -> 0 | CU7: =($G$7*$H$7*(VLOOKUP($F$11,Init!$N:$P,3,FALSE)))/24 -> 0 | CV7: =($G$7*$H$7*(VLOOKUP($F$11,Init!$N:$P,3,FALSE)))/24 -> 0 | CW7: =($G$7*$H$7*(VLOOKUP($F$11,Init!$N:$P,3,FALSE)))/24 -> 0 | CX7: =($G$7*$H$7*(VLOOKUP($F$11,Init!$N:$P,3,FALSE)))/24 -> 0 | CY7: =($G$7*$H$7*(VLOOKUP($F$11,Init!$N:$P,3,FALSE)))/24 -> 0 | CZ7: =($G$7*$H$7*(VLOOKUP($F$11,Init!$N:$P,3,FALSE)))/24 -> 0 | DA7: =($G$7*$H$7*(VLOOKUP($F$11,Init!$N:$P,3,FALSE)))/24 -> 0 | DB7: =($G$7*$H$7*(VLOOKUP($F$11,Init!$N:$P,3,FALSE)))/24 -> 0 | DC7: =($G$7*$H$7*(VLOOKUP($F$11,Init!$N:$P,3,FALSE)))/24 -> 0 | DD7: =($G$7*$H$7*(VLOOKUP($F$11,Init!$N:$P,3,FALSE)))/24 -> 0 | DE7: =($G$7*$H$7*(VLOOKUP($G$11,Init!$N:$P,3,FALSE)))/24 -> 0 | DF7: =($G$7*$H$7*(VLOOKUP($G$11,Init!$N:$P,3,FALSE)))/24 -> 0 | DG7: =($G$7*$H$7*(VLOOKUP($G$11,Init!$N:$P,3,FALSE)))/24 -> 0 | DH7: =($G$7*$H$7*(VLOOKUP($G$11,Init!$N:$P,3,FALSE)))/24 -> 0 | DI7: =($G$7*$H$7*(VLOOKUP($G$11,Init!$N:$P,3,FALSE)))/24 -> 0 | DJ7: =($G$7*$H$7*(VLOOKUP($G$11,Init!$N:$P,3,FALSE)))/24 -> 0 | DK7: =($G$7*$H$7*(VLOOKUP($G$11,Init!$N:$P,3,FALSE)))/24 -> 0 | DL7: =($G$7*$H$7*(VLOOKUP($G$11,Init!$N:$P,3,FALSE)))/24 -> 0 | DM7: =($G$7*$H$7*(VLOOKUP($G$11,Init!$N:$P,3,FALSE)))/24 -> 0 | DN7: =($G$7*$H$7*(VLOOKUP($G$11,Init!$N:$P,3,FALSE)))/24 -> 0 | DO7: =($G$7*$H$7*(VLOOKUP($G$11,Init!$N:$P,3,FALSE)))/24 -> 0 | DP7: =($G$7*$H$7*(VLOOKUP($G$11,Init!$N:$P,3,FALSE)))/24 -> 0 | DQ7: =($G$7*$H$7*(VLOOKUP($H$11,Init!$N:$P,3,FALSE)))/24 -> 0 | DR7: =($G$7*$H$7*(VLOOKUP($H$11,Init!$N:$P,3,FALSE)))/24 -> 0 | DS7: =($G$7*$H$7*(VLOOKUP($H$11,Init!$N:$P,3,FALSE)))/24 -> 0 | DT7: =($G$7*$H$7*(VLOOKUP($H$11,Init!$N:$P,3,FALSE)))/24 -> 0 | DU7: =($G$7*$H$7*(VLOOKUP($H$11,Init!$N:$P,3,FALSE)))/24 -> 0 | DV7: =($G$7*$H$7*(VLOOKUP($H$11,Init!$N:$P,3,FALSE)))/24 -> 0 | DW7: =($G$7*$H$7*(VLOOKUP($H$11,Init!$N:$P,3,FALSE)))/24 -> 0 | DX7: =($G$7*$H$7*(VLOOKUP($H$11,Init!$N:$P,3,FALSE)))/24 -> 0 | DY7: =($G$7*$H$7*(VLOOKUP($H$11,Init!$N:$P,3,FALSE)))/24 -> 0 | DZ7: =($G$7*$H$7*(VLOOKUP($H$11,Init!$N:$P,3,FALSE)))/24 -> 0 | EA7: =($G$7*$H$7*(VLOOKUP($H$11,Init!$N:$P,3,FALSE)))/24 -> 0 | EB7: =($G$7*$H$7*(VLOOKUP($H$11,Init!$N:$P,3,FALSE)))/24 -> 0 | EC7: =($G$7*$H$7*(VLOOKUP($I$11,Init!$N:$P,3,FALSE)))/24 -> 0 | ED7: =($G$7*$H$7*(VLOOKUP($I$11,Init!$N:$P,3,FALSE)))/24 -> 0 | EE7: =($G$7*$H$7*(VLOOKUP($I$11,Init!$N:$P,3,FALSE)))/24 -> 0 | EF7: =($G$7*$H$7*(VLOOKUP($I$11,Init!$N:$P,3,FALSE)))/24 -> 0 | EG7: =($G$7*$H$7*(VLOOKUP($I$11,Init!$N:$P,3,FALSE)))/24 -> 0 | EH7: =($G$7*$H$7*(VLOOKUP($I$11,Init!$N:$P,3,FALSE)))/24 -> 0 | EI7: =($G$7*$H$7*(VLOOKUP($I$11,Init!$N:$P,3,FALSE)))/24 -> 0 | EJ7: =($G$7*$H$7*(VLOOKUP($I$11,Init!$N:$P,3,FALSE)))/24 -> 0 | EK7: =($G$7*$H$7*(VLOOKUP($I$11,Init!$N:$P,3,FALSE)))/24 -> 0 | EL7: =($G$7*$H$7*(VLOOKUP($I$11,Init!$N:$P,3,FALSE)))/24 -> 0 | EM7: =($G$7*$H$7*(VLOOKUP($I$11,Init!$N:$P,3,FALSE)))/24 -> 0 | EN7: =($G$7*$H$7*(VLOOKUP($I$11,Init!$N:$P,3,FALSE)))/24 -> 0 | EO7: =($G$7*$H$7*(VLOOKUP($J$11,Init!$N:$P,3,FALSE)))/24 -> 0 | EP7: =($G$7*$H$7*(VLOOKUP($J$11,Init!$N:$P,3,FALSE)))/24 -> 0 | EQ7: =($G$7*$H$7*(VLOOKUP($J$11,Init!$N:$P,3,FALSE)))/24 -> 0 | ER7: =($G$7*$H$7*(VLOOKUP($J$11,Init!$N:$P,3,FALSE)))/24 -> 0 | ES7: =($G$7*$H$7*(VLOOKUP($J$11,Init!$N:$P,3,FALSE)))/24 -> 0 | ET7: =($G$7*$H$7*(VLOOKUP($J$11,Init!$N:$P,3,FALSE)))/24 -> 0 | EU7: =($G$7*$H$7*(VLOOKUP($J$11,Init!$N:$P,3,FALSE)))/24 -> 0 | EV7: =($G$7*$H$7*(VLOOKUP($J$11,Init!$N:$P,3,FALSE)))/24 -> 0 | EW7: =($G$7*$H$7*(VLOOKUP($J$11,Init!$N:$P,3,FALSE)))/24 -> 0 | EX7: =($G$7*$H$7*(VLOOKUP($J$11,Init!$N:$P,3,FALSE)))/24 -> 0 | EY7: =($G$7*$H$7*(VLOOKUP($J$11,Init!$N:$P,3,FALSE)))/24 -> 0 | EZ7: =($G$7*$H$7*(VLOOKUP($J$11,Init!$N:$P,3,FALSE)))/24 -> 0
F8: Increase NR Loads (500aMW) | G8: =IF(Scenario!$H$7=1,1,0) -> 0 | H8: =Scenario!$J$7 -> 1000 | K8: NR Base Case | L8: 0.432 | M8: 0.4 | N8: 0.4 | O8: 0.416 | P8: 0.4 | Q8: 0.416 | R8: 0.416 | S8: 0.4 | T8: 0.416 | U8: 0.416 | V8: 0.416 | W8: 0.4 | X8: 0.432 | Y8: 0.4 | Z8: 0.4 | AA8: 0.416 | AB8: 0.4 | AC8: 0.416 | AD8: 0.416 | AE8: 0.4 | AF8: 0.416 | AG8: 0.416 | AH8: 0.416 | AI8: 0.4 | AJ8: 0.432 | AK8: 0.4 | AL8: 0.4 | AM8: 0.416 | AN8: 0.4 | AO8: 0.416 | AP8: 0.416 | AQ8: 0.4 | AR8: 0.416 | AS8: 0.416 | AT8: 0.416 | AU8: 0.4 | AV8: 0.432 | AW8: 0.4 | AX8: 0.4 | AY8: 0.416 | AZ8: 0.4 | BA8: 0.416 | BB8: 0.416 | BC8: 0.4 | BD8: 0.416 | BE8: 0.416 | BF8: 0.416 | BG8: 0.4 | BH8: 0.432 | BI8: 0.4 | BJ8: 0.4 | BK8: 0.416 | BL8: 0.4 | BM8: 0.416 | BN8: 0.416 | BO8: 0.4 | BP8: 0.416 | BQ8: 0.416 | BR8: 0.416 | BS8: 0.4 | BT8: 0.432 | BU8: 0.4 | BV8: 0.4 | BW8: 0.416 | BX8: 0.4 | BY8: 0.416 | BZ8: 0.416 | CA8: 0.4 | CB8: 0.416 | CC8: 0.416 | CD8: 0.416 | CE8: 0.4 | CG8: 0.432 | CH8: 0.4 | CI8: 0.4 | CJ8: 0.416 | CK8: 0.4 | CL8: 0.416 | CM8: 0.416 | CN8: 0.4 | CO8: 0.416 | CP8: 0.416 | CQ8: 0.416 | CR8: 0.4 | CS8: 0.432 | CT8: 0.4 | CU8: 0.4 | CV8: 0.416 | CW8: 0.4 | CX8: 0.416 | CY8: 0.416 | CZ8: 0.4 | DA8: 0.416 | DB8: 0.416 | DC8: 0.416 | DD8: 0.4 | DE8: 0.432 | DF8: 0.4 | DG8: 0.4 | DH8: 0.416 | DI8: 0.4 | DJ8: 0.416 | DK8: 0.416 | DL8: 0.4 | DM8: 0.416 | DN8: 0.416 | DO8: 0.416 | DP8: 0.4 | DQ8: 0.432 | DR8: 0.4 | DS8: 0.4 | DT8: 0.416 | DU8: 0.4 | DV8: 0.416 | DW8: 0.416 | DX8: 0.4 | DY8: 0.416 | DZ8: 0.416 | EA8: 0.416 | EB8: 0.4 | EC8: 0.432 | ED8: 0.4 | EE8: 0.4 | EF8: 0.416 | EG8: 0.4 | EH8: 0.416 | EI8: 0.416 | EJ8: 0.4 | EK8: 0.416 | EL8: 0.416 | EM8: 0.416 | EN8: 0.4 | EO8: 0.432 | EP8: 0.4 | EQ8: 0.4 | ER8: 0.416 | ES8: 0.4 | ET8: 0.416 | EU8: 0.416 | EV8: 0.4 | EW8: 0.416 | EX8: 0.416 | EY8: 0.416 | EZ8: 0.4
K9: Increase NR Loads | L9: =($G$8*$H$8*(VLOOKUP($E$11,Init!$N:$P,3,FALSE)))/24 -> 0 | M9: =($G$8*$H$8*(VLOOKUP($E$11,Init!$N:$P,3,FALSE)))/24 -> 0 | N9: =($G$8*$H$8*(VLOOKUP($E$11,Init!$N:$P,3,FALSE)))/24 -> 0 | O9: =($G$8*$H$8*(VLOOKUP($E$11,Init!$N:$P,3,FALSE)))/24 -> 0 | P9: =($G$8*$H$8*(VLOOKUP($E$11,Init!$N:$P,3,FALSE)))/24 -> 0 | Q9: =($G$8*$H$8*(VLOOKUP($E$11,Init!$N:$P,3,FALSE)))/24 -> 0 | R9: =($G$8*$H$8*(VLOOKUP($E$11,Init!$N:$P,3,FALSE)))/24 -> 0 | S9: =($G$8*$H$8*(VLOOKUP($E$11,Init!$N:$P,3,FALSE)))/24 -> 0 | T9: =($G$8*$H$8*(VLOOKUP($E$11,Init!$N:$P,3,FALSE)))/24 -> 0 | U9: =($G$8*$H$8*(VLOOKUP($E$11,Init!$N:$P,3,FALSE)))/24 -> 0 | V9: =($G$8*$H$8*(VLOOKUP($E$11,Init!$N:$P,3,FALSE)))/24 -> 0 | W9: =($G$8*$H$8*(VLOOKUP($E$11,Init!$N:$P,3,FALSE)))/24 -> 0 | X9: =($G$8*$H$8*(VLOOKUP($F$11,Init!$N:$P,3,FALSE)))/24 -> 0 | Y9: =($G$8*$H$8*(VLOOKUP($F$11,Init!$N:$P,3,FALSE)))/24 -> 0 | Z9: =($G$8*$H$8*(VLOOKUP($F$11,Init!$N:$P,3,FALSE)))/24 -> 0 | AA9: =($G$8*$H$8*(VLOOKUP($F$11,Init!$N:$P,3,FALSE)))/24 -> 0 | AB9: =($G$8*$H$8*(VLOOKUP($F$11,Init!$N:$P,3,FALSE)))/24 -> 0 | AC9: =($G$8*$H$8*(VLOOKUP($F$11,Init!$N:$P,3,FALSE)))/24 -> 0 | AD9: =($G$8*$H$8*(VLOOKUP($F$11,Init!$N:$P,3,FALSE)))/24 -> 0 | AE9: =($G$8*$H$8*(VLOOKUP($F$11,Init!$N:$P,3,FALSE)))/24 -> 0 | AF9: =($G$8*$H$8*(VLOOKUP($F$11,Init!$N:$P,3,FALSE)))/24 -> 0 | AG9: =($G$8*$H$8*(VLOOKUP($F$11,Init!$N:$P,3,FALSE)))/24 -> 0 | AH9: =($G$8*$H$8*(VLOOKUP($F$11,Init!$N:$P,3,FALSE)))/24 -> 0 | AI9: =($G$8*$H$8*(VLOOKUP($F$11,Init!$N:$P,3,FALSE)))/24 -> 0 | AJ9: =($G$8*$H$8*(VLOOKUP($G$11,Init!$N:$P,3,FALSE)))/24 -> 0 | AK9: =($G$8*$H$8*(VLOOKUP($G$11,Init!$N:$P,3,FALSE)))/24 -> 0 | AL9: =($G$8*$H$8*(VLOOKUP($G$11,Init!$N:$P,3,FALSE)))/24 -> 0 | AM9: =($G$8*$H$8*(VLOOKUP($G$11,Init!$N:$P,3,FALSE)))/24 -> 0 | AN9: =($G$8*$H$8*(VLOOKUP($G$11,Init!$N:$P,3,FALSE)))/24 -> 0 | AO9: =($G$8*$H$8*(VLOOKUP($G$11,Init!$N:$P,3,FALSE)))/24 -> 0 | AP9: =($G$8*$H$8*(VLOOKUP($G$11,Init!$N:$P,3,FALSE)))/24 -> 0 | AQ9: =($G$8*$H$8*(VLOOKUP($G$11,Init!$N:$P,3,FALSE)))/24 -> 0 | AR9: =($G$8*$H$8*(VLOOKUP($G$11,Init!$N:$P,3,FALSE)))/24 -> 0 | AS9: =($G$8*$H$8*(VLOOKUP($G$11,Init!$N:$P,3,FALSE)))/24 -> 0 | AT9: =($G$8*$H$8*(VLOOKUP($G$11,Init!$N:$P,3,FALSE)))/24 -> 0 | AU9: =($G$8*$H$8*(VLOOKUP($G$11,Init!$N:$P,3,FALSE)))/24 -> 0 | AV9: =($G$8*$H$8*(VLOOKUP($H$11,Init!$N:$P,3,FALSE)))/24 -> 0 | AW9: =($G$8*$H$8*(VLOOKUP($H$11,Init!$N:$P,3,FALSE)))/24 -> 0 | AX9: =($G$8*$H$8*(VLOOKUP($H$11,Init!$N:$P,3,FALSE)))/24 -> 0 | AY9: =($G$8*$H$8*(VLOOKUP($H$11,Init!$N:$P,3,FALSE)))/24 -> 0 | AZ9: =($G$8*$H$8*(VLOOKUP($H$11,Init!$N:$P,3,FALSE)))/24 -> 0 | BA9: =($G$8*$H$8*(VLOOKUP($H$11,Init!$N:$P,3,FALSE)))/24 -> 0 | BB9: =($G$8*$H$8*(VLOOKUP($H$11,Init!$N:$P,3,FALSE)))/24 -> 0 | BC9: =($G$8*$H$8*(VLOOKUP($H$11,Init!$N:$P,3,FALSE)))/24 -> 0 | BD9: =($G$8*$H$8*(VLOOKUP($H$11,Init!$N:$P,3,FALSE)))/24 -> 0 | BE9: =($G$8*$H$8*(VLOOKUP($H$11,Init!$N:$P,3,FALSE)))/24 -> 0 | BF9: =($G$8*$H$8*(VLOOKUP($H$11,Init!$N:$P,3,FALSE)))/24 -> 0 | BG9: =($G$8*$H$8*(VLOOKUP($H$11,Init!$N:$P,3,FALSE)))/24 -> 0 | BH9: =($G$8*$H$8*(VLOOKUP($I$11,Init!$N:$P,3,FALSE)))/24 -> 0 | BI9: =($G$8*$H$8*(VLOOKUP($I$11,Init!$N:$P,3,FALSE)))/24 -> 0 | BJ9: =($G$8*$H$8*(VLOOKUP($I$11,Init!$N:$P,3,FALSE)))/24 -> 0 | BK9: =($G$8*$H$8*(VLOOKUP($I$11,Init!$N:$P,3,FALSE)))/24 -> 0 | BL9: =($G$8*$H$8*(VLOOKUP($I$11,Init!$N:$P,3,FALSE)))/24 -> 0 | BM9: =($G$8*$H$8*(VLOOKUP($I$11,Init!$N:$P,3,FALSE)))/24 -> 0 | BN9: =($G$8*$H$8*(VLOOKUP($I$11,Init!$N:$P,3,FALSE)))/24 -> 0 | BO9: =($G$8*$H$8*(VLOOKUP($I$11,Init!$N:$P,3,FALSE)))/24 -> 0 | BP9: =($G$8*$H$8*(VLOOKUP($I$11,Init!$N:$P,3,FALSE)))/24 -> 0 | BQ9: =($G$8*$H$8*(VLOOKUP($I$11,Init!$N:$P,3,FALSE)))/24 -> 0 | BR9: =($G$8*$H$8*(VLOOKUP($I$11,Init!$N:$P,3,FALSE)))/24 -> 0 | BS9: =($G$8*$H$8*(VLOOKUP($I$11,Init!$N:$P,3,FALSE)))/24 -> 0 | BT9: =($G$8*$H$8*(VLOOKUP($J$11,Init!$N:$P,3,FALSE)))/24 -> 0 | BU9: =($G$8*$H$8*(VLOOKUP($J$11,Init!$N:$P,3,FALSE)))/24 -> 0 | BV9: =($G$8*$H$8*(VLOOKUP($J$11,Init!$N:$P,3,FALSE)))/24 -> 0 | BW9: =($G$8*$H$8*(VLOOKUP($J$11,Init!$N:$P,3,FALSE)))/24 -> 0 | BX9: =($G$8*$H$8*(VLOOKUP($J$11,Init!$N:$P,3,FALSE)))/24 -> 0 | BY9: =($G$8*$H$8*(VLOOKUP($J$11,Init!$N:$P,3,FALSE)))/24 -> 0 | BZ9: =($G$8*$H$8*(VLOOKUP($J$11,Init!$N:$P,3,FALSE)))/24 -> 0 | CA9: =($G$8*$H$8*(VLOOKUP($J$11,Init!$N:$P,3,FALSE)))/24 -> 0 | CB9: =($G$8*$H$8*(VLOOKUP($J$11,Init!$N:$P,3,FALSE)))/24 -> 0 | CC9: =($G$8*$H$8*(VLOOKUP($J$11,Init!$N:$P,3,FALSE)))/24 -> 0 | CD9: =($G$8*$H$8*(VLOOKUP($J$11,Init!$N:$P,3,FALSE)))/24 -> 0 | CE9: =($G$8*$H$8*(VLOOKUP($J$11,Init!$N:$P,3,FALSE)))/24 -> 0 | CG9: =($G$8*$H$8*(VLOOKUP($E$11,Init!$N:$P,3,FALSE)))/24 -> 0 | CH9: =($G$8*$H$8*(VLOOKUP($E$11,Init!$N:$P,3,FALSE)))/24 -> 0 | CI9: =($G$8*$H$8*(VLOOKUP($E$11,Init!$N:$P,3,FALSE)))/24 -> 0 | CJ9: =($G$8*$H$8*(VLOOKUP($E$11,Init!$N:$P,3,FALSE)))/24 -> 0 | CK9: =($G$8*$H$8*(VLOOKUP($E$11,Init!$N:$P,3,FALSE)))/24 -> 0 | CL9: =($G$8*$H$8*(VLOOKUP($E$11,Init!$N:$P,3,FALSE)))/24 -> 0 | CM9: =($G$8*$H$8*(VLOOKUP($E$11,Init!$N:$P,3,FALSE)))/24 -> 0 | CN9: =($G$8*$H$8*(VLOOKUP($E$11,Init!$N:$P,3,FALSE)))/24 -> 0 | CO9: =($G$8*$H$8*(VLOOKUP($E$11,Init!$N:$P,3,FALSE)))/24 -> 0 | CP9: =($G$8*$H$8*(VLOOKUP($E$11,Init!$N:$P,3,FALSE)))/24 -> 0 | CQ9: =($G$8*$H$8*(VLOOKUP($E$11,Init!$N:$P,3,FALSE)))/24 -> 0 | CR9: =($G$8*$H$8*(VLOOKUP($E$11,Init!$N:$P,3,FALSE)))/24 -> 0 | CS9: =($G$8*$H$8*(VLOOKUP($F$11,Init!$N:$P,3,FALSE)))/24 -> 0 | CT9: =($G$8*$H$8*(VLOOKUP($F$11,Init!$N:$P,3,FALSE)))/24 -> 0 | CU9: =($G$8*$H$8*(VLOOKUP($F$11,Init!$N:$P,3,FALSE)))/24 -> 0 | CV9: =($G$8*$H$8*(VLOOKUP($F$11,Init!$N:$P,3,FALSE)))/24 -> 0 | CW9: =($G$8*$H$8*(VLOOKUP($F$11,Init!$N:$P,3,FALSE)))/24 -> 0 | CX9: =($G$8*$H$8*(VLOOKUP($F$11,Init!$N:$P,3,FALSE)))/24 -> 0 | CY9: =($G$8*$H$8*(VLOOKUP($F$11,Init!$N:$P,3,FALSE)))/24 -> 0 | CZ9: =($G$8*$H$8*(VLOOKUP($F$11,Init!$N:$P,3,FALSE)))/24 -> 0 | DA9: =($G$8*$H$8*(VLOOKUP($F$11,Init!$N:$P,3,FALSE)))/24 -> 0 | DB9: =($G$8*$H$8*(VLOOKUP($F$11,Init!$N:$P,3,FALSE)))/24 -> 0 | DC9: =($G$8*$H$8*(VLOOKUP($F$11,Init!$N:$P,3,FALSE)))/24 -> 0 | DD9: =($G$8*$H$8*(VLOOKUP($F$11,Init!$N:$P,3,FALSE)))/24 -> 0 | DE9: =($G$8*$H$8*(VLOOKUP($G$11,Init!$N:$P,3,FALSE)))/24 -> 0 | DF9: =($G$8*$H$8*(VLOOKUP($G$11,Init!$N:$P,3,FALSE)))/24 -> 0 | DG9: =($G$8*$H$8*(VLOOKUP($G$11,Init!$N:$P,3,FALSE)))/24 -> 0 | DH9: =($G$8*$H$8*(VLOOKUP($G$11,Init!$N:$P,3,FALSE)))/24 -> 0 | DI9: =($G$8*$H$8*(VLOOKUP($G$11,Init!$N:$P,3,FALSE)))/24 -> 0 | DJ9: =($G$8*$H$8*(VLOOKUP($G$11,Init!$N:$P,3,FALSE)))/24 -> 0 | DK9: =($G$8*$H$8*(VLOOKUP($G$11,Init!$N:$P,3,FALSE)))/24 -> 0 | DL9: =($G$8*$H$8*(VLOOKUP($G$11,Init!$N:$P,3,FALSE)))/24 -> 0 | DM9: =($G$8*$H$8*(VLOOKUP($G$11,Init!$N:$P,3,FALSE)))/24 -> 0 | DN9: =($G$8*$H$8*(VLOOKUP($G$11,Init!$N:$P,3,FALSE)))/24 -> 0 | DO9: =($G$8*$H$8*(VLOOKUP($G$11,Init!$N:$P,3,FALSE)))/24 -> 0 | DP9: =($G$8*$H$8*(VLOOKUP($G$11,Init!$N:$P,3,FALSE)))/24 -> 0 | DQ9: =($G$8*$H$8*(VLOOKUP($H$11,Init!$N:$P,3,FALSE)))/24 -> 0 | DR9: =($G$8*$H$8*(VLOOKUP($H$11,Init!$N:$P,3,FALSE)))/24 -> 0 | DS9: =($G$8*$H$8*(VLOOKUP($H$11,Init!$N:$P,3,FALSE)))/24 -> 0 | DT9: =($G$8*$H$8*(VLOOKUP($H$11,Init!$N:$P,3,FALSE)))/24 -> 0 | DU9: =($G$8*$H$8*(VLOOKUP($H$11,Init!$N:$P,3,FALSE)))/24 -> 0 | DV9: =($G$8*$H$8*(VLOOKUP($H$11,Init!$N:$P,3,FALSE)))/24 -> 0 | DW9: =($G$8*$H$8*(VLOOKUP($H$11,Init!$N:$P,3,FALSE)))/24 -> 0 | DX9: =($G$8*$H$8*(VLOOKUP($H$11,Init!$N:$P,3,FALSE)))/24 -> 0 | DY9: =($G$8*$H$8*(VLOOKUP($H$11,Init!$N:$P,3,FALSE)))/24 -> 0 | DZ9: =($G$8*$H$8*(VLOOKUP($H$11,Init!$N:$P,3,FALSE)))/24 -> 0 | EA9: =($G$8*$H$8*(VLOOKUP($H$11,Init!$N:$P,3,FALSE)))/24 -> 0 | EB9: =($G$8*$H$8*(VLOOKUP($H$11,Init!$N:$P,3,FALSE)))/24 -> 0 | EC9: =($G$8*$H$8*(VLOOKUP($I$11,Init!$N:$P,3,FALSE)))/24 -> 0 | ED9: =($G$8*$H$8*(VLOOKUP($I$11,Init!$N:$P,3,FALSE)))/24 -> 0 | EE9: =($G$8*$H$8*(VLOOKUP($I$11,Init!$N:$P,3,FALSE)))/24 -> 0 | EF9: =($G$8*$H$8*(VLOOKUP($I$11,Init!$N:$P,3,FALSE)))/24 -> 0 | EG9: =($G$8*$H$8*(VLOOKUP($I$11,Init!$N:$P,3,FALSE)))/24 -> 0 | EH9: =($G$8*$H$8*(VLOOKUP($I$11,Init!$N:$P,3,FALSE)))/24 -> 0 | EI9: =($G$8*$H$8*(VLOOKUP($I$11,Init!$N:$P,3,FALSE)))/24 -> 0 | EJ9: =($G$8*$H$8*(VLOOKUP($I$11,Init!$N:$P,3,FALSE)))/24 -> 0 | EK9: =($G$8*$H$8*(VLOOKUP($I$11,Init!$N:$P,3,FALSE)))/24 -> 0 | EL9: =($G$8*$H$8*(VLOOKUP($I$11,Init!$N:$P,3,FALSE)))/24 -> 0 | EM9: =($G$8*$H$8*(VLOOKUP($I$11,Init!$N:$P,3,FALSE)))/24 -> 0 | EN9: =($G$8*$H$8*(VLOOKUP($I$11,Init!$N:$P,3,FALSE)))/24 -> 0 | EO9: =($G$8*$H$8*(VLOOKUP($J$11,Init!$N:$P,3,FALSE)))/24 -> 0 | EP9: =($G$8*$H$8*(VLOOKUP($J$11,Init!$N:$P,3,FALSE)))/24 -> 0 | EQ9: =($G$8*$H$8*(VLOOKUP($J$11,Init!$N:$P,3,FALSE)))/24 -> 0 | ER9: =($G$8*$H$8*(VLOOKUP($J$11,Init!$N:$P,3,FALSE)))/24 -> 0 | ES9: =($G$8*$H$8*(VLOOKUP($J$11,Init!$N:$P,3,FALSE)))/24 -> 0 | ET9: =($G$8*$H$8*(VLOOKUP($J$11,Init!$N:$P,3,FALSE)))/24 -> 0 | EU9: =($G$8*$H$8*(VLOOKUP($J$11,Init!$N:$P,3,FALSE)))/24 -> 0 | EV9: =($G$8*$H$8*(VLOOKUP($J$11,Init!$N:$P,3,FALSE)))/24 -> 0 | EW9: =($G$8*$H$8*(VLOOKUP($J$11,Init!$N:$P,3,FALSE)))/24 -> 0 | EX9: =($G$8*$H$8*(VLOOKUP($J$11,Init!$N:$P,3,FALSE)))/24 -> 0 | EY9: =($G$8*$H$8*(VLOOKUP($J$11,Init!$N:$P,3,FALSE)))/24 -> 0 | EZ9: =($G$8*$H$8*(VLOOKUP($J$11,Init!$N:$P,3,FALSE)))/24 -> 0
E10: Annual | L10: HLH | CG10: LLH
E11: =Init!$C$9 -> 2029 | F11: =E11+1 -> 2030 | G11: =F11+1 -> 2031 | H11: 2032 | I11: 2033 | J11: 2034 | L11: =DATE($E$11-1,10,1) -> 2028-10-01 | M11: =EOMONTH(L11,0)+1 -> 2028-11-01 | N11: =EOMONTH(M11,0)+1 -> 2028-12-01 | O11: 2029-01-01 | P11: 2029-02-01 | Q11: 2029-03-01 | R11: 2029-04-01 | S11: 2029-05-01 | T11: 2029-06-01 | U11: 2029-07-01 | V11: 2029-08-01 | W11: 2029-09-01 | X11: 2029-10-01 | Y11: 2029-11-01 | Z11: 2029-12-01 | AA11: 2030-01-01 | AB11: 2030-02-01 | AC11: 2030-03-01 | AD11: 2030-04-01 | AE11: 2030-05-01 | AF11: 2030-06-01 | AG11: 2030-07-01 | AH11: 2030-08-01 | AI11: 2030-09-01 | AJ11: 2030-10-01 | AK11: 2030-11-01 | AL11: 2030-12-01 | AM11: 2031-01-01 | AN11: 2031-02-01 | AO11: 2031-03-01 | AP11: 2031-04-01 | AQ11: 2031-05-01 | AR11: 2031-06-01 | AS11: 2031-07-01 | AT11: 2031-08-01 | AU11: 2031-09-01 | AV11: 2031-10-01 | AW11: 2031-11-01 | AX11: 2031-12-01 | AY11: 2032-01-01 | AZ11: 2032-02-01 | BA11: 2032-03-01 | BB11: 2032-04-01 | BC11: 2032-05-01 | BD11: 2032-06-01 | BE11: 2032-07-01 | BF11: 2032-08-01 | BG11: 2032-09-01 | BH11: 2032-10-01 | BI11: 2032-11-01 | BJ11: 2032-12-01 | BK11: 2033-01-01 | BL11: 2033-02-01 | BM11: 2033-03-01 | BN11: 2033-04-01 | BO11: 2033-05-01 | BP11: 2033-06-01 | BQ11: 2033-07-01 | BR11: 2033-08-01 | BS11: 2033-09-01 | BT11: 2033-10-01 | BU11: 2033-11-01 | BV11: 2033-12-01 | BW11: 2034-01-01 | BX11: 2034-02-01 | BY11: 2034-03-01 | BZ11: =EOMONTH(BY11,0)+1 -> 2034-04-01 | CA11: 2034-05-01 | CB11: 2034-06-01 | CC11: 2034-07-01 | CD11: 2034-08-01 | CE11: 2034-09-01 | CG11: =DATE($E$11-1,10,1) -> 2028-10-01 | CH11: =EOMONTH(CG11,0)+1 -> 2028-11-01 | CI11: =EOMONTH(CH11,0)+1 -> 2028-12-01 | CJ11: 2029-01-01 | CK11: 2029-02-01 | CL11: 2029-03-01 | CM11: 2029-04-01 | CN11: 2029-05-01 | CO11: 2029-06-01 | CP11: 2029-07-01 | CQ11: 2029-08-01 | CR11: 2029-09-01 | CS11: 2029-10-01 | CT11: 2029-11-01 | CU11: 2029-12-01 | CV11: 2030-01-01 | CW11: 2030-02-01 | CX11: 2030-03-01 | CY11: 2030-04-01 | CZ11: 2030-05-01 | DA11: 2030-06-01 | DB11: 2030-07-01 | DC11: 2030-08-01 | DD11: 2030-09-01 | DE11: 2030-10-01 | DF11: 2030-11-01 | DG11: 2030-12-01 | DH11: 2031-01-01 | DI11: 2031-02-01 | DJ11: 2031-03-01 | DK11: 2031-04-01 | DL11: 2031-05-01 | DM11: 2031-06-01 | DN11: 2031-07-01 | DO11: 2031-08-01 | DP11: 2031-09-01 | DQ11: 2031-10-01 | DR11: 2031-11-01 | DS11: 2031-12-01 | DT11: 2032-01-01 | DU11: 2032-02-01 | DV11: 2032-03-01 | DW11: 2032-04-01 | DX11: 2032-05-01 | DY11: 2032-06-01 | DZ11: 2032-07-01 | EA11: 2032-08-01 | EB11: 2032-09-01 | EC11: 2032-10-01 | ED11: 2032-11-01 | EE11: 2032-12-01 | EF11: 2033-01-01 | EG11: 2033-02-01 | EH11: 2033-03-01 | EI11: 2033-04-01 | EJ11: 2033-05-01 | EK11: 2033-06-01 | EL11: 2033-07-01 | EM11: 2033-08-01 | EN11: 2033-09-01 | EO11: 2033-10-01 | EP11: 2033-11-01 | EQ11: 2033-12-01 | ER11: 2034-01-01 | ES11: 2034-02-01 | ET11: 2034-03-01 | EU11: =EOMONTH(ET11,0)+1 -> 2034-04-01 | EV11: 2034-05-01 | EW11: 2034-06-01 | EX11: 2034-07-01 | EY11: 2034-08-01 | EZ11: 2034-09-01
A12: Preference | D12: PRE | E12: =+SUM(E13:E17) -> 64477853.53 | F12: 64783388.51 | G12: 64965853.77 | H12: 65217768.92 | I12: 65221351.52 | J12: 65237380.46 | L12: =SUM(L13:L17) -> 2947642.435 | M12: =SUM(M13:M17) -> 3329645.454 | N12: 3831049.177 | O12: 3928890.998 | P12: 3388776.789 | Q12: 3462336.63 | R12: 2873343.393 | S12: 2794717.264 | T12: 3018948.15 | U12: 3094027.507 | V12: 3193659.408 | W12: 2799157.975 | X12: 2956088.619 | Y12: 3331725.089 | Z12: 3837136.26 | AA12: 3958303.227 | AB12: 3397841.281 | AC12: 3442851.093 | AD12: 2874926.393 | AE12: 2925751.822 | AF12: 2973273.525 | AG12: 3139297.293 | AH12: 3209251.411 | AI12: 2812884.419 | AJ12: 2982562.391 | AK12: 3359176.231 | AL12: 3859825.119 | AM12: 3951575.08 | AN12: 3405465.932 | AO12: 3466291.91 | AP12: 2904238.638 | AQ12: 2818626.354 | AR12: 3040909.352 | AS12: 3126424.803 | AT12: 3215964.516 | AU12: 2825361.826 | AV12: 2983448.248 | AW12: 3344103.647 | AX12: 3886403.967 | AY12: 3975155.217 | AZ12: 3460037.364 | BA12: 3471437.204 | BB12: 2890015.991 | BC12: 2932088.572 | BD12: 2990813.377 | BE12: 3148784.178 | BF12: 3216328.598 | BG12: 2827531.388 | BH12: 2990768.59 | BI12: 3370034.11 | BJ12: 3895795.822 | BK12: 3939024.738 | BL12: 3424658.636 | BM12: 3498987.125 | BN12: 2915383.411 | BO12: 2825492.647 | BP12: 3056353.19 | BQ12: 3132981.478 | BR12: 3234683.531 | BS12: 2837684.088 | BT12: 2989774.758 | BU12: 3365278.078 | BV12: 3896370.763 | BW12: 3955441.667 | BX12: 3432031.787 | BY12: =SUM(BY13:BY17) -> 3477544.038 | BZ12: 2888788.094 | CA12: 2939737.299 | CB12: 2993979.541 | CC12: 3146446.553 | CD12: 3226228.67 | CE12: =SUM(CE13:CE17) -> 2832575.443 | CG12: =SUM(CG13:CG17) -> 1885833.644 | CH12: =SUM(CH13:CH17) -> 2329458.187 | CI12: 2758900.826 | CJ12: 2733998.313 | CK12: 2233149.099 | CL12: 2261037.28 | CM12: 1934843.461 | CN12: 1919486.319 | CO12: 1802059.323 | CP12: 2119530.277 | CQ12: 1902333.821 | CR12: 1935027.805 | CS12: 1884233.336 | CT12: 2333286.802 | CU12: 2758334.834 | CV12: 2713329.548 | CW12: 2236005.59 | CX12: 2294009.52 | CY12: 1924980.741 | CZ12: 1990896.597 | DA12: 1802941.516 | DB12: 2135397.15 | DC12: 1908730.56 | DD12: 1941911.883 | DE12: 1900342.863 | DF12: 2349795.549 | DG12: 2781037.808 | DH12: 2748976.527 | DI12: 2243239.275 | DJ12: 2282717.26 | DK12: 1944077.05 | DL12: 1935448.388 | DM12: 1819934.452 | DN12: 2131414.527 | DO12: 1922537.828 | DP12: 1949910.093 | DQ12: 1900888.152 | DR12: 2364360.326 | DS12: 2754166.942 | DT12: 2724531.111 | DU12: 2301879.176 | DV12: 2292258.599 | DW12: 1933967.303 | DX12: 2003028.546 | DY12: 1807466.939 | DZ12: 2140099.305 | EA12: 1920804.971 | EB12: 1948169.798 | EC12: 1911823.361 | ED12: 2355983.961 | EE12: 2766094.257 | EF12: 2782110.101 | EG12: 2255789.353 | EH12: 2283729.24 | EI12: 1949960.387 | EJ12: 1943235.98 | EK12: 1823633.169 | EL12: 2144749.469 | EM12: 1924655.415 | EN12: 1957739.464 | EO12: 1910675.312 | EP12: 2356123.407 | EQ12: 2760030.555 | ER12: 2749862.837 | ES12: 2257395.646 | ET12: =SUM(ET13:ET17) -> 2295072.302 | EU12: 1942907.692 | EV12: 1998629.981 | EW12: 1807922.899 | EX12: 2146719.988 | EY12: 1917128.27 | EZ12: 1950714.883
B13: Block | D13: PRE_BLK | E13: =+SUM(L13:W13,CG13:CR13) -> 5202739.2 | F13: =+SUM(X13:AI13,CS13:DD13) -> 5202809.28 | G13: =+SUM(AJ13:AU13,DE13:DP13) -> 5202809.28 | H13: =+SUM(AV13:BG13,DQ13:EB13) -> 5207181.552 | I13: =+SUM(BH13:BS13,EC13:EN13) -> 5192954.28 | J13: =+SUM(BT13:CE13,EO13:EZ13) -> 5184439.56 | L13: =L3+($G$5*L4+$G$6*L5) -> 242484.1996 | M13: =M3+$G$5*M4+$G$6*M5 -> 388037.6836 | N13: 399200.89 | O13: 439869.8029 | P13: 374366.032 | Q13: 392547.2817 | R13: 185838.5466 | S13: 68153.7636 | T13: 9143.947296 | U13: 155655.0178 | V13: 176295.2423 | W13: 280860.0855 | X13: 242651.8871 | Y13: 388042.8649 | Z13: 399206.2195 | AA13: 439875.8371 | AB13: 374371.1934 | AC13: 391781.8752 | AD13: 185890.9156 | AE13: 68154.6834 | AF13: 9144.147024 | AG13: 155841.0883 | AH13: 176297.5589 | AI13: 280863.735 | AJ13: 242651.8871 | AK13: 388042.8649 | AL13: 399206.2195 | AM13: 439875.8371 | AN13: 374371.1934 | AO13: 391781.8752 | AP13: 185890.9156 | AQ13: 68154.6834 | AR13: 9144.147024 | AS13: 155841.0883 | AT13: 176108.7605 | AU13: 281253.9182 | AV13: 242855.8891 | AW13: 387624.073 | AX13: 400195.8015 | AY13: 440245.4442 | AZ13: 373939.9543 | BA13: 392882.4957 | BB13: 186047.2057 | BC13: 68211.94118 | BD13: 9151.775539 | BE13: 155972.0266 | BF13: 176256.7862 | BG13: 281490.3488 | BH13: 242028.0689 | BI13: 387307.8878 | BJ13: 399102.3704 | BK13: 438124.5548 | BL13: 373662.0171 | BM13: 391809.0463 | BN13: 185538.88 | BO13: 68025.56976 | BP13: 9126.770688 | BQ13: 155362.2669 | BR13: 175963.6486 | BS13: 280721.2495 | BT13: 241631.2106 | BU13: 386672.8505 | BV13: 398447.978 | BW13: 437406.1882 | BX13: 373049.3514 | BY13: =BY3+$G$5*BY4+$G$6*BY5 -> 391166.625 | BZ13: 185184.793 | CA13: 67914.01116 | CB13: 9111.791088 | CC13: 155107.508 | CD13: 175675.1196 | CE13: 280260.964 | CG13: =CG3+$G$5*CG4+$G$6*CG5 -> 162177.3253 | CH13: =CH3+$G$5*CH4+$G$6*CH5 -> 261219.2648 | CI13: 269292.5453 | CJ13: 296159.0802 | CK13: 251378.1303 | CL13: 262806.1011 | CM13: 124059.1029 | CN13: 45435.8424 | CO13: 6095.964864 | CP13: 104659.1045 | CQ13: 117813.3481 | CR13: 189190.8973 | CS13: 162014.8149 | CT13: 261222.8173 | CU13: 269296.2212 | CV13: 296163.2163 | CW13: 251381.6413 | CX13: 263580.4603 | CY13: 124010.6496 | CZ13: 45436.4556 | DA13: 6096.098016 | DB13: 104476.5905 | DC13: 117814.9034 | DD13: 189193.4062 | DE13: 162014.8149 | DF13: 261222.8173 | DG13: 269296.2212 | DH13: 296163.2163 | DI13: 251381.6413 | DJ13: 263580.4603 | DK13: 124010.6496 | DL13: 45436.4556 | DM13: 6096.098016 | DN13: 104476.5905 | DO13: 118003.7018 | DP13: 188803.223 | DQ13: 162151.0206 | DR13: 262187.2686 | DS13: 268868.4342 | DT13: 296412.0317 | DU13: 252338.6296 | DV13: 263030.5373 | DW13: 124114.912 | DX13: 45474.62746 | DY13: 6101.183693 | DZ13: 104564.3648 | EA13: 118102.8804 | EB13: 188961.9198 | EC13: 161872.2646 | ED13: 260728.0129 | EE13: 268133.821 | EF13: 296520.1957 | EG13: 250905.4232 | EH13: 262311.8746 | EI13: 123775.8002 | EJ13: 45350.37984 | EK13: 6084.513792 | EL13: 104462.2764 | EM13: 117591.7566 | EN13: 188445.6304 | EO13: 161606.8405 | EP13: 260300.5236 | EQ13: 267694.177 | ER13: 296034.0185 | ES13: 250494.0361 | ET13: =ET3+$G$5*ET4+$G$6*ET5 -> 261881.7828 | EU13: 123622.6832 | EV13: 45276.00744 | EW13: 6074.527392 | EX13: 104290.984 | EY13: 117398.9411 | EZ13: 188136.6477
B14: Slice Block | D14: PRE_BLK | E14: =+SUM(L14:W14,CG14:CR14) -> 11760515.73 | F14: =+SUM(X14:AI14,CS14:DD14) -> 11629793.27 | G14: 11746375.48 | H14: 11625856.86 | I14: 11761952.57 | J14: 11598050.27 | L14: 513008.2335 | M14: 573611.0013 | N14: 656091.4861 | O14: 674733.3964 | P14: 575971.0341 | Q14: 601249.3346 | R14: 513221.5457 | S14: 510266.9704 | T14: 488571.7448 | U14: 485931.7798 | V14: 521240.4708 | W14: 456777.2865 | X14: 526790.9975 | Y14: 567225.0668 | Z14: 648805.6581 | AA14: 667267.216 | AB14: 569560.9973 | AC14: 572515.4678 | AD14: 527778.1106 | AE14: 504641.708 | AF14: 464543.0607 | AG14: 499782.4609 | AH14: 515473.0354 | AI14: 451684.5427 | AJ14: 532064.8549 | AK14: 572959.2023 | AL14: 655385.916 | AM14: 674014.6681 | AN14: 575299.9741 | AO14: 578262.9555 | AP14: 533052.4213 | AQ14: 509726.9154 | AR14: 469129.0253 | AS14: 504734.853 | AT14: 501294.6734 | AU14: 475185.8087 | AV14: 526628.1648 | AW14: 544382.4348 | AX14: 674568.728 | AY14: 667080.9012 | AZ14: 549752.2681 | BA14: 594331.5139 | BB14: 527577.9217 | BC14: 485067.4083 | BD14: 482934.6604 | BE14: 499575.4562 | BF14: 496175.9821 | BG14: 470327.1521 | BH14: 513078.1342 | BI14: 573728.5261 | BJ14: 682487.8042 | BK14: 648922.5527 | BL14: 576068.9467 | BM14: 601320.6664 | BN14: 533785.145 | BO14: 490716.6986 | BP14: 488574.6016 | BQ14: 485938.9274 | BR14: 521245.1948 | BS14: 475834.6775 | BT14: 505914.639 | BU14: 565776.635 | BV14: 673059.5058 | BW14: 639984.6812 | BX14: 568063.6182 | BY14: 592902.8277 | BZ14: 506025.139 | CA14: 503296.7589 | CB14: 481691.1557 | CC14: 479140.3444 | CD14: 513944.6492 | CE14: 469150.4767 | CG14: 404487.2611 | CH14: 460322.8285 | CI14: 564238.678 | CJ14: 532001.3318 | CK14: 431978.2756 | CL14: 432843.8497 | CM14: 410577.2365 | CN14: 402325.8805 | CO14: 357033.1981 | CP14: 417901.3306 | CQ14: 376451.4512 | CR14: 399680.1257 | CS14: 380460.1649 | CT14: 455198.1161 | CU14: 557972.8659 | CV14: 526114.5357 | CW14: 427170.748 | CX14: 450030.1875 | CY14: 385684.0039 | CZ14: 397890.5775 | DA14: 371634.4486 | DB14: 394059.248 | DC14: 372286.0811 | DD14: 395223.9748 | DE14: 384269.0618 | DF14: 459799.7599 | DG14: 563631.8878 | DH14: 531434.6422 | DI14: 431474.9806 | DJ14: 454548.0443 | DK14: 389538.3079 | DL14: 401900.0679 | DM14: 375303.2202 | DN14: 397964.0187 | DO14: 395251.5694 | DP14: 380148.6469 | DQ14: 380342.5635 | DR14: 477752.293 | DS14: 531871.4971 | DT14: 525967.6336 | DU14: 446673.7178 | DV14: 427863.6593 | DW14: 385537.712 | DX14: 417157.9711 | DY14: 352913.7903 | DZ14: 393896.0328 | EA14: 391215.6782 | EB14: 376261.7217 | EC14: 404542.3751 | ED14: 460417.1422 | EE14: 538115.384 | EF14: 558073.3953 | EG14: 432051.71 | EH14: 432895.202 | EI14: 390073.7598 | EJ14: 422016.3608 | EK14: 357035.2858 | EL14: 417907.4776 | EM14: 376454.8629 | EN14: 380667.742 | EO14: 398894.2346 | EP14: 454035.7496 | EQ14: 530681.5334 | ER14: 550386.8258 | ES14: 426047.7137 | ET14: 426835.1375 | EU14: 404820.1112 | EV14: 396830.1369 | EW14: 352005.0753 | EX14: 412060.6962 | EY14: 371182.2466 | EZ14: 375320.3814
B15: Slice | D15: PRE_SNB | E15: =+SUM(L15:W15,CG15:CR15) -> 12117273.27 | F15: =+SUM(X15:AI15,CS15:DD15) -> 12240628.57 | G15: 12120288.32 | H15: 12272666.53 | I15: 12075435.31 | J15: 12200355.61 | L15: 511800.2298 | M15: 636014.3759 | N15: 717220.3707 | O15: 691137.2632 | P15: 629821.327 | Q15: 670761.6894 | R15: 535477.1169 | S15: 572908.8206 | T15: 762493.4599 | U15: 617848.7396 | V15: 597035.8013 | W15: 512097.8698 | X15: 515578.5929 | Y15: 633271.609 | Z15: 719911.5303 | AA15: 714284.506 | AB15: 630996.1704 | AC15: 649224.63 | AD15: 524685.6376 | AE15: 691163.0506 | AF15: 701590.9685 | AG15: 649603.7468 | AH15: 598179.422 | AI15: 513168.754 | AJ15: 516816.9875 | AK15: 636569.2722 | AL15: 717775.267 | AM15: 691714.3554 | AN15: 630354.0275 | AO15: 665646.1407 | AP15: 540517.913 | AQ15: 572908.8206 | AR15: 757336.6777 | AS15: 624077.5611 | AT15: 591543.1124 | AU15: 517713.561 | AV15: 515578.5929 | AW15: 628254.268 | AX15: 725874.916 | AY15: 714861.5982 | AZ15: 649310.5004 | BA15: 654332.0987 | BB15: 524685.6376 | BC15: 683953.8543 | BD15: 707406.0703 | BE15: 647701.3273 | BF15: 589799.7347 | BG15: 518721.8318 | BH15: 510232.1938 | BI15: 633724.3891 | BJ15: 721696.5694 | BK15: 683249.0054 | BL15: 628305.4612 | BM15: 668344.8151 | BN15: 537002.3931 | BO15: 564394.4482 | BP15: 760435.5109 | BQ15: 616774.4121 | BR15: 595635.8544 | BS15: 517650.9476 | BT15: 508993.7991 | BU15: 630007.1232 | BV15: 724387.729 | BW15: 707482.0646 | BX15: 629480.3045 | BY15: 651923.3044 | BZ15: 516358.4428 | CA15: 689116.3234 | CB15: 704677.279 | CC15: 641200.2135 | CD15: 595804.8622 | CE15: 518721.8318 | CG15: 322537.0062 | CH15: 434654.3796 | CI15: 435118.4078 | CJ15: 467993.7001 | CK15: 375859.6469 | CL15: 392761.9341 | CM15: 341933.9517 | CN15: 408146.06 | CO15: 400195.4178 | CP15: 384921.0551 | CQ15: 348302.0382 | CR15: 350232.607 | CS15: 318576.2236 | CT15: 436033.2503 | CU15: 431786.1531 | CV15: 444077.8037 | CW15: 374084.7535 | CX15: 412796.7103 | CY15: 327383.9864 | CZ15: 471364.4886 | DA15: 395553.4929 | DB15: 391962.5786 | DC15: 346711.6543 | DD15: 348638.8531 | DE15: 318248.1904 | DF15: 434655.7792 | DG15: 435119.7713 | DH15: 467995.0652 | DI15: 375861.0167 | DJ15: 397149.303 | DK15: 337621.3925 | DL15: 408146.06 | DM15: 404624.4549 | DN15: 379389.3285 | DO15: 353066.9312 | DP15: 345437.3355 | DQ15: 318576.2236 | DR15: 440786.3611 | DS15: 427076.2911 | DT15: 444079.1687 | DU15: 391493.6536 | DV15: 408417.4214 | DW15: 327383.9864 | DX15: 477876.2449 | DY15: 390466.1363 | DZ15: 390326.4979 | EA15: 351910.6238 | EB15: 343793.491 | EC15: 321286.2193 | ED15: 431301.3421 | EE15: 429235.9563 | EF15: 472444.2594 | EG15: 374324.592 | EH15: 391035.9052 | EI15: 335052.3588 | EJ15: 408007.4799 | EK15: 398705.5106 | EL15: 383982.1111 | EM15: 347226.3274 | EN15: 345387.2449 | EO15: 321614.2524 | EP15: 432969.5957 | EQ15: 425903.7015 | ER15: 447479.5714 | ES15: 372549.6986 | ET15: 406683.3124 | EU15: 330368.5744 | EV15: 469604.3032 | EW15: 388472.0196 | EX15: 396130.5167 | EY15: 346633.2923 | EZ15: 343793.491
B16: Load Following | D16: PRE_LDF | E16: 31196966.65 | F16: 31339723.31 | G16: 31358902.17 | H16: 31366841.76 | I16: 31256571.44 | J16: 31108297.82 | L16: 1480880.684 | M16: 1540185.193 | N16: 1866739.231 | O16: 1923681.447 | P16: 1624493.084 | Q16: 1590637.348 | R16: 1447008.984 | S16: 1443918.622 | T16: 1559269.91 | U16: 1642794.77 | V16: 1691946.918 | W16: 1365297.421 | X16: 1455538.885 | Y16: 1543622.348 | Z16: 1869649.652 | AA16: 1929329.94 | AB16: 1631332.248 | AC16: 1621783.392 | AD16: 1429026.002 | AE16: 1454246.652 | AF16: 1598432.149 | AG16: 1626524.269 | AH16: 1703773.138 | AI16: 1375586.715 | AJ16: 1467262.597 | AK16: 1554414.091 | AL16: 1880266.916 | AM16: 1930491.787 | AN16: 1626537.569 | AO16: 1615122.507 | AP16: 1429298.956 | AQ16: 1452357.503 | AR16: 1598108.702 | AS16: 1626292.869 | AT16: 1731539.538 | AU16: 1344017.739 | AV16: 1465014.017 | AW16: 1576401.463 | AX16: 1861036.33 | AY16: 1928239.081 | AZ16: 1679593.234 | BA16: 1596519.512 | BB16: 1426977.034 | BC16: 1478770.568 | BD16: 1566592.678 | BE16: 1620807.176 | BF16: 1729367.903 | BG16: 1340907.255 | BH16: 1491100.721 | BI16: 1549956.506 | BJ16: 1858179.606 | BK16: 1943411.825 | BL16: 1630318.083 | BM16: 1594170.453 | BN16: 1424727.521 | BO16: 1477039.13 | BP16: 1563886.834 | BQ16: 1649589.072 | BR16: 1698496.689 | BS16: 1338160.414 | BT16: 1488847.59 | BU16: 1547833.469 | BV16: 1856088.03 | BW16: 1935580.733 | BX16: 1635850.032 | BY16: 1587764.241 | BZ16: 1446231.719 | CA16: 1435022.686 | CB16: 1554111.795 | CC16: 1636010.487 | CD16: 1687016.999 | CE16: 1329454.171 | CG16: 839358.347 | CH16: 1019344.462 | CI16: 1325305.602 | CJ16: 1280570.497 | CK16: 1035839.062 | CL16: 1023503.072 | CM16: 904835.4096 | CN16: 906304.8322 | CO16: 892968.8705 | CP16: 1047103.194 | CQ16: 910165.167 | CR16: 834814.5271 | CS16: 867522.8368 | CT16: 1020683.151 | CU16: 1327655.242 | CV16: 1283332.168 | CW16: 1039682.943 | CX16: 1004459.246 | CY16: 936234.0694 | CZ16: 912563.2517 | DA16: 870006.9165 | DB16: 1081256.908 | DC16: 916258.6256 | DD16: 841222.561 | DE16: 874201.9717 | DF16: 1027846.576 | DG16: 1334805.84 | DH16: 1283487.148 | DI16: 1035344.261 | DJ16: 998060.9734 | DK16: 935441.692 | DL16: 910069.3479 | DM16: 868158.0387 | DN16: 1079688.133 | DO16: 886319.1695 | DP16: 869768.2475 | DQ16: 871272.2006 | DR16: 1001582.959 | DS16: 1349161.183 | DT16: 1280882.741 | DU16: 1042827.03 | DV16: 1024941.049 | DW16: 932706.2442 | DX16: 876686.7742 | DY16: 893761.3805 | DZ16: 1074122.873 | EA16: 882386.2528 | EB16: 866284.8251 | EC16: 839362.7262 | ED16: 1022720.732 | EE16: 1345849.319 | EF16: 1261299.802 | EG16: 1036279.532 | EH16: 1022302.446 | EI16: 929817.7002 | EJ16: 874089.311 | EK16: 890567.0905 | EL16: 1044625.156 | EM16: 907635.3641 | EN16: 862985.4071 | EO16: 835869.8242 | EP16: 1020239.669 | EQ16: 1343060.983 | ER16: 1253872.741 | ES16: 1039112.838 | ET16: 1016968.899 | EU16: 896105.9228 | EV16: 894229.3733 | EW16: 882780.3965 | EX16: 1032148.111 | EY16: 898623.1501 | EZ16: 855473.9631
B17: Tier 2 | D17: PRE_T2 | E17: 4200358.68 | F17: 4370434.08 | G17: =+SUM(AJ17:AU17,DE17:DP17) -> 4537478.52 | H17: 4745222.208 | I17: 4934437.92 | J17: 5146237.2 | L17: 199469.088 | M17: 191797.2 | N17: 191797.2 | O17: 199469.088 | P17: 184125.312 | Q17: 207140.976 | R17: 191797.2 | S17: 199469.088 | T17: 199469.088 | U17: 191797.2 | V17: 207140.976 | W17: 184125.312 | X17: 215528.256 | Y17: 199563.2 | Z17: 199563.2 | AA17: 207545.728 | AB17: 191580.672 | AC17: 207545.728 | AD17: 207545.728 | AE17: 207545.728 | AF17: 199563.2 | AG17: 207545.728 | AH17: 215528.256 | AI17: 191580.672 | AJ17: 223766.064 | AK17: 207190.8 | AL17: 207190.8 | AM17: 215478.432 | AN17: 198903.168 | AO17: 215478.432 | AP17: 215478.432 | AQ17: 215478.432 | AR17: 207190.8 | AS17: 215478.432 | AT17: 215478.432 | AU17: 207190.8 | AV17: 233371.584 | AW17: 207441.408 | AX17: 224728.192 | AY17: 224728.192 | AZ17: 207441.408 | BA17: 233371.584 | BB17: 224728.192 | BC17: 216084.8 | BD17: 224728.192 | BE17: 224728.192 | BF17: 224728.192 | BG17: 216084.8 | BH17: 234329.472 | BI17: 225316.8 | BJ17: 234329.472 | BK17: 225316.8 | BL17: 216304.128 | BM17: 243342.144 | BN17: 234329.472 | BO17: 225316.8 | BP17: 234329.472 | BQ17: 225316.8 | BR17: 243342.144 | BS17: 225316.8 | BT17: 244387.52 | BU17: 234988 | BV17: 244387.52 | BW17: 234988 | BX17: 225588.48 | BY17: 253787.04 | BZ17: 234988 | CA17: 244387.52 | CB17: 244387.52 | CC17: 234988 | CD17: 253787.04 | CE17: 234988 | CG17: 157273.704 | CH17: 153917.253 | CI17: 164945.592 | CJ17: 157273.704 | CK17: 138093.984 | CL17: 149122.323 | CM17: 153437.76 | CN17: 157273.704 | CO17: 145765.872 | CP17: 164945.592 | CQ17: 149601.816 | CR17: 161109.648 | CS17: 155659.296 | CT17: 160149.468 | CU17: 171624.352 | CV17: 163641.824 | CW17: 143685.504 | CX17: 163142.916 | CY17: 151668.032 | CZ17: 163641.824 | DA17: 159650.56 | DB17: 163641.824 | DC17: 155659.296 | DD17: 167633.088 | DE17: 161608.824 | DF17: 166270.617 | DG17: 178184.088 | DH17: 169896.456 | DI17: 149177.376 | DJ17: 169378.479 | DK17: 157465.008 | DL17: 169896.456 | DM17: 165752.64 | DN17: 169896.456 | DO17: 169896.456 | DP17: 165752.64 | DQ17: 168546.144 | DR17: 182051.444 | DS17: 177189.536 | DT17: 177189.536 | DU17: 168546.144 | DV17: 168005.932 | DW17: 164224.448 | DX17: 185832.928 | DY17: 164224.448 | DZ17: 177189.536 | EA17: 177189.536 | EB17: 172867.84 | EC17: 184759.776 | ED17: 180816.732 | EE17: 184759.776 | EF17: 193772.448 | EG17: 162228.096 | EH17: 175183.812 | EI17: 171240.768 | EJ17: 193772.448 | EK17: 171240.768 | EL17: 193772.448 | EM17: 175747.104 | EN17: 180253.44 | EO17: 192690.16 | EP17: 188577.87 | EQ17: 192690.16 | ER17: 202089.68 | ES17: 169191.36 | ET17: 182703.17 | EU17: 187990.4 | EV17: 192690.16 | EW17: 178590.88 | EX17: 202089.68 | EY17: 183290.64 | EZ17: 187990.4
A18: Industrial | D18: IND | E18: =+SUM(E19:E20) -> 96360 | F18: =+SUM(F19:F20) -> 96360 | G18: 96360 | H18: 96624 | I18: 96360 | J18: 96360 | L18: =SUM(L19:L20) -> 4660.406 | M18: =SUM(M19:M20) -> 4350.871 | N18: 4408.261 | O18: 4424.143 | P18: 4154.952 | Q18: 4657.349 | R18: 4477.511 | S18: 4478.292 | T18: 4524.994 | U18: 4421.576 | V18: 4702.721 | W18: 4189.254 | X18: 4660.406 | Y18: 4350.871 | Z18: 4408.261 | AA18: 4424.143 | AB18: 4154.952 | AC18: 4657.349 | AD18: 4477.511 | AE18: 4478.292 | AF18: 4524.994 | AG18: 4421.576 | AH18: 4702.721 | AI18: 4189.254 | AJ18: 4660.406 | AK18: 4350.871 | AL18: 4408.261 | AM18: 4424.143 | AN18: 4154.952 | AO18: 4657.349 | AP18: 4477.511 | AQ18: 4478.292 | AR18: 4524.994 | AS18: 4421.576 | AT18: 4702.721 | AU18: 4189.254 | AV18: 4660.406 | AW18: 4350.871 | AX18: 4408.261 | AY18: 4424.143 | AZ18: 4303.342 | BA18: 4657.349 | BB18: 4477.511 | BC18: 4478.292 | BD18: 4524.994 | BE18: 4421.576 | BF18: 4702.721 | BG18: 4189.254 | BH18: 4660.406 | BI18: 4350.871 | BJ18: 4408.261 | BK18: 4424.143 | BL18: 4154.952 | BM18: 4657.349 | BN18: 4477.511 | BO18: 4478.292 | BP18: 4524.994 | BQ18: 4421.576 | BR18: 4702.721 | BS18: 4189.254 | BT18: 4660.406 | BU18: 4350.871 | BV18: 4408.261 | BW18: 4424.143 | BX18: 4154.952 | BY18: =SUM(BY19:BY20) -> 4657.349 | BZ18: 4477.511 | CA18: 4478.292 | CB18: 4524.994 | CC18: 4421.576 | CD18: 4702.721 | CE18: 4189.254 | CG18: =SUM(CG19:CG20) -> 3523.594 | CH18: =SUM(CH19:CH20) -> 3580.129 | CI18: 3775.739 | CJ18: 3759.857 | CK18: 3237.048 | CL18: 3515.651 | CM18: 3442.489 | CN18: 3705.708 | CO18: 3395.006 | CP18: 3762.424 | CQ18: 3481.279 | CR18: 3730.746 | CS18: 3523.594 | CT18: 3580.129 | CU18: 3775.739 | CV18: 3759.857 | CW18: 3237.048 | CX18: 3515.651 | CY18: 3442.489 | CZ18: 3705.708 | DA18: 3395.006 | DB18: 3762.424 | DC18: 3481.279 | DD18: 3730.746 | DE18: 3523.594 | DF18: 3580.129 | DG18: 3775.739 | DH18: 3759.857 | DI18: 3237.048 | DJ18: 3515.651 | DK18: 3442.489 | DL18: 3705.708 | DM18: 3395.006 | DN18: 3762.424 | DO18: 3481.279 | DP18: 3730.746 | DQ18: 3523.594 | DR18: 3580.129 | DS18: 3775.739 | DT18: 3759.857 | DU18: 3352.658 | DV18: 3515.651 | DW18: 3442.489 | DX18: 3705.708 | DY18: 3395.006 | DZ18: 3762.424 | EA18: 3481.279 | EB18: 3730.746 | EC18: 3523.594 | ED18: 3580.129 | EE18: 3775.739 | EF18: 3759.857 | EG18: 3237.048 | EH18: 3515.651 | EI18: 3442.489 | EJ18: 3705.708 | EK18: 3395.006 | EL18: 3762.424 | EM18: 3481.279 | EN18: 3730.746 | EO18: 3523.594 | EP18: 3580.129 | EQ18: 3775.739 | ER18: 3759.857 | ES18: 3237.048 | ET18: =SUM(ET19:ET20) -> 3515.651 | EU18: 3442.489 | EV18: 3705.708 | EW18: 3395.006 | EX18: 3762.424 | EY18: 3481.279 | EZ18: 3730.746
B19: Smelter | D19: IND_SMT | E19: 0 | F19: 0 | G19: =+SUM(AJ19:AU19,DE19:DP19) -> 0 | H19: 0 | I19: 0 | J19: 0 | L19: 0 | M19: 0 | N19: 0 | O19: 0 | P19: 0 | Q19: 0 | R19: 0 | S19: 0 | T19: 0 | U19: 0 | V19: 0 | W19: 0 | X19: 0 | Y19: 0 | Z19: 0 | AA19: 0 | AB19: 0 | AC19: 0 | AD19: 0 | AE19: 0 | AF19: 0 | AG19: 0 | AH19: 0 | AI19: 0 | AJ19: 0 | AK19: 0 | AL19: 0 | AM19: 0 | AN19: 0 | AO19: 0 | AP19: 0 | AQ19: 0 | AR19: 0 | AS19: 0 | AT19: 0 | AU19: 0 | AV19: 0 | AW19: 0 | AX19: 0 | AY19: 0 | AZ19: 0 | BA19: 0 | BB19: 0 | BC19: 0 | BD19: 0 | BE19: 0 | BF19: 0 | BG19: 0 | BH19: 0 | BI19: 0 | BJ19: 0 | BK19: 0 | BL19: 0 | BM19: 0 | BN19: 0 | BO19: 0 | BP19: 0 | BQ19: 0 | BR19: 0 | BS19: 0 | BT19: 0 | BU19: 0 | BV19: 0 | BW19: 0 | BX19: 0 | BY19: 0 | BZ19: 0 | CA19: 0 | CB19: 0 | CC19: 0 | CD19: 0 | CE19: 0 | CG19: 0 | CH19: 0 | CI19: 0 | CJ19: 0 | CK19: 0 | CL19: 0 | CM19: 0 | CN19: 0 | CO19: 0 | CP19: 0 | CQ19: 0 | CR19: 0 | CS19: 0 | CT19: 0 | CU19: 0 | CV19: 0 | CW19: 0 | CX19: 0 | CY19: 0 | CZ19: 0 | DA19: 0 | DB19: 0 | DC19: 0 | DD19: 0 | DE19: 0 | DF19: 0 | DG19: 0 | DH19: 0 | DI19: 0 | DJ19: 0 | DK19: 0 | DL19: 0 | DM19: 0 | DN19: 0 | DO19: 0 | DP19: 0 | DQ19: 0 | DR19: 0 | DS19: 0 | DT19: 0 | DU19: 0 | DV19: 0 | DW19: 0 | DX19: 0 | DY19: 0 | DZ19: 0 | EA19: 0 | EB19: 0 | EC19: 0 | ED19: 0 | EE19: 0 | EF19: 0 | EG19: 0 | EH19: 0 | EI19: 0 | EJ19: 0 | EK19: 0 | EL19: 0 | EM19: 0 | EN19: 0 | EO19: 0 | EP19: 0 | EQ19: 0 | ER19: 0 | ES19: 0 | ET19: 0 | EU19: 0 | EV19: 0 | EW19: 0 | EX19: 0 | EY19: 0 | EZ19: 0
B20: Other Industrial | D20: IND_OTH | E20: 96360 | F20: 96360 | G20: 96360 | H20: 96624 | I20: 96360 | J20: 96360 | L20: =L6+$G$7*L7 -> 4660.406 | M20: =M6+$G$7*M7 -> 4350.871 | N20: 4408.261 | O20: 4424.143 | P20: 4154.952 | Q20: 4657.349 | R20: 4477.511 | S20: 4478.292 | T20: 4524.994 | U20: 4421.576 | V20: 4702.721 | W20: 4189.254 | X20: 4660.406 | Y20: 4350.871 | Z20: 4408.261 | AA20: 4424.143 | AB20: 4154.952 | AC20: 4657.349 | AD20: 4477.511 | AE20: 4478.292 | AF20: 4524.994 | AG20: 4421.576 | AH20: 4702.721 | AI20: 4189.254 | AJ20: 4660.406 | AK20: 4350.871 | AL20: 4408.261 | AM20: 4424.143 | AN20: 4154.952 | AO20: 4657.349 | AP20: 4477.511 | AQ20: 4478.292 | AR20: 4524.994 | AS20: 4421.576 | AT20: 4702.721 | AU20: 4189.254 | AV20: 4660.406 | AW20: 4350.871 | AX20: 4408.261 | AY20: 4424.143 | AZ20: 4303.342 | BA20: 4657.349 | BB20: 4477.511 | BC20: 4478.292 | BD20: 4524.994 | BE20: 4421.576 | BF20: 4702.721 | BG20: 4189.254 | BH20: 4660.406 | BI20: 4350.871 | BJ20: 4408.261 | BK20: 4424.143 | BL20: 4154.952 | BM20: 4657.349 | BN20: 4477.511 | BO20: 4478.292 | BP20: 4524.994 | BQ20: 4421.576 | BR20: 4702.721 | BS20: 4189.254 | BT20: 4660.406 | BU20: 4350.871 | BV20: 4408.261 | BW20: 4424.143 | BX20: 4154.952 | BY20: =BY6+$G$7*BY7 -> 4657.349 | BZ20: 4477.511 | CA20: 4478.292 | CB20: 4524.994 | CC20: 4421.576 | CD20: 4702.721 | CE20: 4189.254 | CG20: =CG6+$G$7*CG7 -> 3523.594 | CH20: =CH6+$G$7*CH7 -> 3580.129 | CI20: 3775.739 | CJ20: 3759.857 | CK20: 3237.048 | CL20: 3515.651 | CM20: 3442.489 | CN20: 3705.708 | CO20: 3395.006 | CP20: 3762.424 | CQ20: 3481.279 | CR20: 3730.746 | CS20: 3523.594 | CT20: 3580.129 | CU20: 3775.739 | CV20: 3759.857 | CW20: 3237.048 | CX20: 3515.651 | CY20: 3442.489 | CZ20: 3705.708 | DA20: 3395.006 | DB20: 3762.424 | DC20: 3481.279 | DD20: 3730.746 | DE20: 3523.594 | DF20: 3580.129 | DG20: 3775.739 | DH20: 3759.857 | DI20: 3237.048 | DJ20: 3515.651 | DK20: 3442.489 | DL20: 3705.708 | DM20: 3395.006 | DN20: 3762.424 | DO20: 3481.279 | DP20: 3730.746 | DQ20: 3523.594 | DR20: 3580.129 | DS20: 3775.739 | DT20: 3759.857 | DU20: 3352.658 | DV20: 3515.651 | DW20: 3442.489 | DX20: 3705.708 | DY20: 3395.006 | DZ20: 3762.424 | EA20: 3481.279 | EB20: 3730.746 | EC20: 3523.594 | ED20: 3580.129 | EE20: 3775.739 | EF20: 3759.857 | EG20: 3237.048 | EH20: 3515.651 | EI20: 3442.489 | EJ20: 3705.708 | EK20: 3395.006 | EL20: 3762.424 | EM20: 3481.279 | EN20: 3730.746 | EO20: 3523.594 | EP20: 3580.129 | EQ20: 3775.739 | ER20: 3759.857 | ES20: 3237.048 | ET20: =ET6+$G$7*ET7 -> 3515.651 | EU20: 3442.489 | EV20: 3705.708 | EW20: 3395.006 | EX20: 3762.424 | EY20: 3481.279 | EZ20: 3730.746
A21: New Resource | D21: NR | E21: 9.856 | F21: 9.856 | G21: 9.856 | H21: 9.856 | I21: 9.856 | J21: 9.856 | L21: =L8+$G$8*L9 -> 0.432 | M21: =M8+$G$8*M9 -> 0.4 | N21: 0.4 | O21: 0.416 | P21: 0.4 | Q21: 0.416 | R21: 0.416 | S21: 0.4 | T21: 0.416 | U21: 0.416 | V21: 0.416 | W21: 0.4 | X21: 0.432 | Y21: 0.4 | Z21: 0.4 | AA21: 0.416 | AB21: 0.4 | AC21: 0.416 | AD21: 0.416 | AE21: 0.4 | AF21: 0.416 | AG21: 0.416 | AH21: 0.416 | AI21: 0.4 | AJ21: 0.432 | AK21: 0.4 | AL21: 0.4 | AM21: 0.416 | AN21: 0.4 | AO21: 0.416 | AP21: 0.416 | AQ21: 0.4 | AR21: 0.416 | AS21: 0.416 | AT21: 0.416 | AU21: 0.4 | AV21: 0.432 | AW21: 0.4 | AX21: 0.4 | AY21: 0.416 | AZ21: 0.4 | BA21: 0.416 | BB21: 0.416 | BC21: 0.4 | BD21: 0.416 | BE21: 0.416 | BF21: 0.416 | BG21: 0.4 | BH21: 0.432 | BI21: 0.4 | BJ21: 0.4 | BK21: 0.416 | BL21: 0.4 | BM21: 0.416 | BN21: 0.416 | BO21: 0.4 | BP21: 0.416 | BQ21: 0.416 | BR21: 0.416 | BS21: 0.4 | BT21: 0.432 | BU21: 0.4 | BV21: 0.4 | BW21: 0.416 | BX21: 0.4 | BY21: =BY8+$G$8*BY9 -> 0.416 | BZ21: 0.416 | CA21: 0.4 | CB21: 0.416 | CC21: 0.416 | CD21: 0.416 | CE21: 0.4 | CG21: 0.432 | CH21: 0.4 | CI21: 0.4 | CJ21: 0.416 | CK21: 0.4 | CL21: 0.416 | CM21: 0.416 | CN21: 0.4 | CO21: 0.416 | CP21: 0.416 | CQ21: 0.416 | CR21: 0.4 | CS21: 0.432 | CT21: 0.4 | CU21: 0.4 | CV21: 0.416 | CW21: 0.4 | CX21: 0.416 | CY21: 0.416 | CZ21: 0.4 | DA21: 0.416 | DB21: 0.416 | DC21: 0.416 | DD21: 0.4 | DE21: 0.432 | DF21: 0.4 | DG21: 0.4 | DH21: 0.416 | DI21: 0.4 | DJ21: 0.416 | DK21: 0.416 | DL21: 0.4 | DM21: 0.416 | DN21: 0.416 | DO21: 0.416 | DP21: 0.4 | DQ21: 0.432 | DR21: 0.4 | DS21: 0.4 | DT21: 0.416 | DU21: 0.4 | DV21: 0.416 | DW21: 0.416 | DX21: 0.4 | DY21: 0.416 | DZ21: 0.416 | EA21: 0.416 | EB21: 0.4 | EC21: 0.432 | ED21: 0.4 | EE21: 0.4 | EF21: 0.416 | EG21: 0.4 | EH21: 0.416 | EI21: 0.416 | EJ21: 0.4 | EK21: =EK8+$G$8*EK9 -> 0.416 | EL21: 0.416 | EM21: 0.416 | EN21: 0.4 | EO21: 0.432 | EP21: 0.4 | EQ21: 0.4 | ER21: 0.416 | ES21: 0.4 | ET21: 0.416 | EU21: 0.416 | EV21: 0.4 | EW21: 0.416 | EX21: 0.416 | EY21: 0.416 | EZ21: 0.4
A22: Firm Power and Services | D22: FPS | E22: =+SUM(E23,E34,E45) -> 5870307.618 | F22: =+SUM(F23,F34,F45) -> 5870307.745 | G22: 5859080.018 | H22: 5870478.805 | I22: 5857917.407 | J22: 5839727.5 | L22: 378911.7009 | M22: 337789.9231 | N22: 349851.583 | O22: 348922.9646 | P22: 316829.9503 | Q22: 359732.8028 | R22: 415562.0612 | S22: 469150.0597 | T22: 465309.7216 | U22: 491959.0047 | V22: 511911.7876 | W22: 415539.9729 | X22: 379168.258 | Y22: 337789.9231 | Z22: 349851.583 | AA22: 348922.9646 | AB22: 316829.9503 | AC22: 359557.6172 | AD22: 415799.3646 | AE22: 469150.0597 | AF22: 464862.8448 | AG22: 492717.3773 | AH22: 511911.7876 | AI22: 415539.9729 | AJ22: 379168.258 | AK22: 334989.9231 | AL22: 347051.583 | AM22: 346010.9646 | AN22: 314141.9503 | AO22: 359557.6172 | AP22: 415799.3646 | AQ22: 469150.0597 | AR22: 464862.8448 | AS22: 492717.3773 | AT22: 507954.6287 | AU22: 415908.8726 | AV22: 379168.258 | AW22: 334815.4248 | AX22: 347222.4799 | AY22: 346010.9646 | AZ22: 325218.3799 | BA22: 359732.8028 | BB22: 415799.3646 | BC22: 468760.9219 | BD22: 465309.7216 | BE22: 492659.8691 | BF22: 509673.8739 | BG22: 415888.98 | BH22: 378898.5757 | BI22: 334983.8588 | BJ22: 347175.3734 | BK22: 345819.1524 | BL22: 314115.8672 | BM22: 359662.2271 | BN22: 415701.1061 | BO22: 468629.9818 | BP22: 465173.0547 | BQ22: 491901.4965 | BR22: 511886.9881 | BS22: 415888.98 | BT22: 378898.5757 | BU22: 334983.8588 | BV22: 347175.3734 | BW22: 345819.1524 | BX22: 314115.8672 | BY22: 359662.2271 | BZ22: 415463.0652 | CA22: 469019.1196 | CB22: 465173.0547 | CC22: 491901.4965 | CD22: 511886.9881 | CE22: 415888.98 | CG22: 58891.74188 | CH22: 7156.10391 | CI22: 6935.79986 | CJ22: 6137.377366 | CK22: 10244.4954 | CL22: 30948.38242 | CM22: 87808.41948 | CN22: 134991.5381 | CO22: 155078.2634 | CP22: 184202.5234 | CQ22: 201167.3971 | CR22: 125274.0434 | CS22: 58634.97569 | CT22: 7156.10391 | CU22: 6935.79986 | CV22: 6137.377366 | CW22: 10244.4954 | CX22: 31123.53608 | CY22: 87570.9231 | CZ22: 134991.5381 | DA22: 155525.3332 | DB22: 183444.5188 | DC22: 201167.3971 | DD22: 125274.0434 | DE22: 58634.97569 | DF22: 7149.04191 | DG22: 6928.919861 | DH22: 6130.489366 | DI22: 10237.5834 | DJ22: 31123.53608 | DK22: 87570.9231 | DL22: 134991.5381 | DM22: 155525.3332 | DN22: 183444.5188 | DO22: 205124.7629 | DP22: 124904.9517 | DQ22: 58634.97569 | DR22: 7323.618132 | DS22: 6758.39096 | DT22: 6130.489366 | DU22: 10745.83393 | DV22: 30948.38242 | DW22: 87570.9231 | DX22: 135380.3059 | DY22: 155078.2634 | DZ22: 183394.519 | EA22: 203361.4178 | EB22: 124890.6443 | EC22: 58881.8031 | ED22: 7143.93068 | EE22: 6719.565405 | EF22: 6284.732572 | EG22: 10217.63447 | EH22: 30895.24865 | EI22: 87495.66151 | EJ22: 135274.654 | EK22: 154976.2503 | EL22: 184152.5236 | EM22: 201148.0965 | EN22: 124890.6443 | EO22: 58868.3131 | EP22: 7141.55868 | EQ22: 6720.412406 | ER22: 6286.305572 | ES22: 10218.25447 | ET22: 30894.05165 | EU22: 87733.97444 | EV22: 134872.7242 | EW22: 154957.6183 | EX22: 184955.4126 | EY22: 182190.1185 | EZ22: 124900.9973
B23: Intraregional Transfer | D23: FPS_IRT | E23: =+SUM(E24:E33) -> 98426.04389 | F23: =+SUM(F24:F33) -> 98426.04384 | G23: 98426.04384 | H23: 98489.45701 | I23: 97264.33089 | J23: 97264.33089 | L23: 4740.994876 | M23: 4298.672055 | N23: 4360.04499 | O23: 4501.264582 | P23: 4054.858291 | Q23: 4636.124813 | R23: 4348.768171 | S23: 5301.976663 | T23: 5308.096586 | U23: 4835.715728 | V23: 5081.524575 | W23: 4190.470908 | X23: 4918.364029 | Y23: 4298.672055 | Z23: 4360.04499 | AA23: 4501.264582 | AB23: 4054.858291 | AC23: 4475.460159 | AD23: 4510.176553 | AE23: 5301.976663 | AF23: 5116.947786 | AG23: 5019.728285 | AH23: 5081.524575 | AI23: 4190.470908 | AJ23: 4918.364029 | AK23: 4298.672055 | AL23: 4360.04499 | AM23: 4501.264582 | AN23: 4054.858291 | AO23: 4475.460159 | AP23: 4510.176553 | AQ23: 5301.976663 | AR23: 5116.947786 | AS23: 5019.728285 | AT23: 4902.656708 | AU23: 4358.384568 | AV23: 4918.364029 | AW23: 4134.151832 | AX23: 4524.395889 | AY23: 4501.264582 | AZ23: 4062.317937 | BA23: 4636.124813 | BB23: 4510.176553 | BC23: 5110.827863 | BD23: 5308.096586 | BE23: 4962.220095 | BF23: 4874.221879 | BG23: 4338.491958 | BH23: 4727.869657 | BI23: 4292.607785 | BJ23: 4477.289445 | BK23: 4316.542377 | BL23: 4028.775222 | BM23: 4565.549082 | BN23: 4411.918144 | BO23: 4979.887768 | BP23: 5171.429681 | BQ23: 4778.207538 | BR23: 5056.72513 | BS23: 4338.491958 | BT23: 4727.869657 | BU23: 4292.607785 | BV23: 4477.289445 | BW23: 4316.542377 | BX23: 4028.775222 | BY23: 4565.549082 | BZ23: 4249.772219 | CA23: 5171.036568 | CB23: 5171.429681 | CC23: 4778.207538 | CD23: 5056.72513 | CE23: 4338.491958 | CG23: 3695.907883 | CH23: 3316.937909 | CI23: 3578.06586 | CJ23: 3399.211366 | CK23: 2923.335398 | CL23: 3212.042423 | CM23: 3369.368485 | CN23: 4113.615087 | CO23: 3820.016414 | CP23: 4093.485368 | CQ23: 3624.478055 | CR23: 3621.067397 | CS23: 3518.538686 | CT23: 3316.937909 | CU23: 3578.06586 | CV23: 3399.211366 | CW23: 2923.335398 | CX23: 3372.707076 | CY23: 3207.960103 | CZ23: 4113.615087 | DA23: 4011.165214 | DB23: 3909.472811 | DC23: 3624.478055 | DD23: 3621.067397 | DE23: 3518.538686 | DF23: 3316.937909 | DG23: 3578.06586 | DH23: 3399.211366 | DI23: 2923.335398 | DJ23: 3372.707076 | DK23: 3207.960103 | DL23: 4113.615087 | DM23: 4011.165214 | DN23: 3909.472811 | DO23: 3803.345922 | DP23: 3453.153739 | DQ23: 3518.538686 | DR23: 3481.458132 | DS23: 3413.71496 | DT23: 3399.211366 | DU23: 3165.096925 | DV23: 3212.042423 | DW23: 3207.960103 | DX23: 4304.763887 | DY23: 3820.016414 | DZ23: 3859.473001 | EA23: 3787.68075 | EB23: 3438.846349 | EC23: 3685.969103 | ED23: 3311.826679 | EE23: 3374.889406 | EF23: 3546.733571 | EG23: 2903.386468 | EH23: 3158.908653 | EI23: 3132.698513 | EJ23: 4199.111982 | EK23: 3718.003319 | EL23: 4043.485559 | EM23: 3605.1775 | EN23: 3438.846349 | EO23: 3685.969103 | EP23: 3311.826679 | EQ23: 3374.889406 | ER23: 3546.733571 | ES23: 2903.386468 | ET23: 3158.908653 | EU23: 3294.844437 | EV23: 4007.963182 | EW23: 3718.003319 | EX23: 4043.485559 | EY23: 3605.1775 | EZ23: 3438.846349
C24: WNP#3 Settlement | D24: FPS_IRT_WNP | E24: 0 | F24: 0 | G24: 0 | H24: 0 | I24: 0 | J24: 0 | L24: 0 | M24: 0 | N24: 0 | O24: 0 | P24: 0 | Q24: 0 | R24: 0 | S24: 0 | T24: 0 | U24: 0 | V24: 0 | W24: 0 | X24: 0 | Y24: 0 | Z24: 0 | AA24: 0 | AB24: 0 | AC24: 0 | AD24: 0 | AE24: 0 | AF24: 0 | AG24: 0 | AH24: 0 | AI24: 0 | AJ24: 0 | AK24: 0 | AL24: 0 | AM24: 0 | AN24: 0 | AO24: 0 | AP24: 0 | AQ24: 0 | AR24: 0 | AS24: 0 | AT24: 0 | AU24: 0 | AV24: 0 | AW24: 0 | AX24: 0 | AY24: 0 | AZ24: 0 | BA24: 0 | BB24: 0 | BC24: 0 | BD24: 0 | BE24: 0 | BF24: 0 | BG24: 0 | BH24: 0 | BI24: 0 | BJ24: 0 | BK24: 0 | BL24: 0 | BM24: 0 | BN24: 0 | BO24: 0 | BP24: 0 | BQ24: 0 | BR24: 0 | BS24: 0 | BT24: 0 | BU24: 0 | BV24: 0 | BW24: 0 | BX24: 0 | BY24: 0 | BZ24: 0 | CA24: 0 | CB24: 0 | CC24: 0 | CD24: 0 | CE24: 0 | CG24: 0 | CH24: 0 | CI24: 0 | CJ24: 0 | CK24: 0 | CL24: 0 | CM24: 0 | CN24: 0 | CO24: 0 | CP24: 0 | CQ24: 0 | CR24: 0 | CS24: 0 | CT24: 0 | CU24: 0 | CV24: 0 | CW24: 0 | CX24: 0 | CY24: 0 | CZ24: 0 | DA24: 0 | DB24: 0 | DC24: 0 | DD24: 0 | DE24: 0 | DF24: 0 | DG24: 0 | DH24: 0 | DI24: 0 | DJ24: 0 | DK24: 0 | DL24: 0 | DM24: 0 | DN24: 0 | DO24: 0 | DP24: 0 | DQ24: 0 | DR24: 0 | DS24: 0 | DT24: 0 | DU24: 0 | DV24: 0 | DW24: 0 | DX24: 0 | DY24: 0 | DZ24: 0 | EA24: 0 | EB24: 0 | EC24: 0 | ED24: 0 | EE24: 0 | EF24: 0 | EG24: 0 | EH24: 0 | EI24: 0 | EJ24: 0 | EK24: 0 | EL24: 0 | EM24: 0 | EN24: 0 | EO24: 0 | EP24: 0 | EQ24: 0 | ER24: 0 | ES24: 0 | ET24: 0 | EU24: 0 | EV24: 0 | EW24: 0 | EX24: 0 | EY24: 0 | EZ24: 0
C25: Dittmer Station Service | D25: FPS_IRT_DIT | E25: 82668.12 | F25: 82668.12 | G25: 82668.12 | H25: 82894.608 | I25: 82668.12 | J25: 82668.12 | L25: 3925.792 | M25: 3774.8 | N25: 3774.8 | O25: 3925.792 | P25: 3623.808 | Q25: 4076.784 | R25: 3774.8 | S25: 3925.792 | T25: 3925.792 | U25: 3774.8 | V25: 4076.784 | W25: 3623.808 | X25: 4076.784 | Y25: 3774.8 | Z25: 3774.8 | AA25: 3925.792 | AB25: 3623.808 | AC25: 3925.792 | AD25: 3925.792 | AE25: 3925.792 | AF25: 3774.8 | AG25: 3925.792 | AH25: 4076.784 | AI25: 3623.808 | AJ25: 4076.784 | AK25: 3774.8 | AL25: 3774.8 | AM25: 3925.792 | AN25: 3623.808 | AO25: 3925.792 | AP25: 3925.792 | AQ25: 3925.792 | AR25: 3774.8 | AS25: 3925.792 | AT25: 3925.792 | AU25: 3774.8 | AV25: 4076.784 | AW25: 3623.808 | AX25: 3925.792 | AY25: 3925.792 | AZ25: 3623.808 | BA25: 4076.784 | BB25: 3925.792 | BC25: 3774.8 | BD25: 3925.792 | BE25: 3925.792 | BF25: 3925.792 | BG25: 3774.8 | BH25: 3925.792 | BI25: 3774.8 | BJ25: 3925.792 | BK25: 3774.8 | BL25: 3623.808 | BM25: 4076.784 | BN25: 3925.792 | BO25: 3774.8 | BP25: 3925.792 | BQ25: 3774.8 | BR25: 4076.784 | BS25: 3774.8 | BT25: 3925.792 | BU25: 3774.8 | BV25: 3925.792 | BW25: 3774.8 | BX25: 3623.808 | BY25: 4076.784 | BZ25: 3774.8 | CA25: 3925.792 | CB25: 3925.792 | CC25: 3774.8 | CD25: 4076.784 | CE25: 3774.8 | CG25: 3095.336 | CH25: 3029.277 | CI25: 3246.328 | CJ25: 3095.336 | CK25: 2717.856 | CL25: 2934.907 | CM25: 3019.84 | CN25: 3095.336 | CO25: 2868.848 | CP25: 3246.328 | CQ25: 2944.344 | CR25: 3170.832 | CS25: 2944.344 | CT25: 3029.277 | CU25: 3246.328 | CV25: 3095.336 | CW25: 2717.856 | CX25: 3085.899 | CY25: 2868.848 | CZ25: 3095.336 | DA25: 3019.84 | DB25: 3095.336 | DC25: 2944.344 | DD25: 3170.832 | DE25: 2944.344 | DF25: 3029.277 | DG25: 3246.328 | DH25: 3095.336 | DI25: 2717.856 | DJ25: 3085.899 | DK25: 2868.848 | DL25: 3095.336 | DM25: 3019.84 | DN25: 3095.336 | DO25: 3095.336 | DP25: 3019.84 | DQ25: 2944.344 | DR25: 3180.269 | DS25: 3095.336 | DT25: 3095.336 | DU25: 2944.344 | DV25: 2934.907 | DW25: 2868.848 | DX25: 3246.328 | DY25: 2868.848 | DZ25: 3095.336 | EA25: 3095.336 | EB25: 3019.84 | EC25: 3095.336 | ED25: 3029.277 | EE25: 3095.336 | EF25: 3246.328 | EG25: 2717.856 | EH25: 2934.907 | EI25: 2868.848 | EJ25: 3246.328 | EK25: 2868.848 | EL25: 3246.328 | EM25: 2944.344 | EN25: 3019.84 | EO25: 3095.336 | EP25: 3029.277 | EQ25: 3095.336 | ER25: 3246.328 | ES25: 2717.856 | ET25: 2934.907 | EU25: 3019.84 | EV25: 3095.336 | EW25: 2868.848 | EX25: 3246.328 | EY25: 2944.344 | EZ25: 3019.84
C26: Transfer Gen Losses | D26: FPS_IRT_TGL | E26: 15757.92389 | F26: 15757.92384 | G26: 15757.92384 | H26: 15594.84901 | I26: 14596.21089 | J26: 14596.21089 | L26: 815.2028765 | M26: 523.872055 | N26: 585.2449895 | O26: 575.4725825 | P26: 431.0502915 | Q26: 559.3408125 | R26: 573.9681715 | S26: 1376.184663 | T26: 1382.304586 | U26: 1060.915728 | V26: 1004.740575 | W26: 566.6629085 | X26: 841.580029 | Y26: 523.872055 | Z26: 585.2449895 | AA26: 575.4725825 | AB26: 431.0502915 | AC26: 549.668159 | AD26: 584.3845535 | AE26: 1376.184663 | AF26: 1342.147786 | AG26: 1093.936285 | AH26: 1004.740575 | AI26: 566.6629085 | AJ26: 841.580029 | AK26: 523.872055 | AL26: 585.2449895 | AM26: 575.4725825 | AN26: 431.0502915 | AO26: 549.668159 | AP26: 584.3845535 | AQ26: 1376.184663 | AR26: 1342.147786 | AS26: 1093.936285 | AT26: 976.8647075 | AU26: 583.5845675 | AV26: 841.580029 | AW26: 510.3438325 | AX26: 598.6038895 | AY26: 575.4725825 | AZ26: 438.509937 | BA26: 559.3408125 | BB26: 584.3845535 | BC26: 1336.027863 | BD26: 1382.304586 | BE26: 1036.428095 | BF26: 948.4298795 | BG26: 563.6919575 | BH26: 802.0776565 | BI26: 517.807785 | BJ26: 551.4974445 | BK26: 541.742377 | BL26: 404.9672215 | BM26: 488.7650825 | BN26: 486.1261435 | BO26: 1205.087768 | BP26: 1245.637681 | BQ26: 1003.407538 | BR26: 979.9411305 | BS26: 563.6919575 | BT26: 802.0776565 | BU26: 517.807785 | BV26: 551.4974445 | BW26: 541.742377 | BX26: 404.9672215 | BY26: 488.7650825 | BZ26: 474.9722185 | CA26: 1245.244568 | CB26: 1245.637681 | CC26: 1003.407538 | CD26: 979.9411305 | CE26: 563.6919575 | CG26: 600.571883 | CH26: 287.6609095 | CI26: 331.7378605 | CJ26: 303.875366 | CK26: 205.479398 | CL26: 277.1354225 | CM26: 349.5284845 | CN26: 1018.279087 | CO26: 951.168414 | CP26: 847.1573685 | CQ26: 680.1340545 | CR26: 450.2353975 | CS26: 574.194686 | CT26: 287.6609095 | CU26: 331.7378605 | CV26: 303.875366 | CW26: 205.479398 | CX26: 286.808076 | CY26: 339.1121025 | CZ26: 1018.279087 | DA26: 991.325214 | DB26: 814.136811 | DC26: 680.1340545 | DD26: 450.2353975 | DE26: 574.194686 | DF26: 287.6609095 | DG26: 331.7378605 | DH26: 303.875366 | DI26: 205.479398 | DJ26: 286.808076 | DK26: 339.1121025 | DL26: 1018.279087 | DM26: 991.325214 | DN26: 814.136811 | DO26: 708.0099225 | DP26: 433.3137385 | DQ26: 574.194686 | DR26: 301.189132 | DS26: 318.3789605 | DT26: 303.875366 | DU26: 220.7529255 | DV26: 277.1354225 | DW26: 339.1121025 | DX26: 1058.435887 | DY26: 951.168414 | DZ26: 764.137001 | EA26: 692.3447505 | EB26: 419.0063485 | EC26: 590.633103 | ED26: 282.5496795 | EE26: 279.5534055 | EF26: 300.4055715 | EG26: 185.530468 | EH26: 224.0016525 | EI26: 263.8505125 | EJ26: 952.783982 | EK26: 849.155319 | EL26: 797.1575585 | EM26: 660.8334995 | EN26: 419.0063485 | EO26: 590.633103 | EP26: 282.5496795 | EQ26: 279.5534055 | ER26: 300.4055715 | ES26: 185.530468 | ET26: 224.0016525 | EU26: 275.0044375 | EV26: 912.627182 | EW26: 849.155319 | EX26: 797.1575585 | EY26: 660.8334995 | EZ26: 419.0063485
E27: 0 | F27: 0 | G27: 0 | H27: 0 | I27: 0 | J27: 0 | L27: 0 | M27: 0 | N27: 0 | O27: 0 | P27: 0 | Q27: 0 | R27: 0 | S27: 0 | T27: 0 | U27: 0 | V27: 0 | W27: 0 | X27: 0 | Y27: 0 | Z27: 0 | AA27: 0 | AB27: 0 | AC27: 0 | AD27: 0 | AE27: 0 | AF27: 0 | AG27: 0 | AH27: 0 | AI27: 0 | AJ27: 0 | AK27: 0 | AL27: 0 | AM27: 0 | AN27: 0 | AO27: 0 | AP27: 0 | AQ27: 0 | AR27: 0 | AS27: 0 | AT27: 0 | AU27: 0 | AV27: 0 | AW27: 0 | AX27: 0 | AY27: 0 | AZ27: 0 | BA27: 0 | BB27: 0 | BC27: 0 | BD27: 0 | BE27: 0 | BF27: 0 | BG27: 0 | BH27: 0 | BI27: 0 | BJ27: 0 | BK27: 0 | BL27: 0 | BM27: 0 | BN27: 0 | BO27: 0 | BP27: 0 | BQ27: 0 | BR27: 0 | BS27: 0 | BT27: 0 | BU27: 0 | BV27: 0 | BW27: 0 | BX27: 0 | BY27: 0 | BZ27: 0 | CA27: 0 | CB27: 0 | CC27: 0 | CD27: 0 | CE27: 0 | CG27: 0 | CH27: 0 | CI27: 0 | CJ27: 0 | CK27: 0 | CL27: 0 | CM27: 0 | CN27: 0 | CO27: 0 | CP27: 0 | CQ27: 0 | CR27: 0 | CS27: 0 | CT27: 0 | CU27: 0 | CV27: 0 | CW27: 0 | CX27: 0 | CY27: 0 | CZ27: 0 | DA27: 0 | DB27: 0 | DC27: 0 | DD27: 0 | DE27: 0 | DF27: 0 | DG27: 0 | DH27: 0 | DI27: 0 | DJ27: 0 | DK27: 0 | DL27: 0 | DM27: 0 | DN27: 0 | DO27: 0 | DP27: 0 | DQ27: 0 | DR27: 0 | DS27: 0 | DT27: 0 | DU27: 0 | DV27: 0 | DW27: 0 | DX27: 0 | DY27: 0 | DZ27: 0 | EA27: 0 | EB27: 0 | EC27: 0 | ED27: 0 | EE27: 0 | EF27: 0 | EG27: 0 | EH27: 0 | EI27: 0 | EJ27: 0 | EK27: 0 | EL27: 0 | EM27: 0 | EN27: 0 | EO27: 0 | EP27: 0 | EQ27: 0 | ER27: 0 | ES27: 0 | ET27: 0 | EU27: 0 | EV27: 0 | EW27: 0 | EX27: 0 | EY27: 0 | EZ27: 0
E28: 0 | F28: 0 | G28: 0 | H28: 0 | I28: 0 | J28: 0 | L28: 0 | M28: 0 | N28: 0 | O28: 0 | P28: 0 | Q28: 0 | R28: 0 | S28: 0 | T28: 0 | U28: 0 | V28: 0 | W28: 0 | X28: 0 | Y28: 0 | Z28: 0 | AA28: 0 | AB28: 0 | AC28: 0 | AD28: 0 | AE28: 0 | AF28: 0 | AG28: 0 | AH28: 0 | AI28: 0 | AJ28: 0 | AK28: 0 | AL28: 0 | AM28: 0 | AN28: 0 | AO28: 0 | AP28: 0 | AQ28: 0 | AR28: 0 | AS28: 0 | AT28: 0 | AU28: 0 | AV28: 0 | AW28: 0 | AX28: 0 | AY28: 0 | AZ28: 0 | BA28: 0 | BB28: 0 | BC28: 0 | BD28: 0 | BE28: 0 | BF28: 0 | BG28: 0 | BH28: 0 | BI28: 0 | BJ28: 0 | BK28: 0 | BL28: 0 | BM28: 0 | BN28: 0 | BO28: 0 | BP28: 0 | BQ28: 0 | BR28: 0 | BS28: 0 | BT28: 0 | BU28: 0 | BV28: 0 | BW28: 0 | BX28: 0 | BY28: 0 | BZ28: 0 | CA28: 0 | CB28: 0 | CC28: 0 | CD28: 0 | CE28: 0 | CG28: 0 | CH28: 0 | CI28: 0 | CJ28: 0 | CK28: 0 | CL28: 0 | CM28: 0 | CN28: 0 | CO28: 0 | CP28: 0 | CQ28: 0 | CR28: 0 | CS28: 0 | CT28: 0 | CU28: 0 | CV28: 0 | CW28: 0 | CX28: 0 | CY28: 0 | CZ28: 0 | DA28: 0 | DB28: 0 | DC28: 0 | DD28: 0 | DE28: 0 | DF28: 0 | DG28: 0 | DH28: 0 | DI28: 0 | DJ28: 0 | DK28: 0 | DL28: 0 | DM28: 0 | DN28: 0 | DO28: 0 | DP28: 0 | DQ28: 0 | DR28: 0 | DS28: 0 | DT28: 0 | DU28: 0 | DV28: 0 | DW28: 0 | DX28: 0 | DY28: 0 | DZ28: 0 | EA28: 0 | EB28: 0 | EC28: 0 | ED28: 0 | EE28: 0 | EF28: 0 | EG28: 0 | EH28: 0 | EI28: 0 | EJ28: 0 | EK28: 0 | EL28: 0 | EM28: 0 | EN28: 0 | EO28: 0 | EP28: 0 | EQ28: 0 | ER28: 0 | ES28: 0 | ET28: 0 | EU28: 0 | EV28: 0 | EW28: 0 | EX28: 0 | EY28: 0 | EZ28: 0
E29: 0 | F29: 0 | G29: 0 | H29: 0 | I29: 0 | J29: 0 | L29: 0 | M29: 0 | N29: 0 | O29: 0 | P29: 0 | Q29: 0 | R29: 0 | S29: 0 | T29: 0 | U29: 0 | V29: 0 | W29: 0 | X29: 0 | Y29: 0 | Z29: 0 | AA29: 0 | AB29: 0 | AC29: 0 | AD29: 0 | AE29: 0 | AF29: 0 | AG29: 0 | AH29: 0 | AI29: 0 | AJ29: 0 | AK29: 0 | AL29: 0 | AM29: 0 | AN29: 0 | AO29: 0 | AP29: 0 | AQ29: 0 | AR29: 0 | AS29: 0 | AT29: 0 | AU29: 0 | AV29: 0 | AW29: 0 | AX29: 0 | AY29: 0 | AZ29: 0 | BA29: 0 | BB29: 0 | BC29: 0 | BD29: 0 | BE29: 0 | BF29: 0 | BG29: 0 | BH29: 0 | BI29: 0 | BJ29: 0 | BK29: 0 | BL29: 0 | BM29: 0 | BN29: 0 | BO29: 0 | BP29: 0 | BQ29: 0 | BR29: 0 | BS29: 0 | BT29: 0 | BU29: 0 | BV29: 0 | BW29: 0 | BX29: 0 | BY29: 0 | BZ29: 0 | CA29: 0 | CB29: 0 | CC29: 0 | CD29: 0 | CE29: 0 | CG29: 0 | CH29: 0 | CI29: 0 | CJ29: 0 | CK29: 0 | CL29: 0 | CM29: 0 | CN29: 0 | CO29: 0 | CP29: 0 | CQ29: 0 | CR29: 0 | CS29: 0 | CT29: 0 | CU29: 0 | CV29: 0 | CW29: 0 | CX29: 0 | CY29: 0 | CZ29: 0 | DA29: 0 | DB29: 0 | DC29: 0 | DD29: 0 | DE29: 0 | DF29: 0 | DG29: 0 | DH29: 0 | DI29: 0 | DJ29: 0 | DK29: 0 | DL29: 0 | DM29: 0 | DN29: 0 | DO29: 0 | DP29: 0 | DQ29: 0 | DR29: 0 | DS29: 0 | DT29: 0 | DU29: 0 | DV29: 0 | DW29: 0 | DX29: 0 | DY29: 0 | DZ29: 0 | EA29: 0 | EB29: 0 | EC29: 0 | ED29: 0 | EE29: 0 | EF29: 0 | EG29: 0 | EH29: 0 | EI29: 0 | EJ29: 0 | EK29: 0 | EL29: 0 | EM29: 0 | EN29: 0 | EO29: 0 | EP29: 0 | EQ29: 0 | ER29: 0 | ES29: 0 | ET29: 0 | EU29: 0 | EV29: 0 | EW29: 0 | EX29: 0 | EY29: 0 | EZ29: 0
E30: 0 | F30: 0 | G30: 0 | H30: 0 | I30: 0 | J30: 0 | L30: 0 | M30: 0 | N30: 0 | O30: 0 | P30: 0 | Q30: 0 | R30: 0 | S30: 0 | T30: 0 | U30: 0 | V30: 0 | W30: 0 | X30: 0 | Y30: 0 | Z30: 0 | AA30: 0 | AB30: 0 | AC30: 0 | AD30: 0 | AE30: 0 | AF30: 0 | AG30: 0 | AH30: 0 | AI30: 0 | AJ30: 0 | AK30: 0 | AL30: 0 | AM30: 0 | AN30: 0 | AO30: 0 | AP30: 0 | AQ30: 0 | AR30: 0 | AS30: 0 | AT30: 0 | AU30: 0 | AV30: 0 | AW30: 0 | AX30: 0 | AY30: 0 | AZ30: 0 | BA30: 0 | BB30: 0 | BC30: 0 | BD30: 0 | BE30: 0 | BF30: 0 | BG30: 0 | BH30: 0 | BI30: 0 | BJ30: 0 | BK30: 0 | BL30: 0 | BM30: 0 | BN30: 0 | BO30: 0 | BP30: 0 | BQ30: 0 | BR30: 0 | BS30: 0 | BT30: 0 | BU30: 0 | BV30: 0 | BW30: 0 | BX30: 0 | BY30: 0 | BZ30: 0 | CA30: 0 | CB30: 0 | CC30: 0 | CD30: 0 | CE30: 0 | CG30: 0 | CH30: 0 | CI30: 0 | CJ30: 0 | CK30: 0 | CL30: 0 | CM30: 0 | CN30: 0 | CO30: 0 | CP30: 0 | CQ30: 0 | CR30: 0 | CS30: 0 | CT30: 0 | CU30: 0 | CV30: 0 | CW30: 0 | CX30: 0 | CY30: 0 | CZ30: 0 | DA30: 0 | DB30: 0 | DC30: 0 | DD30: 0 | DE30: 0 | DF30: 0 | DG30: 0 | DH30: 0 | DI30: 0 | DJ30: 0 | DK30: 0 | DL30: 0 | DM30: 0 | DN30: 0 | DO30: 0 | DP30: 0 | DQ30: 0 | DR30: 0 | DS30: 0 | DT30: 0 | DU30: 0 | DV30: 0 | DW30: 0 | DX30: 0 | DY30: 0 | DZ30: 0 | EA30: 0 | EB30: 0 | EC30: 0 | ED30: 0 | EE30: 0 | EF30: 0 | EG30: 0 | EH30: 0 | EI30: 0 | EJ30: 0 | EK30: 0 | EL30: 0 | EM30: 0 | EN30: 0 | EO30: 0 | EP30: 0 | EQ30: 0 | ER30: 0 | ES30: 0 | ET30: 0 | EU30: 0 | EV30: 0 | EW30: 0 | EX30: 0 | EY30: 0 | EZ30: 0
E31: 0 | F31: 0 | G31: 0 | H31: 0 | I31: 0 | J31: 0 | L31: 0 | M31: 0 | N31: 0 | O31: 0 | P31: 0 | Q31: 0 | R31: 0 | S31: 0 | T31: 0 | U31: 0 | V31: 0 | W31: 0 | X31: 0 | Y31: 0 | Z31: 0 | AA31: 0 | AB31: 0 | AC31: 0 | AD31: 0 | AE31: 0 | AF31: 0 | AG31: 0 | AH31: 0 | AI31: 0 | AJ31: 0 | AK31: 0 | AL31: 0 | AM31: 0 | AN31: 0 | AO31: 0 | AP31: 0 | AQ31: 0 | AR31: 0 | AS31: 0 | AT31: 0 | AU31: 0 | AV31: 0 | AW31: 0 | AX31: 0 | AY31: 0 | AZ31: 0 | BA31: 0 | BB31: 0 | BC31: 0 | BD31: 0 | BE31: 0 | BF31: 0 | BG31: 0 | BH31: 0 | BI31: 0 | BJ31: 0 | BK31: 0 | BL31: 0 | BM31: 0 | BN31: 0 | BO31: 0 | BP31: 0 | BQ31: 0 | BR31: 0 | BS31: 0 | BT31: 0 | BU31: 0 | BV31: 0 | BW31: 0 | BX31: 0 | BY31: 0 | BZ31: 0 | CA31: 0 | CB31: 0 | CC31: 0 | CD31: 0 | CE31: 0 | CG31: 0 | CH31: 0 | CI31: 0 | CJ31: 0 | CK31: 0 | CL31: 0 | CM31: 0 | CN31: 0 | CO31: 0 | CP31: 0 | CQ31: 0 | CR31: 0 | CS31: 0 | CT31: 0 | CU31: 0 | CV31: 0 | CW31: 0 | CX31: 0 | CY31: 0 | CZ31: 0 | DA31: 0 | DB31: 0 | DC31: 0 | DD31: 0 | DE31: 0 | DF31: 0 | DG31: 0 | DH31: 0 | DI31: 0 | DJ31: 0 | DK31: 0 | DL31: 0 | DM31: 0 | DN31: 0 | DO31: 0 | DP31: 0 | DQ31: 0 | DR31: 0 | DS31: 0 | DT31: 0 | DU31: 0 | DV31: 0 | DW31: 0 | DX31: 0 | DY31: 0 | DZ31: 0 | EA31: 0 | EB31: 0 | EC31: 0 | ED31: 0 | EE31: 0 | EF31: 0 | EG31: 0 | EH31: 0 | EI31: 0 | EJ31: 0 | EK31: 0 | EL31: 0 | EM31: 0 | EN31: 0 | EO31: 0 | EP31: 0 | EQ31: 0 | ER31: 0 | ES31: 0 | ET31: 0 | EU31: 0 | EV31: 0 | EW31: 0 | EX31: 0 | EY31: 0 | EZ31: 0
E32: 0 | F32: 0 | G32: 0 | H32: 0 | I32: 0 | J32: 0 | L32: 0 | M32: 0 | N32: 0 | O32: 0 | P32: 0 | Q32: 0 | R32: 0 | S32: 0 | T32: 0 | U32: 0 | V32: 0 | W32: 0 | X32: 0 | Y32: 0 | Z32: 0 | AA32: 0 | AB32: 0 | AC32: 0 | AD32: 0 | AE32: 0 | AF32: 0 | AG32: 0 | AH32: 0 | AI32: 0 | AJ32: 0 | AK32: 0 | AL32: 0 | AM32: 0 | AN32: 0 | AO32: 0 | AP32: 0 | AQ32: 0 | AR32: 0 | AS32: 0 | AT32: 0 | AU32: 0 | AV32: 0 | AW32: 0 | AX32: 0 | AY32: 0 | AZ32: 0 | BA32: 0 | BB32: 0 | BC32: 0 | BD32: 0 | BE32: 0 | BF32: 0 | BG32: 0 | BH32: 0 | BI32: 0 | BJ32: 0 | BK32: 0 | BL32: 0 | BM32: 0 | BN32: 0 | BO32: 0 | BP32: 0 | BQ32: 0 | BR32: 0 | BS32: 0 | BT32: 0 | BU32: 0 | BV32: 0 | BW32: 0 | BX32: 0 | BY32: 0 | BZ32: 0 | CA32: 0 | CB32: 0 | CC32: 0 | CD32: 0 | CE32: 0 | CG32: 0 | CH32: 0 | CI32: 0 | CJ32: 0 | CK32: 0 | CL32: 0 | CM32: 0 | CN32: 0 | CO32: 0 | CP32: 0 | CQ32: 0 | CR32: 0 | CS32: 0 | CT32: 0 | CU32: 0 | CV32: 0 | CW32: 0 | CX32: 0 | CY32: 0 | CZ32: 0 | DA32: 0 | DB32: 0 | DC32: 0 | DD32: 0 | DE32: 0 | DF32: 0 | DG32: 0 | DH32: 0 | DI32: 0 | DJ32: 0 | DK32: 0 | DL32: 0 | DM32: 0 | DN32: 0 | DO32: 0 | DP32: 0 | DQ32: 0 | DR32: 0 | DS32: 0 | DT32: 0 | DU32: 0 | DV32: 0 | DW32: 0 | DX32: 0 | DY32: 0 | DZ32: 0 | EA32: 0 | EB32: 0 | EC32: 0 | ED32: 0 | EE32: 0 | EF32: 0 | EG32: 0 | EH32: 0 | EI32: 0 | EJ32: 0 | EK32: 0 | EL32: 0 | EM32: 0 | EN32: 0 | EO32: 0 | EP32: 0 | EQ32: 0 | ER32: 0 | ES32: 0 | ET32: 0 | EU32: 0 | EV32: 0 | EW32: 0 | EX32: 0 | EY32: 0 | EZ32: 0
E33: 0 | F33: 0 | G33: 0 | H33: 0 | I33: 0 | J33: 0 | L33: 0 | M33: 0 | N33: 0 | O33: 0 | P33: 0 | Q33: 0 | R33: 0 | S33: 0 | T33: 0 | U33: 0 | V33: 0 | W33: 0 | X33: 0 | Y33: 0 | Z33: 0 | AA33: 0 | AB33: 0 | AC33: 0 | AD33: 0 | AE33: 0 | AF33: 0 | AG33: 0 | AH33: 0 | AI33: 0 | AJ33: 0 | AK33: 0 | AL33: 0 | AM33: 0 | AN33: 0 | AO33: 0 | AP33: 0 | AQ33: 0 | AR33: 0 | AS33: 0 | AT33: 0 | AU33: 0 | AV33: 0 | AW33: 0 | AX33: 0 | AY33: 0 | AZ33: 0 | BA33: 0 | BB33: 0 | BC33: 0 | BD33: 0 | BE33: 0 | BF33: 0 | BG33: 0 | BH33: 0 | BI33: 0 | BJ33: 0 | BK33: 0 | BL33: 0 | BM33: 0 | BN33: 0 | BO33: 0 | BP33: 0 | BQ33: 0 | BR33: 0 | BS33: 0 | BT33: 0 | BU33: 0 | BV33: 0 | BW33: 0 | BX33: 0 | BY33: 0 | BZ33: 0 | CA33: 0 | CB33: 0 | CC33: 0 | CD33: 0 | CE33: 0 | CG33: 0 | CH33: 0 | CI33: 0 | CJ33: 0 | CK33: 0 | CL33: 0 | CM33: 0 | CN33: 0 | CO33: 0 | CP33: 0 | CQ33: 0 | CR33: 0 | CS33: 0 | CT33: 0 | CU33: 0 | CV33: 0 | CW33: 0 | CX33: 0 | CY33: 0 | CZ33: 0 | DA33: 0 | DB33: 0 | DC33: 0 | DD33: 0 | DE33: 0 | DF33: 0 | DG33: 0 | DH33: 0 | DI33: 0 | DJ33: 0 | DK33: 0 | DL33: 0 | DM33: 0 | DN33: 0 | DO33: 0 | DP33: 0 | DQ33: 0 | DR33: 0 | DS33: 0 | DT33: 0 | DU33: 0 | DV33: 0 | DW33: 0 | DX33: 0 | DY33: 0 | DZ33: 0 | EA33: 0 | EB33: 0 | EC33: 0 | ED33: 0 | EE33: 0 | EF33: 0 | EG33: 0 | EH33: 0 | EI33: 0 | EJ33: 0 | EK33: 0 | EL33: 0 | EM33: 0 | EN33: 0 | EO33: 0 | EP33: 0 | EQ33: 0 | ER33: 0 | ES33: 0 | ET33: 0 | EU33: 0 | EV33: 0 | EW33: 0 | EX33: 0 | EY33: 0 | EZ33: 0
B34: FBS Obligation | D34: FPS_FBS | E34: =+SUM(E35:E44) -> 5771881.574 | F34: =+SUM(F35:F44) -> 5771881.701 | G34: 5760653.974 | H34: 5771989.348 | I34: 5760653.076 | J34: 5742463.169 | L34: 374170.706 | M34: 333491.251 | N34: 345491.538 | O34: 344421.7 | P34: 312775.092 | Q34: 355096.678 | R34: 411213.293 | S34: 463848.083 | T34: 460001.625 | U34: 487123.289 | V34: 506830.263 | W34: 411349.502 | X34: 374249.894 | Y34: 333491.251 | Z34: 345491.538 | AA34: 344421.7 | AB34: 312775.092 | AC34: 355082.157 | AD34: 411289.188 | AE34: 463848.083 | AF34: 459745.897 | AG34: 487697.649 | AH34: 506830.263 | AI34: 411349.502 | AJ34: 374249.894 | AK34: 330691.251 | AL34: 342691.538 | AM34: 341509.7 | AN34: 310087.092 | AO34: 355082.157 | AP34: 411289.188 | AQ34: 463848.083 | AR34: 459745.897 | AS34: 487697.649 | AT34: 503051.972 | AU34: 411550.488 | AV34: 374249.894 | AW34: 330681.273 | AX34: 342698.084 | AY34: 341509.7 | AZ34: 321156.062 | BA34: 355096.678 | BB34: 411289.188 | BC34: 463650.094 | BD34: 460001.625 | BE34: 487697.649 | BF34: 504799.652 | BG34: 411550.488 | BH34: 374170.706 | BI34: 330691.251 | BJ34: 342698.084 | BK34: 341502.61 | BL34: 310087.092 | BM34: 355096.678 | BN34: 411289.188 | BO34: 463650.094 | BP34: 460001.625 | BQ34: 487123.289 | BR34: 506830.263 | BS34: 411550.488 | BT34: 374170.706 | BU34: 330691.251 | BV34: 342698.084 | BW34: 341502.61 | BX34: 310087.092 | BY34: 355096.678 | BZ34: 411213.293 | CA34: 463848.083 | CB34: 460001.625 | CC34: 487123.289 | CD34: 506830.263 | CE34: 411550.488 | CG34: 55195.834 | CH34: 3839.166 | CI34: 3357.734 | CJ34: 2738.166 | CK34: 7321.16 | CL34: 27736.34 | CM34: 84439.051 | CN34: 130877.923 | CO34: 151258.247 | CP34: 180109.038 | CQ34: 197542.919 | CR34: 121652.976 | CS34: 55116.437 | CT34: 3839.166 | CU34: 3357.734 | CV34: 2738.166 | CW34: 7321.16 | CX34: 27750.829 | CY34: 84362.963 | CZ34: 130877.923 | DA34: 151514.168 | DB34: 179535.046 | DC34: 197542.919 | DD34: 121652.976 | DE34: 55116.437 | DF34: 3832.104 | DG34: 3350.854 | DH34: 2731.278 | DI34: 7314.248 | DJ34: 27750.829 | DK34: 84362.963 | DL34: 130877.923 | DM34: 151514.168 | DN34: 179535.046 | DO34: 201321.417 | DP34: 121451.798 | DQ34: 55116.437 | DR34: 3842.16 | DS34: 3344.676 | DT34: 2731.278 | DU34: 7580.737 | DV34: 27736.34 | DW34: 84362.963 | DX34: 131075.542 | DY34: 151258.247 | DZ34: 179535.046 | EA34: 199573.737 | EB34: 121451.798 | EC34: 55195.834 | ED34: 3832.104 | EE34: 3344.676 | EF34: 2737.999 | EG34: 7314.248 | EH34: 27736.34 | EI34: 84362.963 | EJ34: 131075.542 | EK34: 151258.247 | EL34: 180109.038 | EM34: 197542.919 | EN34: 121451.798 | EO34: 55182.344 | EP34: 3829.732 | EQ34: 3345.523 | ER34: 2739.572 | ES34: 7314.868 | ET34: 27735.143 | EU34: 84439.13 | EV34: 130864.761 | EW34: 151239.615 | EX34: 180911.927 | EY34: 178584.941 | EZ34: 121462.151
C35: Canadian Entitlement | D35: FPS_FBS_CDN | E35: 3979666.976 | F35: 3979667.104 | G35: 3979667.12 | H35: 3990569.952 | I35: 3979666.224 | J35: 3979666.784 | L35: 337999.168 | M35: 327550 | N35: 337998.8 | O35: 337999.168 | P35: 305289.984 | Q35: 337544.928 | R35: 327096 | S35: 337999.168 | T35: 327095.808 | U35: 337998.8 | V35: 337998.96 | W35: 327096.192 | X35: 337998.96 | Y35: 327550 | Z35: 337998.8 | AA35: 337999.168 | AB35: 305289.984 | AC35: 337544.896 | AD35: 327095.808 | AE35: 337999.168 | AF35: 327096 | AG35: 337999.168 | AH35: 337998.96 | AI35: 327096.192 | AJ35: 337998.96 | AK35: 327550 | AL35: 337998.8 | AM35: 337999.168 | AN35: 305289.984 | AO35: 337544.896 | AP35: 327095.808 | AQ35: 337999.168 | AR35: 327096 | AS35: 337999.168 | AT35: 337999.168 | AU35: 327096 | AV35: 337998.96 | AW35: 327550.08 | AX35: 337999.168 | AY35: 337999.168 | AZ35: 316192.896 | BA35: 337544.928 | BB35: 327095.808 | BC35: 337998.8 | BD35: 327095.808 | BE35: 337999.168 | BF35: 337999.168 | BG35: 327096 | BH35: 337999.168 | BI35: 327550 | BJ35: 337999.168 | BK35: 337998.8 | BL35: 305289.984 | BM35: 337544.928 | BN35: 327095.808 | BO35: 337998.8 | BP35: 327095.808 | BQ35: 337998.8 | BR35: 337998.96 | BS35: 327096 | BT35: 337999.168 | BU35: 327550 | BV35: 337999.168 | BW35: 337998.8 | BX35: 305289.984 | BY35: 337544.928 | BZ35: 327096 | CA35: 337999.168 | CB35: 327095.808 | CC35: 337998.8 | CD35: 337998.96 | CE35: 327096 | CG35: 0 | CH35: 0 | CI35: 0 | CJ35: 0 | CK35: 0 | CL35: 0 | CM35: 0 | CN35: 0 | CO35: 0 | CP35: 0 | CQ35: 0 | CR35: 0 | CS35: 0 | CT35: 0 | CU35: 0 | CV35: 0 | CW35: 0 | CX35: 0 | CY35: 0 | CZ35: 0 | DA35: 0 | DB35: 0 | DC35: 0 | DD35: 0 | DE35: 0 | DF35: 0 | DG35: 0 | DH35: 0 | DI35: 0 | DJ35: 0 | DK35: 0 | DL35: 0 | DM35: 0 | DN35: 0 | DO35: 0 | DP35: 0 | DQ35: 0 | DR35: 0 | DS35: 0 | DT35: 0 | DU35: 0 | DV35: 0 | DW35: 0 | DX35: 0 | DY35: 0 | DZ35: 0 | EA35: 0 | EB35: 0 | EC35: 0 | ED35: 0 | EE35: 0 | EF35: 0 | EG35: 0 | EH35: 0 | EI35: 0 | EJ35: 0 | EK35: 0 | EL35: 0 | EM35: 0 | EN35: 0 | EO35: 0 | EP35: 0 | EQ35: 0 | ER35: 0 | ES35: 0 | ET35: 0 | EU35: 0 | EV35: 0 | EW35: 0 | EX35: 0 | EY35: 0 | EZ35: 0
C36: USBR Pump Load | D36: FPS_FBS_UBR | E36: 1648482.856 | F36: 1648482.855 | G36: 1648482.854 | H36: 1648915.396 | I36: 1648482.852 | J36: 1648436.521 | L36: 36171.538 | M36: 3141.251 | N36: 4692.738 | O36: 3510.532 | P36: 4797.108 | Q36: 17551.75 | R36: 84117.293 | S36: 125848.915 | T36: 132905.817 | U36: 143009.689 | V36: 98384.727 | W36: 84253.31 | X36: 36250.934 | Y36: 3141.251 | Z36: 4692.738 | AA36: 3510.532 | AB36: 4797.108 | AC36: 17537.261 | AD36: 84193.38 | AE36: 125848.915 | AF36: 132649.897 | AG36: 143339.089 | AH36: 98384.727 | AI36: 84253.31 | AJ36: 36250.934 | AK36: 3141.251 | AL36: 4692.738 | AM36: 3510.532 | AN36: 4797.108 | AO36: 17537.261 | AP36: 84193.38 | AQ36: 125848.915 | AR36: 132649.897 | AS36: 143339.089 | AT36: 98056.836 | AU36: 84454.488 | AV36: 36250.934 | AW36: 3131.193 | AX36: 4698.916 | AY36: 3510.532 | AZ36: 4963.166 | BA36: 17551.75 | BB36: 84193.38 | BC36: 125651.294 | BD36: 132905.817 | BE36: 143339.089 | BF36: 98056.836 | BG36: 84454.488 | BH36: 36171.538 | BI36: 3141.251 | BJ36: 4698.916 | BK36: 3503.81 | BL36: 4797.108 | BM36: 17551.75 | BN36: 84193.38 | BO36: 125651.294 | BP36: 132905.817 | BQ36: 143009.689 | BR36: 98384.727 | BS36: 84454.488 | BT36: 36171.538 | BU36: 3141.251 | BV36: 4698.916 | BW36: 3503.81 | BX36: 4797.108 | BY36: 17551.75 | BZ36: 84117.293 | CA36: 125848.915 | CB36: 132905.817 | CC36: 143009.689 | CD36: 98384.727 | CE36: 84454.488 | CG36: 55195.834 | CH36: 3832.104 | CI36: 3350.854 | CJ36: 2731.278 | CK36: 7314.248 | CL36: 27736.34 | CM36: 84439.051 | CN36: 130877.923 | CO36: 151258.247 | CP36: 174850.31 | CQ36: 146859.023 | CR36: 121652.976 | CS36: 55116.437 | CT36: 3832.104 | CU36: 3350.854 | CV36: 2731.278 | CW36: 7314.248 | CX36: 27750.829 | CY36: 84362.963 | CZ36: 130877.923 | DA36: 151514.168 | DB36: 174520.91 | DC36: 146859.023 | DD36: 121652.976 | DE36: 55116.437 | DF36: 3832.104 | DG36: 3350.854 | DH36: 2731.278 | DI36: 7314.248 | DJ36: 27750.829 | DK36: 84362.963 | DL36: 130877.923 | DM36: 151514.168 | DN36: 174520.91 | DO36: 147186.913 | DP36: 121451.798 | DQ36: 55116.437 | DR36: 3842.16 | DS36: 3344.676 | DT36: 2731.278 | DU36: 7580.737 | DV36: 27736.34 | DW36: 84362.963 | DX36: 131075.542 | DY36: 151258.247 | DZ36: 174520.91 | EA36: 147186.913 | EB36: 121451.798 | EC36: 55195.834 | ED36: 3832.104 | EE36: 3344.676 | EF36: 2737.999 | EG36: 7314.248 | EH36: 27736.34 | EI36: 84362.963 | EJ36: 131075.542 | EK36: 151258.247 | EL36: 174850.31 | EM36: 146859.023 | EN36: 121451.798 | EO36: 55182.344 | EP36: 3829.732 | EQ36: 3345.523 | ER36: 2739.572 | ES36: 7314.868 | ET36: 27735.143 | EU36: 84439.13 | EV36: 130864.761 | EW36: 151239.615 | EX36: 174838.951 | EY36: 146859.429 | EZ36: 121462.151
C37: Hungry Horse | D37: FPS_FBS_HH | E37: 0 | F37: 0 | G37: 0 | H37: 0 | I37: 0 | J37: 0 | L37: 0 | M37: 0 | N37: 0 | O37: 0 | P37: 0 | Q37: 0 | R37: 0 | S37: 0 | T37: 0 | U37: 0 | V37: 0 | W37: 0 | X37: 0 | Y37: 0 | Z37: 0 | AA37: 0 | AB37: 0 | AC37: 0 | AD37: 0 | AE37: 0 | AF37: 0 | AG37: 0 | AH37: 0 | AI37: 0 | AJ37: 0 | AK37: 0 | AL37: 0 | AM37: 0 | AN37: 0 | AO37: 0 | AP37: 0 | AQ37: 0 | AR37: 0 | AS37: 0 | AT37: 0 | AU37: 0 | AV37: 0 | AW37: 0 | AX37: 0 | AY37: 0 | AZ37: 0 | BA37: 0 | BB37: 0 | BC37: 0 | BD37: 0 | BE37: 0 | BF37: 0 | BG37: 0 | BH37: 0 | BI37: 0 | BJ37: 0 | BK37: 0 | BL37: 0 | BM37: 0 | BN37: 0 | BO37: 0 | BP37: 0 | BQ37: 0 | BR37: 0 | BS37: 0 | BT37: 0 | BU37: 0 | BV37: 0 | BW37: 0 | BX37: 0 | BY37: 0 | BZ37: 0 | CA37: 0 | CB37: 0 | CC37: 0 | CD37: 0 | CE37: 0 | CG37: 0 | CH37: 0 | CI37: 0 | CJ37: 0 | CK37: 0 | CL37: 0 | CM37: 0 | CN37: 0 | CO37: 0 | CP37: 0 | CQ37: 0 | CR37: 0 | CS37: 0 | CT37: 0 | CU37: 0 | CV37: 0 | CW37: 0 | CX37: 0 | CY37: 0 | CZ37: 0 | DA37: 0 | DB37: 0 | DC37: 0 | DD37: 0 | DE37: 0 | DF37: 0 | DG37: 0 | DH37: 0 | DI37: 0 | DJ37: 0 | DK37: 0 | DL37: 0 | DM37: 0 | DN37: 0 | DO37: 0 | DP37: 0 | DQ37: 0 | DR37: 0 | DS37: 0 | DT37: 0 | DU37: 0 | DV37: 0 | DW37: 0 | DX37: 0 | DY37: 0 | DZ37: 0 | EA37: 0 | EB37: 0 | EC37: 0 | ED37: 0 | EE37: 0 | EF37: 0 | EG37: 0 | EH37: 0 | EI37: 0 | EJ37: 0 | EK37: 0 | EL37: 0 | EM37: 0 | EN37: 0 | EO37: 0 | EP37: 0 | EQ37: 0 | ER37: 0 | ES37: 0 | ET37: 0 | EU37: 0 | EV37: 0 | EW37: 0 | EX37: 0 | EY37: 0 | EZ37: 0
C38: Upper Baker | D38: FPS_FBS_UPB | E38: 11227.742 | F38: 11227.742 | G38: 0 | H38: 0 | I38: 0 | J38: 0 | L38: 0 | M38: 2800 | N38: 2800 | O38: 2912 | P38: 2688 | Q38: 0 | R38: 0 | S38: 0 | T38: 0 | U38: 0 | V38: 0 | W38: 0 | X38: 0 | Y38: 2800 | Z38: 2800 | AA38: 2912 | AB38: 2688 | AC38: 0 | AD38: 0 | AE38: 0 | AF38: 0 | AG38: 0 | AH38: 0 | AI38: 0 | AJ38: 0 | AK38: 0 | AL38: 0 | AM38: 0 | AN38: 0 | AO38: 0 | AP38: 0 | AQ38: 0 | AR38: 0 | AS38: 0 | AT38: 0 | AU38: 0 | AV38: 0 | AW38: 0 | AX38: 0 | AY38: 0 | AZ38: 0 | BA38: 0 | BB38: 0 | BC38: 0 | BD38: 0 | BE38: 0 | BF38: 0 | BG38: 0 | BH38: 0 | BI38: 0 | BJ38: 0 | BK38: 0 | BL38: 0 | BM38: 0 | BN38: 0 | BO38: 0 | BP38: 0 | BQ38: 0 | BR38: 0 | BS38: 0 | BT38: 0 | BU38: 0 | BV38: 0 | BW38: 0 | BX38: 0 | BY38: 0 | BZ38: 0 | CA38: 0 | CB38: 0 | CC38: 0 | CD38: 0 | CE38: 0 | CG38: 0 | CH38: 7.062 | CI38: 6.88 | CJ38: 6.888 | CK38: 6.912 | CL38: 0 | CM38: 0 | CN38: 0 | CO38: 0 | CP38: 0 | CQ38: 0 | CR38: 0 | CS38: 0 | CT38: 7.062 | CU38: 6.88 | CV38: 6.888 | CW38: 6.912 | CX38: 0 | CY38: 0 | CZ38: 0 | DA38: 0 | DB38: 0 | DC38: 0 | DD38: 0 | DE38: 0 | DF38: 0 | DG38: 0 | DH38: 0 | DI38: 0 | DJ38: 0 | DK38: 0 | DL38: 0 | DM38: 0 | DN38: 0 | DO38: 0 | DP38: 0 | DQ38: 0 | DR38: 0 | DS38: 0 | DT38: 0 | DU38: 0 | DV38: 0 | DW38: 0 | DX38: 0 | DY38: 0 | DZ38: 0 | EA38: 0 | EB38: 0 | EC38: 0 | ED38: 0 | EE38: 0 | EF38: 0 | EG38: 0 | EH38: 0 | EI38: 0 | EJ38: 0 | EK38: 0 | EL38: 0 | EM38: 0 | EN38: 0 | EO38: 0 | EP38: 0 | EQ38: 0 | ER38: 0 | ES38: 0 | ET38: 0 | EU38: 0 | EV38: 0 | EW38: 0 | EX38: 0 | EY38: 0 | EZ38: 0
C39: Non-Treaty Storage | D39: FPS_FBS_NTS | E39: 132504 | F39: 132504 | G39: 132504 | H39: 132504 | I39: 132504 | J39: 114359.864 | L39: 0 | M39: 0 | N39: 0 | O39: 0 | P39: 0 | Q39: 0 | R39: 0 | S39: 0 | T39: 0 | U39: 6114.8 | V39: 70446.576 | W39: 0 | X39: 0 | Y39: 0 | Z39: 0 | AA39: 0 | AB39: 0 | AC39: 0 | AD39: 0 | AE39: 0 | AF39: 0 | AG39: 6359.392 | AH39: 70446.576 | AI39: 0 | AJ39: 0 | AK39: 0 | AL39: 0 | AM39: 0 | AN39: 0 | AO39: 0 | AP39: 0 | AQ39: 0 | AR39: 0 | AS39: 6359.392 | AT39: 66995.968 | AU39: 0 | AV39: 0 | AW39: 0 | AX39: 0 | AY39: 0 | AZ39: 0 | BA39: 0 | BB39: 0 | BC39: 0 | BD39: 0 | BE39: 6359.392 | BF39: 68743.648 | BG39: 0 | BH39: 0 | BI39: 0 | BJ39: 0 | BK39: 0 | BL39: 0 | BM39: 0 | BN39: 0 | BO39: 0 | BP39: 0 | BQ39: 6114.8 | BR39: 70446.576 | BS39: 0 | BT39: 0 | BU39: 0 | BV39: 0 | BW39: 0 | BX39: 0 | BY39: 0 | BZ39: 0 | CA39: 0 | CB39: 0 | CC39: 6114.8 | CD39: 70446.576 | CE39: 0 | CG39: 0 | CH39: 0 | CI39: 0 | CJ39: 0 | CK39: 0 | CL39: 0 | CM39: 0 | CN39: 0 | CO39: 0 | CP39: 5258.728 | CQ39: 50683.896 | CR39: 0 | CS39: 0 | CT39: 0 | CU39: 0 | CV39: 0 | CW39: 0 | CX39: 0 | CY39: 0 | CZ39: 0 | DA39: 0 | DB39: 5014.136 | DC39: 50683.896 | DD39: 0 | DE39: 0 | DF39: 0 | DG39: 0 | DH39: 0 | DI39: 0 | DJ39: 0 | DK39: 0 | DL39: 0 | DM39: 0 | DN39: 5014.136 | DO39: 54134.504 | DP39: 0 | DQ39: 0 | DR39: 0 | DS39: 0 | DT39: 0 | DU39: 0 | DV39: 0 | DW39: 0 | DX39: 0 | DY39: 0 | DZ39: 5014.136 | EA39: 52386.824 | EB39: 0 | EC39: 0 | ED39: 0 | EE39: 0 | EF39: 0 | EG39: 0 | EH39: 0 | EI39: 0 | EJ39: 0 | EK39: 0 | EL39: 5258.728 | EM39: 50683.896 | EN39: 0 | EO39: 0 | EP39: 0 | EQ39: 0 | ER39: 0 | ES39: 0 | ET39: 0 | EU39: 0 | EV39: 0 | EW39: 0 | EX39: 6072.976 | EY39: 31725.512 | EZ39: 0
C40: Libby Coordination | D40: FPS_FBS_LCA | E40: 0 | F40: 0 | G40: 0 | H40: 0 | I40: 0 | J40: 0 | L40: 0 | M40: 0 | N40: 0 | O40: 0 | P40: 0 | Q40: 0 | R40: 0 | S40: 0 | T40: 0 | U40: 0 | V40: 0 | W40: 0 | X40: 0 | Y40: 0 | Z40: 0 | AA40: 0 | AB40: 0 | AC40: 0 | AD40: 0 | AE40: 0 | AF40: 0 | AG40: 0 | AH40: 0 | AI40: 0 | AJ40: 0 | AK40: 0 | AL40: 0 | AM40: 0 | AN40: 0 | AO40: 0 | AP40: 0 | AQ40: 0 | AR40: 0 | AS40: 0 | AT40: 0 | AU40: 0 | AV40: 0 | AW40: 0 | AX40: 0 | AY40: 0 | AZ40: 0 | BA40: 0 | BB40: 0 | BC40: 0 | BD40: 0 | BE40: 0 | BF40: 0 | BG40: 0 | BH40: 0 | BI40: 0 | BJ40: 0 | BK40: 0 | BL40: 0 | BM40: 0 | BN40: 0 | BO40: 0 | BP40: 0 | BQ40: 0 | BR40: 0 | BS40: 0 | BT40: 0 | BU40: 0 | BV40: 0 | BW40: 0 | BX40: 0 | BY40: 0 | BZ40: 0 | CA40: 0 | CB40: 0 | CC40: 0 | CD40: 0 | CE40: 0 | CG40: 0 | CH40: 0 | CI40: 0 | CJ40: 0 | CK40: 0 | CL40: 0 | CM40: 0 | CN40: 0 | CO40: 0 | CP40: 0 | CQ40: 0 | CR40: 0 | CS40: 0 | CT40: 0 | CU40: 0 | CV40: 0 | CW40: 0 | CX40: 0 | CY40: 0 | CZ40: 0 | DA40: 0 | DB40: 0 | DC40: 0 | DD40: 0 | DE40: 0 | DF40: 0 | DG40: 0 | DH40: 0 | DI40: 0 | DJ40: 0 | DK40: 0 | DL40: 0 | DM40: 0 | DN40: 0 | DO40: 0 | DP40: 0 | DQ40: 0 | DR40: 0 | DS40: 0 | DT40: 0 | DU40: 0 | DV40: 0 | DW40: 0 | DX40: 0 | DY40: 0 | DZ40: 0 | EA40: 0 | EB40: 0 | EC40: 0 | ED40: 0 | EE40: 0 | EF40: 0 | EG40: 0 | EH40: 0 | EI40: 0 | EJ40: 0 | EK40: 0 | EL40: 0 | EM40: 0 | EN40: 0 | EO40: 0 | EP40: 0 | EQ40: 0 | ER40: 0 | ES40: 0 | ET40: 0 | EU40: 0 | EV40: 0 | EW40: 0 | EX40: 0 | EY40: 0 | EZ40: 0
E41: 0 | F41: 0 | G41: 0 | H41: 0 | I41: 0 | J41: 0 | L41: 0 | M41: 0 | N41: 0 | O41: 0 | P41: 0 | Q41: 0 | R41: 0 | S41: 0 | T41: 0 | U41: 0 | V41: 0 | W41: 0 | X41: 0 | Y41: 0 | Z41: 0 | AA41: 0 | AB41: 0 | AC41: 0 | AD41: 0 | AE41: 0 | AF41: 0 | AG41: 0 | AH41: 0 | AI41: 0 | AJ41: 0 | AK41: 0 | AL41: 0 | AM41: 0 | AN41: 0 | AO41: 0 | AP41: 0 | AQ41: 0 | AR41: 0 | AS41: 0 | AT41: 0 | AU41: 0 | AV41: 0 | AW41: 0 | AX41: 0 | AY41: 0 | AZ41: 0 | BA41: 0 | BB41: 0 | BC41: 0 | BD41: 0 | BE41: 0 | BF41: 0 | BG41: 0 | BH41: 0 | BI41: 0 | BJ41: 0 | BK41: 0 | BL41: 0 | BM41: 0 | BN41: 0 | BO41: 0 | BP41: 0 | BQ41: 0 | BR41: 0 | BS41: 0 | BT41: 0 | BU41: 0 | BV41: 0 | BW41: 0 | BX41: 0 | BY41: 0 | BZ41: 0 | CA41: 0 | CB41: 0 | CC41: 0 | CD41: 0 | CE41: 0 | CG41: 0 | CH41: 0 | CI41: 0 | CJ41: 0 | CK41: 0 | CL41: 0 | CM41: 0 | CN41: 0 | CO41: 0 | CP41: 0 | CQ41: 0 | CR41: 0 | CS41: 0 | CT41: 0 | CU41: 0 | CV41: 0 | CW41: 0 | CX41: 0 | CY41: 0 | CZ41: 0 | DA41: 0 | DB41: 0 | DC41: 0 | DD41: 0 | DE41: 0 | DF41: 0 | DG41: 0 | DH41: 0 | DI41: 0 | DJ41: 0 | DK41: 0 | DL41: 0 | DM41: 0 | DN41: 0 | DO41: 0 | DP41: 0 | DQ41: 0 | DR41: 0 | DS41: 0 | DT41: 0 | DU41: 0 | DV41: 0 | DW41: 0 | DX41: 0 | DY41: 0 | DZ41: 0 | EA41: 0 | EB41: 0 | EC41: 0 | ED41: 0 | EE41: 0 | EF41: 0 | EG41: 0 | EH41: 0 | EI41: 0 | EJ41: 0 | EK41: 0 | EL41: 0 | EM41: 0 | EN41: 0 | EO41: 0 | EP41: 0 | EQ41: 0 | ER41: 0 | ES41: 0 | ET41: 0 | EU41: 0 | EV41: 0 | EW41: 0 | EX41: 0 | EY41: 0 | EZ41: 0
E42: 0 | F42: 0 | G42: 0 | H42: 0 | I42: 0 | J42: 0 | L42: 0 | M42: 0 | N42: 0 | O42: 0 | P42: 0 | Q42: 0 | R42: 0 | S42: 0 | T42: 0 | U42: 0 | V42: 0 | W42: 0 | X42: 0 | Y42: 0 | Z42: 0 | AA42: 0 | AB42: 0 | AC42: 0 | AD42: 0 | AE42: 0 | AF42: 0 | AG42: 0 | AH42: 0 | AI42: 0 | AJ42: 0 | AK42: 0 | AL42: 0 | AM42: 0 | AN42: 0 | AO42: 0 | AP42: 0 | AQ42: 0 | AR42: 0 | AS42: 0 | AT42: 0 | AU42: 0 | AV42: 0 | AW42: 0 | AX42: 0 | AY42: 0 | AZ42: 0 | BA42: 0 | BB42: 0 | BC42: 0 | BD42: 0 | BE42: 0 | BF42: 0 | BG42: 0 | BH42: 0 | BI42: 0 | BJ42: 0 | BK42: 0 | BL42: 0 | BM42: 0 | BN42: 0 | BO42: 0 | BP42: 0 | BQ42: 0 | BR42: 0 | BS42: 0 | BT42: 0 | BU42: 0 | BV42: 0 | BW42: 0 | BX42: 0 | BY42: 0 | BZ42: 0 | CA42: 0 | CB42: 0 | CC42: 0 | CD42: 0 | CE42: 0 | CG42: 0 | CH42: 0 | CI42: 0 | CJ42: 0 | CK42: 0 | CL42: 0 | CM42: 0 | CN42: 0 | CO42: 0 | CP42: 0 | CQ42: 0 | CR42: 0 | CS42: 0 | CT42: 0 | CU42: 0 | CV42: 0 | CW42: 0 | CX42: 0 | CY42: 0 | CZ42: 0 | DA42: 0 | DB42: 0 | DC42: 0 | DD42: 0 | DE42: 0 | DF42: 0 | DG42: 0 | DH42: 0 | DI42: 0 | DJ42: 0 | DK42: 0 | DL42: 0 | DM42: 0 | DN42: 0 | DO42: 0 | DP42: 0 | DQ42: 0 | DR42: 0 | DS42: 0 | DT42: 0 | DU42: 0 | DV42: 0 | DW42: 0 | DX42: 0 | DY42: 0 | DZ42: 0 | EA42: 0 | EB42: 0 | EC42: 0 | ED42: 0 | EE42: 0 | EF42: 0 | EG42: 0 | EH42: 0 | EI42: 0 | EJ42: 0 | EK42: 0 | EL42: 0 | EM42: 0 | EN42: 0 | EO42: 0 | EP42: 0 | EQ42: 0 | ER42: 0 | ES42: 0 | ET42: 0 | EU42: 0 | EV42: 0 | EW42: 0 | EX42: 0 | EY42: 0 | EZ42: 0
E43: 0 | F43: 0 | G43: 0 | H43: 0 | I43: 0 | J43: 0 | L43: 0 | M43: 0 | N43: 0 | O43: 0 | P43: 0 | Q43: 0 | R43: 0 | S43: 0 | T43: 0 | U43: 0 | V43: 0 | W43: 0 | X43: 0 | Y43: 0 | Z43: 0 | AA43: 0 | AB43: 0 | AC43: 0 | AD43: 0 | AE43: 0 | AF43: 0 | AG43: 0 | AH43: 0 | AI43: 0 | AJ43: 0 | AK43: 0 | AL43: 0 | AM43: 0 | AN43: 0 | AO43: 0 | AP43: 0 | AQ43: 0 | AR43: 0 | AS43: 0 | AT43: 0 | AU43: 0 | AV43: 0 | AW43: 0 | AX43: 0 | AY43: 0 | AZ43: 0 | BA43: 0 | BB43: 0 | BC43: 0 | BD43: 0 | BE43: 0 | BF43: 0 | BG43: 0 | BH43: 0 | BI43: 0 | BJ43: 0 | BK43: 0 | BL43: 0 | BM43: 0 | BN43: 0 | BO43: 0 | BP43: 0 | BQ43: 0 | BR43: 0 | BS43: 0 | BT43: 0 | BU43: 0 | BV43: 0 | BW43: 0 | BX43: 0 | BY43: 0 | BZ43: 0 | CA43: 0 | CB43: 0 | CC43: 0 | CD43: 0 | CE43: 0 | CG43: 0 | CH43: 0 | CI43: 0 | CJ43: 0 | CK43: 0 | CL43: 0 | CM43: 0 | CN43: 0 | CO43: 0 | CP43: 0 | CQ43: 0 | CR43: 0 | CS43: 0 | CT43: 0 | CU43: 0 | CV43: 0 | CW43: 0 | CX43: 0 | CY43: 0 | CZ43: 0 | DA43: 0 | DB43: 0 | DC43: 0 | DD43: 0 | DE43: 0 | DF43: 0 | DG43: 0 | DH43: 0 | DI43: 0 | DJ43: 0 | DK43: 0 | DL43: 0 | DM43: 0 | DN43: 0 | DO43: 0 | DP43: 0 | DQ43: 0 | DR43: 0 | DS43: 0 | DT43: 0 | DU43: 0 | DV43: 0 | DW43: 0 | DX43: 0 | DY43: 0 | DZ43: 0 | EA43: 0 | EB43: 0 | EC43: 0 | ED43: 0 | EE43: 0 | EF43: 0 | EG43: 0 | EH43: 0 | EI43: 0 | EJ43: 0 | EK43: 0 | EL43: 0 | EM43: 0 | EN43: 0 | EO43: 0 | EP43: 0 | EQ43: 0 | ER43: 0 | ES43: 0 | ET43: 0 | EU43: 0 | EV43: 0 | EW43: 0 | EX43: 0 | EY43: 0 | EZ43: 0
E44: 0 | F44: 0 | G44: 0 | H44: 0 | I44: 0 | J44: 0 | L44: 0 | M44: 0 | N44: 0 | O44: 0 | P44: 0 | Q44: 0 | R44: 0 | S44: 0 | T44: 0 | U44: 0 | V44: 0 | W44: 0 | X44: 0 | Y44: 0 | Z44: 0 | AA44: 0 | AB44: 0 | AC44: 0 | AD44: 0 | AE44: 0 | AF44: 0 | AG44: 0 | AH44: 0 | AI44: 0 | AJ44: 0 | AK44: 0 | AL44: 0 | AM44: 0 | AN44: 0 | AO44: 0 | AP44: 0 | AQ44: 0 | AR44: 0 | AS44: 0 | AT44: 0 | AU44: 0 | AV44: 0 | AW44: 0 | AX44: 0 | AY44: 0 | AZ44: 0 | BA44: 0 | BB44: 0 | BC44: 0 | BD44: 0 | BE44: 0 | BF44: 0 | BG44: 0 | BH44: 0 | BI44: 0 | BJ44: 0 | BK44: 0 | BL44: 0 | BM44: 0 | BN44: 0 | BO44: 0 | BP44: 0 | BQ44: 0 | BR44: 0 | BS44: 0 | BT44: 0 | BU44: 0 | BV44: 0 | BW44: 0 | BX44: 0 | BY44: 0 | BZ44: 0 | CA44: 0 | CB44: 0 | CC44: 0 | CD44: 0 | CE44: 0 | CG44: 0 | CH44: 0 | CI44: 0 | CJ44: 0 | CK44: 0 | CL44: 0 | CM44: 0 | CN44: 0 | CO44: 0 | CP44: 0 | CQ44: 0 | CR44: 0 | CS44: 0 | CT44: 0 | CU44: 0 | CV44: 0 | CW44: 0 | CX44: 0 | CY44: 0 | CZ44: 0 | DA44: 0 | DB44: 0 | DC44: 0 | DD44: 0 | DE44: 0 | DF44: 0 | DG44: 0 | DH44: 0 | DI44: 0 | DJ44: 0 | DK44: 0 | DL44: 0 | DM44: 0 | DN44: 0 | DO44: 0 | DP44: 0 | DQ44: 0 | DR44: 0 | DS44: 0 | DT44: 0 | DU44: 0 | DV44: 0 | DW44: 0 | DX44: 0 | DY44: 0 | DZ44: 0 | EA44: 0 | EB44: 0 | EC44: 0 | ED44: 0 | EE44: 0 | EF44: 0 | EG44: 0 | EH44: 0 | EI44: 0 | EJ44: 0 | EK44: 0 | EL44: 0 | EM44: 0 | EN44: 0 | EO44: 0 | EP44: 0 | EQ44: 0 | ER44: 0 | ES44: 0 | ET44: 0 | EU44: 0 | EV44: 0 | EW44: 0 | EX44: 0 | EY44: 0 | EZ44: 0
B45: Seasonal or Capacity Exchange | D45: FPS_EXS | E45: =+SUM(E46:E55) -> 0 | F45: =+SUM(F46:F55) -> 0 | G45: 0 | H45: 0 | I45: 0 | J45: 0 | L45: 0 | M45: 0 | N45: 0 | O45: 0 | P45: 0 | Q45: 0 | R45: 0 | S45: 0 | T45: 0 | U45: 0 | V45: 0 | W45: 0 | X45: 0 | Y45: 0 | Z45: 0 | AA45: 0 | AB45: 0 | AC45: 0 | AD45: 0 | AE45: 0 | AF45: 0 | AG45: 0 | AH45: 0 | AI45: 0 | AJ45: 0 | AK45: 0 | AL45: 0 | AM45: 0 | AN45: 0 | AO45: 0 | AP45: 0 | AQ45: 0 | AR45: 0 | AS45: 0 | AT45: 0 | AU45: 0 | AV45: 0 | AW45: 0 | AX45: 0 | AY45: 0 | AZ45: 0 | BA45: 0 | BB45: 0 | BC45: 0 | BD45: 0 | BE45: 0 | BF45: 0 | BG45: 0 | BH45: 0 | BI45: 0 | BJ45: 0 | BK45: 0 | BL45: 0 | BM45: 0 | BN45: 0 | BO45: 0 | BP45: 0 | BQ45: 0 | BR45: 0 | BS45: 0 | BT45: 0 | BU45: 0 | BV45: 0 | BW45: 0 | BX45: 0 | BY45: 0 | BZ45: 0 | CA45: 0 | CB45: 0 | CC45: 0 | CD45: 0 | CE45: 0 | CG45: 0 | CH45: 0 | CI45: 0 | CJ45: 0 | CK45: 0 | CL45: 0 | CM45: 0 | CN45: 0 | CO45: 0 | CP45: 0 | CQ45: 0 | CR45: 0 | CS45: 0 | CT45: 0 | CU45: 0 | CV45: 0 | CW45: 0 | CX45: 0 | CY45: 0 | CZ45: 0 | DA45: 0 | DB45: 0 | DC45: 0 | DD45: 0 | DE45: 0 | DF45: 0 | DG45: 0 | DH45: 0 | DI45: 0 | DJ45: 0 | DK45: 0 | DL45: 0 | DM45: 0 | DN45: 0 | DO45: 0 | DP45: 0 | DQ45: 0 | DR45: 0 | DS45: 0 | DT45: 0 | DU45: 0 | DV45: 0 | DW45: 0 | DX45: 0 | DY45: 0 | DZ45: 0 | EA45: 0 | EB45: 0 | EC45: 0 | ED45: 0 | EE45: 0 | EF45: 0 | EG45: 0 | EH45: 0 | EI45: 0 | EJ45: 0 | EK45: 0 | EL45: 0 | EM45: 0 | EN45: 0 | EO45: 0 | EP45: 0 | EQ45: 0 | ER45: 0 | ES45: 0 | ET45: 0 | EU45: 0 | EV45: 0 | EW45: 0 | EX45: 0 | EY45: 0 | EZ45: 0
C46: Riverside Capacity | D46: FPS_EXS_RVC | E46: 0 | F46: 0 | G46: 0 | H46: 0 | I46: 0 | J46: 0 | L46: 0 | M46: 0 | N46: 0 | O46: 0 | P46: 0 | Q46: 0 | R46: 0 | S46: 0 | T46: 0 | U46: 0 | V46: 0 | W46: 0 | X46: 0 | Y46: 0 | Z46: 0 | AA46: 0 | AB46: 0 | AC46: 0 | AD46: 0 | AE46: 0 | AF46: 0 | AG46: 0 | AH46: 0 | AI46: 0 | AJ46: 0 | AK46: 0 | AL46: 0 | AM46: 0 | AN46: 0 | AO46: 0 | AP46: 0 | AQ46: 0 | AR46: 0 | AS46: 0 | AT46: 0 | AU46: 0 | AV46: 0 | AW46: 0 | AX46: 0 | AY46: 0 | AZ46: 0 | BA46: 0 | BB46: 0 | BC46: 0 | BD46: 0 | BE46: 0 | BF46: 0 | BG46: 0 | BH46: 0 | BI46: 0 | BJ46: 0 | BK46: 0 | BL46: 0 | BM46: 0 | BN46: 0 | BO46: 0 | BP46: 0 | BQ46: 0 | BR46: 0 | BS46: 0 | BT46: 0 | BU46: 0 | BV46: 0 | BW46: 0 | BX46: 0 | BY46: 0 | BZ46: 0 | CA46: 0 | CB46: 0 | CC46: 0 | CD46: 0 | CE46: 0 | CG46: 0 | CH46: 0 | CI46: 0 | CJ46: 0 | CK46: 0 | CL46: 0 | CM46: 0 | CN46: 0 | CO46: 0 | CP46: 0 | CQ46: 0 | CR46: 0 | CS46: 0 | CT46: 0 | CU46: 0 | CV46: 0 | CW46: 0 | CX46: 0 | CY46: 0 | CZ46: 0 | DA46: 0 | DB46: 0 | DC46: 0 | DD46: 0 | DE46: 0 | DF46: 0 | DG46: 0 | DH46: 0 | DI46: 0 | DJ46: 0 | DK46: 0 | DL46: 0 | DM46: 0 | DN46: 0 | DO46: 0 | DP46: 0 | DQ46: 0 | DR46: 0 | DS46: 0 | DT46: 0 | DU46: 0 | DV46: 0 | DW46: 0 | DX46: 0 | DY46: 0 | DZ46: 0 | EA46: 0 | EB46: 0 | EC46: 0 | ED46: 0 | EE46: 0 | EF46: 0 | EG46: 0 | EH46: 0 | EI46: 0 | EJ46: 0 | EK46: 0 | EL46: 0 | EM46: 0 | EN46: 0 | EO46: 0 | EP46: 0 | EQ46: 0 | ER46: 0 | ES46: 0 | ET46: 0 | EU46: 0 | EV46: 0 | EW46: 0 | EX46: 0 | EY46: 0 | EZ46: 0
C47: Riverside Seasonal | D47: FPS_EXS_RVS | E47: 0 | F47: 0 | G47: 0 | H47: 0 | I47: 0 | J47: 0 | L47: 0 | M47: 0 | N47: 0 | O47: 0 | P47: 0 | Q47: 0 | R47: 0 | S47: 0 | T47: 0 | U47: 0 | V47: 0 | W47: 0 | X47: 0 | Y47: 0 | Z47: 0 | AA47: 0 | AB47: 0 | AC47: 0 | AD47: 0 | AE47: 0 | AF47: 0 | AG47: 0 | AH47: 0 | AI47: 0 | AJ47: 0 | AK47: 0 | AL47: 0 | AM47: 0 | AN47: 0 | AO47: 0 | AP47: 0 | AQ47: 0 | AR47: 0 | AS47: 0 | AT47: 0 | AU47: 0 | AV47: 0 | AW47: 0 | AX47: 0 | AY47: 0 | AZ47: 0 | BA47: 0 | BB47: 0 | BC47: 0 | BD47: 0 | BE47: 0 | BF47: 0 | BG47: 0 | BH47: 0 | BI47: 0 | BJ47: 0 | BK47: 0 | BL47: 0 | BM47: 0 | BN47: 0 | BO47: 0 | BP47: 0 | BQ47: 0 | BR47: 0 | BS47: 0 | BT47: 0 | BU47: 0 | BV47: 0 | BW47: 0 | BX47: 0 | BY47: 0 | BZ47: 0 | CA47: 0 | CB47: 0 | CC47: 0 | CD47: 0 | CE47: 0 | CG47: 0 | CH47: 0 | CI47: 0 | CJ47: 0 | CK47: 0 | CL47: 0 | CM47: 0 | CN47: 0 | CO47: 0 | CP47: 0 | CQ47: 0 | CR47: 0 | CS47: 0 | CT47: 0 | CU47: 0 | CV47: 0 | CW47: 0 | CX47: 0 | CY47: 0 | CZ47: 0 | DA47: 0 | DB47: 0 | DC47: 0 | DD47: 0 | DE47: 0 | DF47: 0 | DG47: 0 | DH47: 0 | DI47: 0 | DJ47: 0 | DK47: 0 | DL47: 0 | DM47: 0 | DN47: 0 | DO47: 0 | DP47: 0 | DQ47: 0 | DR47: 0 | DS47: 0 | DT47: 0 | DU47: 0 | DV47: 0 | DW47: 0 | DX47: 0 | DY47: 0 | DZ47: 0 | EA47: 0 | EB47: 0 | EC47: 0 | ED47: 0 | EE47: 0 | EF47: 0 | EG47: 0 | EH47: 0 | EI47: 0 | EJ47: 0 | EK47: 0 | EL47: 0 | EM47: 0 | EN47: 0 | EO47: 0 | EP47: 0 | EQ47: 0 | ER47: 0 | ES47: 0 | ET47: 0 | EU47: 0 | EV47: 0 | EW47: 0 | EX47: 0 | EY47: 0 | EZ47: 0
C48: Pasadena Capacity | D48: FPS_EXS_PAC | E48: 0 | F48: 0 | G48: 0 | H48: 0 | I48: 0 | J48: 0 | L48: 0 | M48: 0 | N48: 0 | O48: 0 | P48: 0 | Q48: 0 | R48: 0 | S48: 0 | T48: 0 | U48: 0 | V48: 0 | W48: 0 | X48: 0 | Y48: 0 | Z48: 0 | AA48: 0 | AB48: 0 | AC48: 0 | AD48: 0 | AE48: 0 | AF48: 0 | AG48: 0 | AH48: 0 | AI48: 0 | AJ48: 0 | AK48: 0 | AL48: 0 | AM48: 0 | AN48: 0 | AO48: 0 | AP48: 0 | AQ48: 0 | AR48: 0 | AS48: 0 | AT48: 0 | AU48: 0 | AV48: 0 | AW48: 0 | AX48: 0 | AY48: 0 | AZ48: 0 | BA48: 0 | BB48: 0 | BC48: 0 | BD48: 0 | BE48: 0 | BF48: 0 | BG48: 0 | BH48: 0 | BI48: 0 | BJ48: 0 | BK48: 0 | BL48: 0 | BM48: 0 | BN48: 0 | BO48: 0 | BP48: 0 | BQ48: 0 | BR48: 0 | BS48: 0 | BT48: 0 | BU48: 0 | BV48: 0 | BW48: 0 | BX48: 0 | BY48: 0 | BZ48: 0 | CA48: 0 | CB48: 0 | CC48: 0 | CD48: 0 | CE48: 0 | CG48: 0 | CH48: 0 | CI48: 0 | CJ48: 0 | CK48: 0 | CL48: 0 | CM48: 0 | CN48: 0 | CO48: 0 | CP48: 0 | CQ48: 0 | CR48: 0 | CS48: 0 | CT48: 0 | CU48: 0 | CV48: 0 | CW48: 0 | CX48: 0 | CY48: 0 | CZ48: 0 | DA48: 0 | DB48: 0 | DC48: 0 | DD48: 0 | DE48: 0 | DF48: 0 | DG48: 0 | DH48: 0 | DI48: 0 | DJ48: 0 | DK48: 0 | DL48: 0 | DM48: 0 | DN48: 0 | DO48: 0 | DP48: 0 | DQ48: 0 | DR48: 0 | DS48: 0 | DT48: 0 | DU48: 0 | DV48: 0 | DW48: 0 | DX48: 0 | DY48: 0 | DZ48: 0 | EA48: 0 | EB48: 0 | EC48: 0 | ED48: 0 | EE48: 0 | EF48: 0 | EG48: 0 | EH48: 0 | EI48: 0 | EJ48: 0 | EK48: 0 | EL48: 0 | EM48: 0 | EN48: 0 | EO48: 0 | EP48: 0 | EQ48: 0 | ER48: 0 | ES48: 0 | ET48: 0 | EU48: 0 | EV48: 0 | EW48: 0 | EX48: 0 | EY48: 0 | EZ48: 0
C49: Pasadena Seasonal | D49: FPS_EXS_PAS | E49: 0 | F49: 0 | G49: 0 | H49: 0 | I49: 0 | J49: 0 | L49: 0 | M49: 0 | N49: 0 | O49: 0 | P49: 0 | Q49: 0 | R49: 0 | S49: 0 | T49: 0 | U49: 0 | V49: 0 | W49: 0 | X49: 0 | Y49: 0 | Z49: 0 | AA49: 0 | AB49: 0 | AC49: 0 | AD49: 0 | AE49: 0 | AF49: 0 | AG49: 0 | AH49: 0 | AI49: 0 | AJ49: 0 | AK49: 0 | AL49: 0 | AM49: 0 | AN49: 0 | AO49: 0 | AP49: 0 | AQ49: 0 | AR49: 0 | AS49: 0 | AT49: 0 | AU49: 0 | AV49: 0 | AW49: 0 | AX49: 0 | AY49: 0 | AZ49: 0 | BA49: 0 | BB49: 0 | BC49: 0 | BD49: 0 | BE49: 0 | BF49: 0 | BG49: 0 | BH49: 0 | BI49: 0 | BJ49: 0 | BK49: 0 | BL49: 0 | BM49: 0 | BN49: 0 | BO49: 0 | BP49: 0 | BQ49: 0 | BR49: 0 | BS49: 0 | BT49: 0 | BU49: 0 | BV49: 0 | BW49: 0 | BX49: 0 | BY49: 0 | BZ49: 0 | CA49: 0 | CB49: 0 | CC49: 0 | CD49: 0 | CE49: 0 | CG49: 0 | CH49: 0 | CI49: 0 | CJ49: 0 | CK49: 0 | CL49: 0 | CM49: 0 | CN49: 0 | CO49: 0 | CP49: 0 | CQ49: 0 | CR49: 0 | CS49: 0 | CT49: 0 | CU49: 0 | CV49: 0 | CW49: 0 | CX49: 0 | CY49: 0 | CZ49: 0 | DA49: 0 | DB49: 0 | DC49: 0 | DD49: 0 | DE49: 0 | DF49: 0 | DG49: 0 | DH49: 0 | DI49: 0 | DJ49: 0 | DK49: 0 | DL49: 0 | DM49: 0 | DN49: 0 | DO49: 0 | DP49: 0 | DQ49: 0 | DR49: 0 | DS49: 0 | DT49: 0 | DU49: 0 | DV49: 0 | DW49: 0 | DX49: 0 | DY49: 0 | DZ49: 0 | EA49: 0 | EB49: 0 | EC49: 0 | ED49: 0 | EE49: 0 | EF49: 0 | EG49: 0 | EH49: 0 | EI49: 0 | EJ49: 0 | EK49: 0 | EL49: 0 | EM49: 0 | EN49: 0 | EO49: 0 | EP49: 0 | EQ49: 0 | ER49: 0 | ES49: 0 | ET49: 0 | EU49: 0 | EV49: 0 | EW49: 0 | EX49: 0 | EY49: 0 | EZ49: 0
C50: PG&E | D50: FPS_EXS_PGE | E50: 0 | F50: 0 | G50: 0 | H50: 0 | I50: 0 | J50: 0 | L50: 0 | M50: 0 | N50: 0 | O50: 0 | P50: 0 | Q50: 0 | R50: 0 | S50: 0 | T50: 0 | U50: 0 | V50: 0 | W50: 0 | X50: 0 | Y50: 0 | Z50: 0 | AA50: 0 | AB50: 0 | AC50: 0 | AD50: 0 | AE50: 0 | AF50: 0 | AG50: 0 | AH50: 0 | AI50: 0 | AJ50: 0 | AK50: 0 | AL50: 0 | AM50: 0 | AN50: 0 | AO50: 0 | AP50: 0 | AQ50: 0 | AR50: 0 | AS50: 0 | AT50: 0 | AU50: 0 | AV50: 0 | AW50: 0 | AX50: 0 | AY50: 0 | AZ50: 0 | BA50: 0 | BB50: 0 | BC50: 0 | BD50: 0 | BE50: 0 | BF50: 0 | BG50: 0 | BH50: 0 | BI50: 0 | BJ50: 0 | BK50: 0 | BL50: 0 | BM50: 0 | BN50: 0 | BO50: 0 | BP50: 0 | BQ50: 0 | BR50: 0 | BS50: 0 | BT50: 0 | BU50: 0 | BV50: 0 | BW50: 0 | BX50: 0 | BY50: 0 | BZ50: 0 | CA50: 0 | CB50: 0 | CC50: 0 | CD50: 0 | CE50: 0 | CG50: 0 | CH50: 0 | CI50: 0 | CJ50: 0 | CK50: 0 | CL50: 0 | CM50: 0 | CN50: 0 | CO50: 0 | CP50: 0 | CQ50: 0 | CR50: 0 | CS50: 0 | CT50: 0 | CU50: 0 | CV50: 0 | CW50: 0 | CX50: 0 | CY50: 0 | CZ50: 0 | DA50: 0 | DB50: 0 | DC50: 0 | DD50: 0 | DE50: 0 | DF50: 0 | DG50: 0 | DH50: 0 | DI50: 0 | DJ50: 0 | DK50: 0 | DL50: 0 | DM50: 0 | DN50: 0 | DO50: 0 | DP50: 0 | DQ50: 0 | DR50: 0 | DS50: 0 | DT50: 0 | DU50: 0 | DV50: 0 | DW50: 0 | DX50: 0 | DY50: 0 | DZ50: 0 | EA50: 0 | EB50: 0 | EC50: 0 | ED50: 0 | EE50: 0 | EF50: 0 | EG50: 0 | EH50: 0 | EI50: 0 | EJ50: 0 | EK50: 0 | EL50: 0 | EM50: 0 | EN50: 0 | EO50: 0 | EP50: 0 | EQ50: 0 | ER50: 0 | ES50: 0 | ET50: 0 | EU50: 0 | EV50: 0 | EW50: 0 | EX50: 0 | EY50: 0 | EZ50: 0
C51: Intertie Losses | D51: FPS_EXS_LSS | E51: 0 | F51: 0 | G51: 0 | H51: 0 | I51: 0 | J51: 0 | L51: 0 | M51: 0 | N51: 0 | O51: 0 | P51: 0 | Q51: 0 | R51: 0 | S51: 0 | T51: 0 | U51: 0 | V51: 0 | W51: 0 | X51: 0 | Y51: 0 | Z51: 0 | AA51: 0 | AB51: 0 | AC51: 0 | AD51: 0 | AE51: 0 | AF51: 0 | AG51: 0 | AH51: 0 | AI51: 0 | AJ51: 0 | AK51: 0 | AL51: 0 | AM51: 0 | AN51: 0 | AO51: 0 | AP51: 0 | AQ51: 0 | AR51: 0 | AS51: 0 | AT51: 0 | AU51: 0 | AV51: 0 | AW51: 0 | AX51: 0 | AY51: 0 | AZ51: 0 | BA51: 0 | BB51: 0 | BC51: 0 | BD51: 0 | BE51: 0 | BF51: 0 | BG51: 0 | BH51: 0 | BI51: 0 | BJ51: 0 | BK51: 0 | BL51: 0 | BM51: 0 | BN51: 0 | BO51: 0 | BP51: 0 | BQ51: 0 | BR51: 0 | BS51: 0 | BT51: 0 | BU51: 0 | BV51: 0 | BW51: 0 | BX51: 0 | BY51: 0 | BZ51: 0 | CA51: 0 | CB51: 0 | CC51: 0 | CD51: 0 | CE51: 0 | CG51: 0 | CH51: 0 | CI51: 0 | CJ51: 0 | CK51: 0 | CL51: 0 | CM51: 0 | CN51: 0 | CO51: 0 | CP51: 0 | CQ51: 0 | CR51: 0 | CS51: 0 | CT51: 0 | CU51: 0 | CV51: 0 | CW51: 0 | CX51: 0 | CY51: 0 | CZ51: 0 | DA51: 0 | DB51: 0 | DC51: 0 | DD51: 0 | DE51: 0 | DF51: 0 | DG51: 0 | DH51: 0 | DI51: 0 | DJ51: 0 | DK51: 0 | DL51: 0 | DM51: 0 | DN51: 0 | DO51: 0 | DP51: 0 | DQ51: 0 | DR51: 0 | DS51: 0 | DT51: 0 | DU51: 0 | DV51: 0 | DW51: 0 | DX51: 0 | DY51: 0 | DZ51: 0 | EA51: 0 | EB51: 0 | EC51: 0 | ED51: 0 | EE51: 0 | EF51: 0 | EG51: 0 | EH51: 0 | EI51: 0 | EJ51: 0 | EK51: 0 | EL51: 0 | EM51: 0 | EN51: 0 | EO51: 0 | EP51: 0 | EQ51: 0 | ER51: 0 | ES51: 0 | ET51: 0 | EU51: 0 | EV51: 0 | EW51: 0 | EX51: 0 | EY51: 0 | EZ51: 0
C52: PacifiCorp | D52: FPS_EXS_PPL | E52: 0 | F52: 0 | G52: 0 | H52: 0 | I52: 0 | J52: 0 | L52: 0 | M52: 0 | N52: 0 | O52: 0 | P52: 0 | Q52: 0 | R52: 0 | S52: 0 | T52: 0 | U52: 0 | V52: 0 | W52: 0 | X52: 0 | Y52: 0 | Z52: 0 | AA52: 0 | AB52: 0 | AC52: 0 | AD52: 0 | AE52: 0 | AF52: 0 | AG52: 0 | AH52: 0 | AI52: 0 | AJ52: 0 | AK52: 0 | AL52: 0 | AM52: 0 | AN52: 0 | AO52: 0 | AP52: 0 | AQ52: 0 | AR52: 0 | AS52: 0 | AT52: 0 | AU52: 0 | AV52: 0 | AW52: 0 | AX52: 0 | AY52: 0 | AZ52: 0 | BA52: 0 | BB52: 0 | BC52: 0 | BD52: 0 | BE52: 0 | BF52: 0 | BG52: 0 | BH52: 0 | BI52: 0 | BJ52: 0 | BK52: 0 | BL52: 0 | BM52: 0 | BN52: 0 | BO52: 0 | BP52: 0 | BQ52: 0 | BR52: 0 | BS52: 0 | BT52: 0 | BU52: 0 | BV52: 0 | BW52: 0 | BX52: 0 | BY52: 0 | BZ52: 0 | CA52: 0 | CB52: 0 | CC52: 0 | CD52: 0 | CE52: 0 | CG52: 0 | CH52: 0 | CI52: 0 | CJ52: 0 | CK52: 0 | CL52: 0 | CM52: 0 | CN52: 0 | CO52: 0 | CP52: 0 | CQ52: 0 | CR52: 0 | CS52: 0 | CT52: 0 | CU52: 0 | CV52: 0 | CW52: 0 | CX52: 0 | CY52: 0 | CZ52: 0 | DA52: 0 | DB52: 0 | DC52: 0 | DD52: 0 | DE52: 0 | DF52: 0 | DG52: 0 | DH52: 0 | DI52: 0 | DJ52: 0 | DK52: 0 | DL52: 0 | DM52: 0 | DN52: 0 | DO52: 0 | DP52: 0 | DQ52: 0 | DR52: 0 | DS52: 0 | DT52: 0 | DU52: 0 | DV52: 0 | DW52: 0 | DX52: 0 | DY52: 0 | DZ52: 0 | EA52: 0 | EB52: 0 | EC52: 0 | ED52: 0 | EE52: 0 | EF52: 0 | EG52: 0 | EH52: 0 | EI52: 0 | EJ52: 0 | EK52: 0 | EL52: 0 | EM52: 0 | EN52: 0 | EO52: 0 | EP52: 0 | EQ52: 0 | ER52: 0 | ES52: 0 | ET52: 0 | EU52: 0 | EV52: 0 | EW52: 0 | EX52: 0 | EY52: 0 | EZ52: 0
E53: 0 | F53: 0 | G53: 0 | H53: 0 | I53: 0 | J53: 0 | L53: 0 | M53: 0 | N53: 0 | O53: 0 | P53: 0 | Q53: 0 | R53: 0 | S53: 0 | T53: 0 | U53: 0 | V53: 0 | W53: 0 | X53: 0 | Y53: 0 | Z53: 0 | AA53: 0 | AB53: 0 | AC53: 0 | AD53: 0 | AE53: 0 | AF53: 0 | AG53: 0 | AH53: 0 | AI53: 0 | AJ53: 0 | AK53: 0 | AL53: 0 | AM53: 0 | AN53: 0 | AO53: 0 | AP53: 0 | AQ53: 0 | AR53: 0 | AS53: 0 | AT53: 0 | AU53: 0 | AV53: 0 | AW53: 0 | AX53: 0 | AY53: 0 | AZ53: 0 | BA53: 0 | BB53: 0 | BC53: 0 | BD53: 0 | BE53: 0 | BF53: 0 | BG53: 0 | BH53: 0 | BI53: 0 | BJ53: 0 | BK53: 0 | BL53: 0 | BM53: 0 | BN53: 0 | BO53: 0 | BP53: 0 | BQ53: 0 | BR53: 0 | BS53: 0 | BT53: 0 | BU53: 0 | BV53: 0 | BW53: 0 | BX53: 0 | BY53: 0 | BZ53: 0 | CA53: 0 | CB53: 0 | CC53: 0 | CD53: 0 | CE53: 0 | CG53: 0 | CH53: 0 | CI53: 0 | CJ53: 0 | CK53: 0 | CL53: 0 | CM53: 0 | CN53: 0 | CO53: 0 | CP53: 0 | CQ53: 0 | CR53: 0 | CS53: 0 | CT53: 0 | CU53: 0 | CV53: 0 | CW53: 0 | CX53: 0 | CY53: 0 | CZ53: 0 | DA53: 0 | DB53: 0 | DC53: 0 | DD53: 0 | DE53: 0 | DF53: 0 | DG53: 0 | DH53: 0 | DI53: 0 | DJ53: 0 | DK53: 0 | DL53: 0 | DM53: 0 | DN53: 0 | DO53: 0 | DP53: 0 | DQ53: 0 | DR53: 0 | DS53: 0 | DT53: 0 | DU53: 0 | DV53: 0 | DW53: 0 | DX53: 0 | DY53: 0 | DZ53: 0 | EA53: 0 | EB53: 0 | EC53: 0 | ED53: 0 | EE53: 0 | EF53: 0 | EG53: 0 | EH53: 0 | EI53: 0 | EJ53: 0 | EK53: 0 | EL53: 0 | EM53: 0 | EN53: 0 | EO53: 0 | EP53: 0 | EQ53: 0 | ER53: 0 | ES53: 0 | ET53: 0 | EU53: 0 | EV53: 0 | EW53: 0 | EX53: 0 | EY53: 0 | EZ53: 0
E54: 0 | F54: 0 | G54: 0 | H54: 0 | I54: 0 | J54: 0 | L54: 0 | M54: 0 | N54: 0 | O54: 0 | P54: 0 | Q54: 0 | R54: 0 | S54: 0 | T54: 0 | U54: 0 | V54: 0 | W54: 0 | X54: 0 | Y54: 0 | Z54: 0 | AA54: 0 | AB54: 0 | AC54: 0 | AD54: 0 | AE54: 0 | AF54: 0 | AG54: 0 | AH54: 0 | AI54: 0 | AJ54: 0 | AK54: 0 | AL54: 0 | AM54: 0 | AN54: 0 | AO54: 0 | AP54: 0 | AQ54: 0 | AR54: 0 | AS54: 0 | AT54: 0 | AU54: 0 | AV54: 0 | AW54: 0 | AX54: 0 | AY54: 0 | AZ54: 0 | BA54: 0 | BB54: 0 | BC54: 0 | BD54: 0 | BE54: 0 | BF54: 0 | BG54: 0 | BH54: 0 | BI54: 0 | BJ54: 0 | BK54: 0 | BL54: 0 | BM54: 0 | BN54: 0 | BO54: 0 | BP54: 0 | BQ54: 0 | BR54: 0 | BS54: 0 | BT54: 0 | BU54: 0 | BV54: 0 | BW54: 0 | BX54: 0 | BY54: 0 | BZ54: 0 | CA54: 0 | CB54: 0 | CC54: 0 | CD54: 0 | CE54: 0 | CG54: 0 | CH54: 0 | CI54: 0 | CJ54: 0 | CK54: 0 | CL54: 0 | CM54: 0 | CN54: 0 | CO54: 0 | CP54: 0 | CQ54: 0 | CR54: 0 | CS54: 0 | CT54: 0 | CU54: 0 | CV54: 0 | CW54: 0 | CX54: 0 | CY54: 0 | CZ54: 0 | DA54: 0 | DB54: 0 | DC54: 0 | DD54: 0 | DE54: 0 | DF54: 0 | DG54: 0 | DH54: 0 | DI54: 0 | DJ54: 0 | DK54: 0 | DL54: 0 | DM54: 0 | DN54: 0 | DO54: 0 | DP54: 0 | DQ54: 0 | DR54: 0 | DS54: 0 | DT54: 0 | DU54: 0 | DV54: 0 | DW54: 0 | DX54: 0 | DY54: 0 | DZ54: 0 | EA54: 0 | EB54: 0 | EC54: 0 | ED54: 0 | EE54: 0 | EF54: 0 | EG54: 0 | EH54: 0 | EI54: 0 | EJ54: 0 | EK54: 0 | EL54: 0 | EM54: 0 | EN54: 0 | EO54: 0 | EP54: 0 | EQ54: 0 | ER54: 0 | ES54: 0 | ET54: 0 | EU54: 0 | EV54: 0 | EW54: 0 | EX54: 0 | EY54: 0 | EZ54: 0
E55: 0 | F55: 0 | G55: 0 | H55: 0 | I55: 0 | J55: 0 | L55: 0 | M55: 0 | N55: 0 | O55: 0 | P55: 0 | Q55: 0 | R55: 0 | S55: 0 | T55: 0 | U55: 0 | V55: 0 | W55: 0 | X55: 0 | Y55: 0 | Z55: 0 | AA55: 0 | AB55: 0 | AC55: 0 | AD55: 0 | AE55: 0 | AF55: 0 | AG55: 0 | AH55: 0 | AI55: 0 | AJ55: 0 | AK55: 0 | AL55: 0 | AM55: 0 | AN55: 0 | AO55: 0 | AP55: 0 | AQ55: 0 | AR55: 0 | AS55: 0 | AT55: 0 | AU55: 0 | AV55: 0 | AW55: 0 | AX55: 0 | AY55: 0 | AZ55: 0 | BA55: 0 | BB55: 0 | BC55: 0 | BD55: 0 | BE55: 0 | BF55: 0 | BG55: 0 | BH55: 0 | BI55: 0 | BJ55: 0 | BK55: 0 | BL55: 0 | BM55: 0 | BN55: 0 | BO55: 0 | BP55: 0 | BQ55: 0 | BR55: 0 | BS55: 0 | BT55: 0 | BU55: 0 | BV55: 0 | BW55: 0 | BX55: 0 | BY55: 0 | BZ55: 0 | CA55: 0 | CB55: 0 | CC55: 0 | CD55: 0 | CE55: 0 | CG55: 0 | CH55: 0 | CI55: 0 | CJ55: 0 | CK55: 0 | CL55: 0 | CM55: 0 | CN55: 0 | CO55: 0 | CP55: 0 | CQ55: 0 | CR55: 0 | CS55: 0 | CT55: 0 | CU55: 0 | CV55: 0 | CW55: 0 | CX55: 0 | CY55: 0 | CZ55: 0 | DA55: 0 | DB55: 0 | DC55: 0 | DD55: 0 | DE55: 0 | DF55: 0 | DG55: 0 | DH55: 0 | DI55: 0 | DJ55: 0 | DK55: 0 | DL55: 0 | DM55: 0 | DN55: 0 | DO55: 0 | DP55: 0 | DQ55: 0 | DR55: 0 | DS55: 0 | DT55: 0 | DU55: 0 | DV55: 0 | DW55: 0 | DX55: 0 | DY55: 0 | DZ55: 0 | EA55: 0 | EB55: 0 | EC55: 0 | ED55: 0 | EE55: 0 | EF55: 0 | EG55: 0 | EH55: 0 | EI55: 0 | EJ55: 0 | EK55: 0 | EL55: 0 | EM55: 0 | EN55: 0 | EO55: 0 | EP55: 0 | EQ55: 0 | ER55: 0 | ES55: 0 | ET55: 0 | EU55: 0 | EV55: 0 | EW55: 0 | EX55: 0 | EY55: 0 | EZ55: 0
A56: Firm Surplus Sale | D56: FSS | E56: =+SUM(L56:W56,CG56:CR56) -> 0 | F56: 0 | G56: 0 | H56: 0 | I56: 0 | J56: 0 | L56: 0 | M56: 0 | N56: 0 | O56: 0 | P56: 0 | Q56: 0 | R56: 0 | S56: 0 | T56: 0 | U56: 0 | V56: 0 | W56: 0 | X56: 0 | Y56: 0 | Z56: 0 | AA56: 0 | AB56: 0 | AC56: 0 | AD56: 0 | AE56: 0 | AF56: 0 | AG56: 0 | AH56: 0 | AI56: 0 | AJ56: 0 | AK56: 0 | AL56: 0 | AM56: 0 | AN56: 0 | AO56: 0 | AP56: 0 | AQ56: 0 | AR56: 0 | AS56: 0 | AT56: 0 | AU56: 0 | AV56: 0 | AW56: 0 | AX56: 0 | AY56: 0 | AZ56: 0 | BA56: 0 | BB56: 0 | BC56: 0 | BD56: 0 | BE56: 0 | BF56: 0 | BG56: 0 | BH56: 0 | BI56: 0 | BJ56: 0 | BK56: 0 | BL56: 0 | BM56: 0 | BN56: 0 | BO56: 0 | BP56: 0 | BQ56: 0 | BR56: 0 | BS56: 0 | BT56: 0 | BU56: 0 | BV56: 0 | BW56: 0 | BX56: 0 | BY56: 0 | BZ56: 0 | CA56: 0 | CB56: 0 | CC56: 0 | CD56: 0 | CE56: 0 | CG56: 0 | CH56: 0 | CI56: 0 | CJ56: 0 | CK56: 0 | CL56: 0 | CM56: 0 | CN56: 0 | CO56: 0 | CP56: 0 | CQ56: 0 | CR56: 0 | CS56: 0 | CT56: 0 | CU56: 0 | CV56: 0 | CW56: 0 | CX56: 0 | CY56: 0 | CZ56: 0 | DA56: 0 | DB56: 0 | DC56: 0 | DD56: 0 | DE56: 0 | DF56: 0 | DG56: 0 | DH56: 0 | DI56: 0 | DJ56: 0 | DK56: 0 | DL56: 0 | DM56: 0 | DN56: 0 | DO56: 0 | DP56: 0 | DQ56: 0 | DR56: 0 | DS56: 0 | DT56: 0 | DU56: 0 | DV56: 0 | DW56: 0 | DX56: 0 | DY56: 0 | DZ56: 0 | EA56: 0 | EB56: 0 | EC56: 0 | ED56: 0 | EE56: 0 | EF56: 0 | EG56: 0 | EH56: 0 | EI56: 0 | EJ56: 0 | EK56: 0 | EL56: 0 | EM56: 0 | EN56: 0 | EO56: 0 | EP56: 0 | EQ56: 0 | ER56: 0 | ES56: 0 | ET56: 0 | EU56: 0 | EV56: 0 | EW56: 0 | EX56: 0 | EY56: 0 | EZ56: 0
A57: Presale of Secondary | D57: PRS | E57: 0 | F57: 0 | G57: 0 | H57: 0 | I57: 0 | J57: 0 | L57: 0 | M57: 0 | N57: 0 | O57: 0 | P57: 0 | Q57: 0 | R57: 0 | S57: 0 | T57: 0 | U57: 0 | V57: 0 | W57: 0 | X57: 0 | Y57: 0 | Z57: 0 | AA57: 0 | AB57: 0 | AC57: 0 | AD57: 0 | AE57: 0 | AF57: 0 | AG57: 0 | AH57: 0 | AI57: 0 | AJ57: 0 | AK57: 0 | AL57: 0 | AM57: 0 | AN57: 0 | AO57: 0 | AP57: 0 | AQ57: 0 | AR57: 0 | AS57: 0 | AT57: 0 | AU57: 0 | AV57: 0 | AW57: 0 | AX57: 0 | AY57: 0 | AZ57: 0 | BA57: 0 | BB57: 0 | BC57: 0 | BD57: 0 | BE57: 0 | BF57: 0 | BG57: 0 | BH57: 0 | BI57: 0 | BJ57: 0 | BK57: 0 | BL57: 0 | BM57: 0 | BN57: 0 | BO57: 0 | BP57: 0 | BQ57: 0 | BR57: 0 | BS57: 0 | BT57: 0 | BU57: 0 | BV57: 0 | BW57: 0 | BX57: 0 | BY57: 0 | BZ57: 0 | CA57: 0 | CB57: 0 | CC57: 0 | CD57: 0 | CE57: 0 | CG57: 0 | CH57: 0 | CI57: 0 | CJ57: 0 | CK57: 0 | CL57: 0 | CM57: 0 | CN57: 0 | CO57: 0 | CP57: 0 | CQ57: 0 | CR57: 0 | CS57: 0 | CT57: 0 | CU57: 0 | CV57: 0 | CW57: 0 | CX57: 0 | CY57: 0 | CZ57: 0 | DA57: 0 | DB57: 0 | DC57: 0 | DD57: 0 | DE57: 0 | DF57: 0 | DG57: 0 | DH57: 0 | DI57: 0 | DJ57: 0 | DK57: 0 | DL57: 0 | DM57: 0 | DN57: 0 | DO57: 0 | DP57: 0 | DQ57: 0 | DR57: 0 | DS57: 0 | DT57: 0 | DU57: 0 | DV57: 0 | DW57: 0 | DX57: 0 | DY57: 0 | DZ57: 0 | EA57: 0 | EB57: 0 | EC57: 0 | ED57: 0 | EE57: 0 | EF57: 0 | EG57: 0 | EH57: 0 | EI57: 0 | EJ57: 0 | EK57: 0 | EL57: 0 | EM57: 0 | EN57: 0 | EO57: 0 | EP57: 0 | EQ57: 0 | ER57: 0 | ES57: 0 | ET57: 0 | EU57: 0 | EV57: 0 | EW57: 0 | EX57: 0 | EY57: 0 | EZ57: 0
A58: Conservation | D58: CON | E58: 0 | F58: 0 | G58: 0 | H58: 0 | I58: 0 | J58: 0 | L58: 0 | M58: 0 | N58: 0 | O58: 0 | P58: 0 | Q58: 0 | R58: 0 | S58: 0 | T58: 0 | U58: 0 | V58: 0 | W58: 0 | X58: 0 | Y58: 0 | Z58: 0 | AA58: 0 | AB58: 0 | AC58: 0 | AD58: 0 | AE58: 0 | AF58: 0 | AG58: 0 | AH58: 0 | AI58: 0 | AJ58: 0 | AK58: 0 | AL58: 0 | AM58: 0 | AN58: 0 | AO58: 0 | AP58: 0 | AQ58: 0 | AR58: 0 | AS58: 0 | AT58: 0 | AU58: 0 | AV58: 0 | AW58: 0 | AX58: 0 | AY58: 0 | AZ58: 0 | BA58: 0 | BB58: 0 | BC58: 0 | BD58: 0 | BE58: 0 | BF58: 0 | BG58: 0 | BH58: 0 | BI58: 0 | BJ58: 0 | BK58: 0 | BL58: 0 | BM58: 0 | BN58: 0 | BO58: 0 | BP58: 0 | BQ58: 0 | BR58: 0 | BS58: 0 | BT58: 0 | BU58: 0 | BV58: 0 | BW58: 0 | BX58: 0 | BY58: 0 | BZ58: 0 | CA58: 0 | CB58: 0 | CC58: 0 | CD58: 0 | CE58: 0 | CG58: 0 | CH58: 0 | CI58: 0 | CJ58: 0 | CK58: 0 | CL58: 0 | CM58: 0 | CN58: 0 | CO58: 0 | CP58: 0 | CQ58: 0 | CR58: 0 | CS58: 0 | CT58: 0 | CU58: 0 | CV58: 0 | CW58: 0 | CX58: 0 | CY58: 0 | CZ58: 0 | DA58: 0 | DB58: 0 | DC58: 0 | DD58: 0 | DE58: 0 | DF58: 0 | DG58: 0 | DH58: 0 | DI58: 0 | DJ58: 0 | DK58: 0 | DL58: 0 | DM58: 0 | DN58: 0 | DO58: 0 | DP58: 0 | DQ58: 0 | DR58: 0 | DS58: 0 | DT58: 0 | DU58: 0 | DV58: 0 | DW58: 0 | DX58: 0 | DY58: 0 | DZ58: 0 | EA58: 0 | EB58: 0 | EC58: 0 | ED58: 0 | EE58: 0 | EF58: 0 | EG58: 0 | EH58: 0 | EI58: 0 | EJ58: 0 | EK58: 0 | EL58: 0 | EM58: 0 | EN58: 0 | EO58: 0 | EP58: 0 | EQ58: 0 | ER58: 0 | ES58: 0 | ET58: 0 | EU58: 0 | EV58: 0 | EW58: 0 | EX58: 0 | EY58: 0 | EZ58: 0
A61: Loss Percentage | E61: =Loads_MthLoss!E54 -> 0.03222809906 | F61: =Loads_MthLoss!F54 -> 0.03222782706 | G61: =Loads_MthLoss!G54 -> 0.03222817764 | H61: =Loads_MthLoss!H54 -> 0.03222744924 | I61: =Loads_MthLoss!I54 -> 0.03222815871 | J61: =Loads_MthLoss!J54 -> 0.03207180519 | L61: =LossesInput!C20 -> 0.03209825575 | M61: =LossesInput!D20 -> 0.03209825575 | N61: =LossesInput!E20 -> 0.03209825575 | O61: =LossesInput!F20 -> 0.03209825575 | P61: =LossesInput!G20 -> 0.03209825575 | Q61: =LossesInput!H20 -> 0.03209825575 | R61: =LossesInput!I20 -> 0.03209825575 | S61: =LossesInput!J20 -> 0.03209825575 | T61: =LossesInput!K20 -> 0.03263114416 | U61: =LossesInput!L20 -> 0.03263114416 | V61: =LossesInput!M20 -> 0.03263114416 | W61: =LossesInput!N20 -> 0.03209825575 | X61: =LossesInput!O20 -> 0.03209825575 | Y61: =LossesInput!P20 -> 0.03209825575 | Z61: =LossesInput!Q20 -> 0.03209825575 | AA61: =LossesInput!R20 -> 0.03209825575 | AB61: =LossesInput!S20 -> 0.03209825575 | AC61: =LossesInput!T20 -> 0.03209825575 | AD61: =LossesInput!U20 -> 0.03209825575 | AE61: =LossesInput!V20 -> 0.03209825575 | AF61: =LossesInput!W20 -> 0.03263114416 | AG61: =LossesInput!X20 -> 0.03263114416 | AH61: =LossesInput!Y20 -> 0.03263114416 | AI61: =LossesInput!Z20 -> 0.03209825575 | AJ61: =LossesInput!AA20 -> 0.03209825575 | AK61: =LossesInput!AB20 -> 0.03209825575 | AL61: =LossesInput!AC20 -> 0.03209825575 | AM61: =LossesInput!AD20 -> 0.03209825575 | AN61: =LossesInput!AE20 -> 0.03209825575 | AO61: =LossesInput!AF20 -> 0.03209825575 | AP61: =LossesInput!AG20 -> 0.03209825575 | AQ61: =LossesInput!AH20 -> 0.03209825575 | AR61: =LossesInput!AI20 -> 0.03263114416 | AS61: =LossesInput!AJ20 -> 0.03263114416 | AT61: =LossesInput!AK20 -> 0.03263114416 | AU61: =LossesInput!AL20 -> 0.03209825575 | AV61: =LossesInput!AM20 -> 0.03209825575 | AW61: =LossesInput!AN20 -> 0.03209825575 | AX61: =LossesInput!AO20 -> 0.03209825575 | AY61: =LossesInput!AP20 -> 0.03209825575 | AZ61: =LossesInput!AQ20 -> 0.03209825575 | BA61: =LossesInput!AR20 -> 0.03209825575 | BB61: =LossesInput!AS20 -> 0.03209825575 | BC61: =LossesInput!AT20 -> 0.03209825575 | BD61: =LossesInput!AU20 -> 0.03263114416 | BE61: =LossesInput!AV20 -> 0.03263114416 | BF61: =LossesInput!AW20 -> 0.03263114416 | BG61: =LossesInput!AX20 -> 0.03209825575 | BH61: =LossesInput!AY20 -> 0.03209825575 | BI61: =LossesInput!AZ20 -> 0.03209825575 | BJ61: =LossesInput!BA20 -> 0.03209825575 | BK61: =LossesInput!BB20 -> 0.03209825575 | BL61: =LossesInput!BC20 -> 0.03209825575 | BM61: =LossesInput!BD20 -> 0.03209825575 | BN61: =LossesInput!BE20 -> 0.03209825575 | BO61: =LossesInput!BF20 -> 0.03209825575 | BP61: =LossesInput!BG20 -> 0.03263114416 | BQ61: =LossesInput!BH20 -> 0.03263114416 | BR61: =LossesInput!BI20 -> 0.03263114416 | BS61: =LossesInput!BJ20 -> 0.03209825575 | BT61: =LossesInput!BK20 -> 0.03114044133 | BU61: =LossesInput!BL20 -> 0.03114044133 | BV61: =LossesInput!BM20 -> 0.03114044133 | BW61: =LossesInput!BN20 -> 0.03114044133 | BX61: =LossesInput!BO20 -> 0.03114044133 | BY61: =LossesInput!BP20 -> 0.03114044133 | BZ61: =LossesInput!BQ20 -> 0.03114044133 | CA61: =LossesInput!BR20 -> 0.03114044133 | CB61: =LossesInput!BS20 -> 0.0349824053 | CC61: =LossesInput!BT20 -> 0.0349824053 | CD61: =LossesInput!BU20 -> 0.0349824053 | CE61: =LossesInput!BV20 -> 0.03114044133 | CG61: =L61 -> 0.03209825575 | CH61: 0.03209825575 | CI61: 0.03209825575 | CJ61: 0.03209825575 | CK61: 0.03209825575 | CL61: 0.03209825575 | CM61: 0.03209825575 | CN61: 0.03209825575 | CO61: 0.03263114416 | CP61: 0.03263114416 | CQ61: 0.03263114416 | CR61: 0.03209825575 | CS61: 0.03209825575 | CT61: 0.03209825575 | CU61: 0.03209825575 | CV61: 0.03209825575 | CW61: 0.03209825575 | CX61: 0.03209825575 | CY61: 0.03209825575 | CZ61: 0.03209825575 | DA61: 0.03263114416 | DB61: 0.03263114416 | DC61: 0.03263114416 | DD61: 0.03209825575 | DE61: 0.03209825575 | DF61: 0.03209825575 | DG61: 0.03209825575 | DH61: 0.03209825575 | DI61: 0.03209825575 | DJ61: 0.03209825575 | DK61: 0.03209825575 | DL61: 0.03209825575 | DM61: =AR61 -> 0.03263114416 | DN61: 0.03263114416 | DO61: 0.03263114416 | DP61: 0.03209825575 | DQ61: 0.03209825575 | DR61: 0.03209825575 | DS61: 0.03209825575 | DT61: 0.03209825575 | DU61: 0.03209825575 | DV61: 0.03209825575 | DW61: 0.03209825575 | DX61: 0.03209825575 | DY61: 0.03263114416 | DZ61: 0.03263114416 | EA61: 0.03263114416 | EB61: 0.03209825575 | EC61: 0.03209825575 | ED61: 0.03209825575 | EE61: 0.03209825575 | EF61: 0.03209825575 | EG61: 0.03209825575 | EH61: 0.03209825575 | EI61: 0.03209825575 | EJ61: 0.03209825575 | EK61: 0.03263114416 | EL61: 0.03263114416 | EM61: 0.03263114416 | EN61: 0.03209825575 | EO61: 0.03114044133 | EP61: 0.03114044133 | EQ61: 0.03114044133 | ER61: 0.03114044133 | ES61: =BX61 -> 0.03114044133 | ET61: 0.03114044133 | EU61: 0.03114044133 | EV61: 0.03114044133 | EW61: 0.0349824053 | EX61: 0.0349824053 | EY61: 0.0349824053 | EZ61: 0.03114044133

Sheet Loads
B1: Loads (MWh)
A2: TOC | B2: =Cover!$C$14 -> FY 2029-30 Base Case Phase 2
A3: é | E3: Annual | L3: HLH | CG3: LLH
E4: =Init!$C$9 -> 2029 | F4: =E4+1 -> 2030 | G4: =F4+1 -> 2031 | H4: 2032 | I4: 2033 | J4: 2034 | L4: =DATE($E$4-1,10,1) -> 2028-10-01 | M4: =EOMONTH(L4,0)+1 -> 2028-11-01 | N4: =EOMONTH(M4,0)+1 -> 2028-12-01 | O4: 2029-01-01 | P4: 2029-02-01 | Q4: 2029-03-01 | R4: 2029-04-01 | S4: 2029-05-01 | T4: 2029-06-01 | U4: 2029-07-01 | V4: 2029-08-01 | W4: 2029-09-01 | X4: 2029-10-01 | Y4: 2029-11-01 | Z4: 2029-12-01 | AA4: 2030-01-01 | AB4: 2030-02-01 | AC4: 2030-03-01 | AD4: 2030-04-01 | AE4: 2030-05-01 | AF4: 2030-06-01 | AG4: 2030-07-01 | AH4: 2030-08-01 | AI4: 2030-09-01 | AJ4: 2030-10-01 | AK4: 2030-11-01 | AL4: 2030-12-01 | AM4: 2031-01-01 | AN4: 2031-02-01 | AO4: 2031-03-01 | AP4: 2031-04-01 | AQ4: 2031-05-01 | AR4: 2031-06-01 | AS4: 2031-07-01 | AT4: 2031-08-01 | AU4: 2031-09-01 | AV4: 2031-10-01 | AW4: 2031-11-01 | AX4: 2031-12-01 | AY4: 2032-01-01 | AZ4: 2032-02-01 | BA4: 2032-03-01 | BB4: 2032-04-01 | BC4: 2032-05-01 | BD4: 2032-06-01 | BE4: 2032-07-01 | BF4: 2032-08-01 | BG4: 2032-09-01 | BH4: 2032-10-01 | BI4: 2032-11-01 | BJ4: 2032-12-01 | BK4: 2033-01-01 | BL4: 2033-02-01 | BM4: 2033-03-01 | BN4: 2033-04-01 | BO4: 2033-05-01 | BP4: 2033-06-01 | BQ4: 2033-07-01 | BR4: 2033-08-01 | BS4: 2033-09-01 | BT4: 2033-10-01 | BU4: 2033-11-01 | BV4: 2033-12-01 | BW4: 2034-01-01 | BX4: 2034-02-01 | BY4: 2034-03-01 | BZ4: =EOMONTH(BY4,0)+1 -> 2034-04-01 | CA4: 2034-05-01 | CB4: 2034-06-01 | CC4: 2034-07-01 | CD4: 2034-08-01 | CE4: 2034-09-01 | CG4: =DATE($E$4-1,10,1) -> 2028-10-01 | CH4: =EOMONTH(CG4,0)+1 -> 2028-11-01 | CI4: =EOMONTH(CH4,0)+1 -> 2028-12-01 | CJ4: 2029-01-01 | CK4: 2029-02-01 | CL4: 2029-03-01 | CM4: 2029-04-01 | CN4: 2029-05-01 | CO4: 2029-06-01 | CP4: 2029-07-01 | CQ4: 2029-08-01 | CR4: 2029-09-01 | CS4: 2029-10-01 | CT4: 2029-11-01 | CU4: 2029-12-01 | CV4: 2030-01-01 | CW4: 2030-02-01 | CX4: 2030-03-01 | CY4: 2030-04-01 | CZ4: 2030-05-01 | DA4: 2030-06-01 | DB4: 2030-07-01 | DC4: 2030-08-01 | DD4: 2030-09-01 | DE4: 2030-10-01 | DF4: 2030-11-01 | DG4: 2030-12-01 | DH4: 2031-01-01 | DI4: 2031-02-01 | DJ4: 2031-03-01 | DK4: 2031-04-01 | DL4: 2031-05-01 | DM4: 2031-06-01 | DN4: 2031-07-01 | DO4: 2031-08-01 | DP4: 2031-09-01 | DQ4: 2031-10-01 | DR4: 2031-11-01 | DS4: 2031-12-01 | DT4: 2032-01-01 | DU4: 2032-02-01 | DV4: 2032-03-01 | DW4: 2032-04-01 | DX4: 2032-05-01 | DY4: 2032-06-01 | DZ4: 2032-07-01 | EA4: 2032-08-01 | EB4: 2032-09-01 | EC4: 2032-10-01 | ED4: 2032-11-01 | EE4: 2032-12-01 | EF4: 2033-01-01 | EG4: 2033-02-01 | EH4: 2033-03-01 | EI4: 2033-04-01 | EJ4: 2033-05-01 | EK4: 2033-06-01 | EL4: 2033-07-01 | EM4: 2033-08-01 | EN4: 2033-09-01 | EO4: 2033-10-01 | EP4: 2033-11-01 | EQ4: 2033-12-01 | ER4: 2034-01-01 | ES4: 2034-02-01 | ET4: 2034-03-01 | EU4: =EOMONTH(ET4,0)+1 -> 2034-04-01 | EV4: 2034-05-01 | EW4: 2034-06-01 | EX4: 2034-07-01 | EY4: 2034-08-01 | EZ4: 2034-09-01
A5: Preference | D5: PRE | E5: =+SUM(E6:E10) -> 64477853.53 | F5: 64783388.51 | G5: 64965853.77 | H5: 65217768.92 | I5: 65221351.52 | J5: 65237380.46 | L5: =SUM(L6:L10) -> 2947642.435 | M5: =SUM(M6:M10) -> 3329645.454 | N5: 3831049.177 | O5: 3928890.998 | P5: 3388776.789 | Q5: 3462336.63 | R5: 2873343.393 | S5: 2794717.264 | T5: 3018948.15 | U5: 3094027.507 | V5: 3193659.408 | W5: 2799157.975 | X5: 2956088.619 | Y5: 3331725.089 | Z5: 3837136.26 | AA5: 3958303.227 | AB5: 3397841.281 | AC5: 3442851.093 | AD5: 2874926.393 | AE5: 2925751.822 | AF5: 2973273.525 | AG5: 3139297.293 | AH5: 3209251.411 | AI5: 2812884.419 | AJ5: 2982562.391 | AK5: 3359176.231 | AL5: 3859825.119 | AM5: 3951575.08 | AN5: 3405465.932 | AO5: 3466291.91 | AP5: 2904238.638 | AQ5: 2818626.354 | AR5: 3040909.352 | AS5: 3126424.803 | AT5: 3215964.516 | AU5: 2825361.826 | AV5: 2983448.248 | AW5: 3344103.647 | AX5: 3886403.967 | AY5: 3975155.217 | AZ5: 3460037.364 | BA5: 3471437.204 | BB5: 2890015.991 | BC5: 2932088.572 | BD5: 2990813.377 | BE5: 3148784.178 | BF5: 3216328.598 | BG5: 2827531.388 | BH5: 2990768.59 | BI5: 3370034.11 | BJ5: 3895795.822 | BK5: 3939024.738 | BL5: 3424658.636 | BM5: 3498987.125 | BN5: 2915383.411 | BO5: 2825492.647 | BP5: 3056353.19 | BQ5: 3132981.478 | BR5: 3234683.531 | BS5: 2837684.088 | BT5: 2989774.758 | BU5: 3365278.078 | BV5: 3896370.763 | BW5: 3955441.667 | BX5: 3432031.787 | BY5: =SUM(BY6:BY10) -> 3477544.038 | BZ5: 2888788.094 | CA5: 2939737.299 | CB5: 2993979.541 | CC5: 3146446.553 | CD5: 3226228.67 | CE5: =SUM(CE6:CE10) -> 2832575.443 | CG5: =SUM(CG6:CG10) -> 1885833.644 | CH5: =SUM(CH6:CH10) -> 2329458.187 | CI5: 2758900.826 | CJ5: 2733998.313 | CK5: 2233149.099 | CL5: 2261037.28 | CM5: 1934843.461 | CN5: 1919486.319 | CO5: 1802059.323 | CP5: 2119530.277 | CQ5: 1902333.821 | CR5: 1935027.805 | CS5: 1884233.336 | CT5: 2333286.802 | CU5: 2758334.834 | CV5: 2713329.548 | CW5: 2236005.59 | CX5: 2294009.52 | CY5: 1924980.741 | CZ5: 1990896.597 | DA5: 1802941.516 | DB5: 2135397.15 | DC5: 1908730.56 | DD5: 1941911.883 | DE5: 1900342.863 | DF5: 2349795.549 | DG5: 2781037.808 | DH5: 2748976.527 | DI5: 2243239.275 | DJ5: 2282717.26 | DK5: 1944077.05 | DL5: 1935448.388 | DM5: 1819934.452 | DN5: 2131414.527 | DO5: 1922537.828 | DP5: 1949910.093 | DQ5: 1900888.152 | DR5: 2364360.326 | DS5: 2754166.942 | DT5: 2724531.111 | DU5: 2301879.176 | DV5: 2292258.599 | DW5: 1933967.303 | DX5: 2003028.546 | DY5: 1807466.939 | DZ5: 2140099.305 | EA5: 1920804.971 | EB5: 1948169.798 | EC5: 1911823.361 | ED5: 2355983.961 | EE5: 2766094.257 | EF5: 2782110.101 | EG5: 2255789.353 | EH5: 2283729.24 | EI5: 1949960.387 | EJ5: 1943235.98 | EK5: 1823633.169 | EL5: 2144749.469 | EM5: 1924655.415 | EN5: 1957739.464 | EO5: 1910675.312 | EP5: 2356123.407 | EQ5: 2760030.555 | ER5: 2749862.837 | ES5: 2257395.646 | ET5: =SUM(ET6:ET10) -> 2295072.302 | EU5: 1942907.692 | EV5: 1998629.981 | EW5: 1807922.899 | EX5: 2146719.988 | EY5: 1917128.27 | EZ5: 1950714.883
B6: Block | D6: PRE_BLK | E6: =+SUM(L6:W6,CG6:CR6) -> 5202739.2 | F6: =+SUM(X6:AI6,CS6:DD6) -> 5202809.28 | G6: =+SUM(AJ6:AU6,DE6:DP6) -> 5202809.28 | H6: =+SUM(AV6:BG6,DQ6:EB6) -> 5207181.552 | I6: =+SUM(BH6:BS6,EC6:EN6) -> 5192954.28 | J6: =+SUM(BT6:CE6,EO6:EZ6) -> 5184439.56 | L6: =LoadScenarioInput!L13 -> 242484.1996 | M6: =LoadScenarioInput!M13 -> 388037.6836 | N6: =LoadScenarioInput!N13 -> 399200.89 | O6: =LoadScenarioInput!O13 -> 439869.8029 | P6: =LoadScenarioInput!P13 -> 374366.032 | Q6: =LoadScenarioInput!Q13 -> 392547.2817 | R6: =LoadScenarioInput!R13 -> 185838.5466 | S6: =LoadScenarioInput!S13 -> 68153.7636 | T6: =LoadScenarioInput!T13 -> 9143.947296 | U6: =LoadScenarioInput!U13 -> 155655.0178 | V6: =LoadScenarioInput!V13 -> 176295.2423 | W6: =LoadScenarioInput!W13 -> 280860.0855 | X6: =LoadScenarioInput!X13 -> 242651.8871 | Y6: =LoadScenarioInput!Y13 -> 388042.8649 | Z6: =LoadScenarioInput!Z13 -> 399206.2195 | AA6: =LoadScenarioInput!AA13 -> 439875.8371 | AB6: =LoadScenarioInput!AB13 -> 374371.1934 | AC6: =LoadScenarioInput!AC13 -> 391781.8752 | AD6: =LoadScenarioInput!AD13 -> 185890.9156 | AE6: =LoadScenarioInput!AE13 -> 68154.6834 | AF6: =LoadScenarioInput!AF13 -> 9144.147024 | AG6: =LoadScenarioInput!AG13 -> 155841.0883 | AH6: =LoadScenarioInput!AH13 -> 176297.5589 | AI6: =LoadScenarioInput!AI13 -> 280863.735 | AJ6: =LoadScenarioInput!AJ13 -> 242651.8871 | AK6: =LoadScenarioInput!AK13 -> 388042.8649 | AL6: =LoadScenarioInput!AL13 -> 399206.2195 | AM6: =LoadScenarioInput!AM13 -> 439875.8371 | AN6: =LoadScenarioInput!AN13 -> 374371.1934 | AO6: =LoadScenarioInput!AO13 -> 391781.8752 | AP6: =LoadScenarioInput!AP13 -> 185890.9156 | AQ6: =LoadScenarioInput!AQ13 -> 68154.6834 | AR6: =LoadScenarioInput!AR13 -> 9144.147024 | AS6: =LoadScenarioInput!AS13 -> 155841.0883 | AT6: =LoadScenarioInput!AT13 -> 176108.7605 | AU6: =LoadScenarioInput!AU13 -> 281253.9182 | AV6: =LoadScenarioInput!AV13 -> 242855.8891 | AW6: =LoadScenarioInput!AW13 -> 387624.073 | AX6: =LoadScenarioInput!AX13 -> 400195.8015 | AY6: =LoadScenarioInput!AY13 -> 440245.4442 | AZ6: =LoadScenarioInput!AZ13 -> 373939.9543 | BA6: =LoadScenarioInput!BA13 -> 392882.4957 | BB6: =LoadScenarioInput!BB13 -> 186047.2057 | BC6: =LoadScenarioInput!BC13 -> 68211.94118 | BD6: =LoadScenarioInput!BD13 -> 9151.775539 | BE6: =LoadScenarioInput!BE13 -> 155972.0266 | BF6: =LoadScenarioInput!BF13 -> 176256.7862 | BG6: =LoadScenarioInput!BG13 -> 281490.3488 | BH6: =LoadScenarioInput!BH13 -> 242028.0689 | BI6: =LoadScenarioInput!BI13 -> 387307.8878 | BJ6: =LoadScenarioInput!BJ13 -> 399102.3704 | BK6: =LoadScenarioInput!BK13 -> 438124.5548 | BL6: =LoadScenarioInput!BL13 -> 373662.0171 | BM6: =LoadScenarioInput!BM13 -> 391809.0463 | BN6: =LoadScenarioInput!BN13 -> 185538.88 | BO6: =LoadScenarioInput!BO13 -> 68025.56976 | BP6: =LoadScenarioInput!BP13 -> 9126.770688 | BQ6: =LoadScenarioInput!BQ13 -> 155362.2669 | BR6: =LoadScenarioInput!BR13 -> 175963.6486 | BS6: =LoadScenarioInput!BS13 -> 280721.2495 | BT6: =LoadScenarioInput!BT13 -> 241631.2106 | BU6: =LoadScenarioInput!BU13 -> 386672.8505 | BV6: =LoadScenarioInput!BV13 -> 398447.978 | BW6: =LoadScenarioInput!BW13 -> 437406.1882 | BX6: =LoadScenarioInput!BX13 -> 373049.3514 | BY6: =LoadScenarioInput!BY13 -> 391166.625 | BZ6: =LoadScenarioInput!BZ13 -> 185184.793 | CA6: =LoadScenarioInput!CA13 -> 67914.01116 | CB6: =LoadScenarioInput!CB13 -> 9111.791088 | CC6: =LoadScenarioInput!CC13 -> 155107.508 | CD6: =LoadScenarioInput!CD13 -> 175675.1196 | CE6: =LoadScenarioInput!CE13 -> 280260.964 | CG6: =LoadScenarioInput!CG13 -> 162177.3253 | CH6: =LoadScenarioInput!CH13 -> 261219.2648 | CI6: =LoadScenarioInput!CI13 -> 269292.5453 | CJ6: =LoadScenarioInput!CJ13 -> 296159.0802 | CK6: =LoadScenarioInput!CK13 -> 251378.1303 | CL6: =LoadScenarioInput!CL13 -> 262806.1011 | CM6: =LoadScenarioInput!CM13 -> 124059.1029 | CN6: =LoadScenarioInput!CN13 -> 45435.8424 | CO6: =LoadScenarioInput!CO13 -> 6095.964864 | CP6: =LoadScenarioInput!CP13 -> 104659.1045 | CQ6: =LoadScenarioInput!CQ13 -> 117813.3481 | CR6: =LoadScenarioInput!CR13 -> 189190.8973 | CS6: =LoadScenarioInput!CS13 -> 162014.8149 | CT6: =LoadScenarioInput!CT13 -> 261222.8173 | CU6: =LoadScenarioInput!CU13 -> 269296.2212 | CV6: =LoadScenarioInput!CV13 -> 296163.2163 | CW6: =LoadScenarioInput!CW13 -> 251381.6413 | CX6: =LoadScenarioInput!CX13 -> 263580.4603 | CY6: =LoadScenarioInput!CY13 -> 124010.6496 | CZ6: =LoadScenarioInput!CZ13 -> 45436.4556 | DA6: =LoadScenarioInput!DA13 -> 6096.098016 | DB6: =LoadScenarioInput!DB13 -> 104476.5905 | DC6: =LoadScenarioInput!DC13 -> 117814.9034 | DD6: =LoadScenarioInput!DD13 -> 189193.4062 | DE6: =LoadScenarioInput!DE13 -> 162014.8149 | DF6: =LoadScenarioInput!DF13 -> 261222.8173 | DG6: =LoadScenarioInput!DG13 -> 269296.2212 | DH6: =LoadScenarioInput!DH13 -> 296163.2163 | DI6: =LoadScenarioInput!DI13 -> 251381.6413 | DJ6: =LoadScenarioInput!DJ13 -> 263580.4603 | DK6: =LoadScenarioInput!DK13 -> 124010.6496 | DL6: =LoadScenarioInput!DL13 -> 45436.4556 | DM6: =LoadScenarioInput!DM13 -> 6096.098016 | DN6: =LoadScenarioInput!DN13 -> 104476.5905 | DO6: =LoadScenarioInput!DO13 -> 118003.7018 | DP6: =LoadScenarioInput!DP13 -> 188803.223 | DQ6: =LoadScenarioInput!DQ13 -> 162151.0206 | DR6: =LoadScenarioInput!DR13 -> 262187.2686 | DS6: =LoadScenarioInput!DS13 -> 268868.4342 | DT6: =LoadScenarioInput!DT13 -> 296412.0317 | DU6: =LoadScenarioInput!DU13 -> 252338.6296 | DV6: =LoadScenarioInput!DV13 -> 263030.5373 | DW6: =LoadScenarioInput!DW13 -> 124114.912 | DX6: =LoadScenarioInput!DX13 -> 45474.62746 | DY6: =LoadScenarioInput!DY13 -> 6101.183693 | DZ6: =LoadScenarioInput!DZ13 -> 104564.3648 | EA6: =LoadScenarioInput!EA13 -> 118102.8804 | EB6: =LoadScenarioInput!EB13 -> 188961.9198 | EC6: =LoadScenarioInput!EC13 -> 161872.2646 | ED6: =LoadScenarioInput!ED13 -> 260728.0129 | EE6: =LoadScenarioInput!EE13 -> 268133.821 | EF6: =LoadScenarioInput!EF13 -> 296520.1957 | EG6: =LoadScenarioInput!EG13 -> 250905.4232 | EH6: =LoadScenarioInput!EH13 -> 262311.8746 | EI6: =LoadScenarioInput!EI13 -> 123775.8002 | EJ6: =LoadScenarioInput!EJ13 -> 45350.37984 | EK6: =LoadScenarioInput!EK13 -> 6084.513792 | EL6: =LoadScenarioInput!EL13 -> 104462.2764 | EM6: =LoadScenarioInput!EM13 -> 117591.7566 | EN6: =LoadScenarioInput!EN13 -> 188445.6304 | EO6: =LoadScenarioInput!EO13 -> 161606.8405 | EP6: =LoadScenarioInput!EP13 -> 260300.5236 | EQ6: =LoadScenarioInput!EQ13 -> 267694.177 | ER6: =LoadScenarioInput!ER13 -> 296034.0185 | ES6: =LoadScenarioInput!ES13 -> 250494.0361 | ET6: =LoadScenarioInput!ET13 -> 261881.7828 | EU6: =LoadScenarioInput!EU13 -> 123622.6832 | EV6: =LoadScenarioInput!EV13 -> 45276.00744 | EW6: =LoadScenarioInput!EW13 -> 6074.527392 | EX6: =LoadScenarioInput!EX13 -> 104290.984 | EY6: =LoadScenarioInput!EY13 -> 117398.9411 | EZ6: =LoadScenarioInput!EZ13 -> 188136.6477
B7: Slice Block | D7: PRE_BLK | E7: =+SUM(L7:W7,CG7:CR7) -> 11760515.73 | F7: =+SUM(X7:AI7,CS7:DD7) -> 11629793.27 | G7: =+SUM(AJ7:AU7,DE7:DP7) -> 11746375.48 | H7: =+SUM(AV7:BG7,DQ7:EB7) -> 11625856.86 | I7: =+SUM(BH7:BS7,EC7:EN7) -> 11761952.57 | J7: =+SUM(BT7:CE7,EO7:EZ7) -> 11598050.27 | L7: =LoadScenarioInput!L14 -> 513008.2335 | M7: =LoadScenarioInput!M14 -> 573611.0013 | N7: =LoadScenarioInput!N14 -> 656091.4861 | O7: =LoadScenarioInput!O14 -> 674733.3964 | P7: =LoadScenarioInput!P14 -> 575971.0341 | Q7: =LoadScenarioInput!Q14 -> 601249.3346 | R7: =LoadScenarioInput!R14 -> 513221.5457 | S7: =LoadScenarioInput!S14 -> 510266.9704 | T7: =LoadScenarioInput!T14 -> 488571.7448 | U7: =LoadScenarioInput!U14 -> 485931.7798 | V7: =LoadScenarioInput!V14 -> 521240.4708 | W7: =LoadScenarioInput!W14 -> 456777.2865 | X7: =LoadScenarioInput!X14 -> 526790.9975 | Y7: =LoadScenarioInput!Y14 -> 567225.0668 | Z7: =LoadScenarioInput!Z14 -> 648805.6581 | AA7: =LoadScenarioInput!AA14 -> 667267.216 | AB7: =LoadScenarioInput!AB14 -> 569560.9973 | AC7: =LoadScenarioInput!AC14 -> 572515.4678 | AD7: =LoadScenarioInput!AD14 -> 527778.1106 | AE7: =LoadScenarioInput!AE14 -> 504641.708 | AF7: =LoadScenarioInput!AF14 -> 464543.0607 | AG7: =LoadScenarioInput!AG14 -> 499782.4609 | AH7: =LoadScenarioInput!AH14 -> 515473.0354 | AI7: =LoadScenarioInput!AI14 -> 451684.5427 | AJ7: =LoadScenarioInput!AJ14 -> 532064.8549 | AK7: =LoadScenarioInput!AK14 -> 572959.2023 | AL7: =LoadScenarioInput!AL14 -> 655385.916 | AM7: =LoadScenarioInput!AM14 -> 674014.6681 | AN7: =LoadScenarioInput!AN14 -> 575299.9741 | AO7: =LoadScenarioInput!AO14 -> 578262.9555 | AP7: =LoadScenarioInput!AP14 -> 533052.4213 | AQ7: =LoadScenarioInput!AQ14 -> 509726.9154 | AR7: =LoadScenarioInput!AR14 -> 469129.0253 | AS7: =LoadScenarioInput!AS14 -> 504734.853 | AT7: =LoadScenarioInput!AT14 -> 501294.6734 | AU7: =LoadScenarioInput!AU14 -> 475185.8087 | AV7: =LoadScenarioInput!AV14 -> 526628.1648 | AW7: =LoadScenarioInput!AW14 -> 544382.4348 | AX7: =LoadScenarioInput!AX14 -> 674568.728 | AY7: =LoadScenarioInput!AY14 -> 667080.9012 | AZ7: =LoadScenarioInput!AZ14 -> 549752.2681 | BA7: =LoadScenarioInput!BA14 -> 594331.5139 | BB7: =LoadScenarioInput!BB14 -> 527577.9217 | BC7: =LoadScenarioInput!BC14 -> 485067.4083 | BD7: =LoadScenarioInput!BD14 -> 482934.6604 | BE7: =LoadScenarioInput!BE14 -> 499575.4562 | BF7: =LoadScenarioInput!BF14 -> 496175.9821 | BG7: =LoadScenarioInput!BG14 -> 470327.1521 | BH7: =LoadScenarioInput!BH14 -> 513078.1342 | BI7: =LoadScenarioInput!BI14 -> 573728.5261 | BJ7: =LoadScenarioInput!BJ14 -> 682487.8042 | BK7: =LoadScenarioInput!BK14 -> 648922.5527 | BL7: =LoadScenarioInput!BL14 -> 576068.9467 | BM7: =LoadScenarioInput!BM14 -> 601320.6664 | BN7: =LoadScenarioInput!BN14 -> 533785.145 | BO7: =LoadScenarioInput!BO14 -> 490716.6986 | BP7: =LoadScenarioInput!BP14 -> 488574.6016 | BQ7: =LoadScenarioInput!BQ14 -> 485938.9274 | BR7: =LoadScenarioInput!BR14 -> 521245.1948 | BS7: =LoadScenarioInput!BS14 -> 475834.6775 | BT7: =LoadScenarioInput!BT14 -> 505914.639 | BU7: =LoadScenarioInput!BU14 -> 565776.635 | BV7: =LoadScenarioInput!BV14 -> 673059.5058 | BW7: =LoadScenarioInput!BW14 -> 639984.6812 | BX7: =LoadScenarioInput!BX14 -> 568063.6182 | BY7: =LoadScenarioInput!BY14 -> 592902.8277 | BZ7: =LoadScenarioInput!BZ14 -> 506025.139 | CA7: =LoadScenarioInput!CA14 -> 503296.7589 | CB7: =LoadScenarioInput!CB14 -> 481691.1557 | CC7: =LoadScenarioInput!CC14 -> 479140.3444 | CD7: =LoadScenarioInput!CD14 -> 513944.6492 | CE7: =LoadScenarioInput!CE14 -> 469150.4767 | CG7: =LoadScenarioInput!CG14 -> 404487.2611 | CH7: =LoadScenarioInput!CH14 -> 460322.8285 | CI7: =LoadScenarioInput!CI14 -> 564238.678 | CJ7: =LoadScenarioInput!CJ14 -> 532001.3318 | CK7: =LoadScenarioInput!CK14 -> 431978.2756 | CL7: =LoadScenarioInput!CL14 -> 432843.8497 | CM7: =LoadScenarioInput!CM14 -> 410577.2365 | CN7: =LoadScenarioInput!CN14 -> 402325.8805 | CO7: =LoadScenarioInput!CO14 -> 357033.1981 | CP7: =LoadScenarioInput!CP14 -> 417901.3306 | CQ7: =LoadScenarioInput!CQ14 -> 376451.4512 | CR7: =LoadScenarioInput!CR14 -> 399680.1257 | CS7: =LoadScenarioInput!CS14 -> 380460.1649 | CT7: =LoadScenarioInput!CT14 -> 455198.1161 | CU7: =LoadScenarioInput!CU14 -> 557972.8659 | CV7: =LoadScenarioInput!CV14 -> 526114.5357 | CW7: =LoadScenarioInput!CW14 -> 427170.748 | CX7: =LoadScenarioInput!CX14 -> 450030.1875 | CY7: =LoadScenarioInput!CY14 -> 385684.0039 | CZ7: =LoadScenarioInput!CZ14 -> 397890.5775 | DA7: =LoadScenarioInput!DA14 -> 371634.4486 | DB7: =LoadScenarioInput!DB14 -> 394059.248 | DC7: =LoadScenarioInput!DC14 -> 372286.0811 | DD7: =LoadScenarioInput!DD14 -> 395223.9748 | DE7: =LoadScenarioInput!DE14 -> 384269.0618 | DF7: =LoadScenarioInput!DF14 -> 459799.7599 | DG7: =LoadScenarioInput!DG14 -> 563631.8878 | DH7: =LoadScenarioInput!DH14 -> 531434.6422 | DI7: =LoadScenarioInput!DI14 -> 431474.9806 | DJ7: =LoadScenarioInput!DJ14 -> 454548.0443 | DK7: =LoadScenarioInput!DK14 -> 389538.3079 | DL7: =LoadScenarioInput!DL14 -> 401900.0679 | DM7: =LoadScenarioInput!DM14 -> 375303.2202 | DN7: =LoadScenarioInput!DN14 -> 397964.0187 | DO7: =LoadScenarioInput!DO14 -> 395251.5694 | DP7: =LoadScenarioInput!DP14 -> 380148.6469 | DQ7: =LoadScenarioInput!DQ14 -> 380342.5635 | DR7: =LoadScenarioInput!DR14 -> 477752.293 | DS7: =LoadScenarioInput!DS14 -> 531871.4971 | DT7: =LoadScenarioInput!DT14 -> 525967.6336 | DU7: =LoadScenarioInput!DU14 -> 446673.7178 | DV7: =LoadScenarioInput!DV14 -> 427863.6593 | DW7: =LoadScenarioInput!DW14 -> 385537.712 | DX7: =LoadScenarioInput!DX14 -> 417157.9711 | DY7: =LoadScenarioInput!DY14 -> 352913.7903 | DZ7: =LoadScenarioInput!DZ14 -> 393896.0328 | EA7: =LoadScenarioInput!EA14 -> 391215.6782 | EB7: =LoadScenarioInput!EB14 -> 376261.7217 | EC7: =LoadScenarioInput!EC14 -> 404542.3751 | ED7: =LoadScenarioInput!ED14 -> 460417.1422 | EE7: =LoadScenarioInput!EE14 -> 538115.384 | EF7: =LoadScenarioInput!EF14 -> 558073.3953 | EG7: =LoadScenarioInput!EG14 -> 432051.71 | EH7: =LoadScenarioInput!EH14 -> 432895.202 | EI7: =LoadScenarioInput!EI14 -> 390073.7598 | EJ7: =LoadScenarioInput!EJ14 -> 422016.3608 | EK7: =LoadScenarioInput!EK14 -> 357035.2858 | EL7: =LoadScenarioInput!EL14 -> 417907.4776 | EM7: =LoadScenarioInput!EM14 -> 376454.8629 | EN7: =LoadScenarioInput!EN14 -> 380667.742 | EO7: =LoadScenarioInput!EO14 -> 398894.2346 | EP7: =LoadScenarioInput!EP14 -> 454035.7496 | EQ7: =LoadScenarioInput!EQ14 -> 530681.5334 | ER7: =LoadScenarioInput!ER14 -> 550386.8258 | ES7: =LoadScenarioInput!ES14 -> 426047.7137 | ET7: =LoadScenarioInput!ET14 -> 426835.1375 | EU7: =LoadScenarioInput!EU14 -> 404820.1112 | EV7: =LoadScenarioInput!EV14 -> 396830.1369 | EW7: =LoadScenarioInput!EW14 -> 352005.0753 | EX7: =LoadScenarioInput!EX14 -> 412060.6962 | EY7: =LoadScenarioInput!EY14 -> 371182.2466 | EZ7: =LoadScenarioInput!EZ14 -> 375320.3814
B8: Slice | D8: PRE_SNB | E8: =+SUM(L8:W8,CG8:CR8) -> 12117273.27 | F8: =+SUM(X8:AI8,CS8:DD8) -> 12240628.57 | G8: 12120288.32 | H8: 12272666.53 | I8: 12075435.31 | J8: 12200355.61 | L8: =LoadScenarioInput!L15 -> 511800.2298 | M8: =LoadScenarioInput!M15 -> 636014.3759 | N8: =LoadScenarioInput!N15 -> 717220.3707 | O8: =LoadScenarioInput!O15 -> 691137.2632 | P8: =LoadScenarioInput!P15 -> 629821.327 | Q8: =LoadScenarioInput!Q15 -> 670761.6894 | R8: =LoadScenarioInput!R15 -> 535477.1169 | S8: =LoadScenarioInput!S15 -> 572908.8206 | T8: =LoadScenarioInput!T15 -> 762493.4599 | U8: =LoadScenarioInput!U15 -> 617848.7396 | V8: =LoadScenarioInput!V15 -> 597035.8013 | W8: =LoadScenarioInput!W15 -> 512097.8698 | X8: =LoadScenarioInput!X15 -> 515578.5929 | Y8: =LoadScenarioInput!Y15 -> 633271.609 | Z8: =LoadScenarioInput!Z15 -> 719911.5303 | AA8: =LoadScenarioInput!AA15 -> 714284.506 | AB8: =LoadScenarioInput!AB15 -> 630996.1704 | AC8: =LoadScenarioInput!AC15 -> 649224.63 | AD8: =LoadScenarioInput!AD15 -> 524685.6376 | AE8: =LoadScenarioInput!AE15 -> 691163.0506 | AF8: =LoadScenarioInput!AF15 -> 701590.9685 | AG8: =LoadScenarioInput!AG15 -> 649603.7468 | AH8: =LoadScenarioInput!AH15 -> 598179.422 | AI8: =LoadScenarioInput!AI15 -> 513168.754 | AJ8: =LoadScenarioInput!AJ15 -> 516816.9875 | AK8: =LoadScenarioInput!AK15 -> 636569.2722 | AL8: =LoadScenarioInput!AL15 -> 717775.267 | AM8: =LoadScenarioInput!AM15 -> 691714.3554 | AN8: =LoadScenarioInput!AN15 -> 630354.0275 | AO8: =LoadScenarioInput!AO15 -> 665646.1407 | AP8: =LoadScenarioInput!AP15 -> 540517.913 | AQ8: =LoadScenarioInput!AQ15 -> 572908.8206 | AR8: =LoadScenarioInput!AR15 -> 757336.6777 | AS8: =LoadScenarioInput!AS15 -> 624077.5611 | AT8: =LoadScenarioInput!AT15 -> 591543.1124 | AU8: =LoadScenarioInput!AU15 -> 517713.561 | AV8: =LoadScenarioInput!AV15 -> 515578.5929 | AW8: =LoadScenarioInput!AW15 -> 628254.268 | AX8: =LoadScenarioInput!AX15 -> 725874.916 | AY8: =LoadScenarioInput!AY15 -> 714861.5982 | AZ8: =LoadScenarioInput!AZ15 -> 649310.5004 | BA8: =LoadScenarioInput!BA15 -> 654332.0987 | BB8: =LoadScenarioInput!BB15 -> 524685.6376 | BC8: =LoadScenarioInput!BC15 -> 683953.8543 | BD8: =LoadScenarioInput!BD15 -> 707406.0703 | BE8: =LoadScenarioInput!BE15 -> 647701.3273 | BF8: =LoadScenarioInput!BF15 -> 589799.7347 | BG8: =LoadScenarioInput!BG15 -> 518721.8318 | BH8: =LoadScenarioInput!BH15 -> 510232.1938 | BI8: =LoadScenarioInput!BI15 -> 633724.3891 | BJ8: =LoadScenarioInput!BJ15 -> 721696.5694 | BK8: =LoadScenarioInput!BK15 -> 683249.0054 | BL8: =LoadScenarioInput!BL15 -> 628305.4612 | BM8: =LoadScenarioInput!BM15 -> 668344.8151 | BN8: =LoadScenarioInput!BN15 -> 537002.3931 | BO8: =LoadScenarioInput!BO15 -> 564394.4482 | BP8: =LoadScenarioInput!BP15 -> 760435.5109 | BQ8: =LoadScenarioInput!BQ15 -> 616774.4121 | BR8: =LoadScenarioInput!BR15 -> 595635.8544 | BS8: =LoadScenarioInput!BS15 -> 517650.9476 | BT8: =LoadScenarioInput!BT15 -> 508993.7991 | BU8: =LoadScenarioInput!BU15 -> 630007.1232 | BV8: =LoadScenarioInput!BV15 -> 724387.729 | BW8: =LoadScenarioInput!BW15 -> 707482.0646 | BX8: =LoadScenarioInput!BX15 -> 629480.3045 | BY8: =LoadScenarioInput!BY15 -> 651923.3044 | BZ8: =LoadScenarioInput!BZ15 -> 516358.4428 | CA8: =LoadScenarioInput!CA15 -> 689116.3234 | CB8: =LoadScenarioInput!CB15 -> 704677.279 | CC8: =LoadScenarioInput!CC15 -> 641200.2135 | CD8: =LoadScenarioInput!CD15 -> 595804.8622 | CE8: =LoadScenarioInput!CE15 -> 518721.8318 | CG8: =LoadScenarioInput!CG15 -> 322537.0062 | CH8: =LoadScenarioInput!CH15 -> 434654.3796 | CI8: =LoadScenarioInput!CI15 -> 435118.4078 | CJ8: =LoadScenarioInput!CJ15 -> 467993.7001 | CK8: =LoadScenarioInput!CK15 -> 375859.6469 | CL8: =LoadScenarioInput!CL15 -> 392761.9341 | CM8: =LoadScenarioInput!CM15 -> 341933.9517 | CN8: =LoadScenarioInput!CN15 -> 408146.06 | CO8: =LoadScenarioInput!CO15 -> 400195.4178 | CP8: =LoadScenarioInput!CP15 -> 384921.0551 | CQ8: =LoadScenarioInput!CQ15 -> 348302.0382 | CR8: =LoadScenarioInput!CR15 -> 350232.607 | CS8: =LoadScenarioInput!CS15 -> 318576.2236 | CT8: =LoadScenarioInput!CT15 -> 436033.2503 | CU8: =LoadScenarioInput!CU15 -> 431786.1531 | CV8: =LoadScenarioInput!CV15 -> 444077.8037 | CW8: =LoadScenarioInput!CW15 -> 374084.7535 | CX8: =LoadScenarioInput!CX15 -> 412796.7103 | CY8: =LoadScenarioInput!CY15 -> 327383.9864 | CZ8: =LoadScenarioInput!CZ15 -> 471364.4886 | DA8: =LoadScenarioInput!DA15 -> 395553.4929 | DB8: =LoadScenarioInput!DB15 -> 391962.5786 | DC8: =LoadScenarioInput!DC15 -> 346711.6543 | DD8: =LoadScenarioInput!DD15 -> 348638.8531 | DE8: =LoadScenarioInput!DE15 -> 318248.1904 | DF8: =LoadScenarioInput!DF15 -> 434655.7792 | DG8: =LoadScenarioInput!DG15 -> 435119.7713 | DH8: =LoadScenarioInput!DH15 -> 467995.0652 | DI8: =LoadScenarioInput!DI15 -> 375861.0167 | DJ8: =LoadScenarioInput!DJ15 -> 397149.303 | DK8: =LoadScenarioInput!DK15 -> 337621.3925 | DL8: =LoadScenarioInput!DL15 -> 408146.06 | DM8: =LoadScenarioInput!DM15 -> 404624.4549 | DN8: =LoadScenarioInput!DN15 -> 379389.3285 | DO8: =LoadScenarioInput!DO15 -> 353066.9312 | DP8: =LoadScenarioInput!DP15 -> 345437.3355 | DQ8: =LoadScenarioInput!DQ15 -> 318576.2236 | DR8: =LoadScenarioInput!DR15 -> 440786.3611 | DS8: =LoadScenarioInput!DS15 -> 427076.2911 | DT8: =LoadScenarioInput!DT15 -> 444079.1687 | DU8: =LoadScenarioInput!DU15 -> 391493.6536 | DV8: =LoadScenarioInput!DV15 -> 408417.4214 | DW8: =LoadScenarioInput!DW15 -> 327383.9864 | DX8: =LoadScenarioInput!DX15 -> 477876.2449 | DY8: =LoadScenarioInput!DY15 -> 390466.1363 | DZ8: =LoadScenarioInput!DZ15 -> 390326.4979 | EA8: =LoadScenarioInput!EA15 -> 351910.6238 | EB8: =LoadScenarioInput!EB15 -> 343793.491 | EC8: =LoadScenarioInput!EC15 -> 321286.2193 | ED8: =LoadScenarioInput!ED15 -> 431301.3421 | EE8: =LoadScenarioInput!EE15 -> 429235.9563 | EF8: =LoadScenarioInput!EF15 -> 472444.2594 | EG8: =LoadScenarioInput!EG15 -> 374324.592 | EH8: =LoadScenarioInput!EH15 -> 391035.9052 | EI8: =LoadScenarioInput!EI15 -> 335052.3588 | EJ8: =LoadScenarioInput!EJ15 -> 408007.4799 | EK8: =LoadScenarioInput!EK15 -> 398705.5106 | EL8: =LoadScenarioInput!EL15 -> 383982.1111 | EM8: =LoadScenarioInput!EM15 -> 347226.3274 | EN8: =LoadScenarioInput!EN15 -> 345387.2449 | EO8: =LoadScenarioInput!EO15 -> 321614.2524 | EP8: =LoadScenarioInput!EP15 -> 432969.5957 | EQ8: =LoadScenarioInput!EQ15 -> 425903.7015 | ER8: =LoadScenarioInput!ER15 -> 447479.5714 | ES8: =LoadScenarioInput!ES15 -> 372549.6986 | ET8: =LoadScenarioInput!ET15 -> 406683.3124 | EU8: =LoadScenarioInput!EU15 -> 330368.5744 | EV8: =LoadScenarioInput!EV15 -> 469604.3032 | EW8: =LoadScenarioInput!EW15 -> 388472.0196 | EX8: =LoadScenarioInput!EX15 -> 396130.5167 | EY8: =LoadScenarioInput!EY15 -> 346633.2923 | EZ8: =LoadScenarioInput!EZ15 -> 343793.491
B9: Load Following | D9: PRE_LDF | E9: 31196966.65 | F9: 31339723.31 | G9: 31358902.17 | H9: 31366841.76 | I9: 31256571.44 | J9: 31108297.82 | L9: =LoadScenarioInput!L16 -> 1480880.684 | M9: =LoadScenarioInput!M16 -> 1540185.193 | N9: =LoadScenarioInput!N16 -> 1866739.231 | O9: =LoadScenarioInput!O16 -> 1923681.447 | P9: =LoadScenarioInput!P16 -> 1624493.084 | Q9: =LoadScenarioInput!Q16 -> 1590637.348 | R9: =LoadScenarioInput!R16 -> 1447008.984 | S9: =LoadScenarioInput!S16 -> 1443918.622 | T9: =LoadScenarioInput!T16 -> 1559269.91 | U9: =LoadScenarioInput!U16 -> 1642794.77 | V9: =LoadScenarioInput!V16 -> 1691946.918 | W9: =LoadScenarioInput!W16 -> 1365297.421 | X9: =LoadScenarioInput!X16 -> 1455538.885 | Y9: =LoadScenarioInput!Y16 -> 1543622.348 | Z9: =LoadScenarioInput!Z16 -> 1869649.652 | AA9: =LoadScenarioInput!AA16 -> 1929329.94 | AB9: =LoadScenarioInput!AB16 -> 1631332.248 | AC9: =LoadScenarioInput!AC16 -> 1621783.392 | AD9: =LoadScenarioInput!AD16 -> 1429026.002 | AE9: =LoadScenarioInput!AE16 -> 1454246.652 | AF9: =LoadScenarioInput!AF16 -> 1598432.149 | AG9: =LoadScenarioInput!AG16 -> 1626524.269 | AH9: =LoadScenarioInput!AH16 -> 1703773.138 | AI9: =LoadScenarioInput!AI16 -> 1375586.715 | AJ9: =LoadScenarioInput!AJ16 -> 1467262.597 | AK9: =LoadScenarioInput!AK16 -> 1554414.091 | AL9: =LoadScenarioInput!AL16 -> 1880266.916 | AM9: =LoadScenarioInput!AM16 -> 1930491.787 | AN9: =LoadScenarioInput!AN16 -> 1626537.569 | AO9: =LoadScenarioInput!AO16 -> 1615122.507 | AP9: =LoadScenarioInput!AP16 -> 1429298.956 | AQ9: =LoadScenarioInput!AQ16 -> 1452357.503 | AR9: =LoadScenarioInput!AR16 -> 1598108.702 | AS9: =LoadScenarioInput!AS16 -> 1626292.869 | AT9: =LoadScenarioInput!AT16 -> 1731539.538 | AU9: =LoadScenarioInput!AU16 -> 1344017.739 | AV9: =LoadScenarioInput!AV16 -> 1465014.017 | AW9: =LoadScenarioInput!AW16 -> 1576401.463 | AX9: =LoadScenarioInput!AX16 -> 1861036.33 | AY9: =LoadScenarioInput!AY16 -> 1928239.081 | AZ9: =LoadScenarioInput!AZ16 -> 1679593.234 | BA9: =LoadScenarioInput!BA16 -> 1596519.512 | BB9: =LoadScenarioInput!BB16 -> 1426977.034 | BC9: =LoadScenarioInput!BC16 -> 1478770.568 | BD9: =LoadScenarioInput!BD16 -> 1566592.678 | BE9: =LoadScenarioInput!BE16 -> 1620807.176 | BF9: =LoadScenarioInput!BF16 -> 1729367.903 | BG9: =LoadScenarioInput!BG16 -> 1340907.255 | BH9: =LoadScenarioInput!BH16 -> 1491100.721 | BI9: =LoadScenarioInput!BI16 -> 1549956.506 | BJ9: =LoadScenarioInput!BJ16 -> 1858179.606 | BK9: =LoadScenarioInput!BK16 -> 1943411.825 | BL9: =LoadScenarioInput!BL16 -> 1630318.083 | BM9: =LoadScenarioInput!BM16 -> 1594170.453 | BN9: =LoadScenarioInput!BN16 -> 1424727.521 | BO9: =LoadScenarioInput!BO16 -> 1477039.13 | BP9: =LoadScenarioInput!BP16 -> 1563886.834 | BQ9: =LoadScenarioInput!BQ16 -> 1649589.072 | BR9: =LoadScenarioInput!BR16 -> 1698496.689 | BS9: =LoadScenarioInput!BS16 -> 1338160.414 | BT9: =LoadScenarioInput!BT16 -> 1488847.59 | BU9: =LoadScenarioInput!BU16 -> 1547833.469 | BV9: =LoadScenarioInput!BV16 -> 1856088.03 | BW9: =LoadScenarioInput!BW16 -> 1935580.733 | BX9: =LoadScenarioInput!BX16 -> 1635850.032 | BY9: =LoadScenarioInput!BY16 -> 1587764.241 | BZ9: =LoadScenarioInput!BZ16 -> 1446231.719 | CA9: =LoadScenarioInput!CA16 -> 1435022.686 | CB9: =LoadScenarioInput!CB16 -> 1554111.795 | CC9: =LoadScenarioInput!CC16 -> 1636010.487 | CD9: =LoadScenarioInput!CD16 -> 1687016.999 | CE9: =LoadScenarioInput!CE16 -> 1329454.171 | CG9: =LoadScenarioInput!CG16 -> 839358.347 | CH9: =LoadScenarioInput!CH16 -> 1019344.462 | CI9: =LoadScenarioInput!CI16 -> 1325305.602 | CJ9: =LoadScenarioInput!CJ16 -> 1280570.497 | CK9: =LoadScenarioInput!CK16 -> 1035839.062 | CL9: =LoadScenarioInput!CL16 -> 1023503.072 | CM9: =LoadScenarioInput!CM16 -> 904835.4096 | CN9: =LoadScenarioInput!CN16 -> 906304.8322 | CO9: =LoadScenarioInput!CO16 -> 892968.8705 | CP9: =LoadScenarioInput!CP16 -> 1047103.194 | CQ9: =LoadScenarioInput!CQ16 -> 910165.167 | CR9: =LoadScenarioInput!CR16 -> 834814.5271 | CS9: =LoadScenarioInput!CS16 -> 867522.8368 | CT9: =LoadScenarioInput!CT16 -> 1020683.151 | CU9: =LoadScenarioInput!CU16 -> 1327655.242 | CV9: =LoadScenarioInput!CV16 -> 1283332.168 | CW9: =LoadScenarioInput!CW16 -> 1039682.943 | CX9: =LoadScenarioInput!CX16 -> 1004459.246 | CY9: =LoadScenarioInput!CY16 -> 936234.0694 | CZ9: =LoadScenarioInput!CZ16 -> 912563.2517 | DA9: =LoadScenarioInput!DA16 -> 870006.9165 | DB9: =LoadScenarioInput!DB16 -> 1081256.908 | DC9: =LoadScenarioInput!DC16 -> 916258.6256 | DD9: =LoadScenarioInput!DD16 -> 841222.561 | DE9: =LoadScenarioInput!DE16 -> 874201.9717 | DF9: =LoadScenarioInput!DF16 -> 1027846.576 | DG9: =LoadScenarioInput!DG16 -> 1334805.84 | DH9: =LoadScenarioInput!DH16 -> 1283487.148 | DI9: =LoadScenarioInput!DI16 -> 1035344.261 | DJ9: =LoadScenarioInput!DJ16 -> 998060.9734 | DK9: =LoadScenarioInput!DK16 -> 935441.692 | DL9: =LoadScenarioInput!DL16 -> 910069.3479 | DM9: =LoadScenarioInput!DM16 -> 868158.0387 | DN9: =LoadScenarioInput!DN16 -> 1079688.133 | DO9: =LoadScenarioInput!DO16 -> 886319.1695 | DP9: =LoadScenarioInput!DP16 -> 869768.2475 | DQ9: =LoadScenarioInput!DQ16 -> 871272.2006 | DR9: =LoadScenarioInput!DR16 -> 1001582.959 | DS9: =LoadScenarioInput!DS16 -> 1349161.183 | DT9: =LoadScenarioInput!DT16 -> 1280882.741 | DU9: =LoadScenarioInput!DU16 -> 1042827.03 | DV9: =LoadScenarioInput!DV16 -> 1024941.049 | DW9: =LoadScenarioInput!DW16 -> 932706.2442 | DX9: =LoadScenarioInput!DX16 -> 876686.7742 | DY9: =LoadScenarioInput!DY16 -> 893761.3805 | DZ9: =LoadScenarioInput!DZ16 -> 1074122.873 | EA9: =LoadScenarioInput!EA16 -> 882386.2528 | EB9: =LoadScenarioInput!EB16 -> 866284.8251 | EC9: =LoadScenarioInput!EC16 -> 839362.7262 | ED9: =LoadScenarioInput!ED16 -> 1022720.732 | EE9: =LoadScenarioInput!EE16 -> 1345849.319 | EF9: =LoadScenarioInput!EF16 -> 1261299.802 | EG9: =LoadScenarioInput!EG16 -> 1036279.532 | EH9: =LoadScenarioInput!EH16 -> 1022302.446 | EI9: =LoadScenarioInput!EI16 -> 929817.7002 | EJ9: =LoadScenarioInput!EJ16 -> 874089.311 | EK9: =LoadScenarioInput!EK16 -> 890567.0905 | EL9: =LoadScenarioInput!EL16 -> 1044625.156 | EM9: =LoadScenarioInput!EM16 -> 907635.3641 | EN9: =LoadScenarioInput!EN16 -> 862985.4071 | EO9: =LoadScenarioInput!EO16 -> 835869.8242 | EP9: =LoadScenarioInput!EP16 -> 1020239.669 | EQ9: =LoadScenarioInput!EQ16 -> 1343060.983 | ER9: =LoadScenarioInput!ER16 -> 1253872.741 | ES9: =LoadScenarioInput!ES16 -> 1039112.838 | ET9: =LoadScenarioInput!ET16 -> 1016968.899 | EU9: =LoadScenarioInput!EU16 -> 896105.9228 | EV9: =LoadScenarioInput!EV16 -> 894229.3733 | EW9: =LoadScenarioInput!EW16 -> 882780.3965 | EX9: =LoadScenarioInput!EX16 -> 1032148.111 | EY9: =LoadScenarioInput!EY16 -> 898623.1501 | EZ9: =LoadScenarioInput!EZ16 -> 855473.9631
B10: Tier 2 | D10: PRE_T2 | E10: 4200358.68 | F10: 4370434.08 | G10: =+SUM(AJ10:AU10,DE10:DP10) -> 4537478.52 | H10: 4745222.208 | I10: 4934437.92 | J10: 5146237.2 | L10: =LoadScenarioInput!L17 -> 199469.088 | M10: =LoadScenarioInput!M17 -> 191797.2 | N10: =LoadScenarioInput!N17 -> 191797.2 | O10: =LoadScenarioInput!O17 -> 199469.088 | P10: =LoadScenarioInput!P17 -> 184125.312 | Q10: =LoadScenarioInput!Q17 -> 207140.976 | R10: =LoadScenarioInput!R17 -> 191797.2 | S10: =LoadScenarioInput!S17 -> 199469.088 | T10: =LoadScenarioInput!T17 -> 199469.088 | U10: =LoadScenarioInput!U17 -> 191797.2 | V10: =LoadScenarioInput!V17 -> 207140.976 | W10: =LoadScenarioInput!W17 -> 184125.312 | X10: =LoadScenarioInput!X17 -> 215528.256 | Y10: =LoadScenarioInput!Y17 -> 199563.2 | Z10: =LoadScenarioInput!Z17 -> 199563.2 | AA10: =LoadScenarioInput!AA17 -> 207545.728 | AB10: =LoadScenarioInput!AB17 -> 191580.672 | AC10: =LoadScenarioInput!AC17 -> 207545.728 | AD10: =LoadScenarioInput!AD17 -> 207545.728 | AE10: =LoadScenarioInput!AE17 -> 207545.728 | AF10: =LoadScenarioInput!AF17 -> 199563.2 | AG10: =LoadScenarioInput!AG17 -> 207545.728 | AH10: =LoadScenarioInput!AH17 -> 215528.256 | AI10: =LoadScenarioInput!AI17 -> 191580.672 | AJ10: =LoadScenarioInput!AJ17 -> 223766.064 | AK10: =LoadScenarioInput!AK17 -> 207190.8 | AL10: =LoadScenarioInput!AL17 -> 207190.8 | AM10: =LoadScenarioInput!AM17 -> 215478.432 | AN10: =LoadScenarioInput!AN17 -> 198903.168 | AO10: =LoadScenarioInput!AO17 -> 215478.432 | AP10: =LoadScenarioInput!AP17 -> 215478.432 | AQ10: =LoadScenarioInput!AQ17 -> 215478.432 | AR10: =LoadScenarioInput!AR17 -> 207190.8 | AS10: =LoadScenarioInput!AS17 -> 215478.432 | AT10: =LoadScenarioInput!AT17 -> 215478.432 | AU10: =LoadScenarioInput!AU17 -> 207190.8 | AV10: =LoadScenarioInput!AV17 -> 233371.584 | AW10: =LoadScenarioInput!AW17 -> 207441.408 | AX10: =LoadScenarioInput!AX17 -> 224728.192 | AY10: =LoadScenarioInput!AY17 -> 224728.192 | AZ10: =LoadScenarioInput!AZ17 -> 207441.408 | BA10: =LoadScenarioInput!BA17 -> 233371.584 | BB10: =LoadScenarioInput!BB17 -> 224728.192 | BC10: =LoadScenarioInput!BC17 -> 216084.8 | BD10: =LoadScenarioInput!BD17 -> 224728.192 | BE10: =LoadScenarioInput!BE17 -> 224728.192 | BF10: =LoadScenarioInput!BF17 -> 224728.192 | BG10: =LoadScenarioInput!BG17 -> 216084.8 | BH10: =LoadScenarioInput!BH17 -> 234329.472 | BI10: =LoadScenarioInput!BI17 -> 225316.8 | BJ10: =LoadScenarioInput!BJ17 -> 234329.472 | BK10: =LoadScenarioInput!BK17 -> 225316.8 | BL10: =LoadScenarioInput!BL17 -> 216304.128 | BM10: =LoadScenarioInput!BM17 -> 243342.144 | BN10: =LoadScenarioInput!BN17 -> 234329.472 | BO10: =LoadScenarioInput!BO17 -> 225316.8 | BP10: =LoadScenarioInput!BP17 -> 234329.472 | BQ10: =LoadScenarioInput!BQ17 -> 225316.8 | BR10: =LoadScenarioInput!BR17 -> 243342.144 | BS10: =LoadScenarioInput!BS17 -> 225316.8 | BT10: =LoadScenarioInput!BT17 -> 244387.52 | BU10: =LoadScenarioInput!BU17 -> 234988 | BV10: =LoadScenarioInput!BV17 -> 244387.52 | BW10: =LoadScenarioInput!BW17 -> 234988 | BX10: =LoadScenarioInput!BX17 -> 225588.48 | BY10: =LoadScenarioInput!BY17 -> 253787.04 | BZ10: =LoadScenarioInput!BZ17 -> 234988 | CA10: =LoadScenarioInput!CA17 -> 244387.52 | CB10: =LoadScenarioInput!CB17 -> 244387.52 | CC10: =LoadScenarioInput!CC17 -> 234988 | CD10: =LoadScenarioInput!CD17 -> 253787.04 | CE10: =LoadScenarioInput!CE17 -> 234988 | CG10: =LoadScenarioInput!CG17 -> 157273.704 | CH10: =LoadScenarioInput!CH17 -> 153917.253 | CI10: =LoadScenarioInput!CI17 -> 164945.592 | CJ10: =LoadScenarioInput!CJ17 -> 157273.704 | CK10: =LoadScenarioInput!CK17 -> 138093.984 | CL10: =LoadScenarioInput!CL17 -> 149122.323 | CM10: =LoadScenarioInput!CM17 -> 153437.76 | CN10: =LoadScenarioInput!CN17 -> 157273.704 | CO10: =LoadScenarioInput!CO17 -> 145765.872 | CP10: =LoadScenarioInput!CP17 -> 164945.592 | CQ10: =LoadScenarioInput!CQ17 -> 149601.816 | CR10: =LoadScenarioInput!CR17 -> 161109.648 | CS10: =LoadScenarioInput!CS17 -> 155659.296 | CT10: =LoadScenarioInput!CT17 -> 160149.468 | CU10: =LoadScenarioInput!CU17 -> 171624.352 | CV10: =LoadScenarioInput!CV17 -> 163641.824 | CW10: =LoadScenarioInput!CW17 -> 143685.504 | CX10: =LoadScenarioInput!CX17 -> 163142.916 | CY10: =LoadScenarioInput!CY17 -> 151668.032 | CZ10: =LoadScenarioInput!CZ17 -> 163641.824 | DA10: =LoadScenarioInput!DA17 -> 159650.56 | DB10: =LoadScenarioInput!DB17 -> 163641.824 | DC10: =LoadScenarioInput!DC17 -> 155659.296 | DD10: =LoadScenarioInput!DD17 -> 167633.088 | DE10: =LoadScenarioInput!DE17 -> 161608.824 | DF10: =LoadScenarioInput!DF17 -> 166270.617 | DG10: =LoadScenarioInput!DG17 -> 178184.088 | DH10: =LoadScenarioInput!DH17 -> 169896.456 | DI10: =LoadScenarioInput!DI17 -> 149177.376 | DJ10: =LoadScenarioInput!DJ17 -> 169378.479 | DK10: =LoadScenarioInput!DK17 -> 157465.008 | DL10: =LoadScenarioInput!DL17 -> 169896.456 | DM10: =LoadScenarioInput!DM17 -> 165752.64 | DN10: =LoadScenarioInput!DN17 -> 169896.456 | DO10: =LoadScenarioInput!DO17 -> 169896.456 | DP10: =LoadScenarioInput!DP17 -> 165752.64 | DQ10: =LoadScenarioInput!DQ17 -> 168546.144 | DR10: =LoadScenarioInput!DR17 -> 182051.444 | DS10: =LoadScenarioInput!DS17 -> 177189.536 | DT10: =LoadScenarioInput!DT17 -> 177189.536 | DU10: =LoadScenarioInput!DU17 -> 168546.144 | DV10: =LoadScenarioInput!DV17 -> 168005.932 | DW10: =LoadScenarioInput!DW17 -> 164224.448 | DX10: =LoadScenarioInput!DX17 -> 185832.928 | DY10: =LoadScenarioInput!DY17 -> 164224.448 | DZ10: =LoadScenarioInput!DZ17 -> 177189.536 | EA10: =LoadScenarioInput!EA17 -> 177189.536 | EB10: =LoadScenarioInput!EB17 -> 172867.84 | EC10: =LoadScenarioInput!EC17 -> 184759.776 | ED10: =LoadScenarioInput!ED17 -> 180816.732 | EE10: =LoadScenarioInput!EE17 -> 184759.776 | EF10: =LoadScenarioInput!EF17 -> 193772.448 | EG10: =LoadScenarioInput!EG17 -> 162228.096 | EH10: =LoadScenarioInput!EH17 -> 175183.812 | EI10: =LoadScenarioInput!EI17 -> 171240.768 | EJ10: =LoadScenarioInput!EJ17 -> 193772.448 | EK10: =LoadScenarioInput!EK17 -> 171240.768 | EL10: =LoadScenarioInput!EL17 -> 193772.448 | EM10: =LoadScenarioInput!EM17 -> 175747.104 | EN10: =LoadScenarioInput!EN17 -> 180253.44 | EO10: =LoadScenarioInput!EO17 -> 192690.16 | EP10: =LoadScenarioInput!EP17 -> 188577.87 | EQ10: =LoadScenarioInput!EQ17 -> 192690.16 | ER10: =LoadScenarioInput!ER17 -> 202089.68 | ES10: =LoadScenarioInput!ES17 -> 169191.36 | ET10: =LoadScenarioInput!ET17 -> 182703.17 | EU10: =LoadScenarioInput!EU17 -> 187990.4 | EV10: =LoadScenarioInput!EV17 -> 192690.16 | EW10: =LoadScenarioInput!EW17 -> 178590.88 | EX10: =LoadScenarioInput!EX17 -> 202089.68 | EY10: =LoadScenarioInput!EY17 -> 183290.64 | EZ10: =LoadScenarioInput!EZ17 -> 187990.4
A11: Industrial | D11: IND | E11: =+SUM(E12:E13) -> 96360 | F11: =+SUM(F12:F13) -> 96360 | G11: 96360 | H11: 96624 | I11: 96360 | J11: 96360 | L11: =SUM(L12:L13) -> 4660.406 | M11: =SUM(M12:M13) -> 4350.871 | N11: 4408.261 | O11: 4424.143 | P11: 4154.952 | Q11: 4657.349 | R11: 4477.511 | S11: 4478.292 | T11: 4524.994 | U11: 4421.576 | V11: 4702.721 | W11: 4189.254 | X11: 4660.406 | Y11: 4350.871 | Z11: 4408.261 | AA11: 4424.143 | AB11: 4154.952 | AC11: 4657.349 | AD11: 4477.511 | AE11: 4478.292 | AF11: 4524.994 | AG11: 4421.576 | AH11: 4702.721 | AI11: 4189.254 | AJ11: 4660.406 | AK11: 4350.871 | AL11: 4408.261 | AM11: 4424.143 | AN11: 4154.952 | AO11: 4657.349 | AP11: 4477.511 | AQ11: 4478.292 | AR11: 4524.994 | AS11: 4421.576 | AT11: 4702.721 | AU11: 4189.254 | AV11: 4660.406 | AW11: 4350.871 | AX11: 4408.261 | AY11: 4424.143 | AZ11: 4303.342 | BA11: 4657.349 | BB11: 4477.511 | BC11: 4478.292 | BD11: 4524.994 | BE11: 4421.576 | BF11: 4702.721 | BG11: 4189.254 | BH11: 4660.406 | BI11: 4350.871 | BJ11: 4408.261 | BK11: 4424.143 | BL11: 4154.952 | BM11: 4657.349 | BN11: 4477.511 | BO11: 4478.292 | BP11: 4524.994 | BQ11: 4421.576 | BR11: 4702.721 | BS11: 4189.254 | BT11: 4660.406 | BU11: 4350.871 | BV11: 4408.261 | BW11: 4424.143 | BX11: 4154.952 | BY11: =SUM(BY12:BY13) -> 4657.349 | BZ11: 4477.511 | CA11: 4478.292 | CB11: 4524.994 | CC11: 4421.576 | CD11: 4702.721 | CE11: 4189.254 | CG11: 3523.594 | CH11: =SUM(CH12:CH13) -> 3580.129 | CI11: =SUM(CI12:CI13) -> 3775.739 | CJ11: =SUM(CJ12:CJ13) -> 3759.857 | CK11: =SUM(CK12:CK13) -> 3237.048 | CL11: =SUM(CL12:CL13) -> 3515.651 | CM11: =SUM(CM12:CM13) -> 3442.489 | CN11: =SUM(CN12:CN13) -> 3705.708 | CO11: =SUM(CO12:CO13) -> 3395.006 | CP11: =SUM(CP12:CP13) -> 3762.424 | CQ11: =SUM(CQ12:CQ13) -> 3481.279 | CR11: =SUM(CR12:CR13) -> 3730.746 | CS11: =SUM(CS12:CS13) -> 3523.594 | CT11: =SUM(CT12:CT13) -> 3580.129 | CU11: =SUM(CU12:CU13) -> 3775.739 | CV11: =SUM(CV12:CV13) -> 3759.857 | CW11: =SUM(CW12:CW13) -> 3237.048 | CX11: =SUM(CX12:CX13) -> 3515.651 | CY11: =SUM(CY12:CY13) -> 3442.489 | CZ11: =SUM(CZ12:CZ13) -> 3705.708 | DA11: =SUM(DA12:DA13) -> 3395.006 | DB11: =SUM(DB12:DB13) -> 3762.424 | DC11: =SUM(DC12:DC13) -> 3481.279 | DD11: =SUM(DD12:DD13) -> 3730.746 | DE11: =SUM(DE12:DE13) -> 3523.594 | DF11: =SUM(DF12:DF13) -> 3580.129 | DG11: =SUM(DG12:DG13) -> 3775.739 | DH11: =SUM(DH12:DH13) -> 3759.857 | DI11: =SUM(DI12:DI13) -> 3237.048 | DJ11: =SUM(DJ12:DJ13) -> 3515.651 | DK11: =SUM(DK12:DK13) -> 3442.489 | DL11: =SUM(DL12:DL13) -> 3705.708 | DM11: =SUM(DM12:DM13) -> 3395.006 | DN11: =SUM(DN12:DN13) -> 3762.424 | DO11: =SUM(DO12:DO13) -> 3481.279 | DP11: =SUM(DP12:DP13) -> 3730.746 | DQ11: =SUM(DQ12:DQ13) -> 3523.594 | DR11: =SUM(DR12:DR13) -> 3580.129 | DS11: =SUM(DS12:DS13) -> 3775.739 | DT11: =SUM(DT12:DT13) -> 3759.857 | DU11: =SUM(DU12:DU13) -> 3352.658 | DV11: =SUM(DV12:DV13) -> 3515.651 | DW11: =SUM(DW12:DW13) -> 3442.489 | DX11: =SUM(DX12:DX13) -> 3705.708 | DY11: =SUM(DY12:DY13) -> 3395.006 | DZ11: =SUM(DZ12:DZ13) -> 3762.424 | EA11: =SUM(EA12:EA13) -> 3481.279 | EB11: =SUM(EB12:EB13) -> 3730.746 | EC11: =SUM(EC12:EC13) -> 3523.594 | ED11: =SUM(ED12:ED13) -> 3580.129 | EE11: =SUM(EE12:EE13) -> 3775.739 | EF11: =SUM(EF12:EF13) -> 3759.857 | EG11: =SUM(EG12:EG13) -> 3237.048 | EH11: =SUM(EH12:EH13) -> 3515.651 | EI11: =SUM(EI12:EI13) -> 3442.489 | EJ11: =SUM(EJ12:EJ13) -> 3705.708 | EK11: =SUM(EK12:EK13) -> 3395.006 | EL11: =SUM(EL12:EL13) -> 3762.424 | EM11: =SUM(EM12:EM13) -> 3481.279 | EN11: =SUM(EN12:EN13) -> 3730.746 | EO11: =SUM(EO12:EO13) -> 3523.594 | EP11: =SUM(EP12:EP13) -> 3580.129 | EQ11: =SUM(EQ12:EQ13) -> 3775.739 | ER11: =SUM(ER12:ER13) -> 3759.857 | ES11: =SUM(ES12:ES13) -> 3237.048 | ET11: =SUM(ET12:ET13) -> 3515.651 | EU11: =SUM(EU12:EU13) -> 3442.489 | EV11: =SUM(EV12:EV13) -> 3705.708 | EW11: =SUM(EW12:EW13) -> 3395.006 | EX11: =SUM(EX12:EX13) -> 3762.424 | EY11: =SUM(EY12:EY13) -> 3481.279 | EZ11: =SUM(EZ12:EZ13) -> 3730.746
B12: Smelter | D12: IND_SMT | E12: 0 | F12: 0 | G12: =+SUM(AJ12:AU12,DE12:DP12) -> 0 | H12: 0 | I12: 0 | J12: 0 | L12: =LoadScenarioInput!$L$19 -> 0 | M12: =LoadScenarioInput!$L$19 -> 0 | N12: =LoadScenarioInput!$L$19 -> 0 | O12: =LoadScenarioInput!$L$19 -> 0 | P12: =LoadScenarioInput!$L$19 -> 0 | Q12: =LoadScenarioInput!$L$19 -> 0 | R12: =LoadScenarioInput!$L$19 -> 0 | S12: =LoadScenarioInput!$L$19 -> 0 | T12: =LoadScenarioInput!$L$19 -> 0 | U12: =LoadScenarioInput!$L$19 -> 0 | V12: =LoadScenarioInput!$L$19 -> 0 | W12: =LoadScenarioInput!$L$19 -> 0 | X12: =LoadScenarioInput!$L$19 -> 0 | Y12: =LoadScenarioInput!$L$19 -> 0 | Z12: =LoadScenarioInput!$L$19 -> 0 | AA12: =LoadScenarioInput!$L$19 -> 0 | AB12: =LoadScenarioInput!$L$19 -> 0 | AC12: =LoadScenarioInput!$L$19 -> 0 | AD12: =LoadScenarioInput!$L$19 -> 0 | AE12: =LoadScenarioInput!$L$19 -> 0 | AF12: =LoadScenarioInput!$L$19 -> 0 | AG12: =LoadScenarioInput!$L$19 -> 0 | AH12: =LoadScenarioInput!$L$19 -> 0 | AI12: =LoadScenarioInput!$L$19 -> 0 | AJ12: =LoadScenarioInput!$L$19 -> 0 | AK12: =LoadScenarioInput!$L$19 -> 0 | AL12: =LoadScenarioInput!$L$19 -> 0 | AM12: =LoadScenarioInput!$L$19 -> 0 | AN12: =LoadScenarioInput!$L$19 -> 0 | AO12: =LoadScenarioInput!$L$19 -> 0 | AP12: =LoadScenarioInput!$L$19 -> 0 | AQ12: =LoadScenarioInput!$L$19 -> 0 | AR12: =LoadScenarioInput!$L$19 -> 0 | AS12: =LoadScenarioInput!$L$19 -> 0 | AT12: =LoadScenarioInput!$L$19 -> 0 | AU12: =LoadScenarioInput!$L$19 -> 0 | AV12: =LoadScenarioInput!$L$19 -> 0 | AW12: =LoadScenarioInput!$L$19 -> 0 | AX12: =LoadScenarioInput!$L$19 -> 0 | AY12: =LoadScenarioInput!$L$19 -> 0 | AZ12: =LoadScenarioInput!$L$19 -> 0 | BA12: =LoadScenarioInput!$L$19 -> 0 | BB12: =LoadScenarioInput!$L$19 -> 0 | BC12: =LoadScenarioInput!$L$19 -> 0 | BD12: =LoadScenarioInput!$L$19 -> 0 | BE12: =LoadScenarioInput!$L$19 -> 0 | BF12: =LoadScenarioInput!$L$19 -> 0 | BG12: =LoadScenarioInput!$L$19 -> 0 | BH12: =LoadScenarioInput!$L$19 -> 0 | BI12: =LoadScenarioInput!$L$19 -> 0 | BJ12: =LoadScenarioInput!$L$19 -> 0 | BK12: =LoadScenarioInput!$L$19 -> 0 | BL12: =LoadScenarioInput!$L$19 -> 0 | BM12: =LoadScenarioInput!$L$19 -> 0 | BN12: =LoadScenarioInput!$L$19 -> 0 | BO12: =LoadScenarioInput!$L$19 -> 0 | BP12: =LoadScenarioInput!$L$19 -> 0 | BQ12: =LoadScenarioInput!$L$19 -> 0 | BR12: =LoadScenarioInput!$L$19 -> 0 | BS12: =LoadScenarioInput!$L$19 -> 0 | BT12: =LoadScenarioInput!$L$19 -> 0 | BU12: =LoadScenarioInput!$L$19 -> 0 | BV12: =LoadScenarioInput!$L$19 -> 0 | BW12: =LoadScenarioInput!$L$19 -> 0 | BX12: =LoadScenarioInput!$L$19 -> 0 | BY12: =LoadScenarioInput!$L$19 -> 0 | BZ12: =LoadScenarioInput!$L$19 -> 0 | CA12: =LoadScenarioInput!$L$19 -> 0 | CB12: =LoadScenarioInput!$L$19 -> 0 | CC12: =LoadScenarioInput!$L$19 -> 0 | CD12: =LoadScenarioInput!$L$19 -> 0 | CE12: =LoadScenarioInput!$L$19 -> 0 | CG12: =LoadScenarioInput!$L$19 -> 0 | CH12: =LoadScenarioInput!$L$19 -> 0 | CI12: =LoadScenarioInput!$L$19 -> 0 | CJ12: =LoadScenarioInput!$L$19 -> 0 | CK12: =LoadScenarioInput!$L$19 -> 0 | CL12: =LoadScenarioInput!$L$19 -> 0 | CM12: =LoadScenarioInput!$L$19 -> 0 | CN12: =LoadScenarioInput!$L$19 -> 0 | CO12: =LoadScenarioInput!$L$19 -> 0 | CP12: =LoadScenarioInput!$L$19 -> 0 | CQ12: =LoadScenarioInput!$L$19 -> 0 | CR12: =LoadScenarioInput!$L$19 -> 0 | CS12: =LoadScenarioInput!$L$19 -> 0 | CT12: =LoadScenarioInput!$L$19 -> 0 | CU12: =LoadScenarioInput!$L$19 -> 0 | CV12: =LoadScenarioInput!$L$19 -> 0 | CW12: =LoadScenarioInput!$L$19 -> 0 | CX12: =LoadScenarioInput!$L$19 -> 0 | CY12: =LoadScenarioInput!$L$19 -> 0 | CZ12: =LoadScenarioInput!$L$19 -> 0 | DA12: =LoadScenarioInput!$L$19 -> 0 | DB12: =LoadScenarioInput!$L$19 -> 0 | DC12: =LoadScenarioInput!$L$19 -> 0 | DD12: =LoadScenarioInput!$L$19 -> 0 | DE12: =LoadScenarioInput!$L$19 -> 0 | DF12: =LoadScenarioInput!$L$19 -> 0 | DG12: =LoadScenarioInput!$L$19 -> 0 | DH12: =LoadScenarioInput!$L$19 -> 0 | DI12: =LoadScenarioInput!$L$19 -> 0 | DJ12: =LoadScenarioInput!$L$19 -> 0 | DK12: =LoadScenarioInput!$L$19 -> 0 | DL12: =LoadScenarioInput!$L$19 -> 0 | DM12: =LoadScenarioInput!$L$19 -> 0 | DN12: =LoadScenarioInput!$L$19 -> 0 | DO12: =LoadScenarioInput!$L$19 -> 0 | DP12: =LoadScenarioInput!$L$19 -> 0 | DQ12: =LoadScenarioInput!$L$19 -> 0 | DR12: =LoadScenarioInput!$L$19 -> 0 | DS12: =LoadScenarioInput!$L$19 -> 0 | DT12: =LoadScenarioInput!$L$19 -> 0 | DU12: =LoadScenarioInput!$L$19 -> 0 | DV12: =LoadScenarioInput!$L$19 -> 0 | DW12: =LoadScenarioInput!$L$19 -> 0 | DX12: =LoadScenarioInput!$L$19 -> 0 | DY12: =LoadScenarioInput!$L$19 -> 0 | DZ12: =LoadScenarioInput!$L$19 -> 0 | EA12: =LoadScenarioInput!$L$19 -> 0 | EB12: =LoadScenarioInput!$L$19 -> 0 | EC12: =LoadScenarioInput!$L$19 -> 0 | ED12: =LoadScenarioInput!$L$19 -> 0 | EE12: =LoadScenarioInput!$L$19 -> 0 | EF12: =LoadScenarioInput!$L$19 -> 0 | EG12: =LoadScenarioInput!$L$19 -> 0 | EH12: =LoadScenarioInput!$L$19 -> 0 | EI12: =LoadScenarioInput!$L$19 -> 0 | EJ12: =LoadScenarioInput!$L$19 -> 0 | EK12: =LoadScenarioInput!$L$19 -> 0 | EL12: =LoadScenarioInput!$L$19 -> 0 | EM12: =LoadScenarioInput!$L$19 -> 0 | EN12: =LoadScenarioInput!$L$19 -> 0 | EO12: =LoadScenarioInput!$L$19 -> 0 | EP12: =LoadScenarioInput!$L$19 -> 0 | EQ12: =LoadScenarioInput!$L$19 -> 0 | ER12: =LoadScenarioInput!$L$19 -> 0 | ES12: =LoadScenarioInput!$L$19 -> 0 | ET12: =LoadScenarioInput!$L$19 -> 0 | EU12: =LoadScenarioInput!$L$19 -> 0 | EV12: =LoadScenarioInput!$L$19 -> 0 | EW12: =LoadScenarioInput!$L$19 -> 0 | EX12: =LoadScenarioInput!$L$19 -> 0 | EY12: =LoadScenarioInput!$L$19 -> 0 | EZ12: =LoadScenarioInput!$L$19 -> 0
B13: Other Industrial | D13: IND_OTH | E13: 96360 | F13: 96360 | G13: 96360 | H13: 96624 | I13: 96360 | J13: 96360 | L13: =LoadScenarioInput!L20 -> 4660.406 | M13: =LoadScenarioInput!M20 -> 4350.871 | N13: =LoadScenarioInput!N20 -> 4408.261 | O13: =LoadScenarioInput!O20 -> 4424.143 | P13: =LoadScenarioInput!P20 -> 4154.952 | Q13: =LoadScenarioInput!Q20 -> 4657.349 | R13: =LoadScenarioInput!R20 -> 4477.511 | S13: =LoadScenarioInput!S20 -> 4478.292 | T13: =LoadScenarioInput!T20 -> 4524.994 | U13: =LoadScenarioInput!U20 -> 4421.576 | V13: =LoadScenarioInput!V20 -> 4702.721 | W13: =LoadScenarioInput!W20 -> 4189.254 | X13: =LoadScenarioInput!X20 -> 4660.406 | Y13: =LoadScenarioInput!Y20 -> 4350.871 | Z13: =LoadScenarioInput!Z20 -> 4408.261 | AA13: =LoadScenarioInput!AA20 -> 4424.143 | AB13: =LoadScenarioInput!AB20 -> 4154.952 | AC13: =LoadScenarioInput!AC20 -> 4657.349 | AD13: =LoadScenarioInput!AD20 -> 4477.511 | AE13: =LoadScenarioInput!AE20 -> 4478.292 | AF13: =LoadScenarioInput!AF20 -> 4524.994 | AG13: =LoadScenarioInput!AG20 -> 4421.576 | AH13: =LoadScenarioInput!AH20 -> 4702.721 | AI13: =LoadScenarioInput!AI20 -> 4189.254 | AJ13: =LoadScenarioInput!AJ20 -> 4660.406 | AK13: =LoadScenarioInput!AK20 -> 4350.871 | AL13: =LoadScenarioInput!AL20 -> 4408.261 | AM13: =LoadScenarioInput!AM20 -> 4424.143 | AN13: =LoadScenarioInput!AN20 -> 4154.952 | AO13: =LoadScenarioInput!AO20 -> 4657.349 | AP13: =LoadScenarioInput!AP20 -> 4477.511 | AQ13: =LoadScenarioInput!AQ20 -> 4478.292 | AR13: =LoadScenarioInput!AR20 -> 4524.994 | AS13: =LoadScenarioInput!AS20 -> 4421.576 | AT13: =LoadScenarioInput!AT20 -> 4702.721 | AU13: =LoadScenarioInput!AU20 -> 4189.254 | AV13: =LoadScenarioInput!AV20 -> 4660.406 | AW13: =LoadScenarioInput!AW20 -> 4350.871 | AX13: =LoadScenarioInput!AX20 -> 4408.261 | AY13: =LoadScenarioInput!AY20 -> 4424.143 | AZ13: =LoadScenarioInput!AZ20 -> 4303.342 | BA13: =LoadScenarioInput!BA20 -> 4657.349 | BB13: =LoadScenarioInput!BB20 -> 4477.511 | BC13: =LoadScenarioInput!BC20 -> 4478.292 | BD13: =LoadScenarioInput!BD20 -> 4524.994 | BE13: =LoadScenarioInput!BE20 -> 4421.576 | BF13: =LoadScenarioInput!BF20 -> 4702.721 | BG13: =LoadScenarioInput!BG20 -> 4189.254 | BH13: =LoadScenarioInput!BH20 -> 4660.406 | BI13: =LoadScenarioInput!BI20 -> 4350.871 | BJ13: =LoadScenarioInput!BJ20 -> 4408.261 | BK13: =LoadScenarioInput!BK20 -> 4424.143 | BL13: =LoadScenarioInput!BL20 -> 4154.952 | BM13: =LoadScenarioInput!BM20 -> 4657.349 | BN13: =LoadScenarioInput!BN20 -> 4477.511 | BO13: =LoadScenarioInput!BO20 -> 4478.292 | BP13: =LoadScenarioInput!BP20 -> 4524.994 | BQ13: =LoadScenarioInput!BQ20 -> 4421.576 | BR13: =LoadScenarioInput!BR20 -> 4702.721 | BS13: =LoadScenarioInput!BS20 -> 4189.254 | BT13: =LoadScenarioInput!BT20 -> 4660.406 | BU13: =LoadScenarioInput!BU20 -> 4350.871 | BV13: =LoadScenarioInput!BV20 -> 4408.261 | BW13: =LoadScenarioInput!BW20 -> 4424.143 | BX13: =LoadScenarioInput!BX20 -> 4154.952 | BY13: =LoadScenarioInput!BY20 -> 4657.349 | BZ13: =LoadScenarioInput!BZ20 -> 4477.511 | CA13: =LoadScenarioInput!CA20 -> 4478.292 | CB13: =LoadScenarioInput!CB20 -> 4524.994 | CC13: =LoadScenarioInput!CC20 -> 4421.576 | CD13: =LoadScenarioInput!CD20 -> 4702.721 | CE13: =LoadScenarioInput!CE20 -> 4189.254 | CG13: =LoadScenarioInput!CG20 -> 3523.594 | CH13: =LoadScenarioInput!CH20 -> 3580.129 | CI13: =LoadScenarioInput!CI20 -> 3775.739 | CJ13: =LoadScenarioInput!CJ20 -> 3759.857 | CK13: =LoadScenarioInput!CK20 -> 3237.048 | CL13: =LoadScenarioInput!CL20 -> 3515.651 | CM13: =LoadScenarioInput!CM20 -> 3442.489 | CN13: =LoadScenarioInput!CN20 -> 3705.708 | CO13: =LoadScenarioInput!CO20 -> 3395.006 | CP13: =LoadScenarioInput!CP20 -> 3762.424 | CQ13: =LoadScenarioInput!CQ20 -> 3481.279 | CR13: =LoadScenarioInput!CR20 -> 3730.746 | CS13: =LoadScenarioInput!CS20 -> 3523.594 | CT13: =LoadScenarioInput!CT20 -> 3580.129 | CU13: =LoadScenarioInput!CU20 -> 3775.739 | CV13: =LoadScenarioInput!CV20 -> 3759.857 | CW13: =LoadScenarioInput!CW20 -> 3237.048 | CX13: =LoadScenarioInput!CX20 -> 3515.651 | CY13: =LoadScenarioInput!CY20 -> 3442.489 | CZ13: =LoadScenarioInput!CZ20 -> 3705.708 | DA13: =LoadScenarioInput!DA20 -> 3395.006 | DB13: =LoadScenarioInput!DB20 -> 3762.424 | DC13: =LoadScenarioInput!DC20 -> 3481.279 | DD13: =LoadScenarioInput!DD20 -> 3730.746 | DE13: =LoadScenarioInput!DE20 -> 3523.594 | DF13: =LoadScenarioInput!DF20 -> 3580.129 | DG13: =LoadScenarioInput!DG20 -> 3775.739 | DH13: =LoadScenarioInput!DH20 -> 3759.857 | DI13: =LoadScenarioInput!DI20 -> 3237.048 | DJ13: =LoadScenarioInput!DJ20 -> 3515.651 | DK13: =LoadScenarioInput!DK20 -> 3442.489 | DL13: =LoadScenarioInput!DL20 -> 3705.708 | DM13: =LoadScenarioInput!DM20 -> 3395.006 | DN13: =LoadScenarioInput!DN20 -> 3762.424 | DO13: =LoadScenarioInput!DO20 -> 3481.279 | DP13: =LoadScenarioInput!DP20 -> 3730.746 | DQ13: =LoadScenarioInput!DQ20 -> 3523.594 | DR13: =LoadScenarioInput!DR20 -> 3580.129 | DS13: =LoadScenarioInput!DS20 -> 3775.739 | DT13: =LoadScenarioInput!DT20 -> 3759.857 | DU13: =LoadScenarioInput!DU20 -> 3352.658 | DV13: =LoadScenarioInput!DV20 -> 3515.651 | DW13: =LoadScenarioInput!DW20 -> 3442.489 | DX13: =LoadScenarioInput!DX20 -> 3705.708 | DY13: =LoadScenarioInput!DY20 -> 3395.006 | DZ13: =LoadScenarioInput!DZ20 -> 3762.424 | EA13: =LoadScenarioInput!EA20 -> 3481.279 | EB13: =LoadScenarioInput!EB20 -> 3730.746 | EC13: =LoadScenarioInput!EC20 -> 3523.594 | ED13: =LoadScenarioInput!ED20 -> 3580.129 | EE13: =LoadScenarioInput!EE20 -> 3775.739 | EF13: =LoadScenarioInput!EF20 -> 3759.857 | EG13: =LoadScenarioInput!EG20 -> 3237.048 | EH13: =LoadScenarioInput!EH20 -> 3515.651 | EI13: =LoadScenarioInput!EI20 -> 3442.489 | EJ13: =LoadScenarioInput!EJ20 -> 3705.708 | EK13: =LoadScenarioInput!EK20 -> 3395.006 | EL13: =LoadScenarioInput!EL20 -> 3762.424 | EM13: =LoadScenarioInput!EM20 -> 3481.279 | EN13: =LoadScenarioInput!EN20 -> 3730.746 | EO13: =LoadScenarioInput!EO20 -> 3523.594 | EP13: =LoadScenarioInput!EP20 -> 3580.129 | EQ13: =LoadScenarioInput!EQ20 -> 3775.739 | ER13: =LoadScenarioInput!ER20 -> 3759.857 | ES13: =LoadScenarioInput!ES20 -> 3237.048 | ET13: =LoadScenarioInput!ET20 -> 3515.651 | EU13: =LoadScenarioInput!EU20 -> 3442.489 | EV13: =LoadScenarioInput!EV20 -> 3705.708 | EW13: =LoadScenarioInput!EW20 -> 3395.006 | EX13: =LoadScenarioInput!EX20 -> 3762.424 | EY13: =LoadScenarioInput!EY20 -> 3481.279 | EZ13: =LoadScenarioInput!EZ20 -> 3730.746
A14: New Resource | D14: NR | E14: 9.856 | F14: 9.856 | G14: 9.856 | H14: 9.856 | I14: 9.856 | J14: 9.856 | L14: =LoadScenarioInput!L21 -> 0.432 | M14: =LoadScenarioInput!M21 -> 0.4 | N14: =LoadScenarioInput!N21 -> 0.4 | O14: =LoadScenarioInput!O21 -> 0.416 | P14: =LoadScenarioInput!P21 -> 0.4 | Q14: =LoadScenarioInput!Q21 -> 0.416 | R14: =LoadScenarioInput!R21 -> 0.416 | S14: =LoadScenarioInput!S21 -> 0.4 | T14: =LoadScenarioInput!T21 -> 0.416 | U14: =LoadScenarioInput!U21 -> 0.416 | V14: =LoadScenarioInput!V21 -> 0.416 | W14: =LoadScenarioInput!W21 -> 0.4 | X14: =LoadScenarioInput!X21 -> 0.432 | Y14: =LoadScenarioInput!Y21 -> 0.4 | Z14: =LoadScenarioInput!Z21 -> 0.4 | AA14: =LoadScenarioInput!AA21 -> 0.416 | AB14: =LoadScenarioInput!AB21 -> 0.4 | AC14: =LoadScenarioInput!AC21 -> 0.416 | AD14: =LoadScenarioInput!AD21 -> 0.416 | AE14: =LoadScenarioInput!AE21 -> 0.4 | AF14: =LoadScenarioInput!AF21 -> 0.416 | AG14: =LoadScenarioInput!AG21 -> 0.416 | AH14: =LoadScenarioInput!AH21 -> 0.416 | AI14: =LoadScenarioInput!AI21 -> 0.4 | AJ14: =LoadScenarioInput!AJ21 -> 0.432 | AK14: =LoadScenarioInput!AK21 -> 0.4 | AL14: =LoadScenarioInput!AL21 -> 0.4 | AM14: =LoadScenarioInput!AM21 -> 0.416 | AN14: =LoadScenarioInput!AN21 -> 0.4 | AO14: =LoadScenarioInput!AO21 -> 0.416 | AP14: =LoadScenarioInput!AP21 -> 0.416 | AQ14: =LoadScenarioInput!AQ21 -> 0.4 | AR14: =LoadScenarioInput!AR21 -> 0.416 | AS14: =LoadScenarioInput!AS21 -> 0.416 | AT14: =LoadScenarioInput!AT21 -> 0.416 | AU14: =LoadScenarioInput!AU21 -> 0.4 | AV14: =LoadScenarioInput!AV21 -> 0.432 | AW14: =LoadScenarioInput!AW21 -> 0.4 | AX14: =LoadScenarioInput!AX21 -> 0.4 | AY14: =LoadScenarioInput!AY21 -> 0.416 | AZ14: =LoadScenarioInput!AZ21 -> 0.4 | BA14: =LoadScenarioInput!BA21 -> 0.416 | BB14: =LoadScenarioInput!BB21 -> 0.416 | BC14: =LoadScenarioInput!BC21 -> 0.4 | BD14: =LoadScenarioInput!BD21 -> 0.416 | BE14: =LoadScenarioInput!BE21 -> 0.416 | BF14: =LoadScenarioInput!BF21 -> 0.416 | BG14: =LoadScenarioInput!BG21 -> 0.4 | BH14: =LoadScenarioInput!BH21 -> 0.432 | BI14: =LoadScenarioInput!BI21 -> 0.4 | BJ14: =LoadScenarioInput!BJ21 -> 0.4 | BK14: =LoadScenarioInput!BK21 -> 0.416 | BL14: =LoadScenarioInput!BL21 -> 0.4 | BM14: =LoadScenarioInput!BM21 -> 0.416 | BN14: =LoadScenarioInput!BN21 -> 0.416 | BO14: =LoadScenarioInput!BO21 -> 0.4 | BP14: =LoadScenarioInput!BP21 -> 0.416 | BQ14: =LoadScenarioInput!BQ21 -> 0.416 | BR14: =LoadScenarioInput!BR21 -> 0.416 | BS14: =LoadScenarioInput!BS21 -> 0.4 | BT14: =LoadScenarioInput!BT21 -> 0.432 | BU14: =LoadScenarioInput!BU21 -> 0.4 | BV14: =LoadScenarioInput!BV21 -> 0.4 | BW14: =LoadScenarioInput!BW21 -> 0.416 | BX14: =LoadScenarioInput!BX21 -> 0.4 | BY14: =LoadScenarioInput!BY21 -> 0.416 | BZ14: =LoadScenarioInput!BZ21 -> 0.416 | CA14: =LoadScenarioInput!CA21 -> 0.4 | CB14: =LoadScenarioInput!CB21 -> 0.416 | CC14: =LoadScenarioInput!CC21 -> 0.416 | CD14: =LoadScenarioInput!CD21 -> 0.416 | CE14: =LoadScenarioInput!CE21 -> 0.4 | CG14: =LoadScenarioInput!CG21 -> 0.432 | CH14: =LoadScenarioInput!CH21 -> 0.4 | CI14: =LoadScenarioInput!CI21 -> 0.4 | CJ14: =LoadScenarioInput!CJ21 -> 0.416 | CK14: =LoadScenarioInput!CK21 -> 0.4 | CL14: =LoadScenarioInput!CL21 -> 0.416 | CM14: =LoadScenarioInput!CM21 -> 0.416 | CN14: =LoadScenarioInput!CN21 -> 0.4 | CO14: =LoadScenarioInput!CO21 -> 0.416 | CP14: =LoadScenarioInput!CP21 -> 0.416 | CQ14: =LoadScenarioInput!CQ21 -> 0.416 | CR14: =LoadScenarioInput!CR21 -> 0.4 | CS14: =LoadScenarioInput!CS21 -> 0.432 | CT14: =LoadScenarioInput!CT21 -> 0.4 | CU14: =LoadScenarioInput!CU21 -> 0.4 | CV14: =LoadScenarioInput!CV21 -> 0.416 | CW14: =LoadScenarioInput!CW21 -> 0.4 | CX14: =LoadScenarioInput!CX21 -> 0.416 | CY14: =LoadScenarioInput!CY21 -> 0.416 | CZ14: =LoadScenarioInput!CZ21 -> 0.4 | DA14: =LoadScenarioInput!DA21 -> 0.416 | DB14: =LoadScenarioInput!DB21 -> 0.416 | DC14: =LoadScenarioInput!DC21 -> 0.416 | DD14: =LoadScenarioInput!DD21 -> 0.4 | DE14: =LoadScenarioInput!DE21 -> 0.432 | DF14: =LoadScenarioInput!DF21 -> 0.4 | DG14: =LoadScenarioInput!DG21 -> 0.4 | DH14: =LoadScenarioInput!DH21 -> 0.416 | DI14: =LoadScenarioInput!DI21 -> 0.4 | DJ14: =LoadScenarioInput!DJ21 -> 0.416 | DK14: =LoadScenarioInput!DK21 -> 0.416 | DL14: =LoadScenarioInput!DL21 -> 0.4 | DM14: =LoadScenarioInput!DM21 -> 0.416 | DN14: =LoadScenarioInput!DN21 -> 0.416 | DO14: =LoadScenarioInput!DO21 -> 0.416 | DP14: =LoadScenarioInput!DP21 -> 0.4 | DQ14: =LoadScenarioInput!DQ21 -> 0.432 | DR14: =LoadScenarioInput!DR21 -> 0.4 | DS14: =LoadScenarioInput!DS21 -> 0.4 | DT14: =LoadScenarioInput!DT21 -> 0.416 | DU14: =LoadScenarioInput!DU21 -> 0.4 | DV14: =LoadScenarioInput!DV21 -> 0.416 | DW14: =LoadScenarioInput!DW21 -> 0.416 | DX14: =LoadScenarioInput!DX21 -> 0.4 | DY14: =LoadScenarioInput!DY21 -> 0.416 | DZ14: =LoadScenarioInput!DZ21 -> 0.416 | EA14: =LoadScenarioInput!EA21 -> 0.416 | EB14: =LoadScenarioInput!EB21 -> 0.4 | EC14: =LoadScenarioInput!EC21 -> 0.432 | ED14: =LoadScenarioInput!ED21 -> 0.4 | EE14: =LoadScenarioInput!EE21 -> 0.4 | EF14: =LoadScenarioInput!EF21 -> 0.416 | EG14: =LoadScenarioInput!EG21 -> 0.4 | EH14: =LoadScenarioInput!EH21 -> 0.416 | EI14: =LoadScenarioInput!EI21 -> 0.416 | EJ14: =LoadScenarioInput!EJ21 -> 0.4 | EK14: =LoadScenarioInput!EK21 -> 0.416 | EL14: =LoadScenarioInput!EL21 -> 0.416 | EM14: =LoadScenarioInput!EM21 -> 0.416 | EN14: =LoadScenarioInput!EN21 -> 0.4 | EO14: =LoadScenarioInput!EO21 -> 0.432 | EP14: =LoadScenarioInput!EP21 -> 0.4 | EQ14: =LoadScenarioInput!EQ21 -> 0.4 | ER14: =LoadScenarioInput!ER21 -> 0.416 | ES14: =LoadScenarioInput!ES21 -> 0.4 | ET14: =LoadScenarioInput!ET21 -> 0.416 | EU14: =LoadScenarioInput!EU21 -> 0.416 | EV14: =LoadScenarioInput!EV21 -> 0.4 | EW14: =LoadScenarioInput!EW21 -> 0.416 | EX14: =LoadScenarioInput!EX21 -> 0.416 | EY14: =LoadScenarioInput!EY21 -> 0.416 | EZ14: =LoadScenarioInput!EZ21 -> 0.4
A15: Firm Power and Services | D15: FPS | E15: =+SUM(E16,E27,E38) -> 5870307.618 | F15: =+SUM(F16,F27,F38) -> 5870307.745 | G15: 5859080.018 | H15: 5870478.805 | I15: 5857917.407 | J15: 5839727.5 | L15: =LoadScenarioInput!L22 -> 378911.7009 | M15: =LoadScenarioInput!M22 -> 337789.9231 | N15: =LoadScenarioInput!N22 -> 349851.583 | O15: =LoadScenarioInput!O22 -> 348922.9646 | P15: =LoadScenarioInput!P22 -> 316829.9503 | Q15: =LoadScenarioInput!Q22 -> 359732.8028 | R15: =LoadScenarioInput!R22 -> 415562.0612 | S15: =LoadScenarioInput!S22 -> 469150.0597 | T15: =LoadScenarioInput!T22 -> 465309.7216 | U15: =LoadScenarioInput!U22 -> 491959.0047 | V15: =LoadScenarioInput!V22 -> 511911.7876 | W15: =LoadScenarioInput!W22 -> 415539.9729 | X15: =LoadScenarioInput!X22 -> 379168.258 | Y15: =LoadScenarioInput!Y22 -> 337789.9231 | Z15: =LoadScenarioInput!Z22 -> 349851.583 | AA15: =LoadScenarioInput!AA22 -> 348922.9646 | AB15: =LoadScenarioInput!AB22 -> 316829.9503 | AC15: =LoadScenarioInput!AC22 -> 359557.6172 | AD15: =LoadScenarioInput!AD22 -> 415799.3646 | AE15: =LoadScenarioInput!AE22 -> 469150.0597 | AF15: =LoadScenarioInput!AF22 -> 464862.8448 | AG15: =LoadScenarioInput!AG22 -> 492717.3773 | AH15: =LoadScenarioInput!AH22 -> 511911.7876 | AI15: =LoadScenarioInput!AI22 -> 415539.9729 | AJ15: =LoadScenarioInput!AJ22 -> 379168.258 | AK15: =LoadScenarioInput!AK22 -> 334989.9231 | AL15: =LoadScenarioInput!AL22 -> 347051.583 | AM15: =LoadScenarioInput!AM22 -> 346010.9646 | AN15: =LoadScenarioInput!AN22 -> 314141.9503 | AO15: =LoadScenarioInput!AO22 -> 359557.6172 | AP15: =LoadScenarioInput!AP22 -> 415799.3646 | AQ15: =LoadScenarioInput!AQ22 -> 469150.0597 | AR15: =LoadScenarioInput!AR22 -> 464862.8448 | AS15: =LoadScenarioInput!AS22 -> 492717.3773 | AT15: =LoadScenarioInput!AT22 -> 507954.6287 | AU15: =LoadScenarioInput!AU22 -> 415908.8726 | AV15: =LoadScenarioInput!AV22 -> 379168.258 | AW15: =LoadScenarioInput!AW22 -> 334815.4248 | AX15: =LoadScenarioInput!AX22 -> 347222.4799 | AY15: =LoadScenarioInput!AY22 -> 346010.9646 | AZ15: =LoadScenarioInput!AZ22 -> 325218.3799 | BA15: =LoadScenarioInput!BA22 -> 359732.8028 | BB15: =LoadScenarioInput!BB22 -> 415799.3646 | BC15: =LoadScenarioInput!BC22 -> 468760.9219 | BD15: =LoadScenarioInput!BD22 -> 465309.7216 | BE15: =LoadScenarioInput!BE22 -> 492659.8691 | BF15: =LoadScenarioInput!BF22 -> 509673.8739 | BG15: =LoadScenarioInput!BG22 -> 415888.98 | BH15: =LoadScenarioInput!BH22 -> 378898.5757 | BI15: =LoadScenarioInput!BI22 -> 334983.8588 | BJ15: =LoadScenarioInput!BJ22 -> 347175.3734 | BK15: =LoadScenarioInput!BK22 -> 345819.1524 | BL15: =LoadScenarioInput!BL22 -> 314115.8672 | BM15: =LoadScenarioInput!BM22 -> 359662.2271 | BN15: =LoadScenarioInput!BN22 -> 415701.1061 | BO15: =LoadScenarioInput!BO22 -> 468629.9818 | BP15: =LoadScenarioInput!BP22 -> 465173.0547 | BQ15: =LoadScenarioInput!BQ22 -> 491901.4965 | BR15: =LoadScenarioInput!BR22 -> 511886.9881 | BS15: =LoadScenarioInput!BS22 -> 415888.98 | BT15: =LoadScenarioInput!BT22 -> 378898.5757 | BU15: =LoadScenarioInput!BU22 -> 334983.8588 | BV15: =LoadScenarioInput!BV22 -> 347175.3734 | BW15: =LoadScenarioInput!BW22 -> 345819.1524 | BX15: =LoadScenarioInput!BX22 -> 314115.8672 | BY15: =LoadScenarioInput!BY22 -> 359662.2271 | BZ15: =LoadScenarioInput!BZ22 -> 415463.0652 | CA15: =LoadScenarioInput!CA22 -> 469019.1196 | CB15: =LoadScenarioInput!CB22 -> 465173.0547 | CC15: =LoadScenarioInput!CC22 -> 491901.4965 | CD15: =LoadScenarioInput!CD22 -> 511886.9881 | CE15: =LoadScenarioInput!CE22 -> 415888.98 | CG15: =LoadScenarioInput!CG22 -> 58891.74188 | CH15: =LoadScenarioInput!CH22 -> 7156.10391 | CI15: =LoadScenarioInput!CI22 -> 6935.79986 | CJ15: =LoadScenarioInput!CJ22 -> 6137.377366 | CK15: =LoadScenarioInput!CK22 -> 10244.4954 | CL15: =LoadScenarioInput!CL22 -> 30948.38242 | CM15: =LoadScenarioInput!CM22 -> 87808.41948 | CN15: =LoadScenarioInput!CN22 -> 134991.5381 | CO15: =LoadScenarioInput!CO22 -> 155078.2634 | CP15: =LoadScenarioInput!CP22 -> 184202.5234 | CQ15: =LoadScenarioInput!CQ22 -> 201167.3971 | CR15: =LoadScenarioInput!CR22 -> 125274.0434 | CS15: =LoadScenarioInput!CS22 -> 58634.97569 | CT15: =LoadScenarioInput!CT22 -> 7156.10391 | CU15: =LoadScenarioInput!CU22 -> 6935.79986 | CV15: =LoadScenarioInput!CV22 -> 6137.377366 | CW15: =LoadScenarioInput!CW22 -> 10244.4954 | CX15: =LoadScenarioInput!CX22 -> 31123.53608 | CY15: =LoadScenarioInput!CY22 -> 87570.9231 | CZ15: =LoadScenarioInput!CZ22 -> 134991.5381 | DA15: =LoadScenarioInput!DA22 -> 155525.3332 | DB15: =LoadScenarioInput!DB22 -> 183444.5188 | DC15: =LoadScenarioInput!DC22 -> 201167.3971 | DD15: =LoadScenarioInput!DD22 -> 125274.0434 | DE15: =LoadScenarioInput!DE22 -> 58634.97569 | DF15: =LoadScenarioInput!DF22 -> 7149.04191 | DG15: =LoadScenarioInput!DG22 -> 6928.919861 | DH15: =LoadScenarioInput!DH22 -> 6130.489366 | DI15: =LoadScenarioInput!DI22 -> 10237.5834 | DJ15: =LoadScenarioInput!DJ22 -> 31123.53608 | DK15: =LoadScenarioInput!DK22 -> 87570.9231 | DL15: =LoadScenarioInput!DL22 -> 134991.5381 | DM15: =LoadScenarioInput!DM22 -> 155525.3332 | DN15: =LoadScenarioInput!DN22 -> 183444.5188 | DO15: =LoadScenarioInput!DO22 -> 205124.7629 | DP15: =LoadScenarioInput!DP22 -> 124904.9517 | DQ15: =LoadScenarioInput!DQ22 -> 58634.97569 | DR15: =LoadScenarioInput!DR22 -> 7323.618132 | DS15: =LoadScenarioInput!DS22 -> 6758.39096 | DT15: =LoadScenarioInput!DT22 -> 6130.489366 | DU15: =LoadScenarioInput!DU22 -> 10745.83393 | DV15: =LoadScenarioInput!DV22 -> 30948.38242 | DW15: =LoadScenarioInput!DW22 -> 87570.9231 | DX15: =LoadScenarioInput!DX22 -> 135380.3059 | DY15: =LoadScenarioInput!DY22 -> 155078.2634 | DZ15: =LoadScenarioInput!DZ22 -> 183394.519 | EA15: =LoadScenarioInput!EA22 -> 203361.4178 | EB15: =LoadScenarioInput!EB22 -> 124890.6443 | EC15: =LoadScenarioInput!EC22 -> 58881.8031 | ED15: =LoadScenarioInput!ED22 -> 7143.93068 | EE15: =LoadScenarioInput!EE22 -> 6719.565405 | EF15: =LoadScenarioInput!EF22 -> 6284.732572 | EG15: =LoadScenarioInput!EG22 -> 10217.63447 | EH15: =LoadScenarioInput!EH22 -> 30895.24865 | EI15: =LoadScenarioInput!EI22 -> 87495.66151 | EJ15: =LoadScenarioInput!EJ22 -> 135274.654 | EK15: =LoadScenarioInput!EK22 -> 154976.2503 | EL15: =LoadScenarioInput!EL22 -> 184152.5236 | EM15: =LoadScenarioInput!EM22 -> 201148.0965 | EN15: =LoadScenarioInput!EN22 -> 124890.6443 | EO15: =LoadScenarioInput!EO22 -> 58868.3131 | EP15: =LoadScenarioInput!EP22 -> 7141.55868 | EQ15: =LoadScenarioInput!EQ22 -> 6720.412406 | ER15: =LoadScenarioInput!ER22 -> 6286.305572 | ES15: =LoadScenarioInput!ES22 -> 10218.25447 | ET15: =LoadScenarioInput!ET22 -> 30894.05165 | EU15: =LoadScenarioInput!EU22 -> 87733.97444 | EV15: =LoadScenarioInput!EV22 -> 134872.7242 | EW15: =LoadScenarioInput!EW22 -> 154957.6183 | EX15: =LoadScenarioInput!EX22 -> 184955.4126 | EY15: =LoadScenarioInput!EY22 -> 182190.1185 | EZ15: =LoadScenarioInput!EZ22 -> 124900.9973
B16: Intraregional Transfer | D16: FPS_IRT | E16: =+SUM(E17:E26) -> 98426.04389 | F16: =+SUM(F17:F26) -> 98426.04384 | G16: 98426.04384 | H16: 98489.45701 | I16: 97264.33089 | J16: 97264.33089 | L16: =LoadScenarioInput!L23 -> 4740.994876 | M16: =LoadScenarioInput!M23 -> 4298.672055 | N16: =LoadScenarioInput!N23 -> 4360.04499 | O16: =LoadScenarioInput!O23 -> 4501.264582 | P16: =LoadScenarioInput!P23 -> 4054.858291 | Q16: =LoadScenarioInput!Q23 -> 4636.124813 | R16: =LoadScenarioInput!R23 -> 4348.768171 | S16: =LoadScenarioInput!S23 -> 5301.976663 | T16: =LoadScenarioInput!T23 -> 5308.096586 | U16: =LoadScenarioInput!U23 -> 4835.715728 | V16: =LoadScenarioInput!V23 -> 5081.524575 | W16: =LoadScenarioInput!W23 -> 4190.470908 | X16: =LoadScenarioInput!X23 -> 4918.364029 | Y16: =LoadScenarioInput!Y23 -> 4298.672055 | Z16: =LoadScenarioInput!Z23 -> 4360.04499 | AA16: =LoadScenarioInput!AA23 -> 4501.264582 | AB16: =LoadScenarioInput!AB23 -> 4054.858291 | AC16: =LoadScenarioInput!AC23 -> 4475.460159 | AD16: =LoadScenarioInput!AD23 -> 4510.176553 | AE16: =LoadScenarioInput!AE23 -> 5301.976663 | AF16: =LoadScenarioInput!AF23 -> 5116.947786 | AG16: =LoadScenarioInput!AG23 -> 5019.728285 | AH16: =LoadScenarioInput!AH23 -> 5081.524575 | AI16: =LoadScenarioInput!AI23 -> 4190.470908 | AJ16: =LoadScenarioInput!AJ23 -> 4918.364029 | AK16: =LoadScenarioInput!AK23 -> 4298.672055 | AL16: =LoadScenarioInput!AL23 -> 4360.04499 | AM16: =LoadScenarioInput!AM23 -> 4501.264582 | AN16: =LoadScenarioInput!AN23 -> 4054.858291 | AO16: =LoadScenarioInput!AO23 -> 4475.460159 | AP16: =LoadScenarioInput!AP23 -> 4510.176553 | AQ16: =LoadScenarioInput!AQ23 -> 5301.976663 | AR16: =LoadScenarioInput!AR23 -> 5116.947786 | AS16: =LoadScenarioInput!AS23 -> 5019.728285 | AT16: =LoadScenarioInput!AT23 -> 4902.656708 | AU16: =LoadScenarioInput!AU23 -> 4358.384568 | AV16: =LoadScenarioInput!AV23 -> 4918.364029 | AW16: =LoadScenarioInput!AW23 -> 4134.151832 | AX16: =LoadScenarioInput!AX23 -> 4524.395889 | AY16: =LoadScenarioInput!AY23 -> 4501.264582 | AZ16: =LoadScenarioInput!AZ23 -> 4062.317937 | BA16: =LoadScenarioInput!BA23 -> 4636.124813 | BB16: =LoadScenarioInput!BB23 -> 4510.176553 | BC16: =LoadScenarioInput!BC23 -> 5110.827863 | BD16: =LoadScenarioInput!BD23 -> 5308.096586 | BE16: =LoadScenarioInput!BE23 -> 4962.220095 | BF16: =LoadScenarioInput!BF23 -> 4874.221879 | BG16: =LoadScenarioInput!BG23 -> 4338.491958 | BH16: =LoadScenarioInput!BH23 -> 4727.869657 | BI16: =LoadScenarioInput!BI23 -> 4292.607785 | BJ16: =LoadScenarioInput!BJ23 -> 4477.289445 | BK16: =LoadScenarioInput!BK23 -> 4316.542377 | BL16: =LoadScenarioInput!BL23 -> 4028.775222 | BM16: =LoadScenarioInput!BM23 -> 4565.549082 | BN16: =LoadScenarioInput!BN23 -> 4411.918144 | BO16: =LoadScenarioInput!BO23 -> 4979.887768 | BP16: =LoadScenarioInput!BP23 -> 5171.429681 | BQ16: =LoadScenarioInput!BQ23 -> 4778.207538 | BR16: =LoadScenarioInput!BR23 -> 5056.72513 | BS16: =LoadScenarioInput!BS23 -> 4338.491958 | BT16: =LoadScenarioInput!BT23 -> 4727.869657 | BU16: =LoadScenarioInput!BU23 -> 4292.607785 | BV16: =LoadScenarioInput!BV23 -> 4477.289445 | BW16: =LoadScenarioInput!BW23 -> 4316.542377 | BX16: =LoadScenarioInput!BX23 -> 4028.775222 | BY16: =LoadScenarioInput!BY23 -> 4565.549082 | BZ16: =LoadScenarioInput!BZ23 -> 4249.772219 | CA16: =LoadScenarioInput!CA23 -> 5171.036568 | CB16: =LoadScenarioInput!CB23 -> 5171.429681 | CC16: =LoadScenarioInput!CC23 -> 4778.207538 | CD16: =LoadScenarioInput!CD23 -> 5056.72513 | CE16: =LoadScenarioInput!CE23 -> 4338.491958 | CG16: =LoadScenarioInput!CG23 -> 3695.907883 | CH16: =LoadScenarioInput!CH23 -> 3316.937909 | CI16: =LoadScenarioInput!CI23 -> 3578.06586 | CJ16: =LoadScenarioInput!CJ23 -> 3399.211366 | CK16: =LoadScenarioInput!CK23 -> 2923.335398 | CL16: =LoadScenarioInput!CL23 -> 3212.042423 | CM16: =LoadScenarioInput!CM23 -> 3369.368485 | CN16: =LoadScenarioInput!CN23 -> 4113.615087 | CO16: =LoadScenarioInput!CO23 -> 3820.016414 | CP16: =LoadScenarioInput!CP23 -> 4093.485368 | CQ16: =LoadScenarioInput!CQ23 -> 3624.478055 | CR16: =LoadScenarioInput!CR23 -> 3621.067397 | CS16: =LoadScenarioInput!CS23 -> 3518.538686 | CT16: =LoadScenarioInput!CT23 -> 3316.937909 | CU16: =LoadScenarioInput!CU23 -> 3578.06586 | CV16: =LoadScenarioInput!CV23 -> 3399.211366 | CW16: =LoadScenarioInput!CW23 -> 2923.335398 | CX16: =LoadScenarioInput!CX23 -> 3372.707076 | CY16: =LoadScenarioInput!CY23 -> 3207.960103 | CZ16: =LoadScenarioInput!CZ23 -> 4113.615087 | DA16: =LoadScenarioInput!DA23 -> 4011.165214 | DB16: =LoadScenarioInput!DB23 -> 3909.472811 | DC16: =LoadScenarioInput!DC23 -> 3624.478055 | DD16: =LoadScenarioInput!DD23 -> 3621.067397 | DE16: =LoadScenarioInput!DE23 -> 3518.538686 | DF16: =LoadScenarioInput!DF23 -> 3316.937909 | DG16: =LoadScenarioInput!DG23 -> 3578.06586 | DH16: =LoadScenarioInput!DH23 -> 3399.211366 | DI16: =LoadScenarioInput!DI23 -> 2923.335398 | DJ16: =LoadScenarioInput!DJ23 -> 3372.707076 | DK16: =LoadScenarioInput!DK23 -> 3207.960103 | DL16: =LoadScenarioInput!DL23 -> 4113.615087 | DM16: =LoadScenarioInput!DM23 -> 4011.165214 | DN16: =LoadScenarioInput!DN23 -> 3909.472811 | DO16: =LoadScenarioInput!DO23 -> 3803.345922 | DP16: =LoadScenarioInput!DP23 -> 3453.153739 | DQ16: =LoadScenarioInput!DQ23 -> 3518.538686 | DR16: =LoadScenarioInput!DR23 -> 3481.458132 | DS16: =LoadScenarioInput!DS23 -> 3413.71496 | DT16: =LoadScenarioInput!DT23 -> 3399.211366 | DU16: =LoadScenarioInput!DU23 -> 3165.096925 | DV16: =LoadScenarioInput!DV23 -> 3212.042423 | DW16: =LoadScenarioInput!DW23 -> 3207.960103 | DX16: =LoadScenarioInput!DX23 -> 4304.763887 | DY16: =LoadScenarioInput!DY23 -> 3820.016414 | DZ16: =LoadScenarioInput!DZ23 -> 3859.473001 | EA16: =LoadScenarioInput!EA23 -> 3787.68075 | EB16: =LoadScenarioInput!EB23 -> 3438.846349 | EC16: =LoadScenarioInput!EC23 -> 3685.969103 | ED16: =LoadScenarioInput!ED23 -> 3311.826679 | EE16: =LoadScenarioInput!EE23 -> 3374.889406 | EF16: =LoadScenarioInput!EF23 -> 3546.733571 | EG16: =LoadScenarioInput!EG23 -> 2903.386468 | EH16: =LoadScenarioInput!EH23 -> 3158.908653 | EI16: =LoadScenarioInput!EI23 -> 3132.698513 | EJ16: =LoadScenarioInput!EJ23 -> 4199.111982 | EK16: =LoadScenarioInput!EK23 -> 3718.003319 | EL16: =LoadScenarioInput!EL23 -> 4043.485559 | EM16: =LoadScenarioInput!EM23 -> 3605.1775 | EN16: =LoadScenarioInput!EN23 -> 3438.846349 | EO16: =LoadScenarioInput!EO23 -> 3685.969103 | EP16: =LoadScenarioInput!EP23 -> 3311.826679 | EQ16: =LoadScenarioInput!EQ23 -> 3374.889406 | ER16: =LoadScenarioInput!ER23 -> 3546.733571 | ES16: =LoadScenarioInput!ES23 -> 2903.386468 | ET16: =LoadScenarioInput!ET23 -> 3158.908653 | EU16: =LoadScenarioInput!EU23 -> 3294.844437 | EV16: =LoadScenarioInput!EV23 -> 4007.963182 | EW16: =LoadScenarioInput!EW23 -> 3718.003319 | EX16: =LoadScenarioInput!EX23 -> 4043.485559 | EY16: =LoadScenarioInput!EY23 -> 3605.1775 | EZ16: =LoadScenarioInput!EZ23 -> 3438.846349
